Workbook

Sheet INDEX
A1: INDEX
A2: Model Specs
A3: 1. Information Sheet
A4: 2. Current Tariff Schedule
A5: 3. Continuity Schedule
A6: 4. Billing Det. for Def-Var
A7: 5. Allocating Def-Var Balances
A8: 6. Class A Consumption Data
A9: 6.1a GA Allocation
A10: 6.1 GA
A11: 6.2a CBR B_Allocation
A12: 6.2 CBR B
A13: 8. Calculation of Def-Var RR
A14: 9. STS-Tax Change
A15: 10. Shared Tax - RR
A16: 11. RTSR - Current Rates
A17: 12. RTSR-UTRs & Sub-Tx
A18: 13. RTSR-Historic Wholesale
A19: 14. RTSR-Current Wholesale
A20: 15. RTSR-Forecast Wholesale
A21: 16. RTSR-Rates to Forecast
A22: 17. Rev2Cost-GDPIPI
A23: 18. Regulatory Charges
A24: 19. Additional Rates
A25: 20. Final Tariff Schedule
A26: 21. Bill Impacts
A27: RATES
A28: BoD Reporting

Sheet Model Specs
A1: Back to Index | K1: Lists:
B2: Model Specifications
K3: Yes
B4: Utility | C4: Horizon rate zone | K4: No
B6: Applying for Rates Effective | C6: 2020-01-01 | K6: kWh
K7: kW
K8: kVA
B9: Line Loss Factor | C9: 1.0379
K10: Alectra - PowerStream rate zone | L10: PowerStream rate zone
K11: Alectra - Enersource rate zone | L11: Enersource rate zone
K12: Alectra - Horizon rate zone | L12: Horizon rate zone
K13: Alectra - Brampton rate zone | L13: Brampton rate zone
C14: Rate Classes (select from the List) | K14: Alectra - Guelph rate zone | L14: Guelph rate zone
B15: =IFERROR(VLOOKUP(C15,$K$16:$L$31,2,FALSE),"") -> R | C15: RESIDENTIAL SERVICE CLASSIFICATION
B16: GSL | C16: GENERAL SERVICE LESS THAN 50 kW SERVICE CLASSIFICATION | K16: RESIDENTIAL SERVICE CLASSIFICATION | L16: R | M16: R_TN | N16: R_TC
B17: GSG | C17: GENERAL SERVICE 50 to 4,999 kW SERVICE CLASSIFICATION | K17: GENERAL SERVICE LESS THAN 50 kW SERVICE CLASSIFICATION | L17: GSL | M17: GSL_TN | N17: GSL_TC
B18: LU | C18: LARGE USE SERVICE CLASSIFICATION | K18: GENERAL SERVICE 50 to 499 kW SERVICE CLASSIFICATION | L18: GSG | M18: GSG_TN | N18: GSG_TC
B19: =IFERROR(VLOOKUP(C19,$K$16:$L$31,2,FALSE),"") -> LUDA | C19: LARGE USE SERVICE WITH DEDICATED ASSETS CLASSIFICATION | K19: GENERAL SERVICE 50 to 699 KW SERVICE CLASSIFICATION | L19: GSG | M19: GSG_TN | N19: GSG_TC
B20: USL | C20: UNMETERED SCATTERED LOAD SERVICE CLASSIFICATION | K20: GENERAL SERVICE 50 to 4,999 kW SERVICE CLASSIFICATION | L20: GSG | M20: GSG_TN | N20: GSG_TC
B21: SEN | C21: SENTINEL LIGHTING SERVICE CLASSIFICATION | K21: GENERAL SERVICE 500 to 4,999 kW SERVICE CLASSIFICATION | L21: GS500 | M21: GS500_TN | N21: GS500_TC
B22: SL | C22: STREET LIGHTING SERVICE CLASSIFICATION | K22: GENERAL SERVICE 700 to 4,999 KW SERVICE CLASSIFICATION | L22: GS700 | M22: GS700_TN | N22: GS700_TC
B23: SB | C23: STANDBY POWER SERVICE CLASSIFICATION | K23: LARGE USE SERVICE CLASSIFICATION | L23: LU | M23: LU_TN | N23: LU_TC
B24: =IFERROR(VLOOKUP(C24,$K$16:$L$31,2,FALSE),"") ->  | K24: LARGE USE SERVICE WITH DEDICATED ASSETS CLASSIFICATION | L24: LUDA | M24: LUDA_TN | N24: LUDA_TC
K25: UNMETERED SCATTERED LOAD SERVICE CLASSIFICATION | L25: USL | M25: USL_TN | N25: USL_TC
K26: STREET LIGHTING SERVICE CLASSIFICATION | L26: SL | M26: SL_TN | N26: SL_TC
K27: STANDBY POWER SERVICE CLASSIFICATION | L27: SB | M27: SB | N27: SB
K28: SENTINEL LIGHTING SERVICE CLASSIFICATION | L28: SEN | M28: SEN_TN | N28: SEN_TC
K29: EMBEDDED DISTRIBUTOR SERVICE CLASSIFICATION | L29: EMB | M29: EMB | N29: EMB
K30: DISTRIBUTED GENERATION [DGEN] SERVICE CLASSIFICATION | L30: DG | M30: DG | N30: DG
K31: ENERGY FROM WASTE SERVICE CLASSIFICATION | L31: WST | M31: WST | N31: WST
B34: Have one or more Class A customers | C34: Yes
K36: Newer Disposed
K37: 2015
K38: 2016
K39: 2017
K40: 2018

Sheet 1. Information Sheet
A1: Back to Index
B2: INCENTIVE REGULATION MODEL FOR 2020 FILERS
N12: Version | O12: 1
F14: Utility Name | G14: Alectra - Horizon rate zone
F16: Service Territory
F18: Assigned EB Number | G18: EB-2019-0018
F20: Name of Contact and Title | G20: Indy J. Butany-DeSouza, Vice-President, Regulatory Affairs
F22: Phone Number | G22: 905-821-5727
F24: Email Address | G24: indy.butany@alectrautilities.com
F26: We are applying for rates effective | G26: 2020-01-01
F28: Rate-Setting Method | G28: Price Cap IR
B30: Please indicate in which Rate Year the Group 1 accounts were last cleared1 | G30: 2019
B32: Please indicate the last Cost of Service Re-Basing Year | G32: 2019
C35: Notes
D37: Pale gray cells represent input cells.
D39: Pale blue cells represent drop-down lists.
D41: White cells contain fixed values, automatically generated values or formulae.
B44: Note: 1. Rate year of application

Sheet Current Tariff Schedule
B2: Alectra Utilities Corporation
B3: Horizon Utilities Rate Zone
B4: TARIFF OF RATES AND CHARGES
B5: Effective Date January 1, 2019
B6: Implementation Date February 1, 2019
B7: This schedule supersedes and replaces all previously
B8: approved schedules of Rates, Charges and Loss Factors
D9: EB-2018-0016
B11: RESIDENTIAL SERVICE CLASSIFICATION
B13: This classification applies to an account taking electricity at 750 volts or less where the electricity is used exclusively in a separately metered living accommodation. Customers shall be residing in single-dwelling units that consist of a detached house or one unit of a semi-detached, duplex, triplex or quadruplex house, with a residential zoning. Separately metered dwellings within a town house complex or apartment building also qualify as residential customers. All customers are single-phase. Class B consumers are defined in accordance with O. Reg. 429/04. Further servicing details are available in the distributor’s Conditions of Service.
B15: APPLICATION
B17: The application of these rates and charges shall be in accordance with the Licence of the Distributor and any Code or Order of the Ontario Energy Board, and amendments thereto as approved by the Ontario Energy Board, which may be applicable to the administration of this schedule.
B19: No rates and charges for the distribution of electricity and charges to meet the costs of any work or service done or furnished for the purpose of the distribution of electricity shall be made except as permitted by this schedule, unless required by the Distributor’s Licence or a Code or Order of the Ontario Energy Ontario Energy Board, and amendments thereto as approved by the Ontario Energy Board, or as specified herein.
B21: Unless specifically noted, this schedule does not contain any charges for the electricity commodity, be it under the Regulated Price Plan, a contract with a retailer or the wholesale market price, as applicable. In addition, the charges in the MONTHLY RATES AND CHARGES - Regulatory Component of this schedule do not apply to a customer that is an embedded wholesale market participant.
B23: It should be noted that this schedule does not list any charges, assessments, or credits that are required by law to be invoiced by a distributor and that are not subject to Ontario Energy Board approval, such as the Global Adjustment and the HST.
B25: MONTHLY RATES AND CHARGES – Delivery Component
A27: R_F | B27: Service Charge | C27: $ | D27: 26.7
A28: R_SME | B28: Smart Metering Entity Charge - effective until December 31, 2022 | C28: $ | D28: 0.57
A29: R_ESMF18 | B29: Rate Rider for Disposition of 2016 Earnings Sharing - effective until April 30, 2019 | C29: $ | D29: -0.16
A30: R_FRR19 | B30: Rate Rider for Recovery of 2019 Foregone Revenue - effective until December 31, 2019 | C30: $ | D30: 0.05
A31: R_LV | B31: Low Voltage Service Rate | C31: $/kWh | D31: 6e-05
A32: R_GA18 | B32: Rate Rider for Disposition of Global Adjustment Account (2018) - effective until April 30, 2019 - Applicable only for Non-RPP Customers | C32: $/kWh | D32: -0.0029
A33: R_GA19 | B33: Rate Rider for Disposition of Global Adjustment Account (2019) - effective until December 31, 2019 Applicable only for Non-RPP Customers - Approved on an Interim Basis | C33: $/kWh | D33: -0.0002142565073
A34: R_DVA18 | B34: Rate Rider for Disposition of Deferral/Variance Accounts (2018) - effective until April 30, 2019 | C34: $/kWh | D34: -0.0005574544117
A35: R_DVA19 | B35: Rate Rider for Disposition of Deferral/Variance Accounts (2019) - effective until December 31, 2019 - Approved on an Interim Basis | C35: $/kWh | D35: -0.0021
A36: R_CBR18 | B36: Rate Rider for Disposition of Capacity Based Recovery Account (2018) - effective until April 30, 2019 Applicable Only for Class B Customers | C36: $/kWh | D36: -4.802217843e-05
A37: R_LRV18 | B37: Rate Rider for Disposition of Lost Revenue Adjustment Mechanism Variance Account (LRAMVA) (2018) - effective until April 30, 2019 | C37: $/kWh | D37: 0.0003423584074
A38: R_LRV19 | B38: Rate Rider for Disposition of Lost Revenue Adjustment Mechanism Variance Account (LRAMVA) (2019) - effective until December 31, 2019 | C38: $/kWh | D38: 0.0003
A39: R_TN | B39: Retail Transmission Rate - Network Service Rate | C39: $/kWh | D39: 0.0072
A40: R_TC | B40: Retail Transmission Rate - Line and Transformation Connection Service Rate | C40: $/kWh | D40: 0.0066
B42: MONTHLY RATES AND CHARGES – Regulatory Component
B44: Wholesale Market Service Rate (WMS) - not including CBR | C44: $/kWh | D44: 0.003
B45: Capacity Based Recovery (CBR) - Applicable for Class B Customers | C45: $/kWh | D45: 0.0004
B46: Rural or Remote Electricity Rate Protection Charge (RRRP) | C46: $/kWh | D46: 0.0005
B47: Standard Supply Service - Administrative Charge (if applicable) | C47: $ | D47: 0.25
B50: GENERAL SERVICE LESS THAN 50 kW SERVICE CLASSIFICATION
B52: This classification applies to a non-residential account taking electricity at 750 volts or less whose average monthly maximum demand is less than, or is forecast to be less than, 50 kW. Class B consumers are defined in accordance with O. Reg. 429/04. Further servicing details are available in the distributor’s Conditions of Service.
B54: APPLICATION
B56: The application of these rates and charges shall be in accordance with the Licence of the Distributor and any Code or Order of the Ontario Energy Board, and amendments thereto as approved by the Ontario Energy Board, which may be applicable to the administration of this schedule.
B58: No rates and charges for the distribution of electricity and charges to meet the costs of any work or service done or furnished for the purpose of the distribution of electricity shall be made except as permitted by this schedule, unless required by the Distributor’s Licence or a Code or Order of the Ontario Energy Board, and amendments thereto as approved by the Ontario Energy Board, or as specified herein.
B60: Unless specifically noted, this schedule does not contain any charges for the electricity commodity, be it under the Regulated Price Plan, a contract with a retailer or the wholesale market price, as applicable. In addition, the charges in the MONTHLY RATES AND CHARGES - Regulatory Component of this schedule do not apply to a customer that is an embedded wholesale market participant.
B62: It should be noted that this schedule does not list any charges, assessments, or credits that are required by law to be invoiced by a distributor and that are not subject to Ontario Energy Board approval, such as the Global Adjustment and the HST.
B64: MONTHLY RATES AND CHARGES – Delivery Component
A66: GSL_F | B66: Service Charge | C66: $ | D66: 42.29
A67: GSL_SME | B67: Smart Metering Entity Charge - effective until December 31, 2022 | C67: $ | D67: 0.57
A68: GSL_ESMF18 | B68: Rate Rider for Disposition of 2016 Earnings Sharing - effective until April 30, 2019 | C68: $ | D68: -0.25
A69: GSL_FRR19 | B69: Rate Rider for Recovery of 2019 Foregone Revenue - effective until December 31, 2019 | C69: $ | D69: 0.17
A70: GSL_V | B70: Distribution Volumetric Rate | C70: $/kWh | D70: 0.0109
A71: GSL_LV | B71: Low Voltage Service Rate | C71: $/kWh | D71: 6e-05
A72: GSL_GA18 | B72: Rate Rider for Disposition of Global Adjustment Account (2018) - effective until April 30, 2019 - Applicable only for Non-RPP Customers | C72: $/kWh | D72: -0.0029
A73: GSL_GA19 | B73: Rate Rider for Disposition of Global Adjustment Account (2019) - effective until December 31, 2019 Applicable only for Non-RPP Customers - Approved on an Interim Basis | C73: $/kWh | D73: -0.0002142565073
A74: GSL_DVA18 | B74: Rate Rider for Disposition of Deferral/Variance Accounts (2018) - effective until April 30, 2019 | C74: $/kWh | D74: -0.0005470605898
A75: GSL_DVA19 | B75: Rate Rider for Disposition of Deferral/Variance Accounts (2019) - effective until December 31, 2019 - Approved on an Interim Basis | C75: $/kWh | D75: -0.002
A76: GSL_CBR18 | B76: Rate Rider for Disposition of Capacity Based Recovery Account (2018) - effective until April 30, 2019 Applicable Only for Class B Customers | C76: $/kWh | D76: -4.802217843e-05
A77: GSL_ESMV18 | B77: Rate Rider for Disposition of 2016 Earnings Sharing - effective until April 30, 2019 | C77: $/kWh | D77: -0.0001
A78: GSL_LRV18 | B78: Rate Rider for Disposition of Lost Revenue Adjustment Mechanism Variance Account (LRAMVA) (2018) - effective until April 30, 2019 | C78: $/kWh | D78: 0.0005061084916
A79: GSL_LRV19 | B79: Rate Rider for Disposition of Lost Revenue Adjustment Mechanism Variance Account (LRAMVA) (2019) - effective until December 31, 2019 | C79: $/kWh | D79: 0.0006
A80: GSL_TN | B80: Retail Transmission Rate - Network Service Rate | C80: $/kWh | D80: 0.0063
A81: GSL_TC | B81: Retail Transmission Rate - Line and Transformation Connection Service Rate | C81: $/kWh | D81: 0.0059
B83: MONTHLY RATES AND CHARGES – Regulatory Component
B85: Wholesale Market Service Rate (WMS) - not including CBR | C85: $/kWh | D85: 0.003
B86: Capacity Based Recovery (CBR) - Applicable for Class B Customers | C86: $/kWh | D86: 0.0004
B87: Rural or Remote Electricity Rate Protection Charge (RRRP) | C87: $/kWh | D87: 0.0005
B88: Standard Supply Service - Administrative Charge (if applicable) | C88: $ | D88: 0.25
B91: GENERAL SERVICE 50 to 4,999 kW SERVICE CLASSIFICATION
B93: This classification applies to a non-residential account whose average monthly maximum demand used for billing purposes is equal to or greater than, or is forecast to be equal to or greater than, 50 kW but less than 5,000 kW. Class A and Class B consumers are defined in accordance with O. Reg. 429/04. Further servicing details are available in the distributor’s Conditions of Service.
B95: APPLICATION
B97: The application of these rates and charges shall be in accordance with the Licence of the Distributor and any Code or Order of the Ontario Energy Board, and amendments thereto as approved by the Ontario Energy Board, which may be applicable to the administration of this schedule.
B99: No rates and charges for the distribution of electricity and charges to meet the costs of any work or service done or furnished for the purpose of the distribution of electricity shall be made except as permitted by this schedule, unless required by the Distributor’s Licence or a Code or Order of the Ontario Energy Board, and amendments thereto as approved by the Ontario Energy Board, or as specified herein.
B101: Unless specifically noted, this schedule does not contain any charges for the electricity commodity, be it under the Regulated Price Plan, a contract with a retailer or the wholesale market price, as applicable. In addition, the charges in the MONTHLY RATES AND CHARGES – Regulatory Component of this schedule do not apply to a customer that is an embedded wholesale market participant.
B103: The rate rider for the disposition of WMS Sub-Account CBR Class B is not applicable to wholesale market participant (WMP) customers. It is not applicable to WMP customers that transitioned between Class A and Class B during the variance account accumulation period, or to customers that were in Class A for the entire period. Customers that transitioned are to be charged or refunded their share of the variance disposed through customer specific billing adjustments. The rate rider is to be consistently applied for the entire period to the sunset date of the rate rider. In addition, this rate rider is applicable to all new non-RPP Class B customers.
B105: The rate rider for the disposition of Global Adjustment is only applicable to non-RPP Class B customers. It is not applicable to WMP customers that transitioned between Class A and Class B during the variance account accumulation period, or to customers that were in Class A for the entire period. Customers that transitioned are to be charged or refunded their share of the variance disposed through customer specific billing adjustments. The rate rider is to be consistently applied for the entire period to the sunset date of the rate rider. In addition, this rate rider is applicable to all new non-RPP Class B customers.
B107: It should be noted that this schedule does not list any charges, assessments or credits that are required by law to be invoiced by a distributor and that are not subject to Ontario Energy Board approval, such as the Global Adjustment and the HST.
B109: MONTHLY RATES AND CHARGES – Delivery Component
A111: GSG_F | B111: Service Charge | C111: $ | D111: 389.4
A112: GSG_ESMF18 | B112: Rate Rider for Disposition of 2016 Earnings Sharing - effective until April 30, 2019 | C112: $ | D112: -2.27
A113: GSG_FRR19 | B113: Rate Rider for Recovery of 2019 Foregone Revenue - effective until December 31, 2019 | C113: $ | D113: 1.9
A114: GSG_V | B114: Distribution Volumetric Rate | C114: $/kW | D114: 2.615
A115: GSG_LV | B115: Low Voltage Service Rate | C115: $/kW | D115: 0.02169
A116: GSG_GA18 | B116: Rate Rider for Disposition of Global Adjustment Account (2018) - effective until April 30, 2019 Applicable only for Non-RPP Customers Non-Wholesale Market Participants | C116: $/kWh | D116: -0.0029
A117: GSG_GA19 | B117: Rate Rider for Disposition of Global Adjustment Account (2019) - effective May 1, 2019 until December 31, 2019 Applicable only for Non-RPP Customers Non-Wholesale Market Participants - Approved on an Interim Basis | C117: $/kWh | D117: -0.0003
A118: GSG_DVA18 | B118: Rate Rider for Disposition of Deferral/Variance Accounts (2018) - effective until April 30, 2019 | C118: $/kW | D118: 0.1080394209
A119: GSG_DVA18nonWMP | B119: Rate Rider for Disposition of Deferral/Variance Accounts (2018) - effective until April 30, 2019 Applicable only for Non-Wholesale Market Participants | C119: $/kW | D119: -0.3086262689
A120: GSG_DVA19 | B120: Rate Rider for Disposition of Deferral/Variance Accounts (2019) - effective until December 31, 2019 - Approved on an Interim Basis | C120: $/kW | D120: -0.7411
A121: GSG_CBR18 | B121: Rate Rider for Disposition of Capacity Based Recovery Account (2018) - effective until April 30, 2019 Applicable Only for Class B Customers | C121: $/kW | D121: -0.01729915518
A122: GSG_ESMv18 | B122: Rate Rider for Disposition of 2016 Earnings Sharing - effective until April 30, 2019 | C122: $/kW | D122: -0.0153
A123: GSG_LRV18 | B123: Rate Rider for Disposition of Lost Revenue Adjustment Mechanism Variance Account (LRAMVA) (2018) - effective until April 30, 2019 | C123: $/kW | D123: 0.0575
A124: GSG_LRV19 | B124: Rate Rider for Disposition of Lost Revenue Adjustment Mechanism Variance Account (LRAMVA) (2019) - effective until December 31, 2019 | C124: $/kW | D124: 0.0066
A125: GSG_TN | B125: Retail Transmission Rate - Network Service Rate | C125: $/kW | D125: 2.5204
A126: GSG_TC | B126: Retail Transmission Rate - Line and Transformation Connection Service Rate | C126: $/kW | D126: 2.3873
B128: MONTHLY RATES AND CHARGES – Regulatory Component
B130: Wholesale Market Service Rate (WMS) - not including CBR | C130: $/kWh | D130: 0.003
B131: Capacity Based Recovery (CBR) - Applicable for Class B Customers | C131: $/kWh | D131: 0.0004
B132: Rural or Remote Electricity Rate Protection Charge (RRRP) | C132: $/kWh | D132: 0.0005
B133: Standard Supply Service - Administrative Charge (if applicable) | C133: $ | D133: 0.25
B135: LARGE USE SERVICE CLASSIFICATION
B137: This classification applies to an account whose average monthly maximum demand used for billing purposes is equal to or greater than, or is forecast to be equal to or greater than, 5,000 kW. Class A and Class B consumers are defined in accordance with O. Reg. 429/04. Further servicing details are available in the distributor’s Conditions of Service.
B139: APPLICATION
B141: The application of these rates and charges shall be in accordance with the Licence of the Distributor and any Code or Order of the Ontario Energy Board, and amendments thereto as approved by the Ontario Energy Board, which may be applicable to the administration of this schedule.
B143: No rates and charges for the distribution of electricity and charges to meet the costs of any work or service done or furnished for the purpose of the distribution of electricity shall be made except as permitted by this schedule, unless required by the Distributor’s Licence or a Code or Order of the Ontario Energy Board, and amendments thereto as approved by the Ontario Energy Board, or as specified herein.
B145: Unless specifically noted, this schedule does not contain any charges for the electricity commodity, be it under the Regulated Price Plan, a contract with a retailer or the wholesale market price, as applicable. In addition, the charges in the MONTHLY RATES AND CHARGES – Regulatory Component of this schedule do not apply to a customer that is an embedded wholesale market participant.
B147: The rate rider for the disposition of WMS Sub-Account CBR Class B is not applicable to wholesale market participant (WMP) customers. It is not applicable to WMP customers that transitioned between Class A and Class B during the variance account accumulation period, or to customers that were in Class A for the entire period. Customers that transitioned are to be charged or refunded their share of the variance disposed through customer specific billing adjustments. The rate rider is to be consistently applied for the entire period to the sunset date of the rate rider. In addition, this rate rider is applicable to all new non-RPP Class B customers.
B149: The rate rider for the disposition of Global Adjustment is only applicable to non-RPP Class B customers. It is not applicable to WMP customers that transitioned between Class A and Class B during the variance account accumulation period, or to customers that were in Class A for the entire period. Customers that transitioned are to be charged or refunded their share of the variance disposed through customer specific billing adjustments. The rate rider is to be consistently applied for the entire period to the sunset date of the rate rider. In addition, this rate rider is applicable to all new non-RPP Class B customers.
B151: It should be noted that this schedule does not list any charges, assessments or credits that are required by law to be invoiced by a distributor and that are not subject to Ontario Energy Board approval, such as the Global Adjustment and the HST.
B153: MONTHLY RATES AND CHARGES – Delivery Component
A155: LU_F | B155: Service Charge | C155: $ | D155: 24279.37
A156: LU_ESMF18 | B156: Rate Rider for Disposition of 2016 Earnings Sharing - effective until April 30, 2019 | C156: $ | D156: -142.57
A157: LU_FRR19 | B157: Rate Rider for Recovery of 2019 Foregone Revenue - effective until December 31, 2019 | C157: $ | D157: 73.3
A158: LU_V | B158: Distribution Volumetric Rate | C158: $/kW | D158: 1.4325
A159: LU_LV | B159: Low Voltage Service Rate | C159: $/kW | D159: 0.02492
A160: LU_GA18 | B160: Rate Rider for Disposition of Global Adjustment Account (2018) - effective until April 30, 2019 Applicable only for Non-RPP Customers Non-Wholesale Market Participants | C160: $/kWh | D160: -0.0029
A161: LU_DVA18 | B161: Rate Rider for Disposition of Deferral/Variance Accounts (2018) - effective until April 30, 2019 | C161: $/kW | D161: 0.1418089204
A162: LU_DVA18nonWMP | B162: Rate Rider for Disposition of Deferral/Variance Accounts (2018) - effective until April 30, 2019 Applicable only for Non-Wholesale Market Participants | C162: $/kW | D162: -0.4568818938
A163: LU_DVA19 | B163: Rate Rider for Disposition of Deferral/Variance Accounts (2019) - effective until December 31, 2019 - Approved on an Interim Basis | C163: $/kW | D163: 0.0873
A164: LU_DVA19nonWMP | B164: Rate Rider for Disposition of Deferral/Variance Accounts (2019) - effective until December 31, 2019 Applicable only for Non-Wholesale Market Participants - Approved on an Interim Basis | C164: $/kW | D164: -1.2184
A165: LU_CBR18 | B165: Rate Rider for Disposition of Capacity Based Recovery Account (2018) - effective until April 30, 2019 Applicable Only for Class B Customers | C165: $/kW | D165: -0.02611067875
A166: LU_ESMV18 | B166: Rate Rider for Disposition of 2016 Earnings Sharing - effective until April 30, 2019 | C166: $/kW | D166: -0.0084
A167: LU_LRV18 | B167: Rate Rider for Disposition of Lost Revenue Adjustment Mechanism Variance Account (LRAMVA) (2018) - effective until April 30, 2019 | C167: $/kW | D167: 0.2337735807
A168: LU_LRV19 | B168: Rate Rider for Disposition of Lost Revenue Adjustment Mechanism Variance Account (LRAMVA) (2019) - effective until December 31, 2019 | C168: $/kW | D168: 0.0205
A169: LU_TN | B169: Retail Transmission Rate - Network Service Rate | C169: $/kW | D169: 2.8791
A170: LU_TC | B170: Retail Transmission Rate - Line and Transformation Connection Service Rate | C170: $/kW | D170: 2.7433
B172: MONTHLY RATES AND CHARGES – Regulatory Component
B174: Wholesale Market Service Rate (WMS) - not including CBR | C174: $/kWh | D174: 0.003
B175: Capacity Based Recovery (CBR) - Applicable for Class B Customers | C175: $/kWh | D175: 0.0004
B176: Rural or Remote Electricity Rate Protection Charge (RRRP) | C176: $/kWh | D176: 0.0005
B177: Standard Supply Service - Administrative Charge (if applicable) | C177: $ | D177: 0.25
B179: LARGE USE WITH DEDICATED ASSETS SERVICE CLASSIFICATION
B181: This classification applies to an account where average monthly maximum demand used for billing purposes is equal to or greater than, or is forecast to be equal to or greater than, 5,000 kW and using dedicated assets. Class A and Class B consumers are defined in accordance with O. Reg. 429/04. Further servicing details are available in the distributor’s Conditions of Service.
B183: APPLICATION
B185: The application of these rates and charges shall be in accordance with the Licence of the Distributor and any Code or Order of the Ontario Energy Board, and amendments thereto as approved by the Ontario Energy Board, which may be applicable to the administration of this schedule.
B187: No rates and charges for the distribution of electricity and charges to meet the costs of any work or service done or furnished for the purpose of the distribution of electricity shall be made except as permitted by this schedule, unless required by the Distributor’s Licence or a Code or Order of the Ontario Energy Board, and amendments thereto as approved by the Ontario Energy Board, or as specified herein.
B189: Unless specifically noted, this schedule does not contain any charges for the electricity commodity, be it under the Regulated Price Plan, a contract with a retailer or the wholesale market price, as applicable. In addition, the charges in the MONTHLY RATES AND CHARGES – Regulatory Component of this schedule do not apply to a customer that is an embedded wholesale market participant.
B191: It should be noted that this schedule does not list any charges, assessments or credits that are required by law to be invoiced by a distributor and that are not subject to Ontario Energy Board approval, such as the Global Adjustment and the HST.
B193: MONTHLY RATES AND CHARGES – Delivery Component
A195: LUDA_F | B195: Service Charge | C195: $ | D195: 5755.85
A196: LUDA_ESMF18 | B196: Rate Rider for Disposition of 2016 Earnings Sharing - effective until April 30, 2019 | C196: $ | D196: -33.55
A197: LUDA_FRR19 | B197: Rate Rider for Recovery of 2019 Foregone Revenue - effective until December 31, 2019 | C197: $ | D197: 30.84
A198: LUDA_V | B198: Distribution Volumetric Rate | C198: $/kW | D198: 0.3396
A199: LUDA_LV | B199: Low Voltage Service Rate | C199: $/kW | D199: 0.02492
A200: LUDA_DVA18 | B200: Rate Rider for Disposition of Deferral/Variance Accounts (2018) - effective until April 30, 2019 | C200: $/kW | D200: 0.1635188669
A201: LUDA_DVA18nonWMP | B201: Rate Rider for Disposition of Deferral/Variance Accounts (2018) - effective until April 30, 2019 Applicable only for Non-Wholesale Market Participants | C201: $/kW | D201: -0.3761280106
A202: LUDA_DVA19 | B202: Rate Rider for Disposition of Deferral/Variance Accounts (2019) - effective until December 31, 2019 - Approved on an Interim Basis | C202: $/kW | D202: 0.0957
A203: LUDA_DVA19nonWMP | B203: Rate Rider for Disposition of Deferral/Variance Accounts (2019) - effective until December 31, 2019 Applicable only for Non-Wholesale Market Participants - Approved on an Interim Basis | C203: $/kW | D203: -0.864
A204: LUDA_ESMV18 | B204: Rate Rider for Disposition of 2016 Earnings Sharing - effective until April 30, 2019 | C204: $/kW | D204: -0.002
A205: LUDA_LRV18 | B205: Rate Rider for Disposition of Lost Revenue Adjustment Mechanism Variance Account (LRAMVA) (2018) - effective until April 30, 2019 | C205: $/kW | D205: 0.004879617355
A206: LUDA_LRV19 | B206: Rate Rider for Disposition of Lost Revenue Adjustment Mechanism Variance Account (LRAMVA) (2019) - effective until December 31, 2019 | C206: $/kW | D206: 0.0065
A207: LUDA_TN | B207: Retail Transmission Rate - Network Service Rate | C207: $/kW | D207: 2.8791
A208: LUDA_TC | B208: Retail Transmission Rate - Line and Transformation Connection Service Rate | C208: $/kW | D208: 2.7433
B210: MONTHLY RATES AND CHARGES – Regulatory Component
B212: Wholesale Market Service Rate (WMS) - not including CBR | C212: $/kWh | D212: 0.003
B213: Capacity Based Recovery (CBR) - Applicable for Class B Customers | C213: $/kWh | D213: 0.0004
B214: Rural or Remote Electricity Rate Protection Charge (RRRP) | C214: $/kWh | D214: 0.0005
B215: Standard Supply Service - Administrative Charge (if applicable) | C215: $ | D215: 0.25
B217: STANDBY POWER SERVICE CLASSIFICATION
B219: This classification refers to an account that has Load Displacement Generation and requires the distributor to provide back-up service. Further servicing details are available in the distributor’s Conditions of Service.
B221: APPLICATION
B223: The application of these rates and charges shall be in accordance with the Licence of the Distributor and any Code or Order of the Ontario Energy Board, and amendments thereto as approved by the Ontario Energy Board, which may be applicable to the administration of this schedule.
B225: No rates and charges for the distribution of electricity and charges to meet the costs of any work or service done or furnished for the purpose of the distribution of electricity shall be made except as permitted by this schedule, unless required by the Distributor’s Licence or a Code or Order of the Ontario Energy Board, and amendments thereto as approved by the Ontario Energy Board, or as specified herein.
B227: Unless specifically noted, this schedule does not contain any charges for the electricity commodity, be it under the Regulated Price Plan, a contract with a retailer or the wholesale market price, as applicable.
B229: It should be noted that this schedule does not list any charges, assessments or credits that are required by law to be invoiced by a distributor and that are not subject to Ontario Energy Board approval, such as the Global Adjustment and the HST.
B231: MONTHLY RATES AND CHARGES – Delivery Component - APPROVED ON AN INTERIM BASIS
A233: SB_V | B233: GS>50 Standby Charge - for a month where standby power is not provided. The charge is applied to the amount of reserved load transfer capacity contracted or the amount of monthly peak load displaced by a generating facility. | C233: $/kW | D233: 2.615
A235: SB_LU_V | B235: Large Use Standby Charge - for a month where standby power is not provided. The charge is applied to the amount of reserved load transfer capacity contracted or the amount of monthly peak load displaced by a generating facility. | C235: $/kW | D235: 1.4325
A237: SB_LUDA_V | B237: Large Use with Dedicated Assets Standby Charge - for a month where standby power is not provided. The charge is applied to the amount of reserved load transfer capacity contracted or the amount of monthly peak load displaced by a generating facility. | C237: $/kW | D237: 0.3396
B240: UNMETERED SCATTERED LOAD SERVICE CLASSIFICATION
B242: This classification applies to an account taking electricity at 750 volts or less whose average monthly maximum demand is less than, or is forecast to be less than, 50 kW and the consumption is unmetered. Such connections include cable TV power packs, bus shelters, telephone booths, traffic lights, railway crossings, etc. The level of the consumption will be agreed to by the distributor and the customer, based on detailed manufacturer information/documentation with regard to electrical consumption of the unmetered load or periodic monitoring of actual consumption. Class B consumers are defined in accordance with O. Reg. 429/04. Further servicing details are available in the distributor’s Conditions of Service.
B244: APPLICATION
B246: The application of these rates and charges shall be in accordance with the Licence of the Distributor and any Code or Order of the Ontario Energy Board, and amendments thereto as approved by the Ontario Energy Board, which may be applicable to the administration of this schedule.
B248: No rates and charges for the distribution of electricity and charges to meet the costs of any work or service done or furnished for the purpose of the distribution of electricity shall be made except as permitted by this schedule, unless required by the Distributor’s Licence or a Code or Order of the Ontario Energy Board, and amendments thereto as approved by the Ontario Energy Board, or as specified herein.
B250: Unless specifically noted, this schedule does not contain any charges for the electricity commodity, be it under the Regulated Price Plan, a contract with a retailer or the wholesale market price, as applicable. In addition, the charges in the MONTHLY RATES AND CHARGES – Regulatory Component of this schedule do not apply to a customer that is an embedded wholesale market participant.
B252: It should be noted that this schedule does not list any charges, assessments or credits that are required by law to be invoiced by a distributor and that are not subject to Ontario Energy Board approval, such as the Global Adjustment and the HST.
B254: MONTHLY RATES AND CHARGES – Delivery Component
A256: USL_F | B256: Service Charge | C256: $ | D256: 8.63
A257: USL_ESMF18 | B257: Rate Rider for Disposition of 2016 Earnings Sharing - effective until April 30, 2019 | C257: $ | D257: -0.05
A258: USL_FRR19 | B258: Rate Rider for Recovery of 2019 Foregone Revenue - effective until December 31, 2019 | C258: $ | D258: 0.03
A259: USL_V | B259: Distribution Volumetric Rate | C259: $/kWh | D259: 0.0134
A260: USL_LV | B260: Low Voltage Service Rate | C260: $/kWh | D260: 6e-05
A261: USL_GA18 | B261: Rate Rider for Disposition of Global Adjustment Account (2018) - effective until April 30, 2019 Applicable only for Non-RPP Customers Non-Wholesale Market Participants | C261: $/kWh | D261: -0.0029
A262: USL_GA19 | B262: Rate Rider for Disposition of Global Adjustment Account (2019) - effective December 31, 2019 Applicable only for Non-RPP Customers Non-Wholesale Market Participants - Approved on an Interim Basis | C262: $/kWh | D262: -0.0002142565073
A263: USL_DVA18 | B263: Rate Rider for Disposition of Deferral/Variance Accounts (2018) - effective until April 30, 2019 | C263: $/kWh | D263: -0.0005439072096
A264: USL_DVA19 | B264: Rate Rider for Disposition of Deferral/Variance Accounts (2019) - effective until December 31, 2019 - Approved on an Interim Basis | C264: $/kWh | D264: -0.002
A265: USL_CBR18 | B265: Rate Rider for Disposition of Capacity Based Recovery Account (2018) - effective until April 30, 2019 Applicable Only for Class B Customers | C265: $/kWh | D265: -4.802217843e-05
A266: USL_ESMV18 | B266: Rate Rider for Disposition of 2016 Earnings Sharing - effective until April 30, 2019 | C266: $/kWh | D266: -0.0001
A267: USL_TN | B267: Retail Transmission Rate - Network Service Rate | C267: $/kWh | D267: 0.0064
A268: USL_TC | B268: Retail Transmission Rate - Line and Transformation Connection Service Rate | C268: $/kWh | D268: 0.006
B270: MONTHLY RATES AND CHARGES – Regulatory Component
B272: Wholesale Market Service Rate (WMS) - not including CBR | C272: $/kWh | D272: 0.003
B273: Capacity Based Recovery (CBR) - Applicable for Class B Customers | C273: $/kWh | D273: 0.0004
B274: Rural or Remote Electricity Rate Protection Charge (RRRP) | C274: $/kWh | D274: 0.0005
B275: Standard Supply Service - Administrative Charge (if applicable) | C275: $ | D275: 0.25
B277: SENTINEL LIGHTING SERVICE CLASSIFICATION
B279: This classification applies to safety/security lighting with a Residential, General Service or Large Use customer. This is typically exterior lighting, and often unmetered. Consumption is estimated based on the equipment rating and estimated hours of use. Class B consumers are defined in accordance with O. Reg. 429/04. Further servicing details are available in the distributor’s Conditions of Service.
B281: APPLICATION
B283: The application of these rates and charges shall be in accordance with the Licence of the Distributor and any Code or Order of the Ontario Energy Board, and amendments thereto as approved by the Ontario Energy Board, which may be applicable to the administration of this schedule.
B285: No rates and charges for the distribution of electricity and charges to meet the costs of any work or service done or furnished for the purpose of the distribution of electricity shall be made except as permitted by this schedule, unless required by the Distributor’s Licence or a Code or Order of the Ontario Energy Board, and amendments thereto as approved by the Ontario Energy Board, or as specified herein.
B287: Unless specifically noted, this schedule does not contain any charges for the electricity commodity, be it under the Regulated Price Plan, a contract with a retailer or the wholesale market price, as applicable. In addition, the charges in the MONTHLY RATES AND CHARGES – Regulatory Component of this schedule do not apply to a customer that is an embedded wholesale market participant.
B289: It should be noted that this schedule does not list any charges, assessments or credits that are required by law to be invoiced by a distributor and that are not subject to Ontario Energy Board approval, such as the Global Adjustment and the HST.
B291: MONTHLY RATES AND CHARGES – Delivery Component
A293: SEN_F | B293: Service Charge (per Connection) | C293: $ | D293: 5.63
A294: SEN_ESMF18 | B294: Rate Rider for Disposition of 2016 Earnings Sharing - effective until April 30, 2019 | C294: $ | D294: -0.03
... 124 more rows

Sheet 3. Continuity Schedule
A1: Back to Index | B1: Back to Index | CB1: FALSE
C2: ='1. Information Sheet'!B2 -> INCENTIVE REGULATION MODEL FOR 2020 FILERS | CB2: FALSE
CB3: FALSE
CB4: FALSE
CB5: FALSE
CB6: FALSE
CB7: FALSE
CB8: FALSE
CB9: FALSE
CB10: TRUE
CB11: TRUE
C12: Please complete the following continuity schedule for the following Deferral/Variance Accounts. Enter information into green cells only. Column CE shoudl match the latest 2.1.7 RRR filing. When inputting balances in the continuity schedule, Account 1580 RSVA - Wholesale Market Service Charge is to exclude any amounts relating to CBR. The CBR amounts are to be entered separately in the Class A and Class B 1580 sub-accounts. Only Class B amounts are to be disposed. Class A amounts are not to be disposed. If you have received approval to dispose of balances from prior years, the starting point for entries in the schedule below will be the balance sheet date as per your general ledger for which you received approval. For example, if in the 2020 EDR process (CoS or IRM) you received approval for the December 31, 2014 balances, the starting point for your entries below should be the 2013 year. This will allow for the correct starting point for the 2014 opening balance columns for both principal and interest. Please refer to the footnotes for further instructions.
E16: 2013 | O16: =E16+1 -> 2014 | Y16: =O16+1 -> 2015 | AI16: =Y16+1 -> 2016 | AS16: =AI16+1 -> 2017 | BC16: =AS16+1 -> 2018 | BM16: 2019 | BQ16: Projected Interest on Dec-31-18 Balances | BV16: 2.1.7 RRR
C17: Account Descriptions | D17: Account Number | E17: Opening Principal Amounts as of Jan 1, 2013 | F17: Transactions2 Debit / (Credit) during 2013 | G17: OEB-Approved Disposition during 2013 | H17: Principal Adjustments1 during 2013 | I17: Closing Principal Balance as of Dec 31, 2013 | J17: Opening Interest Amounts as of Jan 1, 2013 | K17: Interest Jan 1 to Dec 31, 2013 | L17: OEB-Approved Disposition during 2013 | M17: Interest Adjustments1 during 2013 | N17: Closing Interest Amounts as of Dec 31, 2013 | O17: Opening Principal Amounts as of Jan 1, 2014 | P17: Transactions2 Debit / (Credit) during 2014 | Q17: OEB-Approved Disposition during 2014 | R17: Principal Adjustments1 during 2014 | S17: Closing Principal Balance as of Dec 31, 2014 | T17: Opening Interest Amounts as of Jan 1, 2014 | U17: Interest Jan 1 to Dec 31. 2014 | V17: OEB-Approved Disposition during 2014 | W17: Interest Adjustments1 during 2014 | X17: Closing Interest Amounts as of Dec 31, 2014 | Y17: Opening Principal Amounts as of Jan 1, 2015 | Z17: Transactions2 Debit / (Credit) during 2015 | AA17: OEB-Approved Disposition during 2015 | AB17: Principal Adjustments1 during 2015 | AC17: Closing Principal Balance as of Dec 31, 15 | AD17: Opening Interest Amounts as of Jan 1, 15 | AE17: Interest Jan 1 to Dec 31, 15 | AF17: OEB-Approved Disposition during 2015 | AG17: Interest Adjustments1 during 2015 | AH17: Closing Interest Amounts as of Dec 31, 15 | AI17: Opening Principal Amounts as of Jan 1, 2016 | AJ17: Transactions2 Debit / (Credit) during 2016 | AK17: OEB-Approved Disposition during 2016 | AL17: Principal Adjustments1 during 2016 | AM17: Closing Principal Balance as of Dec 31, 16 | AN17: Opening Interest Amounts as of Jan 1, 16 | AO17: Interest Jan 1 to Dec 31, 16 | AP17: OEB-Approved Disposition during 2016 | AQ17: Interest Adjustments1 during 2016 | AR17: Closing Interest Amounts as of Dec 31, 16 | AS17: Opening Principal Amounts as of Jan 1, 2017 | AT17: Transactions2 Debit / (Credit) during 2017 | AU17: OEB-Approved Disposition during 2017 | AV17: Principal Adjustments1 during 2017 | AW17: Closing Principal Balance as of Dec 31, 17 | AX17: Opening Interest Amounts as of Jan 1, 17 | AY17: Interest Jan 1 to Dec 31, 17 | AZ17: OEB-Approved Disposition during 2017 | BA17: Interest Adjustments1 during 2017 | BB17: Closing Interest Amounts as of Dec 31, 17 | BC17: Opening Principal Amounts as of Jan 1, 2018 | BD17: Transactions2 Debit / (Credit) during 2018 | BE17: OEB-Approved Disposition during 2018 | BF17: Principal Adjustments1 during 2018 | BG17: Closing Principal Balance as of Dec 31, 2018 | BH17: Opening Interest Amounts as of Jan 1, 2018 | BI17: Interest Jan 1 to Dec 31, 2018 | BJ17: OEB-Approved Disposition during 2018 | BK17: Interest Adjustments1 during 2018 | BL17: Closing Interest Amounts as of Dec 31, 2018 | BM17: Principal Disposition during 2019 - instructed by OEB | BN17: Interest Disposition during 2019 - instructed by OEB | BO17: Closing Principal Balances as of Dec 31, 2018 Adjusted for Dispositions during 2019 | BP17: Closing Interest Balances as of Dec 31, 2018 Adjusted for Disposition in 2019 | BQ17: Projected Interest from January 1, 2019 to December 31, 2019 on December 31, 2018 balance adjusted for disposition during 2019 3 | BR17: Projected Interest from January 1, 2019 to April 30, 2019 on December 31, 2018 balance adjusted for disposition during 2019 3 | BS17: Total Interest | BT17: Dispose of Account? (Y/N) | BU17: Total Claim | BV17: As of Dec 31-18 | BW17: Variance RRR vs. 2018 Balance (Principal + Interest)
BU19: Claim before Forecasted Transactions
C20: Group 1 Accounts
C21: LV Variance Account | D21: 1550 | E21: 132450.73 | F21: 288057.23 | G21: 117339.16 | I21: =E21+F21-G21+H21 -> 303168.8 | J21: 3372.16 | K21: 2247.76 | L21: 1702 | N21: =J21+K21-L21+M21 -> 3917.92 | O21: =I21 -> 303168.8 | P21: 287709.57 | Q21: 15111.23 | S21: =O21+P21-Q21+SUM(R21:R21) -> 575767.14 | T21: =N21 -> 3917.92 | U21: 6269.86 | V21: 1892.3 | X21: =T21+U21-V21+W21 -> 8295.48 | Y21: =S21 -> 575767.14 | Z21: 471028.05 | AA21: 288057.57 | AC21: =Y21+Z21-AA21+SUM(AB21:AB21) -> 758737.62 | AD21: =X21 -> 8295.48 | AE21: 5408.92 | AF21: 6482.2 | AH21: =AD21+AE21-AF21+AG21 -> 7222.2 | AI21: =AC21 -> 758737.62 | AJ21: 552752.01 | AK21: 287709.57 | AM21: =AI21+AJ21-AK21+SUM(AL21:AL21) -> 1023780.06 | AN21: =AH21 -> 7222.2 | AO21: 8152.771092 | AP21: 5244.22 | AR21: =AN21+AO21-AP21+AQ21 -> 10130.75109 | AS21: =AM21 -> 1023780.06 | AT21: 586395.17 | AU21: 471028.05 | AW21: =AS21+AT21-AU21+SUM(AV21:AV21) -> 1139147.18 | AX21: =AR21 -> 10130.75109 | AY21: 10283.85 | AZ21: 7159.29 | BB21: =AX21+AY21-AZ21+BA21 -> 13255.31109 | BC21: =AW21 -> 1139147.18 | BD21: 321620.09 | BE21: 552752.01 | BG21: =BC21+BD21-BE21+SUM(BF21:BF21) -> 908015.26 | BH21: =BB21 -> 13255.31109 | BI21: 17818.87 | BJ21: 12548 | BL21: =BH21+BI21-BJ21+BK21 -> 18526.18109 | BM21: 586395.17 | BN21: 16322 | BO21: =BG21-BM21 -> 321620.09 | BP21: =BL21-BN21 -> 2204.181092 | BQ21: =+BO21*((2.45%*3/12)+(2.18%*9/12)) -> 7228.411523 | BS21: =BP21+BQ21+BR21 -> 9432.592614 | BU21: =SUM(BO21:BR21) -> 331052.6826 | BV21: 926541.43 | BW21: =BV21-SUM(BG21,BL21) -> -0.01109166665
C22: Smart Metering Entity Charge Variance Account | D22: 1551 | E22: 0 | F22: -17910.51 | I22: =E22+F22-G22+H22 -> -17910.51 | J22: 0 | K22: -71.11 | N22: =J22+K22-L22+M22 -> -71.11 | O22: =I22 -> -17910.51 | P22: -18781.05 | Q22: 0 | S22: -36691.56 | T22: =N22 -> -71.11 | U22: -365.06 | V22: 0 | X22: =T22+U22-V22+W22 -> -436.17 | Y22: -36691.56 | Z22: -22681.35 | AA22: -17910.51 | AC22: -41462.4 | AD22: -436.17 | AE22: -330.72 | AF22: -334.394497 | AH22: =AD22+AE22-AF22+AG22 -> -432.495503 | AI22: =AC22 -> -41462.4 | AJ22: -23673.09 | AK22: -18781.05 | AM22: =AI22+AJ22-AK22+SUM(AL22:AL22) -> -46354.44 | AN22: -432.495503 | AO22: -366.1335333 | AP22: -325.7431162 | AR22: =AN22+AO22-AP22+AQ22 -> -472.8859201 | AS22: =AM22 -> -46354.44 | AT22: -27963.92 | AU22: -22681.35 | AW22: =AS22+AT22-AU22+SUM(AV22:AV22) -> -51637.01 | AX22: -472.8859201 | AY22: -432.21 | AZ22: -356.25 | BB22: =AX22+AY22-AZ22+BA22 -> -548.8459201 | BC22: =AW22 -> -51637.01 | BD22: -178481.1 | BE22: -23673.09 | BG22: =BC22+BD22-BE22+SUM(BF22:BF22) -> -206445.02 | BH22: -548.8459201 | BI22: -3260.57 | BJ22: -527 | BL22: =BH22+BI22-BJ22+BK22 -> -3282.41592 | BM22: -27963.92 | BN22: -750 | BO22: -178481.1 | BP22: =BL22-BN22 -> -2532.41592 | BQ22: =+BO22*((2.45%*3/12)+(2.18%*9/12)) -> -4011.362723 | BS22: =BP22+BQ22+BR22 -> -6543.778643 | BU22: =SUM(BO22:BR22) -> -185024.8786 | BV22: -209727.44 | BW22: =BV22-SUM(BG22,BL22) -> -0.004079917009
C23: RSVA - Wholesale Market Service Charge | D23: 1580 | E23: -12063057.76 | F23: -3416930.31 | G23: -5577001.6 | H23: 16968 | I23: -9886018.47 | J23: -183990.43 | K23: -134976.81 | L23: -81126 | N23: -237841.24 | O23: -9886018.47 | P23: -750596.13 | Q23: -6486055.74 | R23: -428586 | S23: -4579144.86 | T23: -237841.24 | U23: -28008.97 | V23: -198209.45 | X23: =T23+U23-V23+W23 -> -67640.76 | Y23: -4579144.86 | Z23: -10407994.03 | AA23: -3399962.73 | AC23: -11587176.16 | AD23: -67640.76 | AE23: -49704.58 | AF23: -184956.2615 | AH23: =AD23+AE23-AF23+AG23 -> 67610.92151 | AI23: -11587176.16 | AJ23: -4482608.54 | AK23: -1179182.13 | AM23: =AI23+AJ23-AK23+SUM(AL23:AL23) -> -14890602.57 | AN23: 67610.92151 | AO23: -138990.0915 | AP23: 104324.3215 | AR23: =AN23+AO23-AP23+AQ23 -> -175703.4915 | AS23: -14890602.57 | AT23: -4605646.76 | AU23: -10407994.03 | AW23: =AS23+AT23-AU23+SUM(AV23:AV23) -> -9088255.3 | AX23: -175703.4915 | AY23: -85982.75 | AZ23: -150131.01 | BB23: =AX23+AY23-AZ23+BA23 -> -111555.2315 | BC23: -9088255.3 | BD23: -546625.61 | BE23: -4482608.54 | BG23: =BC23+BD23-BE23+SUM(BF23:BF23) -> -5152272.37 | BH23: -111555.2315 | BI23: -116341.66 | BJ23: -103234 | BK23: 1328 | BL23: =BH23+BI23-BJ23+BK23 -> -123334.8915 | BM23: -4605473.09 | BN23: -131854 | BO23: -546799.28 | BP23: 8519.108457 | BQ23: -12289.31382 | BS23: -3770.205361 | BU23: =SUM(BO23:BR23) -> -550569.4854 | BV23: -5275607.6 | BW23: -0.3384574968
C24: Variance WMS – Sub-account CBR Class A | D24: 1580 | E24: 0 | I24: 0 | J24: 0 | N24: 0 | O24: 0 | S24: 0 | T24: 0 | X24: 0 | Y24: 0 | Z24: 124743.52 | AC24: =Y24+Z24-AA24+SUM(AB24:AB24) -> 124743.52 | AD24: 0 | AE24: 374.97 | AH24: 374.97 | AI24: 124743.52 | AJ24: -124743.54 | AM24: =AI24+AJ24-AK24+SUM(AL24:AL24) -> -0.02000000003 | AN24: 374.97 | AO24: -374.97 | AR24: -5.684341886e-14 | AS24: -0.02000000003 | AW24: =AS24+AT24-AU24+SUM(AV24:AV24) -> -0.02000000003 | AX24: -5.684341886e-14 | BB24: -5.684341886e-14 | BC24: -0.02000000003 | BD24: 0 | BE24: -0.02000000003 | BG24: =BC24+BD24-BE24+SUM(BF24:BF24) -> 0 | BH24: -5.684341886e-14 | BJ24: -0.0002200000004 | BL24: 0.0002200000004 | BM24: 0 | BN24: 0.0002200000004 | BO24: 0 | BP24: 0 | BQ24: 0 | BS24: 0 | BU24: 0 | BW24: -0.0002200000004
C25: Variance WMS – Sub-account CBR Class B | D25: 1580 | E25: 0 | I25: 0 | J25: 0 | N25: 0 | O25: 0 | S25: 0 | T25: 0 | X25: 0 | Y25: 0 | Z25: 1108630.1 | AC25: 1108630.1 | AD25: 0 | AE25: 3562.99 | AH25: 3562.99 | AI25: 1108630.1 | AJ25: -185940.41 | AM25: =AI25+AJ25-AK25+SUM(AL25:AL25) -> 922689.69 | AN25: 3562.99 | AO25: 11337.26424 | AR25: 14900.25424 | AS25: 922689.69 | AT25: -55141.27 | AU25: 1108630.1 | AW25: =AS25+AT25-AU25+SUM(AV25:AV25) -> -241081.68 | AX25: 14900.25424 | AY25: -1607.39 | AZ25: 15757.92 | BB25: -2465.055756 | BC25: -241081.68 | BD25: -91957.32 | BE25: -185940.41 | BG25: =BC25+BD25-BE25+SUM(BF25:BF25) -> -147098.59 | BH25: -2465.055756 | BI25: -3447.89 | BJ25: -4079 | BL25: -1833.945756 | BM25: -55326.26 | BN25: -705 | BO25: =BG25-BM25 -> -91772.33 | BP25: -1128.945756 | BQ25: -2062.583117 | BS25: -3191.528873 | BU25: -94963.85887 | BV25: -148932.95 | BW25: -0.4142441667
C26: RSVA - Retail Transmission Network Charge | D26: 1584 | E26: 809320.22 | F26: 3378169.16 | G26: 658101 | I26: 3529388.38 | J26: 38354.36 | K26: 24797.88 | L26: 9290 | N26: 53862.24 | O26: 3529388.38 | P26: 3491680.45 | Q26: 151219.22 | S26: 6869849.61 | T26: 53862.24 | U26: 73256.38 | V26: 31287.01 | X26: 95831.61 | Y26: 6869849.61 | Z26: -1237207.29 | AA26: 3378169.21 | AC26: 2254473.11 | AD26: 95831.61 | AE26: 40112.4 | AF26: 74457.24 | AH26: 61486.77 | AI26: 2254473.11 | AJ26: -532829.4 | AK26: 3491680.45 | AM26: -1770036.74 | AN26: 61486.77 | AO26: -12513.33 | AP26: 63012.66 | AR26: -14039.22 | AS26: -1770036.74 | AT26: -187534.89 | AU26: -1237207.29 | AW26: -720364.34 | AX26: -14039.22 | AY26: -7639.01 | AZ26: -15135.17 | BB26: -6543.06 | BC26: -720364.34 | BD26: 1014698.2 | BE26: -532829.45 | BG26: 827163.31 | BH26: -6543.06 | BI26: -541.16 | BJ26: -8135 | BL26: 1050.78 | BM26: -187534.89 | BN26: -5654 | BO26: =BG26-BM26 -> 1014698.2 | BP26: 6704.78 | BQ26: 22805.34205 | BS26: 29510.12204 | BU26: 1044208.322 | BV26: 828213.67 | BW26: -0.4200000087
C27: RSVA - Retail Transmission Connection Charge | D27: 1586 | E27: -247087.629 | F27: 1314693.93 | G27: -169642.72 | I27: 1237249.021 | J27: -1901.13 | K27: 5832.14 | L27: -2504 | N27: 6435.01 | O27: 1237249.021 | P27: 2601535.59 | Q27: -77444.91 | S27: 3916229.521 | T27: 6435.01 | U27: 35834.12 | V27: -536.01 | X27: 42805.14 | Y27: 3916229.521 | Z27: -230302.05 | AA27: 1314693.93 | AC27: 2371233.541 | AD27: 42805.14 | AE27: 32228.91 | AF27: 25158.58 | AH27: 49875.47 | AI27: 2371233.541 | AJ27: 941983.47 | AK27: 2601535.59 | AM27: 711681.421 | AN27: 49875.47 | AO27: 4911.14 | AP27: 48669.87 | AR27: 6116.74 | AS27: 711681.421 | AT27: 433359.47 | AU27: -230302.05 | AW27: 1375342.941 | AX27: 6116.74 | AY27: 12740.23 | AZ27: -1327.72 | BB27: 20184.69 | BC27: 1375342.941 | BD27: 2227631.54 | BE27: 941983.471 | BG27: 2660991.01 | BH27: 20184.69 | BI27: 41639.22 | BJ27: 23764 | BL27: 38059.91 | BM27: 433359.47 | BN27: 11335 | BO27: 2227631.54 | BP27: 26724.91 | BQ27: 50066.01886 | BS27: 76790.92886 | BU27: =SUM(BO27:BR27) -> 2304422.469 | BV27: 2699051.39 | BW27: 0.4700000118
C28: RSVA - Power | D28: 1588 | E28: -1572910.09 | F28: 924467.16 | G28: -1050976.23 | H28: -4668526.987 | I28: -4265993.687 | J28: -23046.15 | K28: 11467.69 | L28: -15162 | M28: -60232.10175 | N28: -56648.56175 | O28: -4265993.687 | P28: -552173.06 | Q28: -521933.17 | R28: -2337699.494 | S28: -6633933.071 | T28: -56648.56175 | U28: -82951.48 | V28: -15556.57 | X28: -124043.4717 | Y28: -6633933.071 | Z28: -859776.22 | AA28: -3744060.523 | AC28: -3749648.768 | AD28: -124043.4717 | AE28: -29325.46 | AF28: -103602.6717 | AH28: -49766.26 | AI28: -3749648.768 | AJ28: -148172.51 | AK28: -2889872.554 | AL28: 819534 | AM28: -188414.7236 | AN28: -49766.26 | AO28: 5680.24 | AP28: -54902.53 | AR28: 10816.51 | AS28: -188414.7236 | AT28: -3808848.75 | AU28: -859776.22 | AV28: -231961 | AW28: =AS28+AT28-AU28+AV28 -> -3369448.254 | AX28: 10816.51 | AY28: -2168.95 | AZ28: -4321.27 | BB28: 12968.83 | BC28: -3369448.254 | BD28: 5566552.16 | BE28: 671361.4964 | BF28: =-587573+893336 -> 305763 | BG28: 1831505.41 | BH28: 12968.83 | BI28: -46568.24 | BJ28: 26769 | BL28: -60368.41 | BM28: -4040809.75 | BN28: -93064 | BO28: 5872315.16 | BP28: 32695.59 | BQ28: 131980.2832 | BS28: 164675.8732 | BU28: 6036991.033 | BV28: 886285.43 | BW28: -884851.57
C29: RSVA - Global Adjustment | D29: 1589 | E29: -2177183.13 | F29: -1669046.04 | G29: 1127660.93 | H29: 4668526.987 | I29: -305363.1131 | J29: 70093.16 | K29: -16958.78 | L29: 15553 | M29: 60232.10175 | N29: 97813.48175 | O29: -305363.1131 | P29: 1473743.97 | Q29: -3304844.06 | R29: 5344769.494 | S29: 9817994.411 | T29: 97813.48175 | U29: 92778.54 | V29: 5958.95 | X29: 184633.0717 | Y29: 9817994.411 | Z29: 2612620.86 | AA29: 2999480.953 | AC29: 9431134.318 | AD29: 184633.0717 | AE29: 97517.38 | AF29: 87365.69175 | AH29: 194784.76 | AI29: 9431134.318 | AJ29: -3004934.77 | AK29: 6818513.464 | AL29: -1808419 | AM29: -2200732.916 | AN29: 194784.76 | AO29: 28693.39 | AP29: 178578.15 | AR29: 44900 | AS29: -2200732.916 | AT29: -1322742 | AU29: 2612620.86 | AV29: 972163 | AW29: =AS29+AT29-AU29+SUM(AV29:AV29) -> -5163932.776 | AX29: 44900 | AY29: -17300.04 | AZ29: 44945.44 | BB29: -17345.48 | BC29: -5163932.776 | BD29: -4015064.53 | BE29: -4813353.776 | BF29: =1842135-1956654+821562-1005879 -> -298836 | BG29: =BC29+BD29-BE29+SUM(BF29:BF29) -> -4664479.53 | BH29: -17345.48 | BI29: -39280.25 | BJ29: -83437 | BL29: 26811.27 | BM29: -350579 | BN29: 28402 | BO29: =BG29-BM29 -> -4313900.53 | BP29: -1590.73 | BQ29: -96954.91441 | BS29: -98545.64441 | BU29: -4412446.174 | BV29: -3502576.05 | BW29: 1135092.21
C30: Disposition and Recovery/Refund of Regulatory Balances (2009)4 | D30: 1595 | E30: -73245.78 | I30: -73245.78 | J30: -2501684.48 | K30: -1076.76 | N30: -2502761.24 | O30: -73245.78 | S30: -73245.78 | T30: -2502761.24 | U30: -1076.76 | X30: -2503838 | Y30: -73245.78 | AA30: -73245.78 | AC30: 4.656612873e-10 | AD30: -2503838 | AF30: -2503838 | AH30: 4.656612873e-10 | AI30: 4.656612873e-10 | AM30: 4.656612873e-10 | AN30: 4.656612873e-10 | AR30: 4.656612873e-10 | AS30: 4.656612873e-10 | AW30: 4.656612873e-10 | AX30: 4.656612873e-10 | BB30: 4.656612873e-10 | BC30: 4.656612873e-10 | BE30: 4.656612873e-10 | BG30: 0 | BH30: 4.656612873e-10 | BJ30: 4.707835615e-10 | BL30: -5.12227416e-12 | BM30: 0 | BN30: -5.12227416e-12 | BO30: 0 | BP30: 0 | BQ30: 0 | BS30: 0 | BT30: No | BU30: =IF(BT30="YES",SUM(BO30:BR30),0) -> 0 | BW30: 5.12227416e-12
C31: Disposition and Recovery/Refund of Regulatory Balances (2010)4 | D31: 1595 | E31: -303195 | I31: -303195 | J31: -8187.4 | K31: -4456.92 | N31: -12644.32 | O31: -303195 | S31: -303195 | T31: -12644.32 | U31: -4456.92 | X31: -17101.24 | Y31: -303195 | AA31: -303195 | AC31: 0 | AD31: -17101.24 | AF31: -17101.24 | AH31: 3.637978807e-12 | AI31: 0 | AM31: 0 | AN31: 3.637978807e-12 | AR31: 3.637978807e-12 | AS31: 0 | AW31: 0 | AX31: 3.637978807e-12 | BB31: 3.637978807e-12 | BC31: 0 | BE31: 0 | BG31: 0 | BH31: 3.637978807e-12 | BJ31: 3.637978807e-12 | BL31: 0 | BM31: 0 | BN31: 0 | BO31: 0 | BP31: 0 | BQ31: 0 | BS31: 0 | BT31: No | BU31: 0 | BW31: 0
C32: Disposition and Recovery/Refund of Regulatory Balances (2011)4 | D32: 1595 | E32: 604755.56 | I32: 604755.56 | J32: -220257.27 | K32: 8889.96 | N32: -211367.31 | O32: 604755.56 | S32: 604755.56 | T32: -211367.31 | U32: 8889.96 | X32: -202477.35 | Y32: 604755.56 | AA32: 604755.56 | AC32: 0 | AD32: -202477.35 | AF32: -202477.35 | AH32: 0 | AI32: 0 | AM32: 0 | AN32: 0 | AR32: 0 | AS32: 0 | AW32: 0 | AX32: 0 | BB32: 0 | BC32: 0 | BE32: 0 | BG32: 0 | BH32: 0 | BJ32: 0 | BL32: 0 | BM32: 0 | BN32: 0 | BO32: 0 | BP32: 0 | BQ32: 0 | BS32: 0 | BT32: No | BU32: 0 | BW32: 0
C33: Disposition and Recovery/Refund of Regulatory Balances (2012)4 | D33: 1595 | E33: 1545316.21 | F33: -2940696.39 | I33: -1395380.18 | J33: 1287034.5 | K33: 1788.85 | M33: 1306.01415 | N33: 1290129.364 | O33: -1395380.18 | S33: -1395380.18 | T33: 1290129.364 | U33: -20512.08 | X33: 1269617.284 | Y33: -1395380.18 | AA33: -1395380.18 | AC33: 4.656612873e-10 | AD33: 1269617.284 | AF33: 1269617.28 | AH33: 0.004149999935 | AI33: 4.656612873e-10 | AM33: 4.656612873e-10 | AN33: 0.004149999935 | AR33: 0.004149999935 | AS33: 4.656612873e-10 | AW33: 4.656612873e-10 | AX33: 0.004149999935 | BB33: 0.004149999935 | BC33: 4.656612873e-10 | BE33: 4.656612873e-10 | BG33: 0 | BH33: 0.004149999935 | BJ33: 0.00414999994 | BL33: -5.122274133e-12 | BM33: 0 | BN33: -5.122274133e-12 | BO33: 0 | BP33: 0 | BQ33: 0 | BS33: 0 | BT33: No | BU33: 0 | BW33: 5.122274133e-12
C34: Disposition and Recovery/Refund of Regulatory Balances (2013)4 | D34: 1595 | E34: 0 | F34: 5370488.58 | G34: 4894519.46 | I34: 475969.12 | J34: 0 | K34: -30180.30351 | L34: 72247 | N34: -102427.3035 | O34: 475969.12 | S34: 475969.12 | T34: -102427.3035 | U34: 6996.722172 | X34: -95430.58133 | Y34: 475969.12 | AA34: 475969.12 | AC34: -9.313225746e-10 | AD34: -95430.58133 | AF34: -95430.58 | AH34: -0.001334500004 | AI34: -9.313225746e-10 | AM34: -9.313225746e-10 | AN34: -0.001334500004 | AR34: -0.001334500004 | AS34: -9.313225746e-10 | AW34: -9.313225746e-10 | AX34: -0.001334500004 | BB34: -0.001334500004 | BC34: -9.313225746e-10 | BE34: -9.313225746e-10 | BG34: 0 | BH34: -0.001334500004 | BJ34: -0.001334500015 | BL34: 1.024454827e-11 | BM34: 0 | BN34: 1.024454827e-11 | BO34: 0 | BP34: 0 | BQ34: 0 | BS34: 0 | BT34: No | BU34: 0 | BW34: -1.024454827e-11
C35: Disposition and Recovery/Refund of Regulatory Balances (2014)4 | D35: 1595 | E35: 0 | I35: 0 | J35: 0 | N35: 0 | O35: 0 | P35: 10296123.94 | Q35: 10223947.43 | S35: =O35+P35-Q35+SUM(R35:R35) -> 72176.50984 | T35: 0 | U35: 174450.57 | V35: 175163.77 | X35: -713.2 | Y35: 72176.50984 | AC35: 72176.50984 | AD35: -713.2 | AE35: 860.7018008 | AH35: 147.5018008 | AI35: 72176.50984 | AK35: 72176.51 | AM35: -0.00015895463 | AN35: 147.5018008 | AP35: 147.5 | AR35: 0.001800833321 | AS35: -0.00015895463 | AW35: -0.00015895463 | AX35: 0.001800833321 | BB35: 0.001800833321 | BC35: -0.00015895463 | BE35: -0.00015895463 | BG35: 0 | BH35: 0.001800833321 | BJ35: 0.001799084821 | BL35: 1.74850093e-06 | BM35: 0 | BN35: 1.74850093e-06 | BO35: 0 | BP35: 0 | BQ35: 0 | BS35: =BP35+BQ35+BR35 -> 0 | BT35: No | BU35: 0 | BW35: -1.74850093e-06
C36: Disposition and Recovery/Refund of Regulatory Balances (2015)4 | D36: 1595 | E36: 0 | I36: 0 | J36: 0 | N36: 0 | O36: 0 | S36: 0 | T36: 0 | X36: 0 | Y36: 0 | Z36: -256826.8305 | AA36: -456725.3173 | AC36: 199898.4868 | AD36: 0 | AE36: 1587898.734 | AF36: 1610163.362 | AG36: 4709.509837 | AH36: -17555.11871 | AI36: 199898.4868 | AM36: 199898.4868 | AN36: -17555.11871 | AO36: 2198.883355 | AR36: -15356.23536 | AS36: 199898.4868 | AU36: 199898 | AW36: 0.4867890968 | AX36: -15356.23536 | AZ36: -15356.1 | BB36: -0.1353582143 | BC36: 0.4867890968 | BE36: 0 | BG36: 0.4867890968 | BH36: -0.1353582143 | BJ36: 0.003354679986 | BL36: -0.1387128943 | BO36: 0.4867890968 | BP36: -0.1387128943 | BQ36: 0.01094058495 | BS36: -0.1277723093 | BT36: No | BU36: 0 | BW36: -0.3480762025
C37: Disposition and Recovery/Refund of Regulatory Balances (2016)4 | D37: 1595 | E37: 0 | I37: 0 | J37: 0 | N37: 0 | O37: 0 | S37: =O37+P37-Q37+SUM(R37:R37) -> 0 | T37: 0 | X37: 0 | Y37: 0 | AC37: =Y37+Z37-AA37+SUM(AB37:AB37) -> 0 | AD37: 0 | AH37: 0 | AI37: 0 | AJ37: -8988871.513 | AK37: -9183779.801 | AM37: 194908.2876 | AN37: 0 | AO37: 47944.96192 | AP37: -343677.9537 | AR37: 391622.9157 | AS37: 194908.2876 | AW37: 194908.2876 | AX37: 391622.9157 | AY37: 2273.47 | BB37: 393896.3857 | BC37: 194908.2876 | BE37: 194908.2876 | BG37: 0 | BH37: 393896.3857 | BJ37: 393766.9068 | BL37: 0 | BO37: 0 | BP37: 0 | BQ37: 0 | BS37: 0 | BT37: No | BU37: 0 | BW37: 0
C38: Disposition and Recovery/Refund of Regulatory Balances (2017)4 | D38: 1595 | E38: 0 | I38: 0 | N38: 0 | O38: 0 | S38: 0 | T38: 0 | AH38: 0 | AI38: 0 | AM38: 0 | AN38: 0 | AR38: 0 | AS38: 0 | AT38: 7896566.17 | AU38: 8365783.44 | AW38: -469217.27 | AX38: 0 | AY38: -46776.26 | AZ38: 118765 | BB38: -165541.26 | BC38: -469217.27 | BD38: 8203.81 | BE38: 0 | BG38: -461013.46 | BH38: -165541.26 | BI38: -8596.05 | BJ38: 0 | BL38: -174137.31 | BO38: -461013.46 | BP38: -174137.31 | BQ38: -10361.27751 | BS38: -184498.5875 | BT38: Yes | BU38: -645512.0475 | BV38: -634908.85 | BW38: 241.92
C39: Disposition and Recovery/Refund of Regulatory Balances (2018)4 | D39: 1595 | I39: 0 | N39: 0 | O39: 0 | S39: 0 | T39: 0 | AH39: 0 | AI39: 0 | AM39: 0 | AN39: 0 | AR39: 0 | AS39: 0 | AW39: 0 | AX39: 0 | BB39: 0 | BC39: 0 | BD39: 4877629.46 | BE39: =6388689.63-318040.04 -> 6070649.59 | BG39: -1193020.13 | BH39: 0 | BI39: -40616.21 | BL39: -40616.21 | BO39: -1193020.13 | BP39: -40616.21 | BQ39: -26813.12742 | BS39: -67429.33742 | BT39: No | BU39: 0 | BV39: -1233636.31 | BW39: 0.0299999998
C40: Disposition and Recovery/Refund of Regulatory Balances (2019)4 Not to be disposed of unless rate rider has expired and balance has been audited | D40: 1595 | I40: 0 | N40: 0 | O40: 0 | S40: 0 | T40: 0 | AH40: 0 | AI40: 0 | AM40: 0 | AN40: 0 | AR40: 0 | AS40: 0 | AW40: 0 | AX40: 0 | BB40: 0 | BC40: 0 | BG40: 0 | BH40: 0 | BL40: 0 | BM40: =8247932.26999999-BM46 -> 7371091.27 | BN40: =175967.999778252-BN46 -> 142903.9998 | BO40: -7371091.27 | BP40: -142903.9998 | BQ40: -165665.2763 | BS40: -308569.2761 | BT40: No | BU40: 0 | BW40: 0
I41: 0 | N41: 0 | O41: 0 | T41: 0 | BO41: 0 | BP41: 0
C42: =C29 -> RSVA - Global Adjustment | D42: 1589 | E42: =E29 -> -2177183.13 | F42: -1669046.04 | G42: 1127660.93 | H42: 4668526.987 | I42: -305363.1131 | J42: 70093.16 | K42: -16958.78 | L42: 15553 | M42: 60232.10175 | N42: 97813.48175 | O42: =O29 -> -305363.1131 | P42: 1473743.97 | Q42: -3304844.06 | R42: 5344769.494 | S42: 9817994.411 | T42: 97813.48175 | U42: 92778.54 | V42: 5958.95 | W42: 0 | X42: 184633.0717 | Y42: 9817994.411 | Z42: 2612620.86 | AA42: 2999480.953 | AB42: 0 | AC42: 9431134.318 | AD42: 184633.0717 | AE42: 97517.38 | AF42: 87365.69175 | AG42: 0 | AH42: 194784.76 | AI42: 9431134.318 | AJ42: -3004934.77 | AK42: 6818513.464 | AL42: -1808419 | AM42: -2200732.916 | AN42: 194784.76 | AO42: 28693.39 | AP42: 178578.15 | AQ42: 0 | AR42: 44900 | AS42: -2200732.916 | AT42: -1322742 | AU42: 2612620.86 | AV42: 972163 | AW42: -5163932.776 | AX42: 44900 | AY42: -17300.04 | AZ42: 44945.44 | BA42: 0 | BB42: -17345.48 | BC42: -5163932.776 | BD42: -4015064.53 | BE42: -4813353.776 | BF42: -298836 | BG42: -4664479.53 | BH42: -17345.48 | BI42: -39280.25 | BJ42: -83437 | BK42: 0 | BL42: 26811.27 | BM42: -350579 | BN42: 28402 | BO42: -4313900.53 | BP42: -1590.73 | BQ42: =BQ29 -> -96954.91441 | BR42: =BR29 -> 0 | BS42: =BS29 -> -98545.64441 | BU42: =BU29 -> -4412446.174 | BV42: =BV29 -> -3502576.05 | BW42: 1135092.21
C43: Total Group 1 Balance excluding Account 1589 - Global Adjustment | E43: =SUM(E21:E40)-E29 -> -11167653.54 | F43: 4900338.85 | G43: -1127660.93 | H43: -4651558.987 | I43: -9791212.746 | J43: -1610305.84 | K43: -115737.6235 | L43: -15553 | M43: -58926.0876 | N43: -1769416.551 | O43: -9791212.746 | P43: 15355499.31 | Q43: 3304844.06 | R43: -2766285.494 | S43: -506842.9906 | T43: -1769416.551 | U43: 168326.3422 | V43: -5958.95 | W43: 0 | X43: -1595131.259 | Y43: -506842.9906 | Z43: -11310386.1 | AA43: -3328834.651 | AB43: 0 | AC43: -8488394.44 | AD43: -1595131.259 | AE43: 1591086.866 | AF43: -121861.8354 | AG43: 4709.509837 | AH43: 122526.9519 | AI43: -8488394.44 | AJ43: -12992103.52 | AK43: -6818513.415 | AL43: 819534 | AM43: -13842450.55 | AN43: 122526.9519 | AO43: -72019.26446 | AP43: -177507.6553 | AQ43: 0 | AR43: 228015.3428 | AS43: -13842450.55 | AT43: 231185.22 | AU43: -2612621.35 | AV43: -231961 | AW43: -11230604.98 | AX43: 228015.3428 | AY43: -119309.02 | AZ43: -44945.31 | BA43: 0 | BB43: 153651.6328 | BC43: -11230604.98 | BD43: 13199271.23 | BE43: 3206603.345 | BF43: 305763 | BG43: -932174.0932 | BH43: 153651.6328 | BI43: -159913.69 | BJ43: 340872.9146 | BK43: 1328 | BL43: -345936.4506 | BM43: -526262 | BN43: -61466 | BO43: -405912.0932 | BP43: -284470.4506 | BQ43: =SUM(BQ21:BQ40)-BQ29 -> -9122.874295 | BR43: =SUM(BR21:BR40)-BR29 -> 0 | BS43: -293593.3249 | BU43: =SUM(BU21:BU40)-BU29 -> 8240604.236 | BV43: =SUM(BV21:BV40)-BV29 -> -2162721.23 | BW43: =SUM(BW21:BW40)-BW29 -> -884610.6862
C44: Total Group 1 Balance | E44: =SUM(E42,E43) -> -13344836.67 | F44: 3231292.81 | G44: 0 | H44: 16968 | I44: -10096575.86 | J44: -1540212.68 | K44: -132696.4035 | L44: 0 | M44: 1306.01415 | N44: -1671603.069 | O44: =SUM(O42,O43) -> -10096575.86 | P44: 16829243.28 | Q44: 0 | R44: 2578484 | S44: 9311151.421 | T44: -1671603.069 | U44: 261104.8822 | V44: 0 | W44: 0 | X44: -1410498.187 | Y44: 9311151.421 | Z44: -8697765.241 | AA44: -329353.6973 | AB44: 0 | AC44: 942739.8776 | AD44: -1410498.187 | AE44: 1688604.246 | AF44: -34496.1437 | AG44: 4709.509837 | AH44: 317311.7119 | AI44: 942739.8776 | AJ44: -15997038.29 | AK44: 0.04915894195 | AL44: -988885 | AM44: -16043183.46 | AN44: 317311.7119 | AO44: -43325.87446 | AP44: 1070.49466 | AQ44: 0 | AR44: 272915.3428 | AS44: -16043183.46 | AT44: -1091556.78 | AU44: -0.4900000012 | AV44: 740202 | AW44: -16394537.75 | AX44: 272915.3428 | AY44: -136609.06 | AZ44: 0.13 | BA44: 0 | BB44: 136306.1528 | BC44: -16394537.75 | BD44: 9184206.7 | BE44: -1606750.432 | BF44: 6927 | BG44: -5596653.623 | BH44: 136306.1528 | BI44: -199193.94 | BJ44: 257435.9146 | BK44: 1328 | BL44: -319125.1806 | BM44: -876841 | BN44: -33064 | BO44: -4719812.623 | BP44: -286061.1806 | BQ44: -106077.7887 | BR44: 0 | BS44: -392138.9693 | BU44: =SUM(BU42,BU43) -> 3828158.062 | BV44: =SUM(BV42,BV43) -> -5665297.28 | BW44: 250481.5238
BG45: =BG44+BL44-#REF! -> 
A46: 29 | C46: LRAM Variance Account (only input amounts if applying for disposition of this account) | D46: 1568 | E46: -237216 | I46: =E46+F46-G46+H46 -> -237216 | J46: -278 | K46: -3487 | N46: =J46+K46-L46+M46 -> -3765 | O46: =I46 -> -237216 | P46: -59871 | S46: =O46+P46-Q46+SUM(R46:R46) -> -297087 | T46: =N46 -> -3765 | U46: -3487 | X46: =T46+U46-V46+W46 -> -7252 | Y46: =S46 -> -297087 | Z46: 85881 | AA46: -237216 | AC46: =Y46+Z46-AA46+SUM(AB46:AB46) -> 26010 | AD46: =X46 -> -7252 | AE46: -1005 | AF46: -7252 | AH46: =AD46+AE46-AF46+AG46 -> -1005 | AI46: =AC46 -> 26010 | AJ46: 303456 | AM46: =AI46+AJ46-AK46+SUM(AL46:AL46) -> 329466 | AN46: =AH46 -> -1005 | AO46: 564 | AR46: =AN46+AO46-AP46+AQ46 -> -441 | AS46: =AM46 -> 329466 | AT46: 2283052.05 | AW46: =AS46+AT46-AU46+SUM(AV46:AV46) -> 2612518.05 | AX46: =AR46 -> -441 | AY46: 67737.27 | BB46: =AX46+AY46-AZ46+BA46 -> 67296.27 | BC46: =AW46 -> 2612518.05 | BD46: 2147751.79 | BE46: 1288713 | BG46: =BC46+BD46-BE46+SUM(BF46:BF46) -> 3471556.84 | BH46: =BB46 -> 67296.27 | BI46: 66358.19 | BJ46: 59371 | BL46: =BH46+BI46-BJ46+BK46 -> 74283.46 | BM46: 876841 | BN46: 33064 | BO46: =BG46-BM46 -> 2594715.84 | BP46: =BL46-BN46 -> 41219.46 | BQ46: =+BO46*((2.45%*3/12)+(2.18%*9/12)) -> 58316.2385 | BS46: =BP46+BQ46+BR46 -> 99535.6985 | BU46: =SUM(BO46:BR46) -> 2694251.539 | BV46: 3545840.46 | BW46: 0.1600000001
C48: Total including Account 1568 | E48: =SUM(E44,E46) -> -13582052.67 | F48: 3231292.81 | G48: 0 | H48: 16968 | I48: -10333791.86 | J48: -1540490.68 | K48: -136183.4035 | L48: 0 | M48: 1306.01415 | N48: -1675368.069 | O48: -10333791.86 | P48: 16769372.28 | Q48: 0 | R48: 2578484 | S48: 9014064.421 | T48: -1675368.069 | U48: 257617.8822 | V48: 0 | W48: 0 | X48: -1417750.187 | Y48: 9014064.421 | Z48: -8611884.241 | AA48: -566569.6973 | AB48: 0 | AC48: 968749.8776 | AD48: -1417750.187 | AE48: 1687599.246 | AF48: -41748.1437 | AG48: 4709.509837 | AH48: 316306.7119 | AI48: 968749.8776 | AJ48: -15693582.29 | AK48: 0.04915894195 | AL48: -988885 | AM48: -15713717.46 | AN48: 316306.7119 | AO48: -42761.87446 | AP48: 1070.49466 | AQ48: 0 | AR48: 272474.3428 | AS48: -15713717.46 | AT48: 1191495.27 | AU48: -0.4900000012 | AV48: 740202 | AW48: -13782019.7 | AX48: 272474.3428 | AY48: -68871.79 | AZ48: 0.13 | BA48: 0 | BB48: 203602.4228 | BC48: -13782019.7 | BD48: 11331958.49 | BE48: -318037.4316 | BF48: 6927 | BG48: -2125096.783 | BH48: 203602.4228 | BI48: -132835.75 | BJ48: 316806.9146 | BK48: 1328 | BL48: -244841.7206 | BM48: 1.862645149e-09 | BN48: 4.947651178e-10 | BO48: -2125096.783 | BP48: -244841.7206 | BQ48: =SUM(BQ44,BQ46) -> -47761.5502 | BR48: 0 | BS48: -292603.2708 | BU48: =SUM(BU44,BU46) -> 6522409.6 | BV48: =SUM(BV44,BV46) -> -2119456.82 | BW48: =SUM(BW44,BW46) -> 250481.6838
C51: For all OEB-Approved dispositions, please ensure that the disposition amount has the same sign (e.g: debit balances are to have a positive figure and credit balance are to have a negative figure) as per the related OEB decision.
B53: 1 | C53: Please provide explanations for the nature of the adjustments. If the adjustment relates to previously OEB-Approved disposed balances, please provide amounts for adjustments and include supporting documentations.
B54: 2 | C54: For RSVA accounts only, report the net variance to the account during the year. For all other accounts, record the transactions during the year.
B55: 3 | C55: If the LDC’s rate year begins on January 1, 2017, the projected interest is recorded from January 1, 2016 to December 31, 2016 on the December 31, 2015 balances adjusted for the disposed balances approved by the OEB in the 2016 rate decision. If the LDC’s rate year begins on May 1, 2017, the projected interest is recorded from January 1, 2016 to April 30, 2017 on the December 31, 2015 balances adjusted for the disposed interest balances approved by the OEB in the 2016 rate decision.
B56: 4 | C56: Include Account 1595 as part of Group 1 accounts (lines 30-36) for review and disposition if the recovery (or refund) period has been completed. If the recovery (or refund) period has not been completed, do not include the respective balance in Account 1595 for disposition at this time.
C58: Account 1595 - adjustments (2016):
C59: These were required due to a comprehensive review of all the dispositions during 2015 and 2016. It was determined that there were a number of reporting errors. Past recovery billings were applied to the wrong year or there was transposition errors whereby billings were applied to interest rather than principal or vice versa.

Sheet 4. Billing Det. for Def-Var
A1: Back to Index | K1: Yes
B2: =+'1. Information Sheet'!B2 -> INCENTIVE REGULATION MODEL FOR 2020 FILERS
B13: Information from the most recent RRR (2018 for 2020 IRM)
W14: source: LRAMVA Workform
D15: Total Metered kWh | E15: Total Metered kW | F15: Metered kWh for Non-RPP Customers (excluding WMP) | G15: Metered kW for Non-RPP Customers (excluding WMP) | H15: Metered kWh for Wholesale Market Participants (WMP) | I15: Metered kW for Wholesale Market Participants (WMP) | J15: Total Metered kWh less WMP consumption (if applicable) | K15: Total Metered kW less WMP consumption (if applicable) | L15: 1595 Recovery Proportion (2009) 1 | M15: 1595 Recovery Proportion (2010) 1 | N15: 1595 Recovery Proportion (2011) 1 | O15: 1595 Recovery Proportion (2012) 1 | P15: 1595 Recovery Proportion (2013) 1 | Q15: 1595 Recovery Proportion (2014) 1 | R15: 1595 Recovery Proportion (2015) 1 | S15: 1595 Recovery Proportion (2016) 1 | T15: 1595 Recovery Proportion (2017) 1 | U15: 1595 Recovery Proportion (2018) 1 | V15: 1595 Recovery Proportion (2019) 1 | W15: 1568 LRAM Variance Account Class Allocation ($ amounts) | X15: Number of Customers for Residential and GS<50 classes3
B16: Rate Class | C16: Unit
A17: ='11. RTSR - Current Rates'!A16 -> R_TN | B17: ='Model Specs'!C15 -> RESIDENTIAL SERVICE CLASSIFICATION | C17: kWh | D17: 1659016812 | F17: 56706021 | J17: =D17-H17 -> 1659016812 | K17: =E17-I17 -> 0 | Q17: 0.042831737 | R17: 0.3291884587 | T17: =IFERROR(VLOOKUP(B17,[48]HRZ!$A:$C,3,FALSE),0) -> 0.2952179684 | W17: ='[49]1. LRAMVA Summary'!$D$84 -> 650964.8438 | X17: 226840
A18: ='11. RTSR - Current Rates'!A17 -> GSL_TN | B18: ='Model Specs'!C16 -> GENERAL SERVICE LESS THAN 50 kW SERVICE CLASSIFICATION | C18: kWh | D18: 580343048.9 | F18: 95296029 | J18: =D18-H18 -> 580343048.9 | K18: =E18-I18 -> 0 | Q18: 0.03667843854 | R18: 0.1310626928 | T18: =IFERROR(VLOOKUP(B18,[48]HRZ!$A:$C,3,FALSE),0) -> 0.1096462584 | W18: ='[49]1. LRAMVA Summary'!$E$84 -> 380494.7749 | X18: 18992
A19: ='11. RTSR - Current Rates'!A18 -> GSG_TN | B19: ='Model Specs'!C17 -> GENERAL SERVICE 50 to 4,999 kW SERVICE CLASSIFICATION | C19: kW | D19: 1836354552 | E19: 4746295.437 | F19: 1638077798 | G19: 3948743.322 | H19: 9937968.884 | I19: 17495.145 | J19: =D19-H19 -> 1826416584 | K19: =E19-I19 -> 4728800.292 | Q19: 0.4138297114 | R19: 0.1749713883 | T19: =IFERROR(VLOOKUP(B19,[48]HRZ!$A:$C,3,FALSE),0) -> 0.3354339637 | W19: ='[49]1. LRAMVA Summary'!$F$84 -> 63753.49857
A20: ='11. RTSR - Current Rates'!A19 -> LU_TN | B20: ='Model Specs'!C18 -> LARGE USE SERVICE CLASSIFICATION | C20: kW | D20: 194222636.1 | E20: 360259.695 | F20: 187410800.8 | G20: 339709.562 | H20: 6811835.253 | I20: 20550.133 | J20: 187410800.8 | K20: 339709.562 | Q20: 0.4838378656 | R20: 0.1548539542 | T20: =IFERROR(VLOOKUP(B20,[48]HRZ!$A:$C,3,FALSE),0) -> 0.04540009014 | W20: ='[49]1. LRAMVA Summary'!$G$84 -> 10938.24985
A21: ='11. RTSR - Current Rates'!A20 -> LUDA_TN | B21: ='Model Specs'!C19 -> LARGE USE SERVICE WITH DEDICATED ASSETS CLASSIFICATION | C21: kW | D21: 1110706646 | E21: 2002430.496 | F21: 338136686.7 | G21: 775690.0362 | H21: 772569959.2 | I21: 1226740.46 | J21: 338136686.7 | K21: 775690.0362 | Q21: 0.0135704573 | R21: 0.2061805925 | T21: =IFERROR(VLOOKUP(B21,[48]HRZ!$A:$C,3,FALSE),0) -> 0.2056173435 | W21: ='[49]1. LRAMVA Summary'!$H$84 -> 18329.34109
A22: ='11. RTSR - Current Rates'!A21 -> USL_TN | B22: ='Model Specs'!C20 -> UNMETERED SCATTERED LOAD SERVICE CLASSIFICATION | C22: kWh | D22: 11372501.37 | F22: 809279 | J22: 11372501.37 | K22: 0 | T22: =IFERROR(VLOOKUP(B22,[48]HRZ!$A:$C,3,FALSE),0) -> 0.002124971106 | W22: ='[49]1. LRAMVA Summary'!$J$84 -> 25687.96287
A23: ='11. RTSR - Current Rates'!A22 -> SEN_TN | B23: ='Model Specs'!C21 -> SENTINEL LIGHTING SERVICE CLASSIFICATION | C23: kW | D23: 482317.4829 | E23: 1320.307601 | F23: 4291 | G23: 19.66 | J23: 482317.4829 | K23: 1320.307601 | Q23: 0.0004108364085 | R23: 0.002390216995 | T23: =IFERROR(VLOOKUP(B23,[48]HRZ!$A:$C,3,FALSE),0) -> 7.969595353e-05
A24: ='11. RTSR - Current Rates'!A23 -> SL_TN | B24: ='Model Specs'!C22 -> STREET LIGHTING SERVICE CLASSIFICATION | C24: kW | D24: 18806000.59 | E24: 58768.585 | F24: 18577032.58 | G24: 58133.425 | J24: 18806000.59 | K24: 58768.585 | Q24: 0.008840953763 | R24: 0.00135269641 | T24: =IFERROR(VLOOKUP(B24,[48]HRZ!$A:$C,3,FALSE),0) -> 0.006479708787 | W24: ='[49]1. LRAMVA Summary'!$I$84 -> 162756.3447
B25: ='Model Specs'!C23 -> STANDBY POWER SERVICE CLASSIFICATION | C25: kW | J25: 0 | K25: 0 | T25: =IFERROR(VLOOKUP(B25,[48]HRZ!$A:$C,3,FALSE),0) -> 0
J26: 0 | K26: 0
J27: 0 | K27: 0
J28: 0 | K28: 0
C29: Total | D29: =SUM(D17:D28) -> 5411304515 | E29: =SUM(E17:E28) -> 7169074.521 | F29: 2335017938 | G29: 5122296.005 | H29: 789319763.3 | I29: 1264785.738 | J29: 4621984752 | K29: 5904288.783 | L29: =SUM(L17:L28) -> 0 | M29: 0 | N29: 0 | O29: 0 | P29: 0 | Q29: 1 | R29: 1 | S29: 0 | T29: =SUM(T17:T28) -> 1 | U29: 0 | V29: =SUM(V17:V28) -> 0 | W29: 1312925.016 | X29: 245832
B32: Threshold Test | W32: 1568 Account Balance from Continuity Schedule | X32: ='3. Continuity Schedule'!BU46 -> 2694251.539
B33: Total Claim (including Account 1568) | D33: ='3. Continuity Schedule'!BU48 -> 6522409.6 | W33: =IF(X32=W29,"Total Balance of Account 1568 in Column R matches the amount entered on the Continuity Schedule","Total Balance of Account 1568 in Column T DOES NOT MATCH the amount entered on the Continuity Schedule") -> Total Balance of Account 1568 in Column T DOES NOT MATCH the amount entered on the Continuity Schedule
B34: Total Claim for Threshold Test (All Group 1 Accounts) | D34: ='3. Continuity Schedule'!BU44 -> 3828158.062
B35: Threshold Test (Total claim per kWh) 2 | D35: =IFERROR(D34/D29,"") -> 0.0007074371903
B36: Exceeds Threshold? | D36: =IF(D35="","",IF(OR(D35>0.001,D35<-0.001),"Yes","No")) -> No
B37: ELECT TO DISPOSE of the Group 1 Account Balances? | D37: No
B40: As per Section 3.2.5 of the 2017 Filing Requirements for Electricity Distribution Rate Applications, an applicant may elect to dispose of the Group 1 account balances below the threshold.
B41: 1 Residual Account balance to be allocated to rate classes in proportion to the recovery share as established when rate riders were implemented.
B42: 2 The Threshold Test does not include the amount in 1568.
B43: 3 The proportion of customers for the Residential and GS<50 Classes will be used to allocate Account 1551.
D46: Total Metered kWh | E46: =J29 -> 4621984752
D47: WMP consumption | E47: =H29 -> 789319763.3
D48: Consumption Class A (full) | E48: ='6.1 GA'!E29 -> 933208949.1
D49: Consumption Class A (partial) | E49: ='6.1 GA'!G29 -> 117287656.9
E50: =E46-E47-E48-E49 -> 2782168382

Sheet 5. Allocating Def-Var Balances
A1: Back to Index
B2: =+'1. Information Sheet'!B2 -> INCENTIVE REGULATION MODEL FOR 2020 FILERS
B11: No input required. This workshseet allocates the deferral/variance account balances (Group 1 and 1568) to the appropriate classes as per EDDVAR dated July 31, 2009
B13: Allocation of Group 1 Accounts (including Account 1568)
C14: % of Total kWh | D14: % of Total non-RPP kWh | E14: % of Customer Numbers ** | F14: % of Total kWh adjusted for WMP | I14: allocated based on Total less WMP | N14: allocated based on Total less WMP | O14: 1595_(2009) | P14: 1595_(2010) | Q14: 1595_(2011) | R14: 1595_(2012) | S14: 1595_(2013) | T14: 1595_(2014) | U14: 1595_(2015) | V14: 1595_(2016) | W14: 1595_(2017) | X14: 1595_(2018) | Y14: 1595_(2019) | Z14: 1568
B15: Rate Class | G15: 1550 | H15: 1551 | I15: 1580 | J15: 1580 (Class A) | K15: 1580 (Class B) | L15: 1584 | M15: 1586 | N15: 1588
B16: ='4. Billing Det. for Def-Var'!B17 -> RESIDENTIAL SERVICE CLASSIFICATION | C16: =IFERROR('4. Billing Det. for Def-Var'!D17/'4. Billing Det. for Def-Var'!D$29,"") -> 0.3065835249 | D16: =IFERROR('4. Billing Det. for Def-Var'!F17/'4. Billing Det. for Def-Var'!F$29,"") -> 0.02428504727 | E16: =IFERROR('4. Billing Det. for Def-Var'!X17/'4. Billing Det. for Def-Var'!X$29,"") -> 0.9227439878 | F16: =IFERROR('4. Billing Det. for Def-Var'!J17/'4. Billing Det. for Def-Var'!J$29,"") -> 0.3589403474 | G16: =IFERROR(G$28*C16,"") -> 101495.2984 | H16: =IFERROR(H$28*E16,"") -> -170730.5944 | I16: =IFERROR(I$28*F16,"") -> -231707.9628 | L16: =IFERROR(L$28*$C16,"") -> 320137.0681 | M16: =IFERROR(M$28*$C16,"") -> 706497.9633 | N16: =IFERROR(N$28*$F16,"") -> 2166919.659 | O16: ='4. Billing Det. for Def-Var'!L17*O$28 -> 0 | P16: ='4. Billing Det. for Def-Var'!M17*P$28 -> 0 | Q16: ='4. Billing Det. for Def-Var'!N17*Q$28 -> 0 | R16: ='4. Billing Det. for Def-Var'!O17*R$28 -> 0 | S16: ='4. Billing Det. for Def-Var'!P17*S$28 -> 0 | T16: ='4. Billing Det. for Def-Var'!Q17*T$28 -> 0 | U16: ='4. Billing Det. for Def-Var'!R17*U$28 -> 0 | V16: ='4. Billing Det. for Def-Var'!S17*V$28 -> 0 | W16: ='4. Billing Det. for Def-Var'!T17*W$28 -> -190566.7553 | X16: ='4. Billing Det. for Def-Var'!U17*X$28 -> 0 | Y16: ='4. Billing Det. for Def-Var'!V17*Y$28 -> 0 | Z16: ='4. Billing Det. for Def-Var'!W17 -> 650964.8438
B17: ='4. Billing Det. for Def-Var'!B18 -> GENERAL SERVICE LESS THAN 50 kW SERVICE CLASSIFICATION | C17: =IFERROR('4. Billing Det. for Def-Var'!D18/'4. Billing Det. for Def-Var'!D$29,"") -> 0.1072464222 | D17: =IFERROR('4. Billing Det. for Def-Var'!F18/'4. Billing Det. for Def-Var'!F$29,"") -> 0.04081169033 | E17: =IFERROR('4. Billing Det. for Def-Var'!X18/'4. Billing Det. for Def-Var'!X$29,"") -> 0.07725601224 | F17: =IFERROR('4. Billing Det. for Def-Var'!J18/'4. Billing Det. for Def-Var'!J$29,"") -> 0.1255614374 | G17: =IFERROR(G$28*C17,"") -> 35504.21578 | H17: =IFERROR(H$28*E17,"") -> -14294.28429 | I17: =IFERROR(I$28*F17,"") -> -81054.09457 | L17: =IFERROR(L$28*$C17,"") -> 111987.6066 | M17: 247141.0651 | N17: =IFERROR(N$28*$F17,"") -> 758013.2715 | O17: ='4. Billing Det. for Def-Var'!L18*O$28 -> 0 | P17: ='4. Billing Det. for Def-Var'!M18*P$28 -> 0 | Q17: ='4. Billing Det. for Def-Var'!N18*Q$28 -> 0 | R17: ='4. Billing Det. for Def-Var'!O18*R$28 -> 0 | S17: ='4. Billing Det. for Def-Var'!P18*S$28 -> 0 | T17: ='4. Billing Det. for Def-Var'!Q18*T$28 -> 0 | U17: ='4. Billing Det. for Def-Var'!R18*U$28 -> 0 | V17: ='4. Billing Det. for Def-Var'!S18*V$28 -> 0 | W17: ='4. Billing Det. for Def-Var'!T18*W$28 -> -70777.98075 | X17: ='4. Billing Det. for Def-Var'!U18*X$28 -> 0 | Y17: ='4. Billing Det. for Def-Var'!V18*Y$28 -> 0 | Z17: ='4. Billing Det. for Def-Var'!W18 -> 380494.7749
B18: ='4. Billing Det. for Def-Var'!B19 -> GENERAL SERVICE 50 to 4,999 kW SERVICE CLASSIFICATION | C18: =IFERROR('4. Billing Det. for Def-Var'!D19/'4. Billing Det. for Def-Var'!D$29,"") -> 0.3393552418 | D18: =IFERROR('4. Billing Det. for Def-Var'!F19/'4. Billing Det. for Def-Var'!F$29,"") -> 0.7015268582 | E18: =IFERROR('4. Billing Det. for Def-Var'!X19/'4. Billing Det. for Def-Var'!X$29,"") -> 0 | F18: =IFERROR('4. Billing Det. for Def-Var'!J19/'4. Billing Det. for Def-Var'!J$29,"") -> 0.3951585048 | G18: =IFERROR(G$28*C18,"") -> 112344.4632 | H18: =IFERROR(H$28*E18,"") -> 0 | I18: =IFERROR(I$28*F18,"") -> -255087.9911 | L18: 354357.5677 | M18: 782017.8442 | N18: =IFERROR(N$28*$F18,"") -> 2385568.35 | O18: ='4. Billing Det. for Def-Var'!L19*O$28 -> 0 | P18: ='4. Billing Det. for Def-Var'!M19*P$28 -> 0 | Q18: ='4. Billing Det. for Def-Var'!N19*Q$28 -> 0 | R18: ='4. Billing Det. for Def-Var'!O19*R$28 -> 0 | S18: ='4. Billing Det. for Def-Var'!P19*S$28 -> 0 | T18: ='4. Billing Det. for Def-Var'!Q19*T$28 -> 0 | U18: ='4. Billing Det. for Def-Var'!R19*U$28 -> 0 | V18: ='4. Billing Det. for Def-Var'!S19*V$28 -> 0 | W18: ='4. Billing Det. for Def-Var'!T19*W$28 -> -216526.6647 | X18: ='4. Billing Det. for Def-Var'!U19*X$28 -> 0 | Y18: ='4. Billing Det. for Def-Var'!V19*Y$28 -> 0 | Z18: ='4. Billing Det. for Def-Var'!W19 -> 63753.49857
B19: ='4. Billing Det. for Def-Var'!B20 -> LARGE USE SERVICE CLASSIFICATION | C19: =IFERROR('4. Billing Det. for Def-Var'!D20/'4. Billing Det. for Def-Var'!D$29,"") -> 0.03589201745 | D19: =IFERROR('4. Billing Det. for Def-Var'!F20/'4. Billing Det. for Def-Var'!F$29,"") -> 0.08026096835 | E19: =IFERROR('4. Billing Det. for Def-Var'!X20/'4. Billing Det. for Def-Var'!X$29,"") -> 0 | F19: =IFERROR('4. Billing Det. for Def-Var'!J20/'4. Billing Det. for Def-Var'!J$29,"") -> 0.04054768912 | G19: 11882.14866 | H19: 0 | I19: -26174.88536 | L19: 37478.74332 | M19: 82710.37146 | N19: 244786.0356 | O19: ='4. Billing Det. for Def-Var'!L20*O$28 -> 0 | P19: ='4. Billing Det. for Def-Var'!M20*P$28 -> 0 | Q19: ='4. Billing Det. for Def-Var'!N20*Q$28 -> 0 | R19: ='4. Billing Det. for Def-Var'!O20*R$28 -> 0 | S19: ='4. Billing Det. for Def-Var'!P20*S$28 -> 0 | T19: ='4. Billing Det. for Def-Var'!Q20*T$28 -> 0 | U19: ='4. Billing Det. for Def-Var'!R20*U$28 -> 0 | V19: ='4. Billing Det. for Def-Var'!S20*V$28 -> 0 | W19: ='4. Billing Det. for Def-Var'!T20*W$28 -> -29306.30514 | X19: ='4. Billing Det. for Def-Var'!U20*X$28 -> 0 | Y19: ='4. Billing Det. for Def-Var'!V20*Y$28 -> 0 | Z19: ='4. Billing Det. for Def-Var'!W20 -> 10938.24985
B20: ='4. Billing Det. for Def-Var'!B21 -> LARGE USE SERVICE WITH DEDICATED ASSETS CLASSIFICATION | C20: =IFERROR('4. Billing Det. for Def-Var'!D21/'4. Billing Det. for Def-Var'!D$29,"") -> 0.2052567256 | D20: =IFERROR('4. Billing Det. for Def-Var'!F21/'4. Billing Det. for Def-Var'!F$29,"") -> 0.144811173 | E20: =IFERROR('4. Billing Det. for Def-Var'!X21/'4. Billing Det. for Def-Var'!X$29,"") -> 0 | F20: =IFERROR('4. Billing Det. for Def-Var'!J21/'4. Billing Det. for Def-Var'!J$29,"") -> 0.07315833021 | G20: 67950.78963 | H20: 0 | I20: -47226.14156 | L20: 214330.781 | M20: 472998.2103 | N20: 441656.1835 | O20: ='4. Billing Det. for Def-Var'!L21*O$28 -> 0 | P20: ='4. Billing Det. for Def-Var'!M21*P$28 -> 0 | Q20: ='4. Billing Det. for Def-Var'!N21*Q$28 -> 0 | R20: ='4. Billing Det. for Def-Var'!O21*R$28 -> 0 | S20: ='4. Billing Det. for Def-Var'!P21*S$28 -> 0 | T20: ='4. Billing Det. for Def-Var'!Q21*T$28 -> 0 | U20: ='4. Billing Det. for Def-Var'!R21*U$28 -> 0 | V20: ='4. Billing Det. for Def-Var'!S21*V$28 -> 0 | W20: ='4. Billing Det. for Def-Var'!T21*W$28 -> -132728.4724 | X20: ='4. Billing Det. for Def-Var'!U21*X$28 -> 0 | Y20: ='4. Billing Det. for Def-Var'!V21*Y$28 -> 0 | Z20: ='4. Billing Det. for Def-Var'!W21 -> 18329.34109
B21: ='4. Billing Det. for Def-Var'!B22 -> UNMETERED SCATTERED LOAD SERVICE CLASSIFICATION | C21: =IFERROR('4. Billing Det. for Def-Var'!D22/'4. Billing Det. for Def-Var'!D$29,"") -> 0.002101619182 | D21: =IFERROR('4. Billing Det. for Def-Var'!F22/'4. Billing Det. for Def-Var'!F$29,"") -> 0.000346583633 | E21: =IFERROR('4. Billing Det. for Def-Var'!X22/'4. Billing Det. for Def-Var'!X$29,"") -> 0 | F21: =IFERROR('4. Billing Det. for Def-Var'!J22/'4. Billing Det. for Def-Var'!J$29,"") -> 0.002460523342 | G21: 695.746668 | H21: 0 | I21: -1588.349861 | L21: 2194.528239 | M21: 4843.018464 | N21: 14854.15735 | O21: ='4. Billing Det. for Def-Var'!L22*O$28 -> 0 | P21: ='4. Billing Det. for Def-Var'!M22*P$28 -> 0 | Q21: ='4. Billing Det. for Def-Var'!N22*Q$28 -> 0 | R21: ='4. Billing Det. for Def-Var'!O22*R$28 -> 0 | S21: ='4. Billing Det. for Def-Var'!P22*S$28 -> 0 | T21: ='4. Billing Det. for Def-Var'!Q22*T$28 -> 0 | U21: ='4. Billing Det. for Def-Var'!R22*U$28 -> 0 | V21: ='4. Billing Det. for Def-Var'!S22*V$28 -> 0 | W21: ='4. Billing Det. for Def-Var'!T22*W$28 -> -1371.69445 | X21: ='4. Billing Det. for Def-Var'!U22*X$28 -> 0 | Y21: ='4. Billing Det. for Def-Var'!V22*Y$28 -> 0 | Z21: ='4. Billing Det. for Def-Var'!W22 -> 25687.96287
B22: ='4. Billing Det. for Def-Var'!B23 -> SENTINEL LIGHTING SERVICE CLASSIFICATION | C22: =IFERROR('4. Billing Det. for Def-Var'!D23/'4. Billing Det. for Def-Var'!D$29,"") -> 8.913146204e-05 | D22: =IFERROR('4. Billing Det. for Def-Var'!F23/'4. Billing Det. for Def-Var'!F$29,"") -> 1.837673249e-06 | E22: =IFERROR('4. Billing Det. for Def-Var'!X23/'4. Billing Det. for Def-Var'!X$29,"") -> 0 | F22: =IFERROR('4. Billing Det. for Def-Var'!J23/'4. Billing Det. for Def-Var'!J$29,"") -> 0.0001043528936 | G22: 29.50720961 | H22: 0 | I22: -67.36327238 | L22: 93.07181441 | M22: 205.3965438 | N22: 629.9774829 | O22: ='4. Billing Det. for Def-Var'!L23*O$28 -> 0 | P22: ='4. Billing Det. for Def-Var'!M23*P$28 -> 0 | Q22: ='4. Billing Det. for Def-Var'!N23*Q$28 -> 0 | R22: ='4. Billing Det. for Def-Var'!O23*R$28 -> 0 | S22: ='4. Billing Det. for Def-Var'!P23*S$28 -> 0 | T22: ='4. Billing Det. for Def-Var'!Q23*T$28 -> 0 | U22: ='4. Billing Det. for Def-Var'!R23*U$28 -> 0 | V22: ='4. Billing Det. for Def-Var'!S23*V$28 -> 0 | W22: ='4. Billing Det. for Def-Var'!T23*W$28 -> -51.44469814 | X22: ='4. Billing Det. for Def-Var'!U23*X$28 -> 0 | Y22: ='4. Billing Det. for Def-Var'!V23*Y$28 -> 0 | Z22: ='4. Billing Det. for Def-Var'!W23 -> 0
B23: ='4. Billing Det. for Def-Var'!B24 -> STREET LIGHTING SERVICE CLASSIFICATION | C23: =IFERROR('4. Billing Det. for Def-Var'!D24/'4. Billing Det. for Def-Var'!D$29,"") -> 0.003475317372 | D23: =IFERROR('4. Billing Det. for Def-Var'!F24/'4. Billing Det. for Def-Var'!F$29,"") -> 0.007955841483 | E23: =IFERROR('4. Billing Det. for Def-Var'!X24/'4. Billing Det. for Def-Var'!X$29,"") -> 0 | F23: =IFERROR('4. Billing Det. for Def-Var'!J24/'4. Billing Det. for Def-Var'!J$29,"") -> 0.004068814935 | G23: 1150.513139 | H23: 0 | I23: -2626.555712 | L23: 3628.955322 | M23: 8008.59944 | N23: 24563.39928 | O23: ='4. Billing Det. for Def-Var'!L24*O$28 -> 0 | P23: ='4. Billing Det. for Def-Var'!M24*P$28 -> 0 | Q23: ='4. Billing Det. for Def-Var'!N24*Q$28 -> 0 | R23: ='4. Billing Det. for Def-Var'!O24*R$28 -> 0 | S23: ='4. Billing Det. for Def-Var'!P24*S$28 -> 0 | T23: ='4. Billing Det. for Def-Var'!Q24*T$28 -> 0 | U23: ='4. Billing Det. for Def-Var'!R24*U$28 -> 0 | V23: ='4. Billing Det. for Def-Var'!S24*V$28 -> 0 | W23: ='4. Billing Det. for Def-Var'!T24*W$28 -> -4182.730086 | X23: ='4. Billing Det. for Def-Var'!U24*X$28 -> 0 | Y23: ='4. Billing Det. for Def-Var'!V24*Y$28 -> 0 | Z23: ='4. Billing Det. for Def-Var'!W24 -> 162756.3447
B24: ='4. Billing Det. for Def-Var'!B25 -> STANDBY POWER SERVICE CLASSIFICATION | O24: ='4. Billing Det. for Def-Var'!L25*O$28 -> 0 | P24: ='4. Billing Det. for Def-Var'!M25*P$28 -> 0 | Q24: ='4. Billing Det. for Def-Var'!N25*Q$28 -> 0 | R24: ='4. Billing Det. for Def-Var'!O25*R$28 -> 0 | S24: ='4. Billing Det. for Def-Var'!P25*S$28 -> 0 | T24: ='4. Billing Det. for Def-Var'!Q25*T$28 -> 0 | U24: ='4. Billing Det. for Def-Var'!R25*U$28 -> 0 | V24: ='4. Billing Det. for Def-Var'!S25*V$28 -> 0 | W24: ='4. Billing Det. for Def-Var'!T25*W$28 -> 0 | X24: ='4. Billing Det. for Def-Var'!U25*X$28 -> 0 | Y24: ='4. Billing Det. for Def-Var'!V25*Y$28 -> 0 | Z24: ='4. Billing Det. for Def-Var'!W25 -> 0
C28: =SUM(C16:C27) -> 1 | D28: =SUM(D16:D27) -> 1 | E28: =SUM(E16:E27) -> 1 | F28: =SUM(F16:F27) -> 1 | G28: ='3. Continuity Schedule'!BU21 -> 331052.6826 | H28: ='3. Continuity Schedule'!BU22 -> -185024.8786 | I28: ='3. Continuity Schedule'!BU23+(IF('6.2 CBR B'!$U$18="TRUE",'6.2a CBR B_Allocation'!D25,0)) -> -645533.3442 | L28: ='3. Continuity Schedule'!BU26 -> 1044208.322 | M28: ='3. Continuity Schedule'!BU27 -> 2304422.469 | N28: ='3. Continuity Schedule'!BU28 -> 6036991.033 | O28: =IF('3. Continuity Schedule'!$BT30="Yes",'3. Continuity Schedule'!$BU30,0) -> 0 | P28: =IF('3. Continuity Schedule'!$BT31="Yes",'3. Continuity Schedule'!$BU31,0) -> 0 | Q28: =IF('3. Continuity Schedule'!$BT32="Yes",'3. Continuity Schedule'!$BU32,0) -> 0 | R28: =IF('3. Continuity Schedule'!$BT33="Yes",'3. Continuity Schedule'!$BU33,0) -> 0 | S28: =IF('3. Continuity Schedule'!$BT34="Yes",'3. Continuity Schedule'!$BU34,0) -> 0 | T28: =IF('3. Continuity Schedule'!$BT35="Yes",'3. Continuity Schedule'!$BU35,0) -> 0 | U28: =IF('3. Continuity Schedule'!$BT36="Yes",'3. Continuity Schedule'!$BU36,0) -> 0 | V28: =IF('3. Continuity Schedule'!$BT37="Yes",'3. Continuity Schedule'!$BU37,0) -> 0 | W28: =IF('3. Continuity Schedule'!$BT38="Yes",'3. Continuity Schedule'!$BU38,0) -> -645512.0475 | X28: =IF('3. Continuity Schedule'!$BT39="Yes",'3. Continuity Schedule'!$BU39,0) -> 0 | Y28: =IF('3. Continuity Schedule'!$BT40="Yes",'3. Continuity Schedule'!$BU40,0) -> 0 | Z28: =SUM(Z16:Z27) -> 1312925.016
G29: =SUM(G16:G27)-G28 -> 0 | H29: =SUM(H16:H27)-H28 -> 0 | I29: 0 | J29: 0 | K29: 0 | L29: 0 | M29: 0 | N29: 0 | P29: 0 | Q29: 0 | R29: 0 | S29: 0 | T29: 0 | U29: 0 | V29: 0 | Z29: 0
B32: ** Used to allocate Account 1551 as this account records the variances arising from the Smart Metering Entity Charges to Residential and GS<50 customers.

Sheet 6. Class A Consumption Data
A1: Back to Index
B2: =+'1. Information Sheet'!B2 -> INCENTIVE REGULATION MODEL FOR 2020 FILERS
A12: 1 | B12: Please select the Year the Account 1580 CBR Class B was Last Disposed. | C12: 2017 | D12: (e.g. If in the 2018 EDR process, you received approval to dispose the GA variance account balance as at December 31, 2016, enter 2016.)
C14: Years since Account 1589 GA balance was last disposed (up to 2016)
A17: 2a | B17: Did you have any customers who transitioned between Class A and Class B (transition customers) during the period the Account 1589 GA balance accumulated (i.e. from the year after the balance was last disposed to 2017)? | C17: Yes | D17: (e.g. If you received approval to dispose of the GA variance account balance as at December 31, 2015, the period the GA variance accumulated would be 2016 and 2017.)
A19: 2b | B19: Did you have any customers who transitioned between Class A and Class B (transition customers) during the period the Account 1580, sub-account CBR Class B balance accumulated (i.e. from the year after the balance was last disposed to 2017)? | C19: Yes | D19: (e.g. If you received approval to dispose of the CBR Class B balance as at December 31, 2016, the period the CBR Class B variance accumulated would be 2017.)
A23: 3a | B23: Enter the number of transition customers you had during the period the Account 1589 GA balance accumulated. | C23: 17
C26: Transition Customers - Non-loss Adjusted Billing Determinants by Customer
C27: Customer | D27: Rate Class | E27: 2018 kWh | H27: 2018 kW | K27: Class A/B
E28: Jan to Jun | F28: Jul to Dec | H28: Jan to Jun | I28: Jul to Dec | K28: Jan to Jun | L28: Jul to Dec | M28: July to December
C29: Customer 1 | D29: GENERAL SERVICE 50 to 4,999 kW SERVICE CLASSIFICATION | E29: 1380659.28 | F29: 998374.1 | G29: 2018 kWh | H29: 5769.68 | I29: 4997.72 | J29: 2018 kW | K29: B | L29: A
C30: Customer 2 | D30: GENERAL SERVICE 50 to 4,999 kW SERVICE CLASSIFICATION | E30: 1453697.77 | F30: 1545447.12 | G30: 2018 kWh | H30: 2932.86 | I30: 3121.09 | J30: 2018 kW | K30: B | L30: A
C31: Customer 3 | D31: GENERAL SERVICE 50 to 4,999 kW SERVICE CLASSIFICATION | E31: 10583215.92 | F31: 9805228.2 | G31: 2018 kWh | H31: 16630.02 | I31: 16208.46 | J31: 2018 kW | K31: B | L31: A
C32: Customer 4 | D32: GENERAL SERVICE 50 to 4,999 kW SERVICE CLASSIFICATION | E32: 1953784.44 | F32: 2487578.76 | G32: 2018 kWh | H32: 3932.37 | I32: 5011.56 | J32: 2018 kW | K32: B | L32: A
C33: Customer 5 | D33: GENERAL SERVICE 50 to 4,999 kW SERVICE CLASSIFICATION | E33: 7288138.41 | F33: 7546064.4 | G33: 2018 kWh | H33: 16082.64 | I33: 17108.28 | J33: 2018 kW | K33: B | L33: A
C34: Customer 6 | D34: GENERAL SERVICE 50 to 4,999 kW SERVICE CLASSIFICATION | E34: 5005009.24 | F34: 5500692.26 | G34: 2018 kWh | H34: 11308.36 | I34: 11602.64 | J34: 2018 kW | K34: B | L34: A
C35: Customer 7 | D35: GENERAL SERVICE 50 to 4,999 kW SERVICE CLASSIFICATION | E35: 5659016.46 | F35: 5096688.96 | G35: 2018 kWh | H35: 12676.5 | I35: 11367.66 | J35: 2018 kW | K35: B | L35: A
C36: Customer 8 | D36: GENERAL SERVICE 50 to 4,999 kW SERVICE CLASSIFICATION | E36: 2419252.245 | F36: 2601867.96 | G36: 2018 kWh | H36: 4712.4 | I36: 4917.285 | K36: B | L36: A
C37: Customer 9 | D37: GENERAL SERVICE 50 to 4,999 kW SERVICE CLASSIFICATION | E37: 3730224.5 | F37: 3806701.5 | G37: 2018 kWh | H37: 5621 | I37: 5624.6 | K37: B | L37: A
C38: Customer 10 | D38: GENERAL SERVICE 50 to 4,999 kW SERVICE CLASSIFICATION | E38: 2866945.89 | F38: 3311786.55 | G38: 2018 kWh | H38: 6074.31 | I38: 6704.04 | K38: B | L38: A
C39: Customer 11 | D39: GENERAL SERVICE 50 to 4,999 kW SERVICE CLASSIFICATION | E39: 1492213.104 | F39: 1732392.72 | G39: 2018 kWh | H39: 3404.664 | I39: 3768.516 | K39: B | L39: A
C40: Customer 12 | D40: GENERAL SERVICE 50 to 4,999 kW SERVICE CLASSIFICATION | E40: 775207.77 | F40: 709668.53 | G40: 2018 kWh | H40: 3004.95 | I40: 2848.56 | K40: B | L40: A
C41: Customer 13 | D41: GENERAL SERVICE 50 to 4,999 kW SERVICE CLASSIFICATION | E41: 939639.96 | F41: 635165.93 | G41: 2018 kWh | H41: 2443.28 | I41: 1938.3 | K41: A | L41: B
C42: Customer 14 | D42: GENERAL SERVICE 50 to 4,999 kW SERVICE CLASSIFICATION | E42: 1561716.8 | F42: 3497451.72 | G42: 2018 kWh | H42: 9548.42 | I42: 12446 | K42: A | L42: B
C43: Customer 15 | D43: GENERAL SERVICE 50 to 4,999 kW SERVICE CLASSIFICATION | E43: 4933401.36 | F43: 4839686.4 | G43: 2018 kWh | H43: 9373.92 | I43: 10464.48 | K43: A | L43: B
C44: Customer 16 | D44: GENERAL SERVICE 50 to 4,999 kW SERVICE CLASSIFICATION | E44: 635993.52 | F44: 171352.44 | G44: 2018 kWh | H44: 2838.84 | I44: 784.56 | K44: A | L44: B
C45: Customer 17 | D45: GENERAL SERVICE 50 to 4,999 kW SERVICE CLASSIFICATION | E45: 5069092.44 | F45: 5254300.2 | G45: 2018 kWh | H45: 8003.64 | I45: 8390.16 | K45: A | L45: B
C46: Customer 18 | G46: =IF(D46<>"",E$27,"") -> 
C47: Customer 19
C48: Customer 20
C49: Customer 21
C50: Customer 22
C51: Customer 23
C52: Customer 24
C53: Customer 25
C54: Customer 26
C55: Customer 27
C56: Customer 28
C57: Customer 29
C58: Customer 30
C59: Customer 31
C60: Customer 32
C61: Customer 33
C62: Customer 34
C63: Customer 35
C64: Customer 36
C65: Customer 37
C66: Customer 38
C67: Customer 39
C68: Customer 40
C69: Customer 41
C70: Customer 42
C71: Customer 43
C72: Customer 44
C73: Customer 45
C74: Customer 46
C75: Customer 47
C76: Customer 48
C77: Customer 49
C78: Customer 50
C79: Customer 51
C80: Customer 52
C81: Customer 53
C82: Customer 54
C83: Customer 55
C84: Customer 56
C85: Customer 57
C86: Customer 58
C87: Customer 59
C88: Customer 60
C89: Customer 61
C90: Customer 62
C91: Customer 63
C92: Customer 64
C93: Customer 65
C94: Customer 66 | G94: =IF(D94<>"",E$27,"") -> 
C95: Customer 67
C96: Customer 68
C97: Customer 69
C98: Customer 70
C99: Customer 71
C100: Customer 72
C101: Customer 73
C102: Customer 74
C103: Customer 75
C104: Customer 76
C105: Customer 77
C106: Customer 78
C107: Customer 79
C108: Customer 80
C109: Customer 81
C110: Customer 82
C111: Customer 83
C112: Customer 84
C113: Customer 85
C114: Customer 86
C115: Customer 87
C116: Customer 88
C117: Customer 89
C118: Customer 90
C119: Customer 91
C120: Customer 92
C121: Customer 93
C122: Customer 94
C123: Customer 95
C124: Customer 96
C125: Customer 97
C126: Customer 98
C127: Customer 99
C128: Customer 100
C129: Customer 101
C130: Customer 102 | G130: =IF(D130<>"",E$27,"") -> 
C131: Customer 103
C132: Customer 104
C133: Customer 105
C134: Customer 106
C135: Customer 107
C136: Customer 108
C137: Customer 109
C138: Customer 110
C139: Customer 111
C140: Customer 112
C141: Customer 113
C142: Customer 114
C143: Customer 115
C144: Customer 116
C145: Customer 117
C146: Customer 118
C147: Customer 119
C148: Customer 120
C149: Customer 121
C150: Customer 122
C151: Customer 123
C152: Customer 124
C153: Customer 125
C154: Customer 126
C155: Customer 127
C156: Customer 128
C157: Customer 129
C158: Customer 130
C159: Customer 131
C160: Customer 132
C161: Customer 133
C162: Customer 134
C163: Customer 135
C164: Customer 136
C165: Customer 137
C166: Customer 138
C167: Customer 139
C168: Customer 140
C169: Customer 141
C170: Customer 142
C171: Customer 143
C172: Customer 144
C173: Customer 145
C174: Customer 146
C175: Customer 147
C176: Customer 148
C177: Customer 149
C178: Customer 150
A186: 3b | B186: Enter the number of customers who were Class A during the entire period since the Account 1589 GA balance accumulated (i.e. did not transition between Class A and B). | C186: 47
C189: Class A Customers - Billing Determinants by Customer
C190: Customer | D190: Rate Class | E190: kWh | H190: kW
C191: Customer A1 | D191: GENERAL SERVICE 50 to 4,999 kW SERVICE CLASSIFICATION | E191: 6675827.04 | H191: 12238.32
C192: Customer A2 | D192: GENERAL SERVICE 50 to 4,999 kW SERVICE CLASSIFICATION | E192: 17267471.13 | H192: 37976.185
C193: Customer A3 | D193: GENERAL SERVICE 50 to 4,999 kW SERVICE CLASSIFICATION | E193: 6039874.08 | H193: 14513.76
C194: Customer A4 | D194: GENERAL SERVICE 50 to 4,999 kW SERVICE CLASSIFICATION | E194: 11705164.32 | H194: 30430.08
C195: Customer A5 | D195: GENERAL SERVICE 50 to 4,999 kW SERVICE CLASSIFICATION | E195: 25374326.16 | H195: 41973.6
C196: Customer A6 | D196: GENERAL SERVICE 50 to 4,999 kW SERVICE CLASSIFICATION | E196: 5883024 | H196: 19787.18
C197: Customer A7 | D197: GENERAL SERVICE 50 to 4,999 kW SERVICE CLASSIFICATION | E197: 3755971.88 | H197: 6747.78
C198: Customer A8 | D198: GENERAL SERVICE 50 to 4,999 kW SERVICE CLASSIFICATION | E198: 4759209.91 | H198: 15155
C199: Customer A9 | D199: GENERAL SERVICE 50 to 4,999 kW SERVICE CLASSIFICATION | E199: 14794689.24 | H199: 30036.96
C200: Customer A10 | D200: GENERAL SERVICE 50 to 4,999 kW SERVICE CLASSIFICATION | E200: 12295339.48 | H200: 25325.682
C201: Customer A11 | D201: GENERAL SERVICE 50 to 4,999 kW SERVICE CLASSIFICATION | E201: 32611748.19 | H201: 59854.2
C202: Customer A12 | D202: GENERAL SERVICE 50 to 4,999 kW SERVICE CLASSIFICATION | E202: 5660303.76 | H202: 17505.36
C203: Customer A13 | D203: GENERAL SERVICE 50 to 4,999 kW SERVICE CLASSIFICATION | E203: 6144631.08 | H203: 11575.08
C204: Customer A14 | D204: GENERAL SERVICE 50 to 4,999 kW SERVICE CLASSIFICATION | E204: 15959374.62 | H204: 68171.04
C205: Customer A15 | D205: GENERAL SERVICE 50 to 4,999 kW SERVICE CLASSIFICATION | E205: 16264010.85 | H205: 27349.655
C206: Customer A16 | D206: GENERAL SERVICE 50 to 4,999 kW SERVICE CLASSIFICATION | E206: 33153467.97 | H206: 60842.67
C207: Customer A17 | D207: GENERAL SERVICE 50 to 4,999 kW SERVICE CLASSIFICATION | E207: 11914344.9 | H207: 19657.71
C208: Customer A18 | D208: GENERAL SERVICE 50 to 4,999 kW SERVICE CLASSIFICATION | E208: 11480183.46 | H208: 16962.54
C209: Customer A19 | D209: GENERAL SERVICE 50 to 4,999 kW SERVICE CLASSIFICATION | E209: 1356445.65 | H209: 6117.99
C210: Customer A20 | D210: GENERAL SERVICE 50 to 4,999 kW SERVICE CLASSIFICATION | E210: 4468706.595 | H210: 7863.57
C211: Customer A21 | D211: GENERAL SERVICE 50 to 4,999 kW SERVICE CLASSIFICATION | E211: 2743761.75 | H211: 6370.05
C212: Customer A22 | D212: GENERAL SERVICE 50 to 4,999 kW SERVICE CLASSIFICATION | E212: 6947543.54 | H212: 22127.56
C213: Customer A23 | D213: GENERAL SERVICE 50 to 4,999 kW SERVICE CLASSIFICATION | E213: 6621633.36 | H213: 10430.52
C214: Customer A24 | D214: GENERAL SERVICE 50 to 4,999 kW SERVICE CLASSIFICATION | E214: 6033013.84 | H214: 13320.72
C215: Customer A25 | D215: GENERAL SERVICE 50 to 4,999 kW SERVICE CLASSIFICATION | E215: 7930958.4 | H215: 15082.2
C216: Customer A26 | D216: GENERAL SERVICE 50 to 4,999 kW SERVICE CLASSIFICATION | E216: 12019329.12 | H216: 57116.16
C217: Customer A27 | D217: GENERAL SERVICE 50 to 4,999 kW SERVICE CLASSIFICATION | E217: 5437716.095 | H217: 11965.253
C218: Customer A28 | D218: GENERAL SERVICE 50 to 4,999 kW SERVICE CLASSIFICATION | E218: 15371828.52 | H218: 31353.96
C219: Customer A29 | D219: GENERAL SERVICE 50 to 4,999 kW SERVICE CLASSIFICATION | E219: 2252908.62 | H219: 22444.74
C220: Customer A30 | D220: GENERAL SERVICE 50 to 4,999 kW SERVICE CLASSIFICATION | E220: 1917093.515 | H220: 7853.56
C221: Customer A31 | D221: GENERAL SERVICE 50 to 4,999 kW SERVICE CLASSIFICATION | E221: 4322349.99 | H221: 12434.8
C222: Customer A32 | D222: GENERAL SERVICE 50 to 4,999 kW SERVICE CLASSIFICATION | E222: 2355458.76 | H222: 9379.08
C223: Customer A33 | D223: GENERAL SERVICE 50 to 4,999 kW SERVICE CLASSIFICATION | E223: 25444404.44 | H223: 47432.729
C224: Customer A34 | D224: GENERAL SERVICE 50 to 4,999 kW SERVICE CLASSIFICATION | E224: 14365489.5 | H224: 28414.35
C225: Customer A35 | D225: GENERAL SERVICE 50 to 4,999 kW SERVICE CLASSIFICATION | E225: 19269071.4 | H225: 36861
C226: Customer A36 | D226: GENERAL SERVICE 50 to 4,999 kW SERVICE CLASSIFICATION | E226: 5440484.944 | H226: 13501.604
C227: Customer A37 | D227: GENERAL SERVICE 50 to 4,999 kW SERVICE CLASSIFICATION | E227: 14243354.88 | H227: 23793.84
... 113 more rows

Sheet 6.1a GA Allocation
A1: Back to Index
B2: =+'1. Information Sheet'!B2 -> INCENTIVE REGULATION MODEL FOR 2020 FILERS
B11: This tab allocates the GA balance to former Class B non-interval customers who contributed to the current GA balance but are now Class A customers. The tables below calculate specific amounts for each customer who made the change. Consistent with both decisions for 2016 rates and EDDVAR, distributors are generally expected to settle the amount through 12 equal adjustments to bills. A one-time settlement is acceptable if the affected customer has expressed a clear preference for this approach. (see Filing Requirements section 3.2.5.2)
B14: Year of Group 1 Account Balance Last Disposed | C14: 2017 | D14: (e.g. If in the 2019 EDR process, you received approval to dispose the GA variance account balance as of December 31, 2016, please enter 2016 in cell C14.)
B16: Allocation of total Non-RPP Consumption (kWh) between Current Class B and Class A/B Transition Customers
D17: Total | E17: =C14+1 -> 2018 | F17: =E17-1 -> 2017 | G17: =F17-1 -> 2016
B18: Total Non-RPP Class B Consumption for Years During Balance Accumulation (Non-RPP Consumption LESS WMP Consumption and Consumption for Class A customers who were Class A for partial or full year) | C18: A | D18: =SUM(E18:G18) -> 1343526654 | E18: =N25 -> 1343526654 | H18: from Cell N25
B19: Transition Customers' Class B Consumption (i.e. full year or partial year) | C19: B | D19: =SUM(E19:G19) -> 59005321.72 | E19: =E189 -> 59005321.72 | F19: =F189 -> 0 | G19: 0
B20: Transition Customers' Portion of Total Consumption | C20: C=B/A | D20: =IFERROR(+D19/D18,0) -> 0.04391823679
L21: Sheet 4 | M21: total non-RPP kWh | N21: ='4. Billing Det. for Def-Var'!F29+'4. Billing Det. for Def-Var'!H29 -> 3124337701
L22: Sheet 4 | M22: WMP kWh | N22: ='4. Billing Det. for Def-Var'!H29 -> 789319763.3
B23: Allocation of Total GA Balance $ | L23: Sheet 6.1 | M23: Class A (full) | N23: ='6.1 GA'!E29 -> 933208949.1
L24: Sheet 6.1 | M24: Class A (partial) | N24: =SUM(IF('6. Class A Consumption Data'!$K$29:$L$45="a",'6. Class A Consumption Data'!$E$29:$F$45)) -> 58282335.14
B25: Total GA Balance | C25: D | D25: ='3. Continuity Schedule'!BU29 -> -4412446.174 | N25: =N21-N22-N23-N24 -> 1343526654
B26: Transition Customers Portion of GA Balance | C26: E=C*D | D26: =+D20*D25 -> -193786.8559
B27: GA Balance to be disposed to Current Class B Customers through Rate Rider | C27: F=D-E | D27: =+D25-D26 -> -4218659.318
B30: Allocation of GA Balances to Class A/B Transition Customers
B32: Default Monthly Equal Payments Recovery Period (in months) | D32: 12
B34: Proposed Monthly Equal Payments Recovery Period (in months) | D34: 12
B37: # of Class A/B Transition Customers | C37: =COUNT($E$39:$E$188)-COUNTIF($E$39:$E$188,0) -> 17
B38: Customer | D38: Total Metered Consumption (kWh) for Transition Customers During the Period WhenThey Were Class B Customers | E38: Metered Consumption (kWh) for Transition Customers During the Period When They Were Class B Customers in 2018 | F38: Metered Consumption (kWh) for Transition Customers During the Period When They Were Class B Customers in 2017 | G38: Metered Consumption (kWh) for Transition Customers During the Period When They Were Class B Customers in 2016 | H38: % of kWh | I38: Customer Specific GA Allocation for the Period When They Were a Class B customer | J38: Monthly Equal Payments
B39: Customer 1 | D39: =SUM(E39:G39) -> 1380659.28 | E39: =SUM(IF('6. Class A Consumption Data'!K29:L29="B",'6. Class A Consumption Data'!E29:F29)) -> 1380659.28 | H39: =IFERROR(+D39/$D$189,0) -> 0.0233988942 | I39: =H39*$D$26 -> -4534.398139 | J39: =ROUND(IF(ISERROR(I39),0,IF(OR(ISBLANK($D$34), OR($D$34=0, $D$34="")), I39/($D$32), I39/($D$34))),2) -> -377.87
B40: Customer 2 | D40: 1453697.77 | E40: =SUM(IF('6. Class A Consumption Data'!K30:L30="B",'6. Class A Consumption Data'!E30:F30)) -> 1453697.77 | H40: =IFERROR(+D40/$D$189,0) -> 0.02463672306 | I40: =H40*$D$26 -> -4774.273101 | J40: =ROUND(IF(ISERROR(I40),0,IF(OR(ISBLANK($D$34), OR($D$34=0, $D$34="")), I40/($D$32), I40/($D$34))),2) -> -397.86
B41: Customer 3 | D41: 10583215.92 | E41: =SUM(IF('6. Class A Consumption Data'!K31:L31="B",'6. Class A Consumption Data'!E31:F31)) -> 10583215.92 | H41: 0.179360363 | I41: -34757.68081 | J41: -2896.47
B42: Customer 4 | D42: 1953784.44 | E42: =SUM(IF('6. Class A Consumption Data'!K32:L32="B",'6. Class A Consumption Data'!E32:F32)) -> 1953784.44 | H42: 0.03311200385 | I42: -6416.671119 | J42: -534.72
B43: Customer 5 | D43: 7288138.41 | E43: =SUM(IF('6. Class A Consumption Data'!K33:L33="B",'6. Class A Consumption Data'!E33:F33)) -> 7288138.41 | H43: 0.1235166286 | I43: -23935.89912 | J43: -1994.66
B44: Customer 6 | D44: 5005009.24 | E44: =SUM(IF('6. Class A Consumption Data'!K34:L34="B",'6. Class A Consumption Data'!E34:F34)) -> 5005009.24 | H44: 0.08482301417 | I44: -16437.58522 | J44: -1369.8
B45: Customer 7 | D45: 5659016.46 | E45: =SUM(IF('6. Class A Consumption Data'!K35:L35="B",'6. Class A Consumption Data'!E35:F35)) -> 5659016.46 | H45: 0.09590688255 | I45: -18585.49323 | J45: -1548.79
B46: Customer 8 | D46: 2419252.245 | E46: =SUM(IF('6. Class A Consumption Data'!K36:L36="B",'6. Class A Consumption Data'!E36:F36)) -> 2419252.245 | H46: 0.04100057714 | I46: -7945.372935 | J46: -662.11
B47: Customer 9 | D47: 3730224.5 | E47: =SUM(IF('6. Class A Consumption Data'!K37:L37="B",'6. Class A Consumption Data'!E37:F37)) -> 3730224.5 | H47: 0.06321844185 | I47: -12250.90308 | J47: -1020.91
B48: Customer 10 | D48: 2866945.89 | E48: =SUM(IF('6. Class A Consumption Data'!K38:L38="B",'6. Class A Consumption Data'!E38:F38)) -> 2866945.89 | H48: 0.04858792066 | I48: -9415.70038 | J48: -784.64
B49: Customer 11 | D49: 1492213.104 | E49: =SUM(IF('6. Class A Consumption Data'!K39:L39="B",'6. Class A Consumption Data'!E39:F39)) -> 1492213.104 | H49: 0.02528946645 | I49: -4900.766191 | J49: -408.4
B50: Customer 12 | D50: 775207.77 | E50: =SUM(IF('6. Class A Consumption Data'!K40:L40="B",'6. Class A Consumption Data'!E40:F40)) -> 775207.77 | H50: 0.01313792972 | I50: -2545.958094 | J50: -212.16
B51: Customer 13 | D51: 635165.93 | E51: =SUM(IF('6. Class A Consumption Data'!K41:L41="B",'6. Class A Consumption Data'!E41:F41)) -> 635165.93 | H51: 0.01076455329 | I51: -2086.028937 | J51: -173.84
B52: Customer 14 | D52: 3497451.72 | E52: =SUM(IF('6. Class A Consumption Data'!K42:L42="B",'6. Class A Consumption Data'!E42:F42)) -> 3497451.72 | H52: 0.05927349632 | I52: -11486.42449 | J52: -957.2
B53: Customer 15 | D53: 4839686.4 | E53: =SUM(IF('6. Class A Consumption Data'!K43:L43="B",'6. Class A Consumption Data'!E43:F43)) -> 4839686.4 | H53: 0.08202118485 | I53: -15894.62753 | J53: -1324.55
B54: Customer 16 | D54: 171352.44 | E54: =SUM(IF('6. Class A Consumption Data'!K44:L44="B",'6. Class A Consumption Data'!E44:F44)) -> 171352.44 | H54: 0.002904016706 | I54: -562.7602669 | J54: -46.9
B55: Customer 17 | D55: 5254300.2 | E55: =SUM(IF('6. Class A Consumption Data'!K45:L45="B",'6. Class A Consumption Data'!E45:F45)) -> 5254300.2 | H55: 0.08904790359 | I55: -17256.31326 | J55: -1438.03
B56: Customer 18 | D56: 0 | E56: =SUM(IF('6. Class A Consumption Data'!K46:L46="B",'6. Class A Consumption Data'!E46:F46)) -> 0 | H56: 0 | I56: 0 | J56: 0
B57: Customer 19 | D57: 0 | E57: =SUM(IF('6. Class A Consumption Data'!K47:L47="B",'6. Class A Consumption Data'!E47:F47)) -> 0 | H57: 0 | I57: 0 | J57: 0
B58: Customer 20 | D58: 0 | E58: =SUM(IF('6. Class A Consumption Data'!K48:L48="B",'6. Class A Consumption Data'!E48:F48)) -> 0 | H58: 0 | I58: 0 | J58: 0
B59: Customer 21 | D59: 0 | E59: =SUM(IF('6. Class A Consumption Data'!K49:L49="B",'6. Class A Consumption Data'!E49:F49)) -> 0 | H59: 0 | I59: 0 | J59: 0
B60: Customer 22 | D60: 0 | E60: =SUM(IF('6. Class A Consumption Data'!K50:L50="B",'6. Class A Consumption Data'!E50:F50)) -> 0 | H60: 0 | I60: 0 | J60: 0
B61: Customer 23 | D61: 0 | E61: =SUM(IF('6. Class A Consumption Data'!K51:L51="B",'6. Class A Consumption Data'!E51:F51)) -> 0 | H61: 0 | I61: 0 | J61: 0
B62: Customer 24 | D62: 0 | E62: =SUM(IF('6. Class A Consumption Data'!K52:L52="B",'6. Class A Consumption Data'!E52:F52)) -> 0 | H62: 0 | I62: 0 | J62: 0
B63: Customer 25 | D63: 0 | E63: =SUM(IF('6. Class A Consumption Data'!K53:L53="B",'6. Class A Consumption Data'!E53:F53)) -> 0 | H63: 0 | I63: 0 | J63: 0
B64: Customer 26 | D64: 0 | E64: =SUM(IF('6. Class A Consumption Data'!K54:L54="B",'6. Class A Consumption Data'!E54:F54)) -> 0 | H64: 0 | I64: 0 | J64: 0
B65: Customer 27 | D65: 0 | E65: =SUM(IF('6. Class A Consumption Data'!K55:L55="B",'6. Class A Consumption Data'!E55:F55)) -> 0 | H65: 0 | I65: 0 | J65: 0
B66: Customer 28 | D66: 0 | E66: =SUM(IF('6. Class A Consumption Data'!K56:L56="B",'6. Class A Consumption Data'!E56:F56)) -> 0 | H66: 0 | I66: 0 | J66: 0
B67: Customer 29 | D67: 0 | E67: =SUM(IF('6. Class A Consumption Data'!K57:L57="B",'6. Class A Consumption Data'!E57:F57)) -> 0 | H67: 0 | I67: 0 | J67: 0
B68: Customer 30 | D68: 0 | E68: =SUM(IF('6. Class A Consumption Data'!K58:L58="B",'6. Class A Consumption Data'!E58:F58)) -> 0 | H68: 0 | I68: 0 | J68: 0
B69: Customer 31 | D69: 0 | E69: =SUM(IF('6. Class A Consumption Data'!K59:L59="B",'6. Class A Consumption Data'!E59:F59)) -> 0 | H69: 0 | I69: 0 | J69: 0
B70: Customer 32 | D70: 0 | E70: =SUM(IF('6. Class A Consumption Data'!K60:L60="B",'6. Class A Consumption Data'!E60:F60)) -> 0 | H70: 0 | I70: 0 | J70: 0
B71: Customer 33 | D71: =SUM(E71:G71) -> 0 | E71: =SUM(IF('6. Class A Consumption Data'!K61:L61="B",'6. Class A Consumption Data'!E61:F61)) -> 0 | H71: 0 | I71: 0 | J71: 0
B72: Customer 34 | D72: 0 | E72: =SUM(IF('6. Class A Consumption Data'!K62:L62="B",'6. Class A Consumption Data'!E62:F62)) -> 0 | H72: 0 | I72: 0 | J72: 0
B73: Customer 35 | D73: 0 | E73: =SUM(IF('6. Class A Consumption Data'!K63:L63="B",'6. Class A Consumption Data'!E63:F63)) -> 0 | H73: 0 | I73: 0 | J73: 0
B74: Customer 36 | D74: 0 | E74: =SUM(IF('6. Class A Consumption Data'!K64:L64="B",'6. Class A Consumption Data'!E64:F64)) -> 0 | H74: 0 | I74: 0 | J74: 0
B75: Customer 37 | D75: 0 | E75: =SUM(IF('6. Class A Consumption Data'!K65:L65="B",'6. Class A Consumption Data'!E65:F65)) -> 0 | H75: 0 | I75: 0 | J75: 0
B76: Customer 38 | D76: 0 | E76: =SUM(IF('6. Class A Consumption Data'!K66:L66="B",'6. Class A Consumption Data'!E66:F66)) -> 0 | H76: 0 | I76: 0 | J76: 0
B77: Customer 39 | D77: 0 | E77: =SUM(IF('6. Class A Consumption Data'!K67:L67="B",'6. Class A Consumption Data'!E67:F67)) -> 0 | H77: 0 | I77: 0 | J77: 0
B78: Customer 40 | D78: 0 | E78: =SUM(IF('6. Class A Consumption Data'!K68:L68="B",'6. Class A Consumption Data'!E68:F68)) -> 0 | H78: 0 | I78: 0 | J78: 0
B79: Customer 41 | D79: 0 | E79: =SUM(IF('6. Class A Consumption Data'!K69:L69="B",'6. Class A Consumption Data'!E69:F69)) -> 0 | H79: 0 | I79: 0 | J79: 0
B80: Customer 42 | D80: 0 | E80: =SUM(IF('6. Class A Consumption Data'!K70:L70="B",'6. Class A Consumption Data'!E70:F70)) -> 0 | H80: 0 | I80: 0 | J80: 0
B81: Customer 43 | D81: 0 | E81: =SUM(IF('6. Class A Consumption Data'!K71:L71="B",'6. Class A Consumption Data'!E71:F71)) -> 0 | H81: 0 | I81: 0 | J81: 0
B82: Customer 44 | D82: 0 | E82: =SUM(IF('6. Class A Consumption Data'!K72:L72="B",'6. Class A Consumption Data'!E72:F72)) -> 0 | H82: 0 | I82: 0 | J82: 0
B83: Customer 45 | D83: 0 | E83: =SUM(IF('6. Class A Consumption Data'!K73:L73="B",'6. Class A Consumption Data'!E73:F73)) -> 0 | H83: 0 | I83: 0 | J83: 0
B84: Customer 46 | D84: 0 | E84: =SUM(IF('6. Class A Consumption Data'!K74:L74="B",'6. Class A Consumption Data'!E74:F74)) -> 0 | H84: 0 | I84: 0 | J84: 0
B85: Customer 47 | D85: 0 | E85: =SUM(IF('6. Class A Consumption Data'!K75:L75="B",'6. Class A Consumption Data'!E75:F75)) -> 0 | H85: 0 | I85: 0 | J85: 0
B86: Customer 48 | D86: 0 | E86: =SUM(IF('6. Class A Consumption Data'!K76:L76="B",'6. Class A Consumption Data'!E76:F76)) -> 0 | H86: 0 | I86: 0 | J86: 0
B87: Customer 49 | D87: 0 | E87: =SUM(IF('6. Class A Consumption Data'!K77:L77="B",'6. Class A Consumption Data'!E77:F77)) -> 0 | H87: 0 | I87: 0 | J87: 0
B88: Customer 50 | D88: 0 | E88: =SUM(IF('6. Class A Consumption Data'!K78:L78="B",'6. Class A Consumption Data'!E78:F78)) -> 0 | H88: 0 | I88: 0 | J88: 0
B89: Customer 51 | D89: 0 | E89: =SUM(IF('6. Class A Consumption Data'!K79:L79="B",'6. Class A Consumption Data'!E79:F79)) -> 0 | H89: 0 | I89: 0 | J89: 0
B90: Customer 52 | D90: 0 | E90: =SUM(IF('6. Class A Consumption Data'!K80:L80="B",'6. Class A Consumption Data'!E80:F80)) -> 0 | H90: 0 | I90: 0 | J90: 0
B91: Customer 53 | D91: 0 | E91: =SUM(IF('6. Class A Consumption Data'!K81:L81="B",'6. Class A Consumption Data'!E81:F81)) -> 0 | H91: 0 | I91: 0 | J91: 0
B92: Customer 54 | D92: 0 | E92: =SUM(IF('6. Class A Consumption Data'!K82:L82="B",'6. Class A Consumption Data'!E82:F82)) -> 0 | H92: 0 | I92: 0 | J92: 0
B93: Customer 55 | D93: 0 | E93: =SUM(IF('6. Class A Consumption Data'!K83:L83="B",'6. Class A Consumption Data'!E83:F83)) -> 0 | H93: 0 | I93: 0 | J93: 0
B94: Customer 56 | D94: 0 | E94: =SUM(IF('6. Class A Consumption Data'!K84:L84="B",'6. Class A Consumption Data'!E84:F84)) -> 0 | H94: 0 | I94: 0 | J94: 0
B95: Customer 57 | D95: 0 | E95: =SUM(IF('6. Class A Consumption Data'!K85:L85="B",'6. Class A Consumption Data'!E85:F85)) -> 0 | H95: 0 | I95: 0 | J95: 0
B96: Customer 58 | D96: 0 | E96: =SUM(IF('6. Class A Consumption Data'!K86:L86="B",'6. Class A Consumption Data'!E86:F86)) -> 0 | H96: 0 | I96: 0 | J96: 0
B97: Customer 59 | D97: 0 | E97: =SUM(IF('6. Class A Consumption Data'!K87:L87="B",'6. Class A Consumption Data'!E87:F87)) -> 0 | H97: 0 | I97: 0 | J97: 0
B98: Customer 60 | D98: 0 | E98: =SUM(IF('6. Class A Consumption Data'!K88:L88="B",'6. Class A Consumption Data'!E88:F88)) -> 0 | H98: 0 | I98: 0 | J98: 0
B99: Customer 61 | D99: 0 | E99: =SUM(IF('6. Class A Consumption Data'!K89:L89="B",'6. Class A Consumption Data'!E89:F89)) -> 0 | H99: 0 | I99: 0 | J99: 0
B100: Customer 62 | D100: 0 | E100: =SUM(IF('6. Class A Consumption Data'!K90:L90="B",'6. Class A Consumption Data'!E90:F90)) -> 0 | H100: 0 | I100: 0 | J100: 0
B101: Customer 63 | D101: 0 | E101: =SUM(IF('6. Class A Consumption Data'!K91:L91="B",'6. Class A Consumption Data'!E91:F91)) -> 0 | H101: 0 | I101: 0 | J101: 0
B102: Customer 64 | D102: 0 | E102: =SUM(IF('6. Class A Consumption Data'!K92:L92="B",'6. Class A Consumption Data'!E92:F92)) -> 0 | H102: 0 | I102: 0 | J102: 0
B103: Customer 65 | D103: =SUM(E103:G103) -> 0 | E103: =SUM(IF('6. Class A Consumption Data'!K93:L93="B",'6. Class A Consumption Data'!E93:F93)) -> 0 | H103: 0 | I103: 0 | J103: 0
B104: Customer 66 | D104: 0 | E104: =SUM(IF('6. Class A Consumption Data'!K94:L94="B",'6. Class A Consumption Data'!E94:F94)) -> 0 | H104: =IFERROR(+D104/$D$189,0) -> 0 | I104: =H104*$D$26 -> 0 | J104: =ROUND(IF(ISERROR(I104),0,IF(OR(ISBLANK($D$34), OR($D$34=0, $D$34="")), I104/($D$32), I104/($D$34))),2) -> 0
B105: Customer 67 | D105: 0 | E105: =SUM(IF('6. Class A Consumption Data'!K95:L95="B",'6. Class A Consumption Data'!E95:F95)) -> 0 | H105: 0 | I105: 0 | J105: 0
B106: Customer 68 | D106: 0 | E106: =SUM(IF('6. Class A Consumption Data'!K96:L96="B",'6. Class A Consumption Data'!E96:F96)) -> 0 | H106: 0 | I106: 0 | J106: 0
B107: Customer 69 | D107: 0 | E107: =SUM(IF('6. Class A Consumption Data'!K97:L97="B",'6. Class A Consumption Data'!E97:F97)) -> 0 | H107: 0 | I107: 0 | J107: 0
B108: Customer 70 | D108: 0 | E108: =SUM(IF('6. Class A Consumption Data'!K98:L98="B",'6. Class A Consumption Data'!E98:F98)) -> 0 | H108: 0 | I108: 0 | J108: 0
B109: Customer 71 | D109: 0 | E109: =SUM(IF('6. Class A Consumption Data'!K99:L99="B",'6. Class A Consumption Data'!E99:F99)) -> 0 | H109: 0 | I109: 0 | J109: 0
B110: Customer 72 | D110: 0 | E110: =SUM(IF('6. Class A Consumption Data'!K100:L100="B",'6. Class A Consumption Data'!E100:F100)) -> 0 | H110: 0 | I110: 0 | J110: 0
B111: Customer 73 | D111: 0 | E111: =SUM(IF('6. Class A Consumption Data'!K101:L101="B",'6. Class A Consumption Data'!E101:F101)) -> 0 | H111: 0 | I111: 0 | J111: 0
B112: Customer 74 | D112: 0 | E112: =SUM(IF('6. Class A Consumption Data'!K102:L102="B",'6. Class A Consumption Data'!E102:F102)) -> 0 | H112: 0 | I112: 0 | J112: 0
B113: Customer 75 | D113: 0 | E113: =SUM(IF('6. Class A Consumption Data'!K103:L103="B",'6. Class A Consumption Data'!E103:F103)) -> 0 | H113: 0 | I113: 0 | J113: 0
B114: Customer 76 | D114: 0 | E114: =SUM(IF('6. Class A Consumption Data'!K104:L104="B",'6. Class A Consumption Data'!E104:F104)) -> 0 | H114: 0 | I114: 0 | J114: 0
B115: Customer 77 | D115: 0 | E115: =SUM(IF('6. Class A Consumption Data'!K105:L105="B",'6. Class A Consumption Data'!E105:F105)) -> 0 | H115: 0 | I115: 0 | J115: 0
B116: Customer 78 | D116: 0 | E116: =SUM(IF('6. Class A Consumption Data'!K106:L106="B",'6. Class A Consumption Data'!E106:F106)) -> 0 | H116: 0 | I116: 0 | J116: 0
B117: Customer 79 | D117: 0 | E117: =SUM(IF('6. Class A Consumption Data'!K107:L107="B",'6. Class A Consumption Data'!E107:F107)) -> 0 | H117: 0 | I117: 0 | J117: 0
B118: Customer 80 | D118: 0 | E118: =SUM(IF('6. Class A Consumption Data'!K108:L108="B",'6. Class A Consumption Data'!E108:F108)) -> 0 | H118: 0 | I118: 0 | J118: 0
B119: Customer 81 | D119: 0 | E119: =SUM(IF('6. Class A Consumption Data'!K109:L109="B",'6. Class A Consumption Data'!E109:F109)) -> 0 | H119: 0 | I119: 0 | J119: 0
B120: Customer 82 | D120: 0 | E120: =SUM(IF('6. Class A Consumption Data'!K110:L110="B",'6. Class A Consumption Data'!E110:F110)) -> 0 | H120: 0 | I120: 0 | J120: 0
B121: Customer 83 | D121: 0 | E121: =SUM(IF('6. Class A Consumption Data'!K111:L111="B",'6. Class A Consumption Data'!E111:F111)) -> 0 | H121: 0 | I121: 0 | J121: 0
B122: Customer 84 | D122: 0 | E122: =SUM(IF('6. Class A Consumption Data'!K112:L112="B",'6. Class A Consumption Data'!E112:F112)) -> 0 | H122: 0 | I122: 0 | J122: 0
B123: Customer 85 | D123: 0 | E123: =SUM(IF('6. Class A Consumption Data'!K113:L113="B",'6. Class A Consumption Data'!E113:F113)) -> 0 | H123: 0 | I123: 0 | J123: 0
B124: Customer 86 | D124: 0 | E124: =SUM(IF('6. Class A Consumption Data'!K114:L114="B",'6. Class A Consumption Data'!E114:F114)) -> 0 | H124: 0 | I124: 0 | J124: 0
B125: Customer 87 | D125: 0 | E125: =SUM(IF('6. Class A Consumption Data'!K115:L115="B",'6. Class A Consumption Data'!E115:F115)) -> 0 | H125: 0 | I125: 0 | J125: 0
B126: Customer 88 | D126: 0 | E126: =SUM(IF('6. Class A Consumption Data'!K116:L116="B",'6. Class A Consumption Data'!E116:F116)) -> 0 | H126: 0 | I126: 0 | J126: 0
B127: Customer 89 | D127: 0 | E127: =SUM(IF('6. Class A Consumption Data'!K117:L117="B",'6. Class A Consumption Data'!E117:F117)) -> 0 | H127: 0 | I127: 0 | J127: 0
B128: Customer 90 | D128: 0 | E128: =SUM(IF('6. Class A Consumption Data'!K118:L118="B",'6. Class A Consumption Data'!E118:F118)) -> 0 | H128: 0 | I128: 0 | J128: 0
B129: Customer 91 | D129: 0 | E129: =SUM(IF('6. Class A Consumption Data'!K119:L119="B",'6. Class A Consumption Data'!E119:F119)) -> 0 | H129: 0 | I129: 0 | J129: 0
B130: Customer 92 | D130: 0 | E130: =SUM(IF('6. Class A Consumption Data'!K120:L120="B",'6. Class A Consumption Data'!E120:F120)) -> 0 | H130: 0 | I130: 0 | J130: 0
B131: Customer 93 | D131: 0 | E131: =SUM(IF('6. Class A Consumption Data'!K121:L121="B",'6. Class A Consumption Data'!E121:F121)) -> 0 | H131: 0 | I131: 0 | J131: 0
B132: Customer 94 | D132: 0 | E132: =SUM(IF('6. Class A Consumption Data'!K122:L122="B",'6. Class A Consumption Data'!E122:F122)) -> 0 | H132: 0 | I132: 0 | J132: 0
B133: Customer 95 | D133: 0 | E133: =SUM(IF('6. Class A Consumption Data'!K123:L123="B",'6. Class A Consumption Data'!E123:F123)) -> 0 | H133: 0 | I133: 0 | J133: 0
B134: Customer 96 | D134: 0 | E134: =SUM(IF('6. Class A Consumption Data'!K124:L124="B",'6. Class A Consumption Data'!E124:F124)) -> 0 | H134: 0 | I134: 0 | J134: 0
B135: Customer 97 | D135: =SUM(E135:G135) -> 0 | E135: =SUM(IF('6. Class A Consumption Data'!K125:L125="B",'6. Class A Consumption Data'!E125:F125)) -> 0 | H135: 0 | I135: 0 | J135: 0
B136: Customer 98 | D136: 0 | E136: =SUM(IF('6. Class A Consumption Data'!K126:L126="B",'6. Class A Consumption Data'!E126:F126)) -> 0 | H136: 0 | I136: 0 | J136: 0
B137: Customer 99 | D137: 0 | E137: =SUM(IF('6. Class A Consumption Data'!K127:L127="B",'6. Class A Consumption Data'!E127:F127)) -> 0 | H137: 0 | I137: 0 | J137: 0
B138: Customer 100 | D138: 0 | E138: =SUM(IF('6. Class A Consumption Data'!K128:L128="B",'6. Class A Consumption Data'!E128:F128)) -> 0 | H138: 0 | I138: 0 | J138: 0
B139: Customer 101 | D139: 0 | E139: =SUM(IF('6. Class A Consumption Data'!K129:L129="B",'6. Class A Consumption Data'!E129:F129)) -> 0 | H139: 0 | I139: 0 | J139: 0
B140: Customer 102 | D140: =SUM(E140:G140) -> 0 | E140: =SUM(IF('6. Class A Consumption Data'!K130:L130="B",'6. Class A Consumption Data'!E130:F130)) -> 0 | H140: 0 | I140: 0 | J140: 0
B141: Customer 103 | D141: 0 | E141: =SUM(IF('6. Class A Consumption Data'!K131:L131="B",'6. Class A Consumption Data'!E131:F131)) -> 0 | H141: 0 | I141: 0 | J141: 0
B142: Customer 104 | D142: 0 | E142: =SUM(IF('6. Class A Consumption Data'!K132:L132="B",'6. Class A Consumption Data'!E132:F132)) -> 0 | H142: 0 | I142: 0 | J142: 0
B143: Customer 105 | D143: 0 | E143: =SUM(IF('6. Class A Consumption Data'!K133:L133="B",'6. Class A Consumption Data'!E133:F133)) -> 0 | H143: 0 | I143: 0 | J143: 0
B144: Customer 106 | D144: 0 | E144: =SUM(IF('6. Class A Consumption Data'!K134:L134="B",'6. Class A Consumption Data'!E134:F134)) -> 0 | H144: 0 | I144: 0 | J144: 0
B145: Customer 107 | D145: 0 | E145: =SUM(IF('6. Class A Consumption Data'!K135:L135="B",'6. Class A Consumption Data'!E135:F135)) -> 0 | H145: 0 | I145: 0 | J145: 0
B146: Customer 108 | D146: 0 | E146: =SUM(IF('6. Class A Consumption Data'!K136:L136="B",'6. Class A Consumption Data'!E136:F136)) -> 0 | H146: 0 | I146: 0 | J146: 0
B147: Customer 109 | D147: 0 | E147: =SUM(IF('6. Class A Consumption Data'!K137:L137="B",'6. Class A Consumption Data'!E137:F137)) -> 0 | H147: 0 | I147: 0 | J147: 0
B148: Customer 110 | D148: 0 | E148: =SUM(IF('6. Class A Consumption Data'!K138:L138="B",'6. Class A Consumption Data'!E138:F138)) -> 0 | H148: 0 | I148: 0 | J148: 0
B149: Customer 111 | D149: 0 | E149: =SUM(IF('6. Class A Consumption Data'!K139:L139="B",'6. Class A Consumption Data'!E139:F139)) -> 0 | H149: 0 | I149: 0 | J149: 0
B150: Customer 112 | D150: 0 | E150: =SUM(IF('6. Class A Consumption Data'!K140:L140="B",'6. Class A Consumption Data'!E140:F140)) -> 0 | H150: 0 | I150: 0 | J150: 0
B151: Customer 113 | D151: 0 | E151: =SUM(IF('6. Class A Consumption Data'!K141:L141="B",'6. Class A Consumption Data'!E141:F141)) -> 0 | H151: 0 | I151: 0 | J151: 0
B152: Customer 114 | D152: 0 | E152: =SUM(IF('6. Class A Consumption Data'!K142:L142="B",'6. Class A Consumption Data'!E142:F142)) -> 0 | H152: 0 | I152: 0 | J152: 0
B153: Customer 115 | D153: 0 | E153: =SUM(IF('6. Class A Consumption Data'!K143:L143="B",'6. Class A Consumption Data'!E143:F143)) -> 0 | H153: 0 | I153: 0 | J153: 0
B154: Customer 116 | D154: 0 | E154: =SUM(IF('6. Class A Consumption Data'!K144:L144="B",'6. Class A Consumption Data'!E144:F144)) -> 0 | H154: 0 | I154: 0 | J154: 0
B155: Customer 117 | D155: 0 | E155: =SUM(IF('6. Class A Consumption Data'!K145:L145="B",'6. Class A Consumption Data'!E145:F145)) -> 0 | H155: 0 | I155: 0 | J155: 0
B156: Customer 118 | D156: 0 | E156: =SUM(IF('6. Class A Consumption Data'!K146:L146="B",'6. Class A Consumption Data'!E146:F146)) -> 0 | H156: 0 | I156: 0 | J156: 0
B157: Customer 119 | D157: 0 | E157: =SUM(IF('6. Class A Consumption Data'!K147:L147="B",'6. Class A Consumption Data'!E147:F147)) -> 0 | H157: 0 | I157: 0 | J157: 0
B158: Customer 120 | D158: 0 | E158: =SUM(IF('6. Class A Consumption Data'!K148:L148="B",'6. Class A Consumption Data'!E148:F148)) -> 0 | H158: 0 | I158: 0 | J158: 0
B159: Customer 121 | D159: 0 | E159: =SUM(IF('6. Class A Consumption Data'!K149:L149="B",'6. Class A Consumption Data'!E149:F149)) -> 0 | H159: 0 | I159: 0 | J159: 0
B160: Customer 122 | D160: 0 | E160: =SUM(IF('6. Class A Consumption Data'!K150:L150="B",'6. Class A Consumption Data'!E150:F150)) -> 0 | H160: 0 | I160: 0 | J160: 0
B161: Customer 123 | D161: 0 | E161: =SUM(IF('6. Class A Consumption Data'!K151:L151="B",'6. Class A Consumption Data'!E151:F151)) -> 0 | H161: 0 | I161: 0 | J161: 0
B162: Customer 124 | D162: 0 | E162: =SUM(IF('6. Class A Consumption Data'!K152:L152="B",'6. Class A Consumption Data'!E152:F152)) -> 0 | H162: 0 | I162: 0 | J162: 0
B163: Customer 125 | D163: 0 | E163: =SUM(IF('6. Class A Consumption Data'!K153:L153="B",'6. Class A Consumption Data'!E153:F153)) -> 0 | H163: 0 | I163: 0 | J163: 0
B164: Customer 126 | D164: 0 | E164: =SUM(IF('6. Class A Consumption Data'!K154:L154="B",'6. Class A Consumption Data'!E154:F154)) -> 0 | H164: 0 | I164: 0 | J164: 0
B165: Customer 127 | D165: 0 | E165: =SUM(IF('6. Class A Consumption Data'!K155:L155="B",'6. Class A Consumption Data'!E155:F155)) -> 0 | H165: 0 | I165: 0 | J165: 0
B166: Customer 128 | D166: 0 | E166: =SUM(IF('6. Class A Consumption Data'!K156:L156="B",'6. Class A Consumption Data'!E156:F156)) -> 0 | H166: 0 | I166: 0 | J166: 0
B167: Customer 129 | D167: 0 | E167: =SUM(IF('6. Class A Consumption Data'!K157:L157="B",'6. Class A Consumption Data'!E157:F157)) -> 0 | H167: 0 | I167: 0 | J167: 0
B168: Customer 130 | D168: 0 | E168: =SUM(IF('6. Class A Consumption Data'!K158:L158="B",'6. Class A Consumption Data'!E158:F158)) -> 0 | H168: =IFERROR(+D168/$D$189,0) -> 0 | I168: =H168*$D$26 -> 0 | J168: =ROUND(IF(ISERROR(I168),0,IF(OR(ISBLANK($D$34), OR($D$34=0, $D$34="")), I168/($D$32), I168/($D$34))),2) -> 0
B169: Customer 131 | D169: 0 | E169: =SUM(IF('6. Class A Consumption Data'!K159:L159="B",'6. Class A Consumption Data'!E159:F159)) -> 0 | H169: 0 | I169: 0 | J169: 0
B170: Customer 132 | D170: 0 | E170: =SUM(IF('6. Class A Consumption Data'!K160:L160="B",'6. Class A Consumption Data'!E160:F160)) -> 0 | H170: 0 | I170: 0 | J170: 0
B171: Customer 133 | D171: 0 | E171: =SUM(IF('6. Class A Consumption Data'!K161:L161="B",'6. Class A Consumption Data'!E161:F161)) -> 0 | H171: 0 | I171: 0 | J171: 0
B172: Customer 134 | D172: 0 | E172: =SUM(IF('6. Class A Consumption Data'!K162:L162="B",'6. Class A Consumption Data'!E162:F162)) -> 0 | H172: 0 | I172: 0 | J172: 0
B173: Customer 135 | D173: 0 | E173: =SUM(IF('6. Class A Consumption Data'!K163:L163="B",'6. Class A Consumption Data'!E163:F163)) -> 0 | H173: 0 | I173: 0 | J173: 0
B174: Customer 136 | D174: 0 | E174: =SUM(IF('6. Class A Consumption Data'!K164:L164="B",'6. Class A Consumption Data'!E164:F164)) -> 0 | H174: 0 | I174: 0 | J174: 0
B175: Customer 137 | D175: 0 | E175: =SUM(IF('6. Class A Consumption Data'!K165:L165="B",'6. Class A Consumption Data'!E165:F165)) -> 0 | H175: 0 | I175: 0 | J175: 0
B176: Customer 138 | D176: 0 | E176: =SUM(IF('6. Class A Consumption Data'!K166:L166="B",'6. Class A Consumption Data'!E166:F166)) -> 0 | H176: 0 | I176: 0 | J176: 0
B177: Customer 139 | D177: 0 | E177: =SUM(IF('6. Class A Consumption Data'!K167:L167="B",'6. Class A Consumption Data'!E167:F167)) -> 0 | H177: 0 | I177: 0 | J177: 0
B178: Customer 140 | D178: 0 | E178: =SUM(IF('6. Class A Consumption Data'!K168:L168="B",'6. Class A Consumption Data'!E168:F168)) -> 0 | H178: 0 | I178: 0 | J178: 0
B179: Customer 141 | D179: 0 | E179: =SUM(IF('6. Class A Consumption Data'!K169:L169="B",'6. Class A Consumption Data'!E169:F169)) -> 0 | H179: 0 | I179: 0 | J179: 0
B180: Customer 142 | D180: 0 | E180: =SUM(IF('6. Class A Consumption Data'!K170:L170="B",'6. Class A Consumption Data'!E170:F170)) -> 0 | H180: 0 | I180: 0 | J180: 0
B181: Customer 143 | D181: 0 | E181: =SUM(IF('6. Class A Consumption Data'!K171:L171="B",'6. Class A Consumption Data'!E171:F171)) -> 0 | H181: 0 | I181: 0 | J181: 0
B182: Customer 144 | D182: 0 | E182: =SUM(IF('6. Class A Consumption Data'!K172:L172="B",'6. Class A Consumption Data'!E172:F172)) -> 0 | H182: 0 | I182: 0 | J182: 0
B183: Customer 145 | D183: 0 | E183: =SUM(IF('6. Class A Consumption Data'!K173:L173="B",'6. Class A Consumption Data'!E173:F173)) -> 0 | H183: 0 | I183: 0 | J183: 0
B184: Customer 146 | D184: 0 | E184: =SUM(IF('6. Class A Consumption Data'!K174:L174="B",'6. Class A Consumption Data'!E174:F174)) -> 0 | H184: 0 | I184: 0 | J184: 0
B185: Customer 147 | D185: 0 | E185: =SUM(IF('6. Class A Consumption Data'!K175:L175="B",'6. Class A Consumption Data'!E175:F175)) -> 0 | H185: 0 | I185: 0 | J185: 0
B186: Customer 148 | D186: 0 | E186: =SUM(IF('6. Class A Consumption Data'!K176:L176="B",'6. Class A Consumption Data'!E176:F176)) -> 0 | H186: 0 | I186: 0 | J186: 0
B187: Customer 149 | D187: 0 | E187: =SUM(IF('6. Class A Consumption Data'!K177:L177="B",'6. Class A Consumption Data'!E177:F177)) -> 0 | H187: 0 | I187: 0 | J187: 0
B188: Customer 150 | D188: 0 | E188: =SUM(IF('6. Class A Consumption Data'!K178:L178="B",'6. Class A Consumption Data'!E178:F178)) -> 0 | H188: 0 | I188: 0 | J188: 0
B189: Total for all Customers | D189: =SUM(D39:D188) -> 59005321.72 | E189: =SUM(E39:E188) -> 59005321.72 | F189: 0 | G189: 0 | H189: =SUM(H39:H188) -> 1 | I189: =SUM(I39:I188) -> -193786.8559

Sheet 6.1 GA
A1: Back to Index
B2: =+'1. Information Sheet'!B2 -> INCENTIVE REGULATION MODEL FOR 2020 FILERS
K6: Default Rate Rider Recovery Period (in months) | M6: 12
K8: Proposed Rate Rider Recovery Period (in months) | M8: 12 | N8: =IF(M8>0, "Rate Rider Recovery to be used below", "If no rate rider recovery period is proposed then the default recovery period of 12 months will be used") -> Rate Rider Recovery to be used below
B12: The purpose of this tab is to calculate the GA rate riders for all current Class B customers who did not transition between Class A and B in the period since the Account 1589 GA was last disposed. Calculations in this tab will be modified upon completion of tab 6.1a, which allocates a portion of the GA balance to transition customers, if applicable. Effective January 2017, the billing determinant and all rate riders for the disposition of GA balances will be calculated on an energy basis (kWhs) regardless of the billing determinant used for distribution rates for the particular class (see Chapter 3, Filing Requirements, section 3.2.5.2)
C14: Total Metered Non-RPP 2018 Consumption excluding WMP | E14: Total Metered 2018 Consumption for Class A Customers that were Class A for the entire period GA blance accumulated | G14: Total Metered 2018 Consumption for Customers that Transitioned Between Class A and B during the period GA balance accumulated | I14: Non-RPP Metered Consumption for Current Class B Customers (Non-RPP Consumption excluding WMP, Class A and Transition Customers' Consumption) | K14: % of total kWh | L14: Total GA $ allocated to Current Class B Customers | M14: GA Rate Rider | O14: Revenue Reconciliation | P14: Variance
C15: kWh | D15: kW | E15: kWh | F15: kW | G15: kWh | H15: kW | I15: kWh | J15: kW
B17: ='4. Billing Det. for Def-Var'!B17 -> RESIDENTIAL SERVICE CLASSIFICATION | C17: ='4. Billing Det. for Def-Var'!F17 -> 56706021 | D17: ='4. Billing Det. for Def-Var'!G17 -> 0 | E17: =SUM(IF('6. Class A Consumption Data'!$D$191:$D$340=$B17,'6. Class A Consumption Data'!E$191:E$340)) -> 0 | G17: =SUM(IF('6. Class A Consumption Data'!$D$29:$D$178=$B17,'6. Class A Consumption Data'!E$29:F$178)) -> 0 | I17: =ROUND(C17-E17-G17,0) -> 56706021 | K17: =IFERROR(I17/I$29,"") -> 0.04414564366 | L17: =IFERROR(L$29*K17,"") -> -186235.431 | M17: =IF('4. Billing Det. for Def-Var'!$D$37="no",0,ROUND(IF(ISERROR(L17/I17),0,IF(OR(ISBLANK($M$8),OR($M$8=0,$M$8="")),L17/I17/($M$6/12),L17/I17/($M$8/12))),4)) -> 0 | N17: kwh | O17: =ROUND(M17,4)*I17 -> 0 | P17: =L17-O17 -> -186235.431
B18: ='4. Billing Det. for Def-Var'!B18 -> GENERAL SERVICE LESS THAN 50 kW SERVICE CLASSIFICATION | C18: ='4. Billing Det. for Def-Var'!F18 -> 95296029 | D18: ='4. Billing Det. for Def-Var'!G18 -> 0 | E18: =SUM(IF('6. Class A Consumption Data'!$D$191:$D$340=$B18,'6. Class A Consumption Data'!E$191:E$340)) -> 0 | G18: =SUM(IF('6. Class A Consumption Data'!$D$29:$D$178=$B18,'6. Class A Consumption Data'!E$29:F$178)) -> 0 | I18: =ROUND(C18-E18-G18,0) -> 95296029 | K18: =IFERROR(I18/I$29,"") -> 0.07418796919 | L18: =IFERROR(L$29*K18,"") -> -312973.7675 | M18: =IF('4. Billing Det. for Def-Var'!$D$37="no",0,ROUND(IF(ISERROR(L18/I18),0,IF(OR(ISBLANK($M$8),OR($M$8=0,$M$8="")),L18/I18/($M$6/12),L18/I18/($M$8/12))),4)) -> 0 | N18: kwh | O18: =ROUND(M18,4)*I18 -> 0 | P18: =L18-O18 -> -312973.7675
B19: ='4. Billing Det. for Def-Var'!B19 -> GENERAL SERVICE 50 to 4,999 kW SERVICE CLASSIFICATION | C19: ='4. Billing Det. for Def-Var'!F19 -> 1638077798 | D19: ='4. Billing Det. for Def-Var'!G19 -> 3948743.322 | E19: =SUM(IF('6. Class A Consumption Data'!$D$191:$D$340=$B19,'6. Class A Consumption Data'!E$191:E$340)) -> 407661461.8 | G19: =SUM(IF('6. Class A Consumption Data'!$D$29:$D$178=$B19,'6. Class A Consumption Data'!E$29:F$178)) -> 117287656.9 | I19: 1113128679 | K19: 0.8665708006 | L19: =IFERROR(L$29*K19,"") -> -3655766.983 | M19: =IF('4. Billing Det. for Def-Var'!$D$37="no",0,ROUND(IF(ISERROR(L19/I19),0,IF(OR(ISBLANK($M$8),OR($M$8=0,$M$8="")),L19/I19/($M$6/12),L19/I19/($M$8/12))),4)) -> 0 | N19: kwh | O19: 0 | P19: -3655766.983
B20: ='4. Billing Det. for Def-Var'!B20 -> LARGE USE SERVICE CLASSIFICATION | C20: ='4. Billing Det. for Def-Var'!F20 -> 187410800.8 | D20: ='4. Billing Det. for Def-Var'!G20 -> 339709.562 | E20: =SUM(IF('6. Class A Consumption Data'!$D$191:$D$340=$B20,'6. Class A Consumption Data'!E$191:E$340)) -> 187410800.9 | G20: =SUM(IF('6. Class A Consumption Data'!$D$29:$D$178=$B20,'6. Class A Consumption Data'!E$29:F$178)) -> 0 | I20: 0 | K20: 0 | L20: =IFERROR(L$29*K20,"") -> 0 | M20: =IF('4. Billing Det. for Def-Var'!$D$37="no",0,ROUND(IF(ISERROR(L20/I20),0,IF(OR(ISBLANK($M$8),OR($M$8=0,$M$8="")),L20/I20/($M$6/12),L20/I20/($M$8/12))),4)) -> 0 | N20: kwh | O20: 0 | P20: 0
B21: ='4. Billing Det. for Def-Var'!B21 -> LARGE USE SERVICE WITH DEDICATED ASSETS CLASSIFICATION | C21: ='4. Billing Det. for Def-Var'!F21 -> 338136686.7 | D21: ='4. Billing Det. for Def-Var'!G21 -> 775690.0362 | E21: =SUM(IF('6. Class A Consumption Data'!$D$191:$D$340=$B21,'6. Class A Consumption Data'!E$191:E$340)) -> 338136686.4 | G21: =SUM(IF('6. Class A Consumption Data'!$D$29:$D$178=$B21,'6. Class A Consumption Data'!E$29:F$178)) -> 0 | I21: 0 | K21: =IFERROR(I21/I$29,"") -> 0 | L21: 0 | M21: =IF('4. Billing Det. for Def-Var'!$D$37="no",0,ROUND(IF(ISERROR(L21/I21),0,IF(OR(ISBLANK($M$8),OR($M$8=0,$M$8="")),L21/I21/($M$6/12),L21/I21/($M$8/12))),4)) -> 0 | N21: kwh | O21: 0 | P21: 0
B22: ='4. Billing Det. for Def-Var'!B22 -> UNMETERED SCATTERED LOAD SERVICE CLASSIFICATION | C22: ='4. Billing Det. for Def-Var'!F22 -> 809279 | D22: ='4. Billing Det. for Def-Var'!G22 -> 0 | E22: =SUM(IF('6. Class A Consumption Data'!$D$191:$D$340=$B22,'6. Class A Consumption Data'!E$191:E$340)) -> 0 | G22: =SUM(IF('6. Class A Consumption Data'!$D$29:$D$178=$B22,'6. Class A Consumption Data'!E$29:F$178)) -> 0 | I22: 809279 | K22: 0.0006300237916 | L22: -2657.855739 | M22: =IF('4. Billing Det. for Def-Var'!$D$37="no",0,ROUND(IF(ISERROR(L22/I22),0,IF(OR(ISBLANK($M$8),OR($M$8=0,$M$8="")),L22/I22/($M$6/12),L22/I22/($M$8/12))),4)) -> 0 | N22: kwh | O22: 0 | P22: -2657.855739
B23: ='4. Billing Det. for Def-Var'!B23 -> SENTINEL LIGHTING SERVICE CLASSIFICATION | C23: ='4. Billing Det. for Def-Var'!F23 -> 4291 | D23: ='4. Billing Det. for Def-Var'!G23 -> 19.66 | E23: =SUM(IF('6. Class A Consumption Data'!$D$191:$D$340=$B23,'6. Class A Consumption Data'!E$191:E$340)) -> 0 | G23: =SUM(IF('6. Class A Consumption Data'!$D$29:$D$178=$B23,'6. Class A Consumption Data'!E$29:F$178)) -> 0 | I23: 4291 | K23: 3.340543978e-06 | L23: -14.09261698 | M23: =IF('4. Billing Det. for Def-Var'!$D$37="no",0,ROUND(IF(ISERROR(L23/I23),0,IF(OR(ISBLANK($M$8),OR($M$8=0,$M$8="")),L23/I23/($M$6/12),L23/I23/($M$8/12))),4)) -> 0 | N23: kwh | O23: 0 | P23: -14.09261698
B24: ='4. Billing Det. for Def-Var'!B24 -> STREET LIGHTING SERVICE CLASSIFICATION | C24: ='4. Billing Det. for Def-Var'!F24 -> 18577032.58 | D24: ='4. Billing Det. for Def-Var'!G24 -> 58133.425 | E24: =SUM(IF('6. Class A Consumption Data'!$D$191:$D$340=$B24,'6. Class A Consumption Data'!E$191:E$340)) -> 0 | G24: =SUM(IF('6. Class A Consumption Data'!$D$29:$D$178=$B24,'6. Class A Consumption Data'!E$29:F$178)) -> 0 | I24: 18577033 | K24: 0.01446222226 | L24: -61011.1887 | M24: =IF('4. Billing Det. for Def-Var'!$D$37="no",0,ROUND(IF(ISERROR(L24/I24),0,IF(OR(ISBLANK($M$8),OR($M$8=0,$M$8="")),L24/I24/($M$6/12),L24/I24/($M$8/12))),4)) -> 0 | N24: kwh | O24: 0 | P24: -61011.1887
B25: ='4. Billing Det. for Def-Var'!B25 -> STANDBY POWER SERVICE CLASSIFICATION | M25: =IF('4. Billing Det. for Def-Var'!$D$37="no",0,ROUND(IF(ISERROR(L25/I25),0,IF(OR(ISBLANK($M$8),OR($M$8=0,$M$8="")),L25/I25/($M$6/12),L25/I25/($M$8/12))),4)) -> 0
C29: =SUM(C17:C28) -> 2335017938 | D29: =SUM(D17:D28) -> 5122296.005 | E29: 933208949.1 | F29: 0 | G29: 117287656.9 | H29: 0 | I29: 1284521332 | J29: 0 | K29: 1 | L29: ='6.1a GA Allocation'!D27 -> -4218659.318 | O29: =SUM(O17:O28) -> 0 | P29: =SUM(P17:P28) -> -4218659.318
L30: from Sheet 6.1a
O31: NOTE: if rate rider is at 5 decimal places, then the balance dispostion is in full

Sheet 6.2a CBR B_Allocation
A1: Back to Index
B2: =+'1. Information Sheet'!B2 -> INCENTIVE REGULATION MODEL FOR 2020 FILERS
B11: This tab allocates the CBR Class B balance to transition customers (i.e Class A customers who were former Class B customers and Class B customers who were former Class A customers) who contributed to the current CBR Class B balance. The tables below calculate specific amounts for each customer who made the change. The general CBR Class B rate rider is not to be charged to the transition customers that are allocated amounts in the table below. Consistent with prior decisions, distributors are generally expected to settle the amount through 12 equal adjustments to bills.
B14: Please enter the Year the Account 1580 CBR Class B was Last Disposed. | C14: 2017 | D14: (Note: Account 1580, Sub-account CBR Class B was established starting in 2015)
B16: Allocation of totalConsumption (kWh) between Current Class B and Class A/B Transition Customers
D17: Total | E17: =C14+1 -> 2018 | F17: =E17-1 -> 2017 | G17: =F17-1 -> 2016
B18: Total Class B Consumption for Years During Balance Accumulation (Total Consumption LESS WMP Consumption and Consumption for Class A customers who were Class A for partial or full year) | C18: A | D18: =SUM(E18:G18) -> 3630493467 | E18: =N25 -> 3630493467 | H18: from Cell N25
B19: Transition Customers' Class B Consumption (i.e. full year or partial year) | C19: B | D19: =SUM(E19:G19) -> 59005321.72 | E19: =E183 -> 59005321.72 | F19: =F183 -> 0 | G19: 0
B20: Transition Customers' Portion of Total Consumption | C20: C=B/A | D20: =IFERROR(+D19/D18,0) -> 0.01625270015
L21: Sheet 4 | M21: total kWh | N21: ='4. Billing Det. for Def-Var'!D29 -> 5411304515
L22: Sheet 4 | M22: WMP kWh | N22: ='4. Billing Det. for Def-Var'!H29 -> 789319763.3
B23: Allocation of Total CBR Class B Balance $ | L23: Sheet 6.1 | M23: Class A (full) | N23: ='6.1 GA'!E29 -> 933208949.1
L24: Sheet 6.1 | M24: Class A (partial) | N24: =SUM(IF('6. Class A Consumption Data'!$K$29:$L$45="a",'6. Class A Consumption Data'!$E$29:$F$45)) -> 58282335.14
B25: Total CBR Class B Balance | C25: D | D25: ='3. Continuity Schedule'!BU25 -> -94963.85887 | H25: =IF('6.2 CBR B'!U18="TRUE","NO MONTHLY EQUAL PAYMENTS. The entire OEB-approved CBR Class B amount is transferred into Account 1580 WMS control account to be disposed through the general purpose Group 1 DVA rate riders.","") -> NO MONTHLY EQUAL PAYMENTS. The entire OEB-approved CBR Class B amount is transferred into Account 1580 WMS control account to be disposed through the general purpose Group 1 DVA rate riders. | N25: =N21-N22-N23-N24 -> 3630493467
B26: Transition Customers Portion of CBR Class B Balance | C26: E=D*C | D26: =+D20*D25 -> -1543.419123
B27: CBR Class B Balance to be disposed to Current Class B Customers through Rate Rider | C27: F=D-E | D27: =+D25-D26 -> -93420.43975
B29: Allocation of CBR Class B Balances to Transition Customers
B31: # of Class A/B Transition Customers | C31: ='6. Class A Consumption Data'!C23 -> 17
B32: Customer | D32: Total Metered Consumption (kWh) for Transition Customers During the Period WhenThey Were Class B Customers | E32: Metered Consumption (kWh) for Transition Customers During the Period When They Were Class B Customers in 2018 | F32: Metered Consumption (kWh) for Transition Customers During the Period When They Were Class B Customers in 2017 | G32: Metered Consumption (kWh) for Transition Customers During the Period When They Were Class B Customers in 2016 | H32: % of kWh | I32: Customer Specific CBR Class B Allocation for the Period When They Were a Class B Customer | J32: Monthly Equal Payments
B33: Customer 1 | D33: =SUM(E33:G33) -> 1380659.28 | E33: =SUM(IF('6. Class A Consumption Data'!K29:L29="B",'6. Class A Consumption Data'!E29:F29)) -> 1380659.28 | H33: =IFERROR(+D33/$D$183,0) -> 0.0233988942 | I33: =IF('6.2 CBR B'!U$18="TRUE","",+H33*$D$26) ->  | J33: =IF('6.2 CBR B'!U$18="TRUE","",+I33/12) -> 
B34: Customer 2 | D34: 1453697.77 | E34: =SUM(IF('6. Class A Consumption Data'!K30:L30="B",'6. Class A Consumption Data'!E30:F30)) -> 1453697.77 | H34: =IFERROR(+D34/$D$183,0) -> 0.02463672306 | I34: =IF('6.2 CBR B'!U$18="TRUE","",+H34*$D$26) ->  | J34: =IF('6.2 CBR B'!U$18="TRUE","",+I34/12) -> 
B35: Customer 3 | D35: 10583215.92 | E35: =SUM(IF('6. Class A Consumption Data'!K31:L31="B",'6. Class A Consumption Data'!E31:F31)) -> 10583215.92 | H35: 0.179360363 | I35: =IF('6.2 CBR B'!U$18="TRUE","",+H35*$D$26) ->  | J35: =IF('6.2 CBR B'!U$18="TRUE","",+I35/12) -> 
B36: Customer 4 | D36: 1953784.44 | E36: =SUM(IF('6. Class A Consumption Data'!K32:L32="B",'6. Class A Consumption Data'!E32:F32)) -> 1953784.44 | H36: 0.03311200385 | I36: =IF('6.2 CBR B'!U$18="TRUE","",+H36*$D$26) ->  | J36: =IF('6.2 CBR B'!U$18="TRUE","",+I36/12) -> 
B37: Customer 5 | D37: 7288138.41 | E37: =SUM(IF('6. Class A Consumption Data'!K33:L33="B",'6. Class A Consumption Data'!E33:F33)) -> 7288138.41 | H37: 0.1235166286 | I37: =IF('6.2 CBR B'!U$18="TRUE","",+H37*$D$26) ->  | J37: =IF('6.2 CBR B'!U$18="TRUE","",+I37/12) -> 
B38: Customer 6 | D38: 5005009.24 | E38: =SUM(IF('6. Class A Consumption Data'!K34:L34="B",'6. Class A Consumption Data'!E34:F34)) -> 5005009.24 | H38: 0.08482301417 | I38: =IF('6.2 CBR B'!U$18="TRUE","",+H38*$D$26) ->  | J38: =IF('6.2 CBR B'!U$18="TRUE","",+I38/12) -> 
B39: Customer 7 | D39: 5659016.46 | E39: =SUM(IF('6. Class A Consumption Data'!K35:L35="B",'6. Class A Consumption Data'!E35:F35)) -> 5659016.46 | H39: 0.09590688255 | I39: =IF('6.2 CBR B'!U$18="TRUE","",+H39*$D$26) ->  | J39: =IF('6.2 CBR B'!U$18="TRUE","",+I39/12) -> 
B40: Customer 8 | D40: 2419252.245 | E40: =SUM(IF('6. Class A Consumption Data'!K36:L36="B",'6. Class A Consumption Data'!E36:F36)) -> 2419252.245 | H40: 0.04100057714 | I40: =IF('6.2 CBR B'!U$18="TRUE","",+H40*$D$26) ->  | J40: =IF('6.2 CBR B'!U$18="TRUE","",+I40/12) -> 
B41: Customer 9 | D41: 3730224.5 | E41: =SUM(IF('6. Class A Consumption Data'!K37:L37="B",'6. Class A Consumption Data'!E37:F37)) -> 3730224.5 | H41: 0.06321844185 | I41: =IF('6.2 CBR B'!U$18="TRUE","",+H41*$D$26) ->  | J41: =IF('6.2 CBR B'!U$18="TRUE","",+I41/12) -> 
B42: Customer 10 | D42: 2866945.89 | E42: =SUM(IF('6. Class A Consumption Data'!K38:L38="B",'6. Class A Consumption Data'!E38:F38)) -> 2866945.89 | H42: 0.04858792066 | I42: =IF('6.2 CBR B'!U$18="TRUE","",+H42*$D$26) ->  | J42: =IF('6.2 CBR B'!U$18="TRUE","",+I42/12) -> 
B43: Customer 11 | D43: 1492213.104 | E43: =SUM(IF('6. Class A Consumption Data'!K39:L39="B",'6. Class A Consumption Data'!E39:F39)) -> 1492213.104 | H43: 0.02528946645 | I43: =IF('6.2 CBR B'!U$18="TRUE","",+H43*$D$26) ->  | J43: =IF('6.2 CBR B'!U$18="TRUE","",+I43/12) -> 
B44: Customer 12 | D44: 775207.77 | E44: =SUM(IF('6. Class A Consumption Data'!K40:L40="B",'6. Class A Consumption Data'!E40:F40)) -> 775207.77 | H44: 0.01313792972 | I44: =IF('6.2 CBR B'!U$18="TRUE","",+H44*$D$26) ->  | J44: =IF('6.2 CBR B'!U$18="TRUE","",+I44/12) -> 
B45: Customer 13 | D45: 635165.93 | E45: =SUM(IF('6. Class A Consumption Data'!K41:L41="B",'6. Class A Consumption Data'!E41:F41)) -> 635165.93 | H45: 0.01076455329 | I45: =IF('6.2 CBR B'!U$18="TRUE","",+H45*$D$26) ->  | J45: =IF('6.2 CBR B'!U$18="TRUE","",+I45/12) -> 
B46: Customer 14 | D46: 3497451.72 | E46: =SUM(IF('6. Class A Consumption Data'!K42:L42="B",'6. Class A Consumption Data'!E42:F42)) -> 3497451.72 | H46: 0.05927349632 | I46: =IF('6.2 CBR B'!U$18="TRUE","",+H46*$D$26) ->  | J46: =IF('6.2 CBR B'!U$18="TRUE","",+I46/12) -> 
B47: Customer 15 | D47: 4839686.4 | E47: =SUM(IF('6. Class A Consumption Data'!K43:L43="B",'6. Class A Consumption Data'!E43:F43)) -> 4839686.4 | H47: 0.08202118485 | I47: =IF('6.2 CBR B'!U$18="TRUE","",+H47*$D$26) ->  | J47: =IF('6.2 CBR B'!U$18="TRUE","",+I47/12) -> 
B48: Customer 16 | D48: 171352.44 | E48: =SUM(IF('6. Class A Consumption Data'!K44:L44="B",'6. Class A Consumption Data'!E44:F44)) -> 171352.44 | H48: 0.002904016706 | I48: =IF('6.2 CBR B'!U$18="TRUE","",+H48*$D$26) ->  | J48: =IF('6.2 CBR B'!U$18="TRUE","",+I48/12) -> 
B49: Customer 17 | D49: 5254300.2 | E49: =SUM(IF('6. Class A Consumption Data'!K45:L45="B",'6. Class A Consumption Data'!E45:F45)) -> 5254300.2 | H49: 0.08904790359 | I49: =IF('6.2 CBR B'!U$18="TRUE","",+H49*$D$26) ->  | J49: =IF('6.2 CBR B'!U$18="TRUE","",+I49/12) -> 
B50: Customer 18 | D50: 0 | E50: =SUM(IF('6. Class A Consumption Data'!K46:L46="B",'6. Class A Consumption Data'!E46:F46)) -> 0 | H50: 0 | I50: =IF('6.2 CBR B'!U$18="TRUE","",+H50*$D$26) ->  | J50: =IF('6.2 CBR B'!U$18="TRUE","",+I50/12) -> 
B51: Customer 19 | D51: 0 | E51: =SUM(IF('6. Class A Consumption Data'!K47:L47="B",'6. Class A Consumption Data'!E47:F47)) -> 0 | H51: 0 | I51: =IF('6.2 CBR B'!U$18="TRUE","",+H51*$D$26) ->  | J51: =IF('6.2 CBR B'!U$18="TRUE","",+I51/12) -> 
B52: Customer 20 | D52: 0 | E52: =SUM(IF('6. Class A Consumption Data'!K48:L48="B",'6. Class A Consumption Data'!E48:F48)) -> 0 | H52: 0 | I52: =IF('6.2 CBR B'!U$18="TRUE","",+H52*$D$26) ->  | J52: =IF('6.2 CBR B'!U$18="TRUE","",+I52/12) -> 
B53: Customer 21 | D53: 0 | E53: =SUM(IF('6. Class A Consumption Data'!K49:L49="B",'6. Class A Consumption Data'!E49:F49)) -> 0 | H53: 0 | I53: =IF('6.2 CBR B'!U$18="TRUE","",+H53*$D$26) ->  | J53: =IF('6.2 CBR B'!U$18="TRUE","",+I53/12) -> 
B54: Customer 22 | D54: 0 | E54: =SUM(IF('6. Class A Consumption Data'!K50:L50="B",'6. Class A Consumption Data'!E50:F50)) -> 0 | H54: 0 | I54: =IF('6.2 CBR B'!U$18="TRUE","",+H54*$D$26) ->  | J54: =IF('6.2 CBR B'!U$18="TRUE","",+I54/12) -> 
B55: Customer 23 | D55: 0 | E55: =SUM(IF('6. Class A Consumption Data'!K51:L51="B",'6. Class A Consumption Data'!E51:F51)) -> 0 | H55: 0 | I55: =IF('6.2 CBR B'!U$18="TRUE","",+H55*$D$26) ->  | J55: =IF('6.2 CBR B'!U$18="TRUE","",+I55/12) -> 
B56: Customer 24 | D56: 0 | E56: =SUM(IF('6. Class A Consumption Data'!K52:L52="B",'6. Class A Consumption Data'!E52:F52)) -> 0 | H56: 0 | I56: =IF('6.2 CBR B'!U$18="TRUE","",+H56*$D$26) ->  | J56: =IF('6.2 CBR B'!U$18="TRUE","",+I56/12) -> 
B57: Customer 25 | D57: 0 | E57: =SUM(IF('6. Class A Consumption Data'!K53:L53="B",'6. Class A Consumption Data'!E53:F53)) -> 0 | H57: 0 | I57: =IF('6.2 CBR B'!U$18="TRUE","",+H57*$D$26) ->  | J57: =IF('6.2 CBR B'!U$18="TRUE","",+I57/12) -> 
B58: Customer 26 | D58: 0 | E58: =SUM(IF('6. Class A Consumption Data'!K54:L54="B",'6. Class A Consumption Data'!E54:F54)) -> 0 | H58: 0 | I58: =IF('6.2 CBR B'!U$18="TRUE","",+H58*$D$26) ->  | J58: =IF('6.2 CBR B'!U$18="TRUE","",+I58/12) -> 
B59: Customer 27 | D59: 0 | E59: =SUM(IF('6. Class A Consumption Data'!K55:L55="B",'6. Class A Consumption Data'!E55:F55)) -> 0 | H59: 0 | I59: =IF('6.2 CBR B'!U$18="TRUE","",+H59*$D$26) ->  | J59: =IF('6.2 CBR B'!U$18="TRUE","",+I59/12) -> 
B60: Customer 28 | D60: 0 | E60: =SUM(IF('6. Class A Consumption Data'!K56:L56="B",'6. Class A Consumption Data'!E56:F56)) -> 0 | H60: 0 | I60: =IF('6.2 CBR B'!U$18="TRUE","",+H60*$D$26) ->  | J60: =IF('6.2 CBR B'!U$18="TRUE","",+I60/12) -> 
B61: Customer 29 | D61: 0 | E61: =SUM(IF('6. Class A Consumption Data'!K57:L57="B",'6. Class A Consumption Data'!E57:F57)) -> 0 | H61: 0 | I61: =IF('6.2 CBR B'!U$18="TRUE","",+H61*$D$26) ->  | J61: =IF('6.2 CBR B'!U$18="TRUE","",+I61/12) -> 
B62: Customer 30 | D62: 0 | E62: =SUM(IF('6. Class A Consumption Data'!K58:L58="B",'6. Class A Consumption Data'!E58:F58)) -> 0 | H62: 0 | I62: =IF('6.2 CBR B'!U$18="TRUE","",+H62*$D$26) ->  | J62: =IF('6.2 CBR B'!U$18="TRUE","",+I62/12) -> 
B63: Customer 31 | D63: 0 | E63: =SUM(IF('6. Class A Consumption Data'!K59:L59="B",'6. Class A Consumption Data'!E59:F59)) -> 0 | H63: 0 | I63: =IF('6.2 CBR B'!U$18="TRUE","",+H63*$D$26) ->  | J63: =IF('6.2 CBR B'!U$18="TRUE","",+I63/12) -> 
B64: Customer 32 | D64: 0 | E64: =SUM(IF('6. Class A Consumption Data'!K60:L60="B",'6. Class A Consumption Data'!E60:F60)) -> 0 | H64: 0 | I64: =IF('6.2 CBR B'!U$18="TRUE","",+H64*$D$26) ->  | J64: =IF('6.2 CBR B'!U$18="TRUE","",+I64/12) -> 
B65: Customer 33 | D65: 0 | E65: =SUM(IF('6. Class A Consumption Data'!K61:L61="B",'6. Class A Consumption Data'!E61:F61)) -> 0 | H65: 0 | I65: =IF('6.2 CBR B'!U$18="TRUE","",+H65*$D$26) ->  | J65: =IF('6.2 CBR B'!U$18="TRUE","",+I65/12) -> 
B66: Customer 34 | D66: 0 | E66: =SUM(IF('6. Class A Consumption Data'!K62:L62="B",'6. Class A Consumption Data'!E62:F62)) -> 0 | H66: 0 | I66: =IF('6.2 CBR B'!U$18="TRUE","",+H66*$D$26) ->  | J66: =IF('6.2 CBR B'!U$18="TRUE","",+I66/12) -> 
B67: Customer 35 | D67: 0 | E67: =SUM(IF('6. Class A Consumption Data'!K63:L63="B",'6. Class A Consumption Data'!E63:F63)) -> 0 | H67: 0 | I67: =IF('6.2 CBR B'!U$18="TRUE","",+H67*$D$26) ->  | J67: =IF('6.2 CBR B'!U$18="TRUE","",+I67/12) -> 
B68: Customer 36 | D68: 0 | E68: =SUM(IF('6. Class A Consumption Data'!K64:L64="B",'6. Class A Consumption Data'!E64:F64)) -> 0 | H68: 0 | I68: =IF('6.2 CBR B'!U$18="TRUE","",+H68*$D$26) ->  | J68: =IF('6.2 CBR B'!U$18="TRUE","",+I68/12) -> 
B69: Customer 37 | D69: 0 | E69: =SUM(IF('6. Class A Consumption Data'!K65:L65="B",'6. Class A Consumption Data'!E65:F65)) -> 0 | H69: 0 | I69: =IF('6.2 CBR B'!U$18="TRUE","",+H69*$D$26) ->  | J69: =IF('6.2 CBR B'!U$18="TRUE","",+I69/12) -> 
B70: Customer 38 | D70: 0 | E70: =SUM(IF('6. Class A Consumption Data'!K66:L66="B",'6. Class A Consumption Data'!E66:F66)) -> 0 | H70: 0 | I70: =IF('6.2 CBR B'!U$18="TRUE","",+H70*$D$26) ->  | J70: =IF('6.2 CBR B'!U$18="TRUE","",+I70/12) -> 
B71: Customer 39 | D71: 0 | E71: =SUM(IF('6. Class A Consumption Data'!K67:L67="B",'6. Class A Consumption Data'!E67:F67)) -> 0 | H71: 0 | I71: =IF('6.2 CBR B'!U$18="TRUE","",+H71*$D$26) ->  | J71: =IF('6.2 CBR B'!U$18="TRUE","",+I71/12) -> 
B72: Customer 40 | D72: 0 | E72: =SUM(IF('6. Class A Consumption Data'!K68:L68="B",'6. Class A Consumption Data'!E68:F68)) -> 0 | H72: 0 | I72: =IF('6.2 CBR B'!U$18="TRUE","",+H72*$D$26) ->  | J72: =IF('6.2 CBR B'!U$18="TRUE","",+I72/12) -> 
B73: Customer 41 | D73: 0 | E73: =SUM(IF('6. Class A Consumption Data'!K69:L69="B",'6. Class A Consumption Data'!E69:F69)) -> 0 | H73: 0 | I73: =IF('6.2 CBR B'!U$18="TRUE","",+H73*$D$26) ->  | J73: =IF('6.2 CBR B'!U$18="TRUE","",+I73/12) -> 
B74: Customer 42 | D74: 0 | E74: =SUM(IF('6. Class A Consumption Data'!K70:L70="B",'6. Class A Consumption Data'!E70:F70)) -> 0 | H74: 0 | I74: =IF('6.2 CBR B'!U$18="TRUE","",+H74*$D$26) ->  | J74: =IF('6.2 CBR B'!U$18="TRUE","",+I74/12) -> 
B75: Customer 43 | D75: 0 | E75: =SUM(IF('6. Class A Consumption Data'!K71:L71="B",'6. Class A Consumption Data'!E71:F71)) -> 0 | H75: 0 | I75: =IF('6.2 CBR B'!U$18="TRUE","",+H75*$D$26) ->  | J75: =IF('6.2 CBR B'!U$18="TRUE","",+I75/12) -> 
B76: Customer 44 | D76: 0 | E76: =SUM(IF('6. Class A Consumption Data'!K72:L72="B",'6. Class A Consumption Data'!E72:F72)) -> 0 | H76: 0 | I76: =IF('6.2 CBR B'!U$18="TRUE","",+H76*$D$26) ->  | J76: =IF('6.2 CBR B'!U$18="TRUE","",+I76/12) -> 
B77: Customer 45 | D77: 0 | E77: =SUM(IF('6. Class A Consumption Data'!K73:L73="B",'6. Class A Consumption Data'!E73:F73)) -> 0 | H77: 0 | I77: =IF('6.2 CBR B'!U$18="TRUE","",+H77*$D$26) ->  | J77: =IF('6.2 CBR B'!U$18="TRUE","",+I77/12) -> 
B78: Customer 46 | D78: 0 | E78: =SUM(IF('6. Class A Consumption Data'!K74:L74="B",'6. Class A Consumption Data'!E74:F74)) -> 0 | H78: 0 | I78: =IF('6.2 CBR B'!U$18="TRUE","",+H78*$D$26) ->  | J78: =IF('6.2 CBR B'!U$18="TRUE","",+I78/12) -> 
B79: Customer 47 | D79: 0 | E79: =SUM(IF('6. Class A Consumption Data'!K75:L75="B",'6. Class A Consumption Data'!E75:F75)) -> 0 | H79: 0 | I79: =IF('6.2 CBR B'!U$18="TRUE","",+H79*$D$26) ->  | J79: =IF('6.2 CBR B'!U$18="TRUE","",+I79/12) -> 
B80: Customer 48 | D80: 0 | E80: =SUM(IF('6. Class A Consumption Data'!K76:L76="B",'6. Class A Consumption Data'!E76:F76)) -> 0 | H80: 0 | I80: =IF('6.2 CBR B'!U$18="TRUE","",+H80*$D$26) ->  | J80: =IF('6.2 CBR B'!U$18="TRUE","",+I80/12) -> 
B81: Customer 49 | D81: 0 | E81: =SUM(IF('6. Class A Consumption Data'!K77:L77="B",'6. Class A Consumption Data'!E77:F77)) -> 0 | H81: 0 | I81: =IF('6.2 CBR B'!U$18="TRUE","",+H81*$D$26) ->  | J81: =IF('6.2 CBR B'!U$18="TRUE","",+I81/12) -> 
B82: Customer 50 | D82: 0 | E82: =SUM(IF('6. Class A Consumption Data'!K78:L78="B",'6. Class A Consumption Data'!E78:F78)) -> 0 | H82: 0 | I82: =IF('6.2 CBR B'!U$18="TRUE","",+H82*$D$26) ->  | J82: =IF('6.2 CBR B'!U$18="TRUE","",+I82/12) -> 
B83: Customer 51 | D83: 0 | E83: =SUM(IF('6. Class A Consumption Data'!K79:L79="B",'6. Class A Consumption Data'!E79:F79)) -> 0 | H83: 0 | I83: =IF('6.2 CBR B'!U$18="TRUE","",+H83*$D$26) ->  | J83: =IF('6.2 CBR B'!U$18="TRUE","",+I83/12) -> 
B84: Customer 52 | D84: 0 | E84: =SUM(IF('6. Class A Consumption Data'!K80:L80="B",'6. Class A Consumption Data'!E80:F80)) -> 0 | H84: 0 | I84: =IF('6.2 CBR B'!U$18="TRUE","",+H84*$D$26) ->  | J84: =IF('6.2 CBR B'!U$18="TRUE","",+I84/12) -> 
B85: Customer 53 | D85: 0 | E85: =SUM(IF('6. Class A Consumption Data'!K81:L81="B",'6. Class A Consumption Data'!E81:F81)) -> 0 | H85: 0 | I85: =IF('6.2 CBR B'!U$18="TRUE","",+H85*$D$26) ->  | J85: =IF('6.2 CBR B'!U$18="TRUE","",+I85/12) -> 
B86: Customer 54 | D86: 0 | E86: =SUM(IF('6. Class A Consumption Data'!K82:L82="B",'6. Class A Consumption Data'!E82:F82)) -> 0 | H86: 0 | I86: =IF('6.2 CBR B'!U$18="TRUE","",+H86*$D$26) ->  | J86: =IF('6.2 CBR B'!U$18="TRUE","",+I86/12) -> 
B87: Customer 55 | D87: 0 | E87: =SUM(IF('6. Class A Consumption Data'!K83:L83="B",'6. Class A Consumption Data'!E83:F83)) -> 0 | H87: 0 | I87: =IF('6.2 CBR B'!U$18="TRUE","",+H87*$D$26) ->  | J87: =IF('6.2 CBR B'!U$18="TRUE","",+I87/12) -> 
B88: Customer 56 | D88: 0 | E88: =SUM(IF('6. Class A Consumption Data'!K84:L84="B",'6. Class A Consumption Data'!E84:F84)) -> 0 | H88: 0 | I88: =IF('6.2 CBR B'!U$18="TRUE","",+H88*$D$26) ->  | J88: =IF('6.2 CBR B'!U$18="TRUE","",+I88/12) -> 
B89: Customer 57 | D89: 0 | E89: =SUM(IF('6. Class A Consumption Data'!K85:L85="B",'6. Class A Consumption Data'!E85:F85)) -> 0 | H89: 0 | I89: =IF('6.2 CBR B'!U$18="TRUE","",+H89*$D$26) ->  | J89: =IF('6.2 CBR B'!U$18="TRUE","",+I89/12) -> 
B90: Customer 58 | D90: 0 | E90: =SUM(IF('6. Class A Consumption Data'!K86:L86="B",'6. Class A Consumption Data'!E86:F86)) -> 0 | H90: 0 | I90: =IF('6.2 CBR B'!U$18="TRUE","",+H90*$D$26) ->  | J90: =IF('6.2 CBR B'!U$18="TRUE","",+I90/12) -> 
B91: Customer 59 | D91: 0 | E91: =SUM(IF('6. Class A Consumption Data'!K87:L87="B",'6. Class A Consumption Data'!E87:F87)) -> 0 | H91: 0 | I91: =IF('6.2 CBR B'!U$18="TRUE","",+H91*$D$26) ->  | J91: =IF('6.2 CBR B'!U$18="TRUE","",+I91/12) -> 
B92: Customer 60 | D92: 0 | E92: =SUM(IF('6. Class A Consumption Data'!K88:L88="B",'6. Class A Consumption Data'!E88:F88)) -> 0 | H92: 0 | I92: =IF('6.2 CBR B'!U$18="TRUE","",+H92*$D$26) ->  | J92: =IF('6.2 CBR B'!U$18="TRUE","",+I92/12) -> 
B93: Customer 61 | D93: 0 | E93: =SUM(IF('6. Class A Consumption Data'!K89:L89="B",'6. Class A Consumption Data'!E89:F89)) -> 0 | H93: 0 | I93: =IF('6.2 CBR B'!U$18="TRUE","",+H93*$D$26) ->  | J93: =IF('6.2 CBR B'!U$18="TRUE","",+I93/12) -> 
B94: Customer 62 | D94: 0 | E94: =SUM(IF('6. Class A Consumption Data'!K90:L90="B",'6. Class A Consumption Data'!E90:F90)) -> 0 | H94: 0 | I94: =IF('6.2 CBR B'!U$18="TRUE","",+H94*$D$26) ->  | J94: =IF('6.2 CBR B'!U$18="TRUE","",+I94/12) -> 
B95: Customer 63 | D95: 0 | E95: =SUM(IF('6. Class A Consumption Data'!K91:L91="B",'6. Class A Consumption Data'!E91:F91)) -> 0 | H95: 0 | I95: =IF('6.2 CBR B'!U$18="TRUE","",+H95*$D$26) ->  | J95: =IF('6.2 CBR B'!U$18="TRUE","",+I95/12) -> 
B96: Customer 64 | D96: 0 | E96: =SUM(IF('6. Class A Consumption Data'!K92:L92="B",'6. Class A Consumption Data'!E92:F92)) -> 0 | H96: 0 | I96: =IF('6.2 CBR B'!U$18="TRUE","",+H96*$D$26) ->  | J96: =IF('6.2 CBR B'!U$18="TRUE","",+I96/12) -> 
B97: Customer 65 | D97: =SUM(E97:G97) -> 0 | E97: =SUM(IF('6. Class A Consumption Data'!K93:L93="B",'6. Class A Consumption Data'!E93:F93)) -> 0 | H97: 0 | I97: =IF('6.2 CBR B'!U$18="TRUE","",+H97*$D$26) ->  | J97: =IF('6.2 CBR B'!U$18="TRUE","",+I97/12) -> 
B98: Customer 66 | D98: 0 | E98: =SUM(IF('6. Class A Consumption Data'!K94:L94="B",'6. Class A Consumption Data'!E94:F94)) -> 0 | H98: =IFERROR(+D98/$D$183,0) -> 0 | I98: =IF('6.2 CBR B'!U$18="TRUE","",+H98*$D$26) ->  | J98: =IF('6.2 CBR B'!U$18="TRUE","",+I98/12) -> 
B99: Customer 67 | D99: 0 | E99: =SUM(IF('6. Class A Consumption Data'!K95:L95="B",'6. Class A Consumption Data'!E95:F95)) -> 0 | H99: 0 | I99: =IF('6.2 CBR B'!U$18="TRUE","",+H99*$D$26) ->  | J99: =IF('6.2 CBR B'!U$18="TRUE","",+I99/12) -> 
B100: Customer 68 | D100: 0 | E100: =SUM(IF('6. Class A Consumption Data'!K96:L96="B",'6. Class A Consumption Data'!E96:F96)) -> 0 | H100: 0 | I100: =IF('6.2 CBR B'!U$18="TRUE","",+H100*$D$26) ->  | J100: =IF('6.2 CBR B'!U$18="TRUE","",+I100/12) -> 
B101: Customer 69 | D101: 0 | E101: =SUM(IF('6. Class A Consumption Data'!K97:L97="B",'6. Class A Consumption Data'!E97:F97)) -> 0 | H101: 0 | I101: =IF('6.2 CBR B'!U$18="TRUE","",+H101*$D$26) ->  | J101: =IF('6.2 CBR B'!U$18="TRUE","",+I101/12) -> 
B102: Customer 70 | D102: 0 | E102: =SUM(IF('6. Class A Consumption Data'!K98:L98="B",'6. Class A Consumption Data'!E98:F98)) -> 0 | H102: 0 | I102: =IF('6.2 CBR B'!U$18="TRUE","",+H102*$D$26) ->  | J102: =IF('6.2 CBR B'!U$18="TRUE","",+I102/12) -> 
B103: Customer 71 | D103: 0 | E103: =SUM(IF('6. Class A Consumption Data'!K99:L99="B",'6. Class A Consumption Data'!E99:F99)) -> 0 | H103: 0 | I103: =IF('6.2 CBR B'!U$18="TRUE","",+H103*$D$26) ->  | J103: =IF('6.2 CBR B'!U$18="TRUE","",+I103/12) -> 
B104: Customer 72 | D104: 0 | E104: =SUM(IF('6. Class A Consumption Data'!K100:L100="B",'6. Class A Consumption Data'!E100:F100)) -> 0 | H104: 0 | I104: =IF('6.2 CBR B'!U$18="TRUE","",+H104*$D$26) ->  | J104: =IF('6.2 CBR B'!U$18="TRUE","",+I104/12) -> 
B105: Customer 73 | D105: 0 | E105: =SUM(IF('6. Class A Consumption Data'!K101:L101="B",'6. Class A Consumption Data'!E101:F101)) -> 0 | H105: 0 | I105: =IF('6.2 CBR B'!U$18="TRUE","",+H105*$D$26) ->  | J105: =IF('6.2 CBR B'!U$18="TRUE","",+I105/12) -> 
B106: Customer 74 | D106: 0 | E106: =SUM(IF('6. Class A Consumption Data'!K102:L102="B",'6. Class A Consumption Data'!E102:F102)) -> 0 | H106: 0 | I106: =IF('6.2 CBR B'!U$18="TRUE","",+H106*$D$26) ->  | J106: =IF('6.2 CBR B'!U$18="TRUE","",+I106/12) -> 
B107: Customer 75 | D107: 0 | E107: =SUM(IF('6. Class A Consumption Data'!K103:L103="B",'6. Class A Consumption Data'!E103:F103)) -> 0 | H107: 0 | I107: =IF('6.2 CBR B'!U$18="TRUE","",+H107*$D$26) ->  | J107: =IF('6.2 CBR B'!U$18="TRUE","",+I107/12) -> 
B108: Customer 76 | D108: 0 | E108: =SUM(IF('6. Class A Consumption Data'!K104:L104="B",'6. Class A Consumption Data'!E104:F104)) -> 0 | H108: 0 | I108: =IF('6.2 CBR B'!U$18="TRUE","",+H108*$D$26) ->  | J108: =IF('6.2 CBR B'!U$18="TRUE","",+I108/12) -> 
B109: Customer 77 | D109: 0 | E109: =SUM(IF('6. Class A Consumption Data'!K105:L105="B",'6. Class A Consumption Data'!E105:F105)) -> 0 | H109: 0 | I109: =IF('6.2 CBR B'!U$18="TRUE","",+H109*$D$26) ->  | J109: =IF('6.2 CBR B'!U$18="TRUE","",+I109/12) -> 
B110: Customer 78 | D110: 0 | E110: =SUM(IF('6. Class A Consumption Data'!K106:L106="B",'6. Class A Consumption Data'!E106:F106)) -> 0 | H110: 0 | I110: =IF('6.2 CBR B'!U$18="TRUE","",+H110*$D$26) ->  | J110: =IF('6.2 CBR B'!U$18="TRUE","",+I110/12) -> 
B111: Customer 79 | D111: 0 | E111: =SUM(IF('6. Class A Consumption Data'!K107:L107="B",'6. Class A Consumption Data'!E107:F107)) -> 0 | H111: 0 | I111: =IF('6.2 CBR B'!U$18="TRUE","",+H111*$D$26) ->  | J111: =IF('6.2 CBR B'!U$18="TRUE","",+I111/12) -> 
B112: Customer 80 | D112: 0 | E112: =SUM(IF('6. Class A Consumption Data'!K108:L108="B",'6. Class A Consumption Data'!E108:F108)) -> 0 | H112: 0 | I112: =IF('6.2 CBR B'!U$18="TRUE","",+H112*$D$26) ->  | J112: =IF('6.2 CBR B'!U$18="TRUE","",+I112/12) -> 
B113: Customer 81 | D113: 0 | E113: =SUM(IF('6. Class A Consumption Data'!K109:L109="B",'6. Class A Consumption Data'!E109:F109)) -> 0 | H113: 0 | I113: =IF('6.2 CBR B'!U$18="TRUE","",+H113*$D$26) ->  | J113: =IF('6.2 CBR B'!U$18="TRUE","",+I113/12) -> 
B114: Customer 82 | D114: 0 | E114: =SUM(IF('6. Class A Consumption Data'!K110:L110="B",'6. Class A Consumption Data'!E110:F110)) -> 0 | H114: 0 | I114: =IF('6.2 CBR B'!U$18="TRUE","",+H114*$D$26) ->  | J114: =IF('6.2 CBR B'!U$18="TRUE","",+I114/12) -> 
B115: Customer 83 | D115: 0 | E115: =SUM(IF('6. Class A Consumption Data'!K111:L111="B",'6. Class A Consumption Data'!E111:F111)) -> 0 | H115: 0 | I115: =IF('6.2 CBR B'!U$18="TRUE","",+H115*$D$26) ->  | J115: =IF('6.2 CBR B'!U$18="TRUE","",+I115/12) -> 
B116: Customer 84 | D116: 0 | E116: =SUM(IF('6. Class A Consumption Data'!K112:L112="B",'6. Class A Consumption Data'!E112:F112)) -> 0 | H116: 0 | I116: =IF('6.2 CBR B'!U$18="TRUE","",+H116*$D$26) ->  | J116: =IF('6.2 CBR B'!U$18="TRUE","",+I116/12) -> 
B117: Customer 85 | D117: 0 | E117: =SUM(IF('6. Class A Consumption Data'!K113:L113="B",'6. Class A Consumption Data'!E113:F113)) -> 0 | H117: 0 | I117: =IF('6.2 CBR B'!U$18="TRUE","",+H117*$D$26) ->  | J117: =IF('6.2 CBR B'!U$18="TRUE","",+I117/12) -> 
B118: Customer 86 | D118: 0 | E118: =SUM(IF('6. Class A Consumption Data'!K114:L114="B",'6. Class A Consumption Data'!E114:F114)) -> 0 | H118: 0 | I118: =IF('6.2 CBR B'!U$18="TRUE","",+H118*$D$26) ->  | J118: =IF('6.2 CBR B'!U$18="TRUE","",+I118/12) -> 
B119: Customer 87 | D119: 0 | E119: =SUM(IF('6. Class A Consumption Data'!K115:L115="B",'6. Class A Consumption Data'!E115:F115)) -> 0 | H119: 0 | I119: =IF('6.2 CBR B'!U$18="TRUE","",+H119*$D$26) ->  | J119: =IF('6.2 CBR B'!U$18="TRUE","",+I119/12) -> 
B120: Customer 88 | D120: 0 | E120: =SUM(IF('6. Class A Consumption Data'!K116:L116="B",'6. Class A Consumption Data'!E116:F116)) -> 0 | H120: 0 | I120: =IF('6.2 CBR B'!U$18="TRUE","",+H120*$D$26) ->  | J120: =IF('6.2 CBR B'!U$18="TRUE","",+I120/12) -> 
B121: Customer 89 | D121: 0 | E121: =SUM(IF('6. Class A Consumption Data'!K117:L117="B",'6. Class A Consumption Data'!E117:F117)) -> 0 | H121: 0 | I121: =IF('6.2 CBR B'!U$18="TRUE","",+H121*$D$26) ->  | J121: =IF('6.2 CBR B'!U$18="TRUE","",+I121/12) -> 
B122: Customer 90 | D122: 0 | E122: =SUM(IF('6. Class A Consumption Data'!K118:L118="B",'6. Class A Consumption Data'!E118:F118)) -> 0 | H122: 0 | I122: =IF('6.2 CBR B'!U$18="TRUE","",+H122*$D$26) ->  | J122: =IF('6.2 CBR B'!U$18="TRUE","",+I122/12) -> 
B123: Customer 91 | D123: 0 | E123: =SUM(IF('6. Class A Consumption Data'!K119:L119="B",'6. Class A Consumption Data'!E119:F119)) -> 0 | H123: 0 | I123: =IF('6.2 CBR B'!U$18="TRUE","",+H123*$D$26) ->  | J123: =IF('6.2 CBR B'!U$18="TRUE","",+I123/12) -> 
B124: Customer 92 | D124: 0 | E124: =SUM(IF('6. Class A Consumption Data'!K120:L120="B",'6. Class A Consumption Data'!E120:F120)) -> 0 | H124: 0 | I124: =IF('6.2 CBR B'!U$18="TRUE","",+H124*$D$26) ->  | J124: =IF('6.2 CBR B'!U$18="TRUE","",+I124/12) -> 
B125: Customer 93 | D125: 0 | E125: =SUM(IF('6. Class A Consumption Data'!K121:L121="B",'6. Class A Consumption Data'!E121:F121)) -> 0 | H125: 0 | I125: =IF('6.2 CBR B'!U$18="TRUE","",+H125*$D$26) ->  | J125: =IF('6.2 CBR B'!U$18="TRUE","",+I125/12) -> 
B126: Customer 94 | D126: 0 | E126: =SUM(IF('6. Class A Consumption Data'!K122:L122="B",'6. Class A Consumption Data'!E122:F122)) -> 0 | H126: 0 | I126: =IF('6.2 CBR B'!U$18="TRUE","",+H126*$D$26) ->  | J126: =IF('6.2 CBR B'!U$18="TRUE","",+I126/12) -> 
B127: Customer 95 | D127: 0 | E127: =SUM(IF('6. Class A Consumption Data'!K123:L123="B",'6. Class A Consumption Data'!E123:F123)) -> 0 | H127: 0 | I127: =IF('6.2 CBR B'!U$18="TRUE","",+H127*$D$26) ->  | J127: =IF('6.2 CBR B'!U$18="TRUE","",+I127/12) -> 
B128: Customer 96 | D128: 0 | E128: =SUM(IF('6. Class A Consumption Data'!K124:L124="B",'6. Class A Consumption Data'!E124:F124)) -> 0 | H128: 0 | I128: =IF('6.2 CBR B'!U$18="TRUE","",+H128*$D$26) ->  | J128: =IF('6.2 CBR B'!U$18="TRUE","",+I128/12) -> 
B129: Customer 97 | D129: 0 | E129: =SUM(IF('6. Class A Consumption Data'!K125:L125="B",'6. Class A Consumption Data'!E125:F125)) -> 0 | H129: 0 | I129: =IF('6.2 CBR B'!U$18="TRUE","",+H129*$D$26) ->  | J129: =IF('6.2 CBR B'!U$18="TRUE","",+I129/12) -> 
B130: Customer 98 | D130: 0 | E130: =SUM(IF('6. Class A Consumption Data'!K126:L126="B",'6. Class A Consumption Data'!E126:F126)) -> 0 | H130: 0 | I130: =IF('6.2 CBR B'!U$18="TRUE","",+H130*$D$26) ->  | J130: =IF('6.2 CBR B'!U$18="TRUE","",+I130/12) -> 
B131: Customer 99 | D131: 0 | E131: =SUM(IF('6. Class A Consumption Data'!K127:L127="B",'6. Class A Consumption Data'!E127:F127)) -> 0 | H131: 0 | I131: =IF('6.2 CBR B'!U$18="TRUE","",+H131*$D$26) ->  | J131: =IF('6.2 CBR B'!U$18="TRUE","",+I131/12) -> 
B132: Customer 100 | D132: 0 | E132: =SUM(IF('6. Class A Consumption Data'!K128:L128="B",'6. Class A Consumption Data'!E128:F128)) -> 0 | H132: 0 | I132: =IF('6.2 CBR B'!U$18="TRUE","",+H132*$D$26) ->  | J132: =IF('6.2 CBR B'!U$18="TRUE","",+I132/12) -> 
B133: Customer 101 | D133: 0 | E133: =SUM(IF('6. Class A Consumption Data'!K129:L129="B",'6. Class A Consumption Data'!E129:F129)) -> 0 | H133: 0 | I133: =IF('6.2 CBR B'!U$18="TRUE","",+H133*$D$26) ->  | J133: =IF('6.2 CBR B'!U$18="TRUE","",+I133/12) -> 
B134: Customer 102 | D134: =SUM(E134:G134) -> 0 | E134: =SUM(IF('6. Class A Consumption Data'!K130:L130="B",'6. Class A Consumption Data'!E130:F130)) -> 0 | H134: 0 | I134: =IF('6.2 CBR B'!U$18="TRUE","",+H134*$D$26) ->  | J134: =IF('6.2 CBR B'!U$18="TRUE","",+I134/12) -> 
B135: Customer 103 | D135: 0 | E135: =SUM(IF('6. Class A Consumption Data'!K131:L131="B",'6. Class A Consumption Data'!E131:F131)) -> 0 | H135: 0 | I135: =IF('6.2 CBR B'!U$18="TRUE","",+H135*$D$26) ->  | J135: =IF('6.2 CBR B'!U$18="TRUE","",+I135/12) -> 
B136: Customer 104 | D136: 0 | E136: =SUM(IF('6. Class A Consumption Data'!K132:L132="B",'6. Class A Consumption Data'!E132:F132)) -> 0 | H136: 0 | I136: =IF('6.2 CBR B'!U$18="TRUE","",+H136*$D$26) ->  | J136: =IF('6.2 CBR B'!U$18="TRUE","",+I136/12) -> 
B137: Customer 105 | D137: 0 | E137: =SUM(IF('6. Class A Consumption Data'!K133:L133="B",'6. Class A Consumption Data'!E133:F133)) -> 0 | H137: 0 | I137: =IF('6.2 CBR B'!U$18="TRUE","",+H137*$D$26) ->  | J137: =IF('6.2 CBR B'!U$18="TRUE","",+I137/12) -> 
B138: Customer 106 | D138: 0 | E138: =SUM(IF('6. Class A Consumption Data'!K134:L134="B",'6. Class A Consumption Data'!E134:F134)) -> 0 | H138: 0 | I138: =IF('6.2 CBR B'!U$18="TRUE","",+H138*$D$26) ->  | J138: =IF('6.2 CBR B'!U$18="TRUE","",+I138/12) -> 
B139: Customer 107 | D139: 0 | E139: =SUM(IF('6. Class A Consumption Data'!K135:L135="B",'6. Class A Consumption Data'!E135:F135)) -> 0 | H139: 0 | I139: =IF('6.2 CBR B'!U$18="TRUE","",+H139*$D$26) ->  | J139: =IF('6.2 CBR B'!U$18="TRUE","",+I139/12) -> 
B140: Customer 108 | D140: 0 | E140: =SUM(IF('6. Class A Consumption Data'!K136:L136="B",'6. Class A Consumption Data'!E136:F136)) -> 0 | H140: 0 | I140: =IF('6.2 CBR B'!U$18="TRUE","",+H140*$D$26) ->  | J140: =IF('6.2 CBR B'!U$18="TRUE","",+I140/12) -> 
B141: Customer 109 | D141: 0 | E141: =SUM(IF('6. Class A Consumption Data'!K137:L137="B",'6. Class A Consumption Data'!E137:F137)) -> 0 | H141: 0 | I141: =IF('6.2 CBR B'!U$18="TRUE","",+H141*$D$26) ->  | J141: =IF('6.2 CBR B'!U$18="TRUE","",+I141/12) -> 
B142: Customer 110 | D142: 0 | E142: =SUM(IF('6. Class A Consumption Data'!K138:L138="B",'6. Class A Consumption Data'!E138:F138)) -> 0 | H142: 0 | I142: =IF('6.2 CBR B'!U$18="TRUE","",+H142*$D$26) ->  | J142: =IF('6.2 CBR B'!U$18="TRUE","",+I142/12) -> 
B143: Customer 111 | D143: 0 | E143: =SUM(IF('6. Class A Consumption Data'!K139:L139="B",'6. Class A Consumption Data'!E139:F139)) -> 0 | H143: 0 | I143: =IF('6.2 CBR B'!U$18="TRUE","",+H143*$D$26) ->  | J143: =IF('6.2 CBR B'!U$18="TRUE","",+I143/12) -> 
B144: Customer 112 | D144: 0 | E144: =SUM(IF('6. Class A Consumption Data'!K140:L140="B",'6. Class A Consumption Data'!E140:F140)) -> 0 | H144: 0 | I144: =IF('6.2 CBR B'!U$18="TRUE","",+H144*$D$26) ->  | J144: =IF('6.2 CBR B'!U$18="TRUE","",+I144/12) -> 
B145: Customer 113 | D145: 0 | E145: =SUM(IF('6. Class A Consumption Data'!K141:L141="B",'6. Class A Consumption Data'!E141:F141)) -> 0 | H145: 0 | I145: =IF('6.2 CBR B'!U$18="TRUE","",+H145*$D$26) ->  | J145: =IF('6.2 CBR B'!U$18="TRUE","",+I145/12) -> 
B146: Customer 114 | D146: 0 | E146: =SUM(IF('6. Class A Consumption Data'!K142:L142="B",'6. Class A Consumption Data'!E142:F142)) -> 0 | H146: 0 | I146: =IF('6.2 CBR B'!U$18="TRUE","",+H146*$D$26) ->  | J146: =IF('6.2 CBR B'!U$18="TRUE","",+I146/12) -> 
B147: Customer 115 | D147: 0 | E147: =SUM(IF('6. Class A Consumption Data'!K143:L143="B",'6. Class A Consumption Data'!E143:F143)) -> 0 | H147: 0 | I147: =IF('6.2 CBR B'!U$18="TRUE","",+H147*$D$26) ->  | J147: =IF('6.2 CBR B'!U$18="TRUE","",+I147/12) -> 
B148: Customer 116 | D148: 0 | E148: =SUM(IF('6. Class A Consumption Data'!K144:L144="B",'6. Class A Consumption Data'!E144:F144)) -> 0 | H148: 0 | I148: =IF('6.2 CBR B'!U$18="TRUE","",+H148*$D$26) ->  | J148: =IF('6.2 CBR B'!U$18="TRUE","",+I148/12) -> 
B149: Customer 117 | D149: 0 | E149: =SUM(IF('6. Class A Consumption Data'!K145:L145="B",'6. Class A Consumption Data'!E145:F145)) -> 0 | H149: 0 | I149: =IF('6.2 CBR B'!U$18="TRUE","",+H149*$D$26) ->  | J149: =IF('6.2 CBR B'!U$18="TRUE","",+I149/12) -> 
B150: Customer 118 | D150: 0 | E150: =SUM(IF('6. Class A Consumption Data'!K146:L146="B",'6. Class A Consumption Data'!E146:F146)) -> 0 | H150: 0 | I150: =IF('6.2 CBR B'!U$18="TRUE","",+H150*$D$26) ->  | J150: =IF('6.2 CBR B'!U$18="TRUE","",+I150/12) -> 
B151: Customer 119 | D151: 0 | E151: =SUM(IF('6. Class A Consumption Data'!K147:L147="B",'6. Class A Consumption Data'!E147:F147)) -> 0 | H151: 0 | I151: =IF('6.2 CBR B'!U$18="TRUE","",+H151*$D$26) ->  | J151: =IF('6.2 CBR B'!U$18="TRUE","",+I151/12) -> 
B152: Customer 120 | D152: 0 | E152: =SUM(IF('6. Class A Consumption Data'!K148:L148="B",'6. Class A Consumption Data'!E148:F148)) -> 0 | H152: 0 | I152: =IF('6.2 CBR B'!U$18="TRUE","",+H152*$D$26) ->  | J152: =IF('6.2 CBR B'!U$18="TRUE","",+I152/12) -> 
B153: Customer 121 | D153: 0 | E153: =SUM(IF('6. Class A Consumption Data'!K149:L149="B",'6. Class A Consumption Data'!E149:F149)) -> 0 | H153: 0 | I153: =IF('6.2 CBR B'!U$18="TRUE","",+H153*$D$26) ->  | J153: =IF('6.2 CBR B'!U$18="TRUE","",+I153/12) -> 
B154: Customer 122 | D154: 0 | E154: =SUM(IF('6. Class A Consumption Data'!K150:L150="B",'6. Class A Consumption Data'!E150:F150)) -> 0 | H154: 0 | I154: =IF('6.2 CBR B'!U$18="TRUE","",+H154*$D$26) ->  | J154: =IF('6.2 CBR B'!U$18="TRUE","",+I154/12) -> 
B155: Customer 123 | D155: 0 | E155: =SUM(IF('6. Class A Consumption Data'!K151:L151="B",'6. Class A Consumption Data'!E151:F151)) -> 0 | H155: 0 | I155: =IF('6.2 CBR B'!U$18="TRUE","",+H155*$D$26) ->  | J155: =IF('6.2 CBR B'!U$18="TRUE","",+I155/12) -> 
B156: Customer 124 | D156: 0 | E156: =SUM(IF('6. Class A Consumption Data'!K152:L152="B",'6. Class A Consumption Data'!E152:F152)) -> 0 | H156: 0 | I156: =IF('6.2 CBR B'!U$18="TRUE","",+H156*$D$26) ->  | J156: =IF('6.2 CBR B'!U$18="TRUE","",+I156/12) -> 
B157: Customer 125 | D157: 0 | E157: =SUM(IF('6. Class A Consumption Data'!K153:L153="B",'6. Class A Consumption Data'!E153:F153)) -> 0 | H157: 0 | I157: =IF('6.2 CBR B'!U$18="TRUE","",+H157*$D$26) ->  | J157: =IF('6.2 CBR B'!U$18="TRUE","",+I157/12) -> 
B158: Customer 126 | D158: 0 | E158: =SUM(IF('6. Class A Consumption Data'!K154:L154="B",'6. Class A Consumption Data'!E154:F154)) -> 0 | H158: 0 | I158: =IF('6.2 CBR B'!U$18="TRUE","",+H158*$D$26) ->  | J158: =IF('6.2 CBR B'!U$18="TRUE","",+I158/12) -> 
B159: Customer 127 | D159: 0 | E159: =SUM(IF('6. Class A Consumption Data'!K155:L155="B",'6. Class A Consumption Data'!E155:F155)) -> 0 | H159: 0 | I159: =IF('6.2 CBR B'!U$18="TRUE","",+H159*$D$26) ->  | J159: =IF('6.2 CBR B'!U$18="TRUE","",+I159/12) -> 
B160: Customer 128 | D160: 0 | E160: =SUM(IF('6. Class A Consumption Data'!K156:L156="B",'6. Class A Consumption Data'!E156:F156)) -> 0 | H160: 0 | I160: =IF('6.2 CBR B'!U$18="TRUE","",+H160*$D$26) ->  | J160: =IF('6.2 CBR B'!U$18="TRUE","",+I160/12) -> 
B161: Customer 129 | D161: 0 | E161: =SUM(IF('6. Class A Consumption Data'!K157:L157="B",'6. Class A Consumption Data'!E157:F157)) -> 0 | H161: 0 | I161: =IF('6.2 CBR B'!U$18="TRUE","",+H161*$D$26) ->  | J161: =IF('6.2 CBR B'!U$18="TRUE","",+I161/12) -> 
B162: Customer 130 | D162: 0 | E162: =SUM(IF('6. Class A Consumption Data'!K158:L158="B",'6. Class A Consumption Data'!E158:F158)) -> 0 | H162: =IFERROR(+D162/$D$183,0) -> 0 | I162: =IF('6.2 CBR B'!U$18="TRUE","",+H162*$D$26) ->  | J162: =IF('6.2 CBR B'!U$18="TRUE","",+I162/12) -> 
B163: Customer 131 | D163: 0 | E163: =SUM(IF('6. Class A Consumption Data'!K159:L159="B",'6. Class A Consumption Data'!E159:F159)) -> 0 | H163: 0 | I163: =IF('6.2 CBR B'!U$18="TRUE","",+H163*$D$26) ->  | J163: =IF('6.2 CBR B'!U$18="TRUE","",+I163/12) -> 
B164: Customer 132 | D164: 0 | E164: =SUM(IF('6. Class A Consumption Data'!K160:L160="B",'6. Class A Consumption Data'!E160:F160)) -> 0 | H164: 0 | I164: =IF('6.2 CBR B'!U$18="TRUE","",+H164*$D$26) ->  | J164: =IF('6.2 CBR B'!U$18="TRUE","",+I164/12) -> 
B165: Customer 133 | D165: 0 | E165: =SUM(IF('6. Class A Consumption Data'!K161:L161="B",'6. Class A Consumption Data'!E161:F161)) -> 0 | H165: 0 | I165: =IF('6.2 CBR B'!U$18="TRUE","",+H165*$D$26) ->  | J165: =IF('6.2 CBR B'!U$18="TRUE","",+I165/12) -> 
B166: Customer 134 | D166: 0 | E166: =SUM(IF('6. Class A Consumption Data'!K162:L162="B",'6. Class A Consumption Data'!E162:F162)) -> 0 | H166: 0 | I166: =IF('6.2 CBR B'!U$18="TRUE","",+H166*$D$26) ->  | J166: =IF('6.2 CBR B'!U$18="TRUE","",+I166/12) -> 
B167: Customer 135 | D167: 0 | E167: =SUM(IF('6. Class A Consumption Data'!K163:L163="B",'6. Class A Consumption Data'!E163:F163)) -> 0 | H167: 0 | I167: =IF('6.2 CBR B'!U$18="TRUE","",+H167*$D$26) ->  | J167: =IF('6.2 CBR B'!U$18="TRUE","",+I167/12) -> 
B168: Customer 136 | D168: 0 | E168: =SUM(IF('6. Class A Consumption Data'!K164:L164="B",'6. Class A Consumption Data'!E164:F164)) -> 0 | H168: 0 | I168: =IF('6.2 CBR B'!U$18="TRUE","",+H168*$D$26) ->  | J168: =IF('6.2 CBR B'!U$18="TRUE","",+I168/12) -> 
B169: Customer 137 | D169: 0 | E169: =SUM(IF('6. Class A Consumption Data'!K165:L165="B",'6. Class A Consumption Data'!E165:F165)) -> 0 | H169: 0 | I169: =IF('6.2 CBR B'!U$18="TRUE","",+H169*$D$26) ->  | J169: =IF('6.2 CBR B'!U$18="TRUE","",+I169/12) -> 
B170: Customer 138 | D170: 0 | E170: =SUM(IF('6. Class A Consumption Data'!K166:L166="B",'6. Class A Consumption Data'!E166:F166)) -> 0 | H170: 0 | I170: =IF('6.2 CBR B'!U$18="TRUE","",+H170*$D$26) ->  | J170: =IF('6.2 CBR B'!U$18="TRUE","",+I170/12) -> 
B171: Customer 139 | D171: 0 | E171: =SUM(IF('6. Class A Consumption Data'!K167:L167="B",'6. Class A Consumption Data'!E167:F167)) -> 0 | H171: 0 | I171: =IF('6.2 CBR B'!U$18="TRUE","",+H171*$D$26) ->  | J171: =IF('6.2 CBR B'!U$18="TRUE","",+I171/12) -> 
B172: Customer 140 | D172: 0 | E172: =SUM(IF('6. Class A Consumption Data'!K168:L168="B",'6. Class A Consumption Data'!E168:F168)) -> 0 | H172: 0 | I172: =IF('6.2 CBR B'!U$18="TRUE","",+H172*$D$26) ->  | J172: =IF('6.2 CBR B'!U$18="TRUE","",+I172/12) -> 
B173: Customer 141 | D173: 0 | E173: =SUM(IF('6. Class A Consumption Data'!K169:L169="B",'6. Class A Consumption Data'!E169:F169)) -> 0 | H173: 0 | I173: =IF('6.2 CBR B'!U$18="TRUE","",+H173*$D$26) ->  | J173: =IF('6.2 CBR B'!U$18="TRUE","",+I173/12) -> 
B174: Customer 142 | D174: 0 | E174: =SUM(IF('6. Class A Consumption Data'!K170:L170="B",'6. Class A Consumption Data'!E170:F170)) -> 0 | H174: 0 | I174: =IF('6.2 CBR B'!U$18="TRUE","",+H174*$D$26) ->  | J174: =IF('6.2 CBR B'!U$18="TRUE","",+I174/12) -> 
B175: Customer 143 | D175: 0 | E175: =SUM(IF('6. Class A Consumption Data'!K171:L171="B",'6. Class A Consumption Data'!E171:F171)) -> 0 | H175: 0 | I175: =IF('6.2 CBR B'!U$18="TRUE","",+H175*$D$26) ->  | J175: =IF('6.2 CBR B'!U$18="TRUE","",+I175/12) -> 
B176: Customer 144 | D176: 0 | E176: =SUM(IF('6. Class A Consumption Data'!K172:L172="B",'6. Class A Consumption Data'!E172:F172)) -> 0 | H176: 0 | I176: =IF('6.2 CBR B'!U$18="TRUE","",+H176*$D$26) ->  | J176: =IF('6.2 CBR B'!U$18="TRUE","",+I176/12) -> 
B177: Customer 145 | D177: 0 | E177: =SUM(IF('6. Class A Consumption Data'!K173:L173="B",'6. Class A Consumption Data'!E173:F173)) -> 0 | H177: 0 | I177: =IF('6.2 CBR B'!U$18="TRUE","",+H177*$D$26) ->  | J177: =IF('6.2 CBR B'!U$18="TRUE","",+I177/12) -> 
B178: Customer 146 | D178: 0 | E178: =SUM(IF('6. Class A Consumption Data'!K174:L174="B",'6. Class A Consumption Data'!E174:F174)) -> 0 | H178: 0 | I178: =IF('6.2 CBR B'!U$18="TRUE","",+H178*$D$26) ->  | J178: =IF('6.2 CBR B'!U$18="TRUE","",+I178/12) -> 
B179: Customer 147 | D179: 0 | E179: =SUM(IF('6. Class A Consumption Data'!K175:L175="B",'6. Class A Consumption Data'!E175:F175)) -> 0 | H179: 0 | I179: =IF('6.2 CBR B'!U$18="TRUE","",+H179*$D$26) ->  | J179: =IF('6.2 CBR B'!U$18="TRUE","",+I179/12) -> 
B180: Customer 148 | D180: 0 | E180: =SUM(IF('6. Class A Consumption Data'!K176:L176="B",'6. Class A Consumption Data'!E176:F176)) -> 0 | H180: 0 | I180: =IF('6.2 CBR B'!U$18="TRUE","",+H180*$D$26) ->  | J180: =IF('6.2 CBR B'!U$18="TRUE","",+I180/12) -> 
B181: Customer 149 | D181: 0 | E181: =SUM(IF('6. Class A Consumption Data'!K177:L177="B",'6. Class A Consumption Data'!E177:F177)) -> 0 | H181: 0 | I181: =IF('6.2 CBR B'!U$18="TRUE","",+H181*$D$26) ->  | J181: =IF('6.2 CBR B'!U$18="TRUE","",+I181/12) -> 
B182: Customer 150 | D182: 0 | E182: =SUM(IF('6. Class A Consumption Data'!K178:L178="B",'6. Class A Consumption Data'!E178:F178)) -> 0 | H182: 0 | I182: =IF('6.2 CBR B'!U$18="TRUE","",+H182*$D$26) ->  | J182: =IF('6.2 CBR B'!U$18="TRUE","",+I182/12) -> 
B183: Total for all Customers | D183: =SUM(D33:D182) -> 59005321.72 | E183: =SUM(E33:E182) -> 59005321.72 | F183: 0 | G183: 0 | H183: =SUM(H33:H182) -> 1 | I183: =SUM(I33:I182) -> 0

Sheet 6.2 CBR B
A1: Back to Index
B2: =+'1. Information Sheet'!B2 -> INCENTIVE REGULATION MODEL FOR 2020 FILERS
K11: If the allocated Account 1580 sub-account CBR Class B amount does not produce a rate rider in one or more rate class (except for the Standby rate class), a distributor is to transfer the entire OEB-approved CBR Class B amount into Account 1580 WMS control account to be disposed through the general purpose Group 1 DVA rate riders. (see Accounting Guidance, Capacity Based Recovery xxxxx, 2018)
B13: The purpose of this tab is to calculate the CBR rate riders for all current Class B customers who did not transition between Class A and B in the period since the Account 1580, sub-account CBR Class B balance accumulated.
B15: Please select the Year the Account 1580 CBR Class B was Last Disposed. | C15: 2017 | D15: (Note: Account 1580, Sub-account CBR Class B was established starting in 2015)
U18: =IF(MIN(U22:U26,U28:U29)<0.0001,"TRUE","FALSE") -> TRUE
C19: Total Metered Minus WMP | E19: Total Metered 2018 Consumption for Class A customers that were Class A for the entire period CBR Class B balance accumulated | G19: Total Metered 2018 Consumption for Customers that Transitioned Between Class A and B during the period CBR Class B balance accumulated | I19: Metered Consumption for Current Class B Customers (Total Consumption LESS WMP, Class A and Transition Customers' Consumption) | K19: % of total kWh | L19: Total CBR $ allocated to Current Class B Customers | M19: CBR Rate Rider | O19: Revenue Reconciliation | P19: Variance | U19: CBR Rate Rider
C20: kWh | D20: kW | E20: kWh | F20: kW | G20: kWh | H20: kW | I20: kWh | J20: kW
B22: ='4. Billing Det. for Def-Var'!B17 -> RESIDENTIAL SERVICE CLASSIFICATION | C22: ='4. Billing Det. for Def-Var'!D17-'4. Billing Det. for Def-Var'!H17 -> 1659016812 | D22: ='4. Billing Det. for Def-Var'!E17-'4. Billing Det. for Def-Var'!I17 -> 0 | E22: =SUM(IF('6. Class A Consumption Data'!$D$191:$D$340=$B22,'6. Class A Consumption Data'!E$191:E$340)) -> 0 | F22: =SUM(IF('6. Class A Consumption Data'!$D$191:$D$340=$B22,'6. Class A Consumption Data'!H$191:H$340)) -> 0 | G22: =SUM(IF('6. Class A Consumption Data'!$D$29:$D$178=$B22,'6. Class A Consumption Data'!E$29:F$178)) -> 0 | H22: =SUM(IF('6. Class A Consumption Data'!$D$29:$D$178=$B22,'6. Class A Consumption Data'!H$29:I$178)) -> 0 | I22: =ROUND(C22-E22-G22,0) -> 1659016812 | J22: =ROUND(D22-F22-H22,0) -> 0 | K22: =IFERROR(I22/I$34,"") -> 0.4645169589 | L22: =IFERROR(L$34*K22,"") -> -43395.37858 | M22: =IF(U$18="TRUE",0,U22) -> 0 | N22: kwh | O22: =IFERROR(IF(J22=0,ROUND(M22,4)*I22,ROUND(M22,4)*J22),"") -> 0 | P22: =L22-O22 -> -43395.37858 | U22: =IFERROR(IF($J22=0,$L22/$I22,$L22/$J22),"") -> -2.615728681e-05 | V22: =N22 -> kwh
B23: ='4. Billing Det. for Def-Var'!B18 -> GENERAL SERVICE LESS THAN 50 kW SERVICE CLASSIFICATION | C23: ='4. Billing Det. for Def-Var'!D18-'4. Billing Det. for Def-Var'!H18 -> 580343048.9 | D23: ='4. Billing Det. for Def-Var'!E18-'4. Billing Det. for Def-Var'!I18 -> 0 | E23: =SUM(IF('6. Class A Consumption Data'!$D$191:$D$340=$B23,'6. Class A Consumption Data'!E$191:E$340)) -> 0 | F23: =SUM(IF('6. Class A Consumption Data'!$D$191:$D$340=$B23,'6. Class A Consumption Data'!H$191:H$340)) -> 0 | G23: =SUM(IF('6. Class A Consumption Data'!$D$29:$D$178=$B23,'6. Class A Consumption Data'!E$29:F$178)) -> 0 | H23: =SUM(IF('6. Class A Consumption Data'!$D$29:$D$178=$B23,'6. Class A Consumption Data'!H$29:I$178)) -> 0 | I23: =ROUND(C23-E23-G23,0) -> 580343049 | J23: 0 | K23: =IFERROR(I23/I$34,"") -> 0.1624933432 | L23: =IFERROR(L$34*K23,"") -> -15180.19958 | M23: =IF(U$18="TRUE",0,U23) -> 0 | N23: kwh | O23: =IFERROR(IF(J23=0,ROUND(M23,4)*I23,ROUND(M23,4)*J23),"") -> 0 | P23: =L23-O23 -> -15180.19958 | U23: =IFERROR(IF($J23=0,$L23/$I23,$L23/$J23),"") -> -2.615728681e-05 | V23: =N23 -> kwh
B24: ='4. Billing Det. for Def-Var'!B19 -> GENERAL SERVICE 50 to 4,999 kW SERVICE CLASSIFICATION | C24: ='4. Billing Det. for Def-Var'!D19-'4. Billing Det. for Def-Var'!H19 -> 1826416584 | D24: ='4. Billing Det. for Def-Var'!E19-'4. Billing Det. for Def-Var'!I19 -> 4728800.292 | E24: =SUM(IF('6. Class A Consumption Data'!$D$191:$D$340=$B24,'6. Class A Consumption Data'!E$191:E$340)) -> 407661461.8 | F24: =SUM(IF('6. Class A Consumption Data'!$D$191:$D$340=$B24,'6. Class A Consumption Data'!H$191:H$340)) -> 912954.748 | G24: =SUM(IF('6. Class A Consumption Data'!$D$29:$D$178=$B24,'6. Class A Consumption Data'!E$29:F$178)) -> 117287656.9 | H24: =SUM(IF('6. Class A Consumption Data'!$D$29:$D$178=$B24,'6. Class A Consumption Data'!H$29:I$178)) -> 251661.765 | I24: 1301467465 | J24: 3564184 | K24: 0.3644048117 | L24: -34042.85776 | M24: 0 | N24: kW | O24: 0 | P24: -34042.85776 | U24: -0.009551374945 | V24: kW
B25: ='4. Billing Det. for Def-Var'!B20 -> LARGE USE SERVICE CLASSIFICATION | C25: ='4. Billing Det. for Def-Var'!D20-'4. Billing Det. for Def-Var'!H20 -> 187410800.8 | D25: ='4. Billing Det. for Def-Var'!E20-'4. Billing Det. for Def-Var'!I20 -> 339709.562 | E25: =SUM(IF('6. Class A Consumption Data'!$D$191:$D$340=$B25,'6. Class A Consumption Data'!E$191:E$340)) -> 187410800.9 | F25: =SUM(IF('6. Class A Consumption Data'!$D$191:$D$340=$B25,'6. Class A Consumption Data'!H$191:H$340)) -> 341208.709 | G25: =SUM(IF('6. Class A Consumption Data'!$D$29:$D$178=$B25,'6. Class A Consumption Data'!E$29:F$178)) -> 0 | H25: =SUM(IF('6. Class A Consumption Data'!$D$29:$D$178=$B25,'6. Class A Consumption Data'!H$29:I$178)) -> 0 | I25: 0 | J25: -1499 | K25: 0 | L25: 0 | M25: 0 | N25: kW | O25: 0 | U25: 0 | V25: kW
B26: ='4. Billing Det. for Def-Var'!B21 -> LARGE USE SERVICE WITH DEDICATED ASSETS CLASSIFICATION | C26: ='4. Billing Det. for Def-Var'!D21-'4. Billing Det. for Def-Var'!H21 -> 338136686.7 | D26: ='4. Billing Det. for Def-Var'!E21-'4. Billing Det. for Def-Var'!I21 -> 775690.0362 | E26: =SUM(IF('6. Class A Consumption Data'!$D$191:$D$340=$B26,'6. Class A Consumption Data'!E$191:E$340)) -> 338136686.4 | F26: =SUM(IF('6. Class A Consumption Data'!$D$191:$D$340=$B26,'6. Class A Consumption Data'!H$191:H$340)) -> 763817.01 | G26: =SUM(IF('6. Class A Consumption Data'!$D$29:$D$178=$B26,'6. Class A Consumption Data'!E$29:F$178)) -> 0 | H26: =SUM(IF('6. Class A Consumption Data'!$D$29:$D$178=$B26,'6. Class A Consumption Data'!H$29:I$178)) -> 0 | I26: 0 | J26: 11873 | K26: 0 | L26: 0 | M26: 0 | N26: kW | O26: 0 | P26: 0 | U26: 0 | V26: kW
B27: ='4. Billing Det. for Def-Var'!B22 -> UNMETERED SCATTERED LOAD SERVICE CLASSIFICATION | C27: ='4. Billing Det. for Def-Var'!D22-'4. Billing Det. for Def-Var'!H22 -> 11372501.37 | D27: ='4. Billing Det. for Def-Var'!E22-'4. Billing Det. for Def-Var'!I22 -> 0 | E27: =SUM(IF('6. Class A Consumption Data'!$D$191:$D$340=$B27,'6. Class A Consumption Data'!E$191:E$340)) -> 0 | F27: =SUM(IF('6. Class A Consumption Data'!$D$191:$D$340=$B27,'6. Class A Consumption Data'!H$191:H$340)) -> 0 | G27: =SUM(IF('6. Class A Consumption Data'!$D$29:$D$178=$B27,'6. Class A Consumption Data'!E$29:F$178)) -> 0 | H27: =SUM(IF('6. Class A Consumption Data'!$D$29:$D$178=$B27,'6. Class A Consumption Data'!H$29:I$178)) -> 0 | I27: 11372501 | J27: 0 | K27: 0.003184247165 | L27: -297.4737704 | M27: 0 | N27: kwh | O27: 0 | U27: -2.615728681e-05 | V27: kwh
B28: ='4. Billing Det. for Def-Var'!B23 -> SENTINEL LIGHTING SERVICE CLASSIFICATION | C28: ='4. Billing Det. for Def-Var'!D23-'4. Billing Det. for Def-Var'!H23 -> 482317.4829 | D28: ='4. Billing Det. for Def-Var'!E23-'4. Billing Det. for Def-Var'!I23 -> 1320.307601 | E28: =SUM(IF('6. Class A Consumption Data'!$D$191:$D$340=$B28,'6. Class A Consumption Data'!E$191:E$340)) -> 0 | F28: =SUM(IF('6. Class A Consumption Data'!$D$191:$D$340=$B28,'6. Class A Consumption Data'!H$191:H$340)) -> 0 | G28: =SUM(IF('6. Class A Consumption Data'!$D$29:$D$178=$B28,'6. Class A Consumption Data'!E$29:F$178)) -> 0 | H28: =SUM(IF('6. Class A Consumption Data'!$D$29:$D$178=$B28,'6. Class A Consumption Data'!H$29:I$178)) -> 0 | I28: 482317 | J28: 1320 | K28: 0.0001350465073 | L28: -12.6161041 | M28: 0 | N28: kW | O28: 0 | P28: -12.6161041 | U28: -0.009557654623 | V28: kW
B29: ='4. Billing Det. for Def-Var'!B24 -> STREET LIGHTING SERVICE CLASSIFICATION | C29: ='4. Billing Det. for Def-Var'!D24-'4. Billing Det. for Def-Var'!H24 -> 18806000.59 | D29: ='4. Billing Det. for Def-Var'!E24-'4. Billing Det. for Def-Var'!I24 -> 58768.585 | E29: =SUM(IF('6. Class A Consumption Data'!$D$191:$D$340=$B29,'6. Class A Consumption Data'!E$191:E$340)) -> 0 | F29: =SUM(IF('6. Class A Consumption Data'!$D$191:$D$340=$B29,'6. Class A Consumption Data'!H$191:H$340)) -> 0 | G29: =SUM(IF('6. Class A Consumption Data'!$D$29:$D$178=$B29,'6. Class A Consumption Data'!E$29:F$178)) -> 0 | H29: =SUM(IF('6. Class A Consumption Data'!$D$29:$D$178=$B29,'6. Class A Consumption Data'!H$29:I$178)) -> 0 | I29: 18806001 | J29: 58769 | K29: 0.005265592447 | L29: -491.9139619 | M29: 0 | N29: kW | O29: 0 | P29: -491.9139619 | U29: -0.008370296618 | V29: kW
B30: ='4. Billing Det. for Def-Var'!B25 -> STANDBY POWER SERVICE CLASSIFICATION | C30: ='4. Billing Det. for Def-Var'!D25-'4. Billing Det. for Def-Var'!H25 -> 0 | D30: ='4. Billing Det. for Def-Var'!E25-'4. Billing Det. for Def-Var'!I25 -> 0 | E30: =SUM(IF('6. Class A Consumption Data'!$D$191:$D$340=$B30,'6. Class A Consumption Data'!E$191:E$340)) -> 0 | F30: =SUM(IF('6. Class A Consumption Data'!$D$191:$D$340=$B30,'6. Class A Consumption Data'!H$191:H$340)) -> 0 | G30: =SUM(IF('6. Class A Consumption Data'!$D$29:$D$178=$B30,'6. Class A Consumption Data'!E$29:F$178)) -> 0 | H30: =SUM(IF('6. Class A Consumption Data'!$D$29:$D$178=$B30,'6. Class A Consumption Data'!H$29:I$178)) -> 0 | I30: =ROUND(C30-E30-G30,0) -> 0 | J30: =ROUND(D30-F30-H30,0) -> 0 | K30: =IFERROR(I30/I$34,"") -> 0 | L30: =IFERROR(L$34*K30,"") -> 0
C34: =SUM(C22:C33) -> 4621984752 | D34: =SUM(D22:D33) -> 5904288.783 | E34: 933208949.1 | F34: 2017980.467 | G34: 117287656.9 | H34: 251661.765 | I34: 3571488145 | J34: 3634647 | K34: 1 | L34: ='6.2a CBR B_Allocation'!D27 -> -93420.43975 | O34: =SUM(O22:O33) -> 0 | P34: =SUM(P22:P33) -> -93122.96598
L35: from Sheet 6.2a
O36: NOTE: if rate rider is at 5 decimal places, then the balance dispostion is in full

Sheet 8. Calculation of Def-Var RR
A1: Back to Index
B2: =+'1. Information Sheet'!B2 -> INCENTIVE REGULATION MODEL FOR 2020 FILERS
B11: IInput required at cells D14 and D15. This workshseet calculates rate riders related to the Deferral/Variance Account Disposition (if applicable) and rate riders for Account 1568. Rate Riders will not be generated for the microFIT class.
B13: Default Rate Rider Recovery Period (in months) | D13: 12
B14: DVA Proposed Rate Rider Recovery Period (in months) | D14: 12 | E14: =IF(D14>0, "Rate Rider Recovery to be used below", "If no rate rider recovery period is proposed then the default recovery period of 12 months will be used") -> Rate Rider Recovery to be used below
B15: LRAM Proposed Rate Rider Recovery Period (in months) | D15: 12 | E15: =IF(D15>0, "Rate Rider Recovery to be used below", "If no rate rider recovery period is proposed then the default recovery period of 12 months will be used") -> Rate Rider Recovery to be used below
D17: Total Metered kWh | E17: Metered kW or kVA | F17: Total Metered kWh less WMP consumption | G17: Total Metered kW less WMP consumption | H17: Allocation of Group 1 Account Balances to All Classes 2 | I17: Allocation of Group 1 Account Balances to Non-WMP Classes Only (if Applicable) 2 | J17: Deferral/Variance Account Rate Rider 2 | K17: Deferral/Variance Account Rate Rider for Non-WMP (if applicable) 2 | L17: Account 1568 Rate Rider
B18: Rate Class | C18: Unit | M18: Revenue Reconciliation: | O18: Revenue Reconcilation 1
B19: ='4. Billing Det. for Def-Var'!B17 -> RESIDENTIAL SERVICE CLASSIFICATION | C19: ='4. Billing Det. for Def-Var'!C17 -> kWh | D19: ='4. Billing Det. for Def-Var'!D17 -> 1659016812 | E19: ='4. Billing Det. for Def-Var'!E17 -> 0 | F19: ='4. Billing Det. for Def-Var'!J17 -> 1659016812 | G19: ='4. Billing Det. for Def-Var'!K17 -> 0 | H19: =IFERROR(SUM('5. Allocating Def-Var Balances'!G16:V16)-I19,"") -> 2892611.431 | J19: =IF('4. Billing Det. for Def-Var'!$D$37="no",0,ROUND(IF(C19="kWh",IF(ISERROR(H19/D19),0,IF(OR(ISBLANK(D$14),OR(D$14=0,D$14="")),H19/D19/(D$13/12),H19/D19/(D$14/12))),IF(ISERROR(H19/E19),0,IF(OR(ISBLANK(D$14),OR(D$14=0,D$14="")),H19/E19/(D$13/12),H19/E19/(D$14/12)))),4)) -> 0 | K19: =IF('4. Billing Det. for Def-Var'!$D$37="no",0,ROUND(IF(C19="kWh",IF(ISERROR(I19/F19),0,IF(OR(ISBLANK(D$14),OR(D$14=0,D$14="")),I19/F19/(D$13/12),I19/F19/(D$14/12))),IF(ISERROR(I19/G19),0,IF(OR(ISBLANK(D$14),OR(D$14=0,D$14="")),I19/G19/(D$13/12),I19/G19/(D$14/12)))),4)) -> 0 | L19: =IF(C19="kWh",ROUND(IF(ISERROR('4. Billing Det. for Def-Var'!W17/D19), 0, IF(OR(ISBLANK(D$15), OR(D$15=0, D$15="")), ('4. Billing Det. for Def-Var'!W17/D19)/(D$13/12), ('4. Billing Det. for Def-Var'!W17/D19)/(D$15/12))),4),ROUND(IF(ISERROR('4. Billing Det. for Def-Var'!W17/E19), 0, IF(OR(ISBLANK(D$15), OR(D$15=0, D$15="")), ('4. Billing Det. for Def-Var'!W17/E19)/(D$13/12), ('4. Billing Det. for Def-Var'!W17/E19)/(D$15/12))),4)) -> 0.0004 | M19: =IF(C19="kWh",J19*D19,E19*J19) -> 0 | N19: =IF(C19="kWh",K19*F19,G19*K19) -> 0
B20: ='4. Billing Det. for Def-Var'!B18 -> GENERAL SERVICE LESS THAN 50 kW SERVICE CLASSIFICATION | C20: ='4. Billing Det. for Def-Var'!C18 -> kWh | D20: ='4. Billing Det. for Def-Var'!D18 -> 580343048.9 | E20: ='4. Billing Det. for Def-Var'!E18 -> 0 | F20: ='4. Billing Det. for Def-Var'!J18 -> 580343048.9 | G20: ='4. Billing Det. for Def-Var'!K18 -> 0 | H20: =IFERROR(SUM('5. Allocating Def-Var Balances'!G17:V17)-I20,"") -> 1057297.78 | J20: =IF('4. Billing Det. for Def-Var'!$D$37="no",0,ROUND(IF(C20="kWh",IF(ISERROR(H20/D20),0,IF(OR(ISBLANK(D$14),OR(D$14=0,D$14="")),H20/D20/(D$13/12),H20/D20/(D$14/12))),IF(ISERROR(H20/E20),0,IF(OR(ISBLANK(D$14),OR(D$14=0,D$14="")),H20/E20/(D$13/12),H20/E20/(D$14/12)))),4)) -> 0 | K20: =IF('4. Billing Det. for Def-Var'!$D$37="no",0,ROUND(IF(C20="kWh",IF(ISERROR(I20/F20),0,IF(OR(ISBLANK(D$14),OR(D$14=0,D$14="")),I20/F20/(D$13/12),I20/F20/(D$14/12))),IF(ISERROR(I20/G20),0,IF(OR(ISBLANK(D$14),OR(D$14=0,D$14="")),I20/G20/(D$13/12),I20/G20/(D$14/12)))),4)) -> 0 | L20: =IF(C20="kWh",ROUND(IF(ISERROR('4. Billing Det. for Def-Var'!W18/D20), 0, IF(OR(ISBLANK(D$15), OR(D$15=0, D$15="")), ('4. Billing Det. for Def-Var'!W18/D20)/(D$13/12), ('4. Billing Det. for Def-Var'!W18/D20)/(D$15/12))),4),ROUND(IF(ISERROR('4. Billing Det. for Def-Var'!W18/E20), 0, IF(OR(ISBLANK(D$15), OR(D$15=0, D$15="")), ('4. Billing Det. for Def-Var'!W18/E20)/(D$13/12), ('4. Billing Det. for Def-Var'!W18/E20)/(D$15/12))),4)) -> 0.0007 | M20: =IF(C20="kWh",J20*D20,E20*J20) -> 0 | N20: =IF(C20="kWh",K20*F20,G20*K20) -> 0
B21: ='4. Billing Det. for Def-Var'!B19 -> GENERAL SERVICE 50 to 4,999 kW SERVICE CLASSIFICATION | C21: ='4. Billing Det. for Def-Var'!C19 -> kW | D21: ='4. Billing Det. for Def-Var'!D19 -> 1836354552 | E21: ='4. Billing Det. for Def-Var'!E19 -> 4746295.437 | F21: ='4. Billing Det. for Def-Var'!J19 -> 1826416584 | G21: ='4. Billing Det. for Def-Var'!K19 -> 4728800.292 | H21: =IFERROR(SUM('5. Allocating Def-Var Balances'!G18:V18)-I21,"") -> 1248719.875 | I21: =IFERROR('5. Allocating Def-Var Balances'!I18+'5. Allocating Def-Var Balances'!N18,0) -> 2130480.359 | J21: =IF('4. Billing Det. for Def-Var'!$D$37="no",0,ROUND(IF(C21="kWh",IF(ISERROR(H21/D21),0,IF(OR(ISBLANK(D$14),OR(D$14=0,D$14="")),H21/D21/(D$13/12),H21/D21/(D$14/12))),IF(ISERROR(H21/E21),0,IF(OR(ISBLANK(D$14),OR(D$14=0,D$14="")),H21/E21/(D$13/12),H21/E21/(D$14/12)))),4)) -> 0 | K21: =IF('4. Billing Det. for Def-Var'!$D$37="no",0,ROUND(IF(C21="kWh",IF(ISERROR(I21/F21),0,IF(OR(ISBLANK(D$14),OR(D$14=0,D$14="")),I21/F21/(D$13/12),I21/F21/(D$14/12))),IF(ISERROR(I21/G21),0,IF(OR(ISBLANK(D$14),OR(D$14=0,D$14="")),I21/G21/(D$13/12),I21/G21/(D$14/12)))),4)) -> 0 | L21: =IF(C21="kWh",ROUND(IF(ISERROR('4. Billing Det. for Def-Var'!W19/D21), 0, IF(OR(ISBLANK(D$15), OR(D$15=0, D$15="")), ('4. Billing Det. for Def-Var'!W19/D21)/(D$13/12), ('4. Billing Det. for Def-Var'!W19/D21)/(D$15/12))),4),ROUND(IF(ISERROR('4. Billing Det. for Def-Var'!W19/E21), 0, IF(OR(ISBLANK(D$15), OR(D$15=0, D$15="")), ('4. Billing Det. for Def-Var'!W19/E21)/(D$13/12), ('4. Billing Det. for Def-Var'!W19/E21)/(D$15/12))),4)) -> 0.0134 | M21: 0 | N21: 0
B22: ='4. Billing Det. for Def-Var'!B20 -> LARGE USE SERVICE CLASSIFICATION | C22: ='4. Billing Det. for Def-Var'!C20 -> kW | D22: ='4. Billing Det. for Def-Var'!D20 -> 194222636.1 | E22: ='4. Billing Det. for Def-Var'!E20 -> 360259.695 | F22: ='4. Billing Det. for Def-Var'!J20 -> 187410800.8 | G22: ='4. Billing Det. for Def-Var'!K20 -> 339709.562 | H22: =IFERROR(SUM('5. Allocating Def-Var Balances'!G19:V19)-I22,"") -> 132071.2634 | I22: =IFERROR('5. Allocating Def-Var Balances'!I19+'5. Allocating Def-Var Balances'!N19,0) -> 218611.1503 | J22: =IF('4. Billing Det. for Def-Var'!$D$37="no",0,ROUND(IF(C22="kWh",IF(ISERROR(H22/D22),0,IF(OR(ISBLANK(D$14),OR(D$14=0,D$14="")),H22/D22/(D$13/12),H22/D22/(D$14/12))),IF(ISERROR(H22/E22),0,IF(OR(ISBLANK(D$14),OR(D$14=0,D$14="")),H22/E22/(D$13/12),H22/E22/(D$14/12)))),4)) -> 0 | K22: =IF('4. Billing Det. for Def-Var'!$D$37="no",0,ROUND(IF(C22="kWh",IF(ISERROR(I22/F22),0,IF(OR(ISBLANK(D$14),OR(D$14=0,D$14="")),I22/F22/(D$13/12),I22/F22/(D$14/12))),IF(ISERROR(I22/G22),0,IF(OR(ISBLANK(D$14),OR(D$14=0,D$14="")),I22/G22/(D$13/12),I22/G22/(D$14/12)))),4)) -> 0 | L22: =IF(C22="kWh",ROUND(IF(ISERROR('4. Billing Det. for Def-Var'!W20/D22), 0, IF(OR(ISBLANK(D$15), OR(D$15=0, D$15="")), ('4. Billing Det. for Def-Var'!W20/D22)/(D$13/12), ('4. Billing Det. for Def-Var'!W20/D22)/(D$15/12))),4),ROUND(IF(ISERROR('4. Billing Det. for Def-Var'!W20/E22), 0, IF(OR(ISBLANK(D$15), OR(D$15=0, D$15="")), ('4. Billing Det. for Def-Var'!W20/E22)/(D$13/12), ('4. Billing Det. for Def-Var'!W20/E22)/(D$15/12))),4)) -> 0.0304 | M22: 0 | N22: 0
B23: ='4. Billing Det. for Def-Var'!B21 -> LARGE USE SERVICE WITH DEDICATED ASSETS CLASSIFICATION | C23: ='4. Billing Det. for Def-Var'!C21 -> kW | D23: ='4. Billing Det. for Def-Var'!D21 -> 1110706646 | E23: ='4. Billing Det. for Def-Var'!E21 -> 2002430.496 | F23: ='4. Billing Det. for Def-Var'!J21 -> 338136686.7 | G23: ='4. Billing Det. for Def-Var'!K21 -> 775690.0362 | H23: =IFERROR(SUM('5. Allocating Def-Var Balances'!G20:V20)-I23,"") -> 755279.7809 | I23: =IFERROR('5. Allocating Def-Var Balances'!I20+'5. Allocating Def-Var Balances'!N20,0) -> 394430.0419 | J23: =IF('4. Billing Det. for Def-Var'!$D$37="no",0,ROUND(IF(C23="kWh",IF(ISERROR(H23/D23),0,IF(OR(ISBLANK(D$14),OR(D$14=0,D$14="")),H23/D23/(D$13/12),H23/D23/(D$14/12))),IF(ISERROR(H23/E23),0,IF(OR(ISBLANK(D$14),OR(D$14=0,D$14="")),H23/E23/(D$13/12),H23/E23/(D$14/12)))),4)) -> 0 | K23: =IF('4. Billing Det. for Def-Var'!$D$37="no",0,ROUND(IF(C23="kWh",IF(ISERROR(I23/F23),0,IF(OR(ISBLANK(D$14),OR(D$14=0,D$14="")),I23/F23/(D$13/12),I23/F23/(D$14/12))),IF(ISERROR(I23/G23),0,IF(OR(ISBLANK(D$14),OR(D$14=0,D$14="")),I23/G23/(D$13/12),I23/G23/(D$14/12)))),4)) -> 0 | L23: =IF(C23="kWh",ROUND(IF(ISERROR('4. Billing Det. for Def-Var'!W21/D23), 0, IF(OR(ISBLANK(D$15), OR(D$15=0, D$15="")), ('4. Billing Det. for Def-Var'!W21/D23)/(D$13/12), ('4. Billing Det. for Def-Var'!W21/D23)/(D$15/12))),4),ROUND(IF(ISERROR('4. Billing Det. for Def-Var'!W21/E23), 0, IF(OR(ISBLANK(D$15), OR(D$15=0, D$15="")), ('4. Billing Det. for Def-Var'!W21/E23)/(D$13/12), ('4. Billing Det. for Def-Var'!W21/E23)/(D$15/12))),4)) -> 0.0092 | M23: 0 | N23: 0
B24: ='4. Billing Det. for Def-Var'!B22 -> UNMETERED SCATTERED LOAD SERVICE CLASSIFICATION | C24: ='4. Billing Det. for Def-Var'!C22 -> kWh | D24: ='4. Billing Det. for Def-Var'!D22 -> 11372501.37 | E24: ='4. Billing Det. for Def-Var'!E22 -> 0 | F24: ='4. Billing Det. for Def-Var'!J22 -> 11372501.37 | G24: ='4. Billing Det. for Def-Var'!K22 -> 0 | H24: =IFERROR(SUM('5. Allocating Def-Var Balances'!G21:V21)-I24,"") -> 20999.10086 | J24: =IF('4. Billing Det. for Def-Var'!$D$37="no",0,ROUND(IF(C24="kWh",IF(ISERROR(H24/D24),0,IF(OR(ISBLANK(D$14),OR(D$14=0,D$14="")),H24/D24/(D$13/12),H24/D24/(D$14/12))),IF(ISERROR(H24/E24),0,IF(OR(ISBLANK(D$14),OR(D$14=0,D$14="")),H24/E24/(D$13/12),H24/E24/(D$14/12)))),4)) -> 0 | K24: =IF('4. Billing Det. for Def-Var'!$D$37="no",0,ROUND(IF(C24="kWh",IF(ISERROR(I24/F24),0,IF(OR(ISBLANK(D$14),OR(D$14=0,D$14="")),I24/F24/(D$13/12),I24/F24/(D$14/12))),IF(ISERROR(I24/G24),0,IF(OR(ISBLANK(D$14),OR(D$14=0,D$14="")),I24/G24/(D$13/12),I24/G24/(D$14/12)))),4)) -> 0 | L24: =IF(C24="kWh",ROUND(IF(ISERROR('4. Billing Det. for Def-Var'!W22/D24), 0, IF(OR(ISBLANK(D$15), OR(D$15=0, D$15="")), ('4. Billing Det. for Def-Var'!W22/D24)/(D$13/12), ('4. Billing Det. for Def-Var'!W22/D24)/(D$15/12))),4),ROUND(IF(ISERROR('4. Billing Det. for Def-Var'!W22/E24), 0, IF(OR(ISBLANK(D$15), OR(D$15=0, D$15="")), ('4. Billing Det. for Def-Var'!W22/E24)/(D$13/12), ('4. Billing Det. for Def-Var'!W22/E24)/(D$15/12))),4)) -> 0.0023 | M24: 0 | N24: 0
B25: ='4. Billing Det. for Def-Var'!B23 -> SENTINEL LIGHTING SERVICE CLASSIFICATION | C25: ='4. Billing Det. for Def-Var'!C23 -> kW | D25: ='4. Billing Det. for Def-Var'!D23 -> 482317.4829 | E25: ='4. Billing Det. for Def-Var'!E23 -> 1320.307601 | F25: ='4. Billing Det. for Def-Var'!J23 -> 482317.4829 | G25: ='4. Billing Det. for Def-Var'!K23 -> 1320.307601 | H25: =IFERROR(SUM('5. Allocating Def-Var Balances'!G22:V22)-I25,"") -> 890.5897783 | J25: =IF('4. Billing Det. for Def-Var'!$D$37="no",0,ROUND(IF(C25="kWh",IF(ISERROR(H25/D25),0,IF(OR(ISBLANK(D$14),OR(D$14=0,D$14="")),H25/D25/(D$13/12),H25/D25/(D$14/12))),IF(ISERROR(H25/E25),0,IF(OR(ISBLANK(D$14),OR(D$14=0,D$14="")),H25/E25/(D$13/12),H25/E25/(D$14/12)))),4)) -> 0 | K25: =IF('4. Billing Det. for Def-Var'!$D$37="no",0,ROUND(IF(C25="kWh",IF(ISERROR(I25/F25),0,IF(OR(ISBLANK(D$14),OR(D$14=0,D$14="")),I25/F25/(D$13/12),I25/F25/(D$14/12))),IF(ISERROR(I25/G25),0,IF(OR(ISBLANK(D$14),OR(D$14=0,D$14="")),I25/G25/(D$13/12),I25/G25/(D$14/12)))),4)) -> 0 | L25: =IF(C25="kWh",ROUND(IF(ISERROR('4. Billing Det. for Def-Var'!W23/D25), 0, IF(OR(ISBLANK(D$15), OR(D$15=0, D$15="")), ('4. Billing Det. for Def-Var'!W23/D25)/(D$13/12), ('4. Billing Det. for Def-Var'!W23/D25)/(D$15/12))),4),ROUND(IF(ISERROR('4. Billing Det. for Def-Var'!W23/E25), 0, IF(OR(ISBLANK(D$15), OR(D$15=0, D$15="")), ('4. Billing Det. for Def-Var'!W23/E25)/(D$13/12), ('4. Billing Det. for Def-Var'!W23/E25)/(D$15/12))),4)) -> 0 | M25: 0 | N25: 0
B26: ='4. Billing Det. for Def-Var'!B24 -> STREET LIGHTING SERVICE CLASSIFICATION | C26: ='4. Billing Det. for Def-Var'!C24 -> kW | D26: ='4. Billing Det. for Def-Var'!D24 -> 18806000.59 | E26: ='4. Billing Det. for Def-Var'!E24 -> 58768.585 | F26: ='4. Billing Det. for Def-Var'!J24 -> 18806000.59 | G26: ='4. Billing Det. for Def-Var'!K24 -> 58768.585 | H26: =IFERROR(SUM('5. Allocating Def-Var Balances'!G23:V23)-I26,"") -> 34724.91147 | J26: =IF('4. Billing Det. for Def-Var'!$D$37="no",0,ROUND(IF(C26="kWh",IF(ISERROR(H26/D26),0,IF(OR(ISBLANK(D$14),OR(D$14=0,D$14="")),H26/D26/(D$13/12),H26/D26/(D$14/12))),IF(ISERROR(H26/E26),0,IF(OR(ISBLANK(D$14),OR(D$14=0,D$14="")),H26/E26/(D$13/12),H26/E26/(D$14/12)))),4)) -> 0 | K26: =IF('4. Billing Det. for Def-Var'!$D$37="no",0,ROUND(IF(C26="kWh",IF(ISERROR(I26/F26),0,IF(OR(ISBLANK(D$14),OR(D$14=0,D$14="")),I26/F26/(D$13/12),I26/F26/(D$14/12))),IF(ISERROR(I26/G26),0,IF(OR(ISBLANK(D$14),OR(D$14=0,D$14="")),I26/G26/(D$13/12),I26/G26/(D$14/12)))),4)) -> 0 | L26: =IF(C26="kWh",ROUND(IF(ISERROR('4. Billing Det. for Def-Var'!W24/D26), 0, IF(OR(ISBLANK(D$15), OR(D$15=0, D$15="")), ('4. Billing Det. for Def-Var'!W24/D26)/(D$13/12), ('4. Billing Det. for Def-Var'!W24/D26)/(D$15/12))),4),ROUND(IF(ISERROR('4. Billing Det. for Def-Var'!W24/E26), 0, IF(OR(ISBLANK(D$15), OR(D$15=0, D$15="")), ('4. Billing Det. for Def-Var'!W24/E26)/(D$13/12), ('4. Billing Det. for Def-Var'!W24/E26)/(D$15/12))),4)) -> 2.7694 | M26: 0 | N26: 0
B27: ='4. Billing Det. for Def-Var'!B25 -> STANDBY POWER SERVICE CLASSIFICATION | C27: ='4. Billing Det. for Def-Var'!C25 -> kW | D27: ='4. Billing Det. for Def-Var'!D25 -> 0 | E27: ='4. Billing Det. for Def-Var'!E25 -> 0 | F27: ='4. Billing Det. for Def-Var'!J25 -> 0 | G27: ='4. Billing Det. for Def-Var'!K25 -> 0 | H27: =IFERROR(SUM('5. Allocating Def-Var Balances'!G24:V24)-I27,"") -> 0 | J27: =IF('4. Billing Det. for Def-Var'!$D$37="no",0,ROUND(IF(C27="kWh",IF(ISERROR(H27/D27),0,IF(OR(ISBLANK(D$14),OR(D$14=0,D$14="")),H27/D27/(D$13/12),H27/D27/(D$14/12))),IF(ISERROR(H27/E27),0,IF(OR(ISBLANK(D$14),OR(D$14=0,D$14="")),H27/E27/(D$13/12),H27/E27/(D$14/12)))),4)) -> 0 | K27: =IF('4. Billing Det. for Def-Var'!$D$37="no",0,ROUND(IF(C27="kWh",IF(ISERROR(I27/F27),0,IF(OR(ISBLANK(D$14),OR(D$14=0,D$14="")),I27/F27/(D$13/12),I27/F27/(D$14/12))),IF(ISERROR(I27/G27),0,IF(OR(ISBLANK(D$14),OR(D$14=0,D$14="")),I27/G27/(D$13/12),I27/G27/(D$14/12)))),4)) -> 0 | L27: =IF(C27="kWh",ROUND(IF(ISERROR('4. Billing Det. for Def-Var'!W25/D27), 0, IF(OR(ISBLANK(D$15), OR(D$15=0, D$15="")), ('4. Billing Det. for Def-Var'!W25/D27)/(D$13/12), ('4. Billing Det. for Def-Var'!W25/D27)/(D$15/12))),4),ROUND(IF(ISERROR('4. Billing Det. for Def-Var'!W25/E27), 0, IF(OR(ISBLANK(D$15), OR(D$15=0, D$15="")), ('4. Billing Det. for Def-Var'!W25/E27)/(D$13/12), ('4. Billing Det. for Def-Var'!W25/E27)/(D$15/12))),4)) -> 0 | M27: 0 | N27: 0
M29: =SUM(M19:M28) -> 0 | N29: =SUM(N19:N28) -> 0 | O29: =SUM(M29:N29) -> 0
B32: 1 When calculating the revenue reconciliation for distributors with Class A customers, the balances of sub-account 1580-CBR Class A and B will not be taken into consideration since the rate riders, if any, are calculated outside of the model.
B33: 2 Only for rate classes with WMP customers are the Deferral/Variance Account Rate Riders for Non-WMP (column H and J) calculated separately. For all rate classes without WMP customers, balances in account 1580 and 1588 are included in column H and disposed through a combined Deferral/Variance Account and Rate Rider.

Sheet 9. STS-Tax Change
A1: Back to Index | U1: Tax Rates | V1: Effective
B2: =+'1. Information Sheet'!B2 -> INCENTIVE REGULATION MODEL FOR 2020 FILERS | U2: Federal & Provincial | V2: 2016-01-01
U3: As of June 20, 2012
U5: Federal income tax | V5: 0.38
U6: General corporate rate | V6: -0.1
U7: Federal tax abatement | V7: =SUM(V5:V6) -> 0.28
U8: Adjusted federal rate | V8: -0.13
U9: Rate reduction | V9: =V7+V8 -> 0.15
U10: Ontario income tax | V10: 0.115
U12: Combined federal and Ontario | V12: =V9+V10 -> 0.265
B13: Summary - Sharing of Tax Change Forecast Amounts
U14: Federal & Ontario Small Business
B15: ="For the " & '1. Information Sheet'!G32 & " year, enter any Tax Credits from the Cost of Service Tax Calculation (Positive #)" -> For the 2019 year, enter any Tax Credits from the Cost of Service Tax Calculation (Positive #) | U15: Federal small business threshold | V15: 500000
U16: Ontario Small Business Threshold | V16: 500000
B18: 1. Tax Related Amounts Forecast from Capital Tax Rate Changes | M18: 2019 | O18: =M18+1 -> 2020 | U18: Federal small business rate | V18: 0.105
B19: Taxable Capital (if you are not claiming capital tax, please enter your OEB-Approved Rate Base) | O19: =M19 -> 0
U20: Ontario small business rate | V20: 0.045
B21: Deduction from taxable capital up to $15,000,000 | O21: =M21 -> 0
B23: Net Taxable Capital | M23: =M19-M21 -> 0 | O23: =O19-O21 -> 0
B25: Rate | O25: 0 | U25: Ontario Tax Rate (Maximum 11.5%)
U26: Federal tax rate (Maximum 15%)
B27: Ontario Capital Tax (Deductible, not grossed-up) | M27: =IF(M23>0, M23*M25, 0)*181/365 -> 0 | O27: 0 | U27: Combined tax rate (Maximum 26.5%)
B29: 2. Tax Related Amounts Forecast from lncome Tax Rate Changes
B30: Regulatory Taxable Income | O30: =M30 -> 0
B32: Corporate Tax Rate | O32: =IF(ratebase>15000000, 26.5%, IF(ratebase<10000000, 15%, 15%+11.5%*((ratebase-10000000)/5000000))) -> 0.15
B34: Tax Impact | M34: =M30*M32-M15 -> 0 | O34: =O30*O32-M15 -> 0
B36: Grossed-up Tax Amount | M36: =M34/(1-M32) -> 0 | O36: =O34/(1-O32) -> 0
B38: Tax Related Amounts Forecast from Capital Tax Rate Changes | M38: =M27 -> 0 | O38: =O27 -> 0
B40: Tax Related Amounts Forecast from lncome Tax Rate Changes | M40: =M36 -> 0 | O40: =O36 -> 0
B42: Total Tax Related Amounts | M42: =SUM(M40,M38) -> 0 | O42: =SUM(O40,O38) -> 0
B44: Incremental Tax Savings | O44: =O42-M42 -> 0
B46: Sharing of Tax Amount (50%) | O46: =0.5*O44 -> 0

Sheet 10. Shared Tax - RR
A1: Back to Index
B2: =+'1. Information Sheet'!B2 -> INCENTIVE REGULATION MODEL FOR 2020 FILERS
B12: Calculation of Rebased Revenue Requirement and Allocation of Tax Sharing Amount. Enter data from the last OEB-Approved Cost of Service application in columns D through I.
B13: As per Chapter 3 Filing Requirements, shared tax rate riders are based on a 1 year disposition.
B15: Rate Class | D15: Re-based Billed Customers or Connections | E15: Re-based Billed kWh | F15: Re-based Billed kW | G15: Re-based Service Charge | H15: Re-based Distribution Volumetric Rate kWh | I15: Re-based Distribution Volumetric Rate kW | J15: Service Charge Revenue | K15: Distribution Volumetric Rate Revenue kWh | L15: Distribution Volumetric Rate Revenue kW | M15: Revenue Requirement from Rates | N15: Service Charge % Revenue | O15: Distribution Volumetric Rate % Revenue kWh | P15: Distribution Volumetric Rate % Revenue kW | Q15: Total % Revenue
D16: A | E16: B | F16: C | G16: D | H16: E | I16: F | J16: G = A * D *12 | K16: H = B * E | L16: I = C * F | M16: J = G + H + I | N16: K = G / J | O16: L = H / J | P16: M = I / J | Q16: N = J / R
B17: ='4. Billing Det. for Def-Var'!B17 -> RESIDENTIAL SERVICE CLASSIFICATION | C17: ='4. Billing Det. for Def-Var'!C17 -> kWh | D17: 225004 | E17: =+'[51]4. Billing Det. for Def-Var'!D17 -> 1537580329 | F17: =+'[51]4. Billing Det. for Def-Var'!E17 -> 0 | G17: 26.7 | H17: 0 | I17: 0 | J17: =G17*D17*12 -> 72091281.6 | K17: =E17*H17 -> 0 | L17: =F17*I17 -> 0 | M17: =J17+K17+L17 -> 72091281.6 | N17: =IF(ISERROR(J17/M17),0,J17/M17) -> 1 | O17: =IF(ISERROR(K17/M17),0,K17/M17) -> 0 | P17: =IF(ISERROR(L17/M17),0,L17/M17) -> 0 | Q17: =IF(ISERROR(M17/M30),0,M17/M30) -> 0.6251980498
B18: ='4. Billing Det. for Def-Var'!B18 -> GENERAL SERVICE LESS THAN 50 kW SERVICE CLASSIFICATION | C18: ='4. Billing Det. for Def-Var'!C18 -> kWh | D18: 18847 | E18: =+'[51]4. Billing Det. for Def-Var'!D18 -> 558828431 | F18: =+'[51]4. Billing Det. for Def-Var'!E18 -> 0 | G18: 42.29 | H18: 0.0109 | I18: 0 | J18: 9564475.56 | K18: 6091229.898 | L18: 0 | M18: 15655705.46 | N18: 0.6109258753 | O18: 0.3890741247 | P18: 0 | Q18: =IF(ISERROR(M18/M30),0,M18/M30) -> 0.1357711543
B19: ='4. Billing Det. for Def-Var'!B19 -> GENERAL SERVICE 50 to 4,999 kW SERVICE CLASSIFICATION | C19: ='4. Billing Det. for Def-Var'!C19 -> kW | D19: 2031 | E19: =+'[51]4. Billing Det. for Def-Var'!D19 -> 1751908545 | F19: =+'[51]4. Billing Det. for Def-Var'!E19 -> 4824433.383 | G19: 389.4 | H19: 0 | I19: 2.615 | J19: 9490456.8 | K19: 0 | L19: 12615893.3 | M19: 22106350.1 | N19: 0.429309079 | O19: 0 | P19: 0.570690921 | Q19: =IF(ISERROR(M19/M30),0,M19/M30) -> 0.1917131539
B20: ='4. Billing Det. for Def-Var'!B20 -> LARGE USE SERVICE CLASSIFICATION | C20: ='4. Billing Det. for Def-Var'!C20 -> kW | D20: 5 | E20: =+'[51]4. Billing Det. for Def-Var'!D20 -> 220526376.8 | F20: =+'[51]4. Billing Det. for Def-Var'!E20 -> 456125.738 | G20: 24279.37 | H20: 0 | I20: 1.4325 | J20: 1456762.2 | K20: 0 | L20: 653400.1197 | M20: 2110162.32 | N20: 0.6903555174 | O20: 0 | P20: 0.3096444826 | Q20: =IF(ISERROR(M20/M30),0,M20/M30) -> 0.01829998493
B21: ='4. Billing Det. for Def-Var'!B21 -> LARGE USE SERVICE WITH DEDICATED ASSETS CLASSIFICATION | C21: ='4. Billing Det. for Def-Var'!C21 -> kW | D21: 7 | E21: =+'[51]4. Billing Det. for Def-Var'!D21 -> 1050812632 | F21: =+'[51]4. Billing Det. for Def-Var'!E21 -> 1982813.538 | G21: 5755.85 | H21: 0 | I21: 0.3396 | J21: 483491.4 | K21: 0 | L21: 673363.4775 | M21: 1156854.878 | N21: 0.4179360864 | O21: 0 | P21: 0.5820639136 | Q21: =IF(ISERROR(M21/M30),0,M21/M30) -> 0.01003260585
B22: ='4. Billing Det. for Def-Var'!B22 -> UNMETERED SCATTERED LOAD SERVICE CLASSIFICATION | C22: ='4. Billing Det. for Def-Var'!C22 -> kWh | D22: 2958 | E22: =+'[51]4. Billing Det. for Def-Var'!D22 -> 11347508.42 | F22: =+'[51]4. Billing Det. for Def-Var'!E22 -> 0 | G22: 8.63 | H22: 0.0134 | I22: 0 | J22: 306330.48 | K22: 152056.6128 | L22: 0 | M22: 458387.0928 | N22: 0.6682790262 | O22: 0.3317209738 | P22: 0 | Q22: =IF(ISERROR(M22/M30),0,M22/M30) -> 0.003975275652
B23: ='4. Billing Det. for Def-Var'!B23 -> SENTINEL LIGHTING SERVICE CLASSIFICATION | C23: ='4. Billing Det. for Def-Var'!C23 -> kW | D23: 342 | E23: =+'[51]4. Billing Det. for Def-Var'!D23 -> 439954.0228 | F23: =+'[51]4. Billing Det. for Def-Var'!E23 -> 946.9101177 | G23: 5.63 | H23: 0 | I23: 15.4416 | J23: 23105.52 | K23: 0 | L23: 14621.80727 | M23: 37727.32727 | N23: 0.6124345844 | O23: 0 | P23: 0.3875654156 | Q23: =IF(ISERROR(M23/M30),0,M23/M30) -> 0.0003271831338
B24: ='4. Billing Det. for Def-Var'!B24 -> STREET LIGHTING SERVICE CLASSIFICATION | C24: ='4. Billing Det. for Def-Var'!C24 -> kW | D24: 53035 | E24: =+'[51]4. Billing Det. for Def-Var'!D24 -> 31193672.3 | F24: =+'[51]4. Billing Det. for Def-Var'!E24 -> 87344.171 | G24: 1.95 | H24: 0 | I24: 5.1752 | J24: 1241019 | K24: 0 | L24: 452023.5538 | M24: 1693042.554 | N24: 0.7330111091 | O24: 0 | P24: 0.2669888909 | Q24: =IF(ISERROR(M24/M30),0,M24/M30) -> 0.01468259239
B25: ='4. Billing Det. for Def-Var'!B25 -> STANDBY POWER SERVICE CLASSIFICATION | C25: ='4. Billing Det. for Def-Var'!C25 -> kW | E25: =+'[51]4. Billing Det. for Def-Var'!D25 -> 0 | F25: =+'[51]4. Billing Det. for Def-Var'!E25 -> 0 | J25: 0 | K25: 0 | L25: 0 | M25: 0 | N25: 0 | O25: 0 | P25: 0 | Q25: =IF(ISERROR(M25/M30),0,M25/M30) -> 0
J26: =G26*D26*12 -> 0 | K26: =E26*H26 -> 0 | L26: =F26*I26 -> 0 | M26: =J26+K26+L26 -> 0 | N26: =IF(ISERROR(J26/M26),0,J26/M26) -> 0 | O26: =IF(ISERROR(K26/M26),0,K26/M26) -> 0 | P26: =IF(ISERROR(L26/M26),0,L26/M26) -> 0 | Q26: =IF(ISERROR(M26/M31),0,M26/M31) -> 0
J27: 0 | K27: 0 | L27: 0 | M27: 0 | N27: 0 | O27: 0 | P27: 0 | Q27: 0
J28: 0 | K28: 0 | L28: 0 | M28: 0 | N28: 0 | O28: 0 | P28: 0 | Q28: 0
J29: 0 | K29: 0 | L29: 0 | M29: 0 | N29: 0 | O29: 0 | P29: 0 | Q29: 0
B30: Total | D30: =SUM(D17:D29) -> 302229 | E30: =SUM(E17:E29) -> 5162637449 | F30: 7351663.74 | J30: =SUM(J17:J29) -> 94656922.56 | K30: =SUM(K17:K29) -> 6243286.511 | L30: 14409302.25 | M30: 115309511.3 | Q30: =SUM(Q17:Q29) -> 1
B33: Rate Class | D33: Total kWh (most recent RRR filing) | E33: Total kW (most recent RRR filing) | F33: Allocation of Tax Savings by Rate Class | G33: Distribution Rate Rider
B34: =B17 -> RESIDENTIAL SERVICE CLASSIFICATION | C34: kWh | D34: ='4. Billing Det. for Def-Var'!D17 -> 1659016812 | E34: ='4. Billing Det. for Def-Var'!E17 -> 0 | F34: =F$48*Q17 -> 0 | G34: =IFERROR(ROUND(F34/'4. Billing Det. for Def-Var'!X17,2),"") -> 0 | H34: $/Customer | I34: If the allocated tax sharing amount does not produce a rate rider in one or more rate class (except for the Standby rate class), a distributor is required to transfer the entire OEB-approved tax sharing amount into account 1595 for disposition at a later date (see Filing Requirements, Appendix B)
B35: GENERAL SERVICE LESS THAN 50 kW SERVICE CLASSIFICATION | C35: kWh | D35: ='4. Billing Det. for Def-Var'!D18 -> 580343048.9 | E35: ='4. Billing Det. for Def-Var'!E18 -> 0 | F35: =F$48*Q18 -> 0 | G35: =IFERROR(ROUND(IF(E35<>0,F35/E35,F35/D35),4),"") -> 0 | H35: $/kWh
B36: GENERAL SERVICE 50 to 4,999 kW SERVICE CLASSIFICATION | C36: kW | D36: ='4. Billing Det. for Def-Var'!D19 -> 1836354552 | E36: ='4. Billing Det. for Def-Var'!E19 -> 4746295.437 | F36: 0 | G36: =IFERROR(ROUND(IF(E36<>0,F36/E36,F36/D36),4),"") -> 0 | H36: $/kW
B37: LARGE USE SERVICE CLASSIFICATION | C37: kW | D37: ='4. Billing Det. for Def-Var'!D20 -> 194222636.1 | E37: ='4. Billing Det. for Def-Var'!E20 -> 360259.695 | F37: 0 | G37: 0 | H37: $/kW
B38: LARGE USE SERVICE WITH DEDICATED ASSETS CLASSIFICATION | C38: kW | D38: ='4. Billing Det. for Def-Var'!D21 -> 1110706646 | E38: ='4. Billing Det. for Def-Var'!E21 -> 2002430.496 | F38: 0 | G38: 0 | H38: $/kW
B39: UNMETERED SCATTERED LOAD SERVICE CLASSIFICATION | C39: kWh | D39: ='4. Billing Det. for Def-Var'!D22 -> 11372501.37 | E39: ='4. Billing Det. for Def-Var'!E22 -> 0 | F39: 0 | G39: 0 | H39: $/kWh
B40: SENTINEL LIGHTING SERVICE CLASSIFICATION | C40: kW | D40: ='4. Billing Det. for Def-Var'!D23 -> 482317.4829 | E40: ='4. Billing Det. for Def-Var'!E23 -> 1320.307601 | F40: 0 | G40: 0 | H40: $/kW
B41: STREET LIGHTING SERVICE CLASSIFICATION | C41: kW | D41: ='4. Billing Det. for Def-Var'!D24 -> 18806000.59 | E41: ='4. Billing Det. for Def-Var'!E24 -> 58768.585 | F41: 0 | G41: 0 | H41: $/kW
B42: STANDBY POWER SERVICE CLASSIFICATION | C42: kW | D42: ='4. Billing Det. for Def-Var'!D25 -> 0 | E42: ='4. Billing Det. for Def-Var'!E25 -> 0 | F42: 0 | G42: =IFERROR(ROUND(IF(E42<>0,F42/E42,F42/D42),4),"") ->  | H42: $/kW
F43: =F$48*Q30 -> 0 | G43: =IFERROR(ROUND(IF(E43<>"",F43/E43,F43/D43),4),"") -> 
F44: =F$48*Q31 -> 0
F45: 0
F46: 0
D48: =SUM(D34:D47) -> 5411304515 | E48: =SUM(E34:E47) -> 7169074.521 | F48: =ROUND('9. STS-Tax Change'!O46,2) -> 0

Sheet 11. RTSR - Current Rates
A1: Back to Index | BA1: 1
B2: =+'1. Information Sheet'!B2 -> INCENTIVE REGULATION MODEL FOR 2020 FILERS
B13: Columns F and G must match the data from the most recent RRR filing (Tab 4). Rates have been imported from Tab "RATES". Loss Factor has been imported from "Model Specs" tab. If the data needs to be modified, please make the necessary adjustments and note the changes in your manager's summary.
B15: Rate Class | C15: Rate Description | D15: Unit | E15: Rate | F15: Non-Loss Adjusted Metered kWh | G15: Non-Loss Adjusted Metered kW | H15: Applicable Loss Factor | I15: Loss Adjusted Billed kWh
A16: =IFERROR(VLOOKUP(B16,'Model Specs'!K$16:N$31,3,FALSE),"") -> R_TN | B16: ='4. Billing Det. for Def-Var'!B17 -> RESIDENTIAL SERVICE CLASSIFICATION | C16: Retail Transmission Rate – Network Service Rate | D16: $/kWh | E16: =IFERROR(VLOOKUP(A16,_xlnm.DATABASE,8,FALSE),0) -> 0.0072 | F16: ='4. Billing Det. for Def-Var'!D17 -> 1659016812 | G16: ='4. Billing Det. for Def-Var'!E17 -> 0 | H16: =IF(D16="$/kW","",LLF) -> 1.0379 | I16: =IF(H16<>"",F16*H16,"") -> 1721893550
A17: =IFERROR(VLOOKUP(B17,'Model Specs'!K$16:N$31,3,FALSE),"") -> GSL_TN | B17: ='4. Billing Det. for Def-Var'!B18 -> GENERAL SERVICE LESS THAN 50 kW SERVICE CLASSIFICATION | C17: Retail Transmission Rate – Network Service Rate | D17: $/kWh | E17: 0.0063 | F17: ='4. Billing Det. for Def-Var'!D18 -> 580343048.9 | G17: ='4. Billing Det. for Def-Var'!E18 -> 0 | H17: 1.0379 | I17: =IF(H17<>"",F17*H17,"") -> 602338050.4
A18: =IFERROR(VLOOKUP(B18,'Model Specs'!K$16:N$31,3,FALSE),"") -> GSG_TN | B18: ='4. Billing Det. for Def-Var'!B19 -> GENERAL SERVICE 50 to 4,999 kW SERVICE CLASSIFICATION | C18: Retail Transmission Rate – Network Service Rate | D18: $/kW | E18: 2.5204 | F18: ='4. Billing Det. for Def-Var'!D19 -> 1836354552 | G18: ='4. Billing Det. for Def-Var'!E19 -> 4746295.437
A19: =IFERROR(VLOOKUP(B19,'Model Specs'!K$16:N$31,3,FALSE),"") -> LU_TN | B19: ='4. Billing Det. for Def-Var'!B20 -> LARGE USE SERVICE CLASSIFICATION | C19: Retail Transmission Rate – Network Service Rate | D19: $/kW | E19: 2.8791 | F19: ='4. Billing Det. for Def-Var'!D20 -> 194222636.1 | G19: ='4. Billing Det. for Def-Var'!E20 -> 360259.695
A20: =IFERROR(VLOOKUP(B20,'Model Specs'!K$16:N$31,3,FALSE),"") -> LUDA_TN | B20: ='4. Billing Det. for Def-Var'!B21 -> LARGE USE SERVICE WITH DEDICATED ASSETS CLASSIFICATION | C20: Retail Transmission Rate – Network Service Rate | D20: $/kW | E20: 2.8791 | F20: ='4. Billing Det. for Def-Var'!D21 -> 1110706646 | G20: ='4. Billing Det. for Def-Var'!E21 -> 2002430.496
A21: =IFERROR(VLOOKUP(B21,'Model Specs'!K$16:N$31,3,FALSE),"") -> USL_TN | B21: ='4. Billing Det. for Def-Var'!B22 -> UNMETERED SCATTERED LOAD SERVICE CLASSIFICATION | C21: Retail Transmission Rate – Network Service Rate | D21: $/kWh | E21: 0.0064 | F21: ='4. Billing Det. for Def-Var'!D22 -> 11372501.37 | G21: ='4. Billing Det. for Def-Var'!E22 -> 0 | H21: 1.0379 | I21: 11803519.17
A22: =IFERROR(VLOOKUP(B22,'Model Specs'!K$16:N$31,3,FALSE),"") -> SEN_TN | B22: ='4. Billing Det. for Def-Var'!B23 -> SENTINEL LIGHTING SERVICE CLASSIFICATION | C22: Retail Transmission Rate – Network Service Rate | D22: $/kW | E22: 2.0943 | F22: ='4. Billing Det. for Def-Var'!D23 -> 482317.4829 | G22: ='4. Billing Det. for Def-Var'!E23 -> 1320.307601
A23: =IFERROR(VLOOKUP(B23,'Model Specs'!K$16:N$31,3,FALSE),"") -> SL_TN | B23: ='4. Billing Det. for Def-Var'!B24 -> STREET LIGHTING SERVICE CLASSIFICATION | C23: Retail Transmission Rate – Network Service Rate | D23: $/kW | E23: 1.984 | F23: ='4. Billing Det. for Def-Var'!D24 -> 18806000.59 | G23: ='4. Billing Det. for Def-Var'!E24 -> 58768.585
B24: ='4. Billing Det. for Def-Var'!B25 -> STANDBY POWER SERVICE CLASSIFICATION
A29: =IFERROR(VLOOKUP(B29,'Model Specs'!K$16:N$31,4,FALSE),"") -> R_TC | B29: =B16 -> RESIDENTIAL SERVICE CLASSIFICATION | C29: Retail Transmission Rate – Line and Transformation Connection Service Rate | D29: =D16 -> $/kWh | E29: =IFERROR(VLOOKUP(A29,_xlnm.DATABASE,8,FALSE),0) -> 0.0066 | F29: =F16 -> 1659016812 | G29: =G16 -> 0 | H29: =H16 -> 1.0379 | I29: =I16 -> 1721893550
A30: =IFERROR(VLOOKUP(B30,'Model Specs'!K$16:N$31,4,FALSE),"") -> GSL_TC | B30: =B17 -> GENERAL SERVICE LESS THAN 50 kW SERVICE CLASSIFICATION | C30: Retail Transmission Rate – Line and Transformation Connection Service Rate | D30: =D17 -> $/kWh | E30: 0.0059 | F30: =F17 -> 580343048.9 | G30: 0 | H30: 1.0379 | I30: 602338050.4
A31: =IFERROR(VLOOKUP(B31,'Model Specs'!K$16:N$31,4,FALSE),"") -> GSG_TC | B31: GENERAL SERVICE 50 to 4,999 kW SERVICE CLASSIFICATION | C31: Retail Transmission Rate – Line and Transformation Connection Service Rate | D31: $/kW | E31: 2.3873 | F31: 1836354552 | G31: 4746295.437
A32: =IFERROR(VLOOKUP(B32,'Model Specs'!K$16:N$31,4,FALSE),"") -> LU_TC | B32: LARGE USE SERVICE CLASSIFICATION | C32: Retail Transmission Rate – Line and Transformation Connection Service Rate | D32: $/kW | E32: 2.7433 | F32: 194222636.1 | G32: 360259.695
A33: =IFERROR(VLOOKUP(B33,'Model Specs'!K$16:N$31,4,FALSE),"") -> LUDA_TC | B33: LARGE USE SERVICE WITH DEDICATED ASSETS CLASSIFICATION | C33: Retail Transmission Rate – Line and Transformation Connection Service Rate | D33: $/kW | E33: 2.7433 | F33: 1110706646 | G33: 2002430.496
A34: =IFERROR(VLOOKUP(B34,'Model Specs'!K$16:N$31,4,FALSE),"") -> USL_TC | B34: UNMETERED SCATTERED LOAD SERVICE CLASSIFICATION | C34: Retail Transmission Rate – Line and Transformation Connection Service Rate | D34: $/kWh | E34: 0.006 | F34: 11372501.37 | G34: 0 | H34: 1.0379 | I34: 11803519.17
A35: =IFERROR(VLOOKUP(B35,'Model Specs'!K$16:N$31,4,FALSE),"") -> SEN_TC | B35: SENTINEL LIGHTING SERVICE CLASSIFICATION | C35: Retail Transmission Rate – Line and Transformation Connection Service Rate | D35: $/kW | E35: 1.9209 | F35: 482317.4829 | G35: 1320.307601
A36: =IFERROR(VLOOKUP(B36,'Model Specs'!K$16:N$31,4,FALSE),"") -> SL_TC | B36: STREET LIGHTING SERVICE CLASSIFICATION | C36: Retail Transmission Rate – Line and Transformation Connection Service Rate | D36: $/kW | E36: 1.8729 | F36: 18806000.59 | G36: 58768.585
B37: STANDBY POWER SERVICE CLASSIFICATION
A39: 1 | B39: 2 | C39: 3 | D39: 4 | E39: 5 | F39: 6 | G39: 7 | H39: 8 | I39: 9

Sheet 12. RTSR-UTRs & Sub-Tx
A1: Back to Index
B2: =+'1. Information Sheet'!B2 -> INCENTIVE REGULATION MODEL FOR 2020 FILERS
B12: Uniform Transmission Rates | C12: Unit | E12: 2018 | G12: 2019 | I12: 2020
B14: Rate Description | E14: Rate | G14: Rate | I14: Rate
B16: Network Service Rate | C16: kW | E16: 3.61 | G16: 3.71 | I16: =G16 -> 3.71
B18: Line Connection Service Rate | C18: kW | E18: 0.95 | G18: 0.94 | I18: =G18 -> 0.94
B20: Transformation Connection Service Rate | C20: kW | E20: 2.34 | G20: 2.25 | I20: =G20 -> 2.25
B23: Hydro One Sub-Transmission Rates | C23: Unit | E23: =E12 -> 2018 | G23: =G12 -> 2019 | I23: =I12 -> 2020
B27: Rate Description | E27: Rate | G27: Rate | I27: Rate
B29: Network Service Rate | C29: kW | E29: 3.1942 | G29: 3.1942 | I29: =G29 -> 3.1942
B31: Line Connection Service Rate | C31: kW | E31: 0.771 | G31: 0.771 | I31: =G31 -> 0.771
B33: Transformation Connection Service Rate | C33: kW | E33: 1.7493 | G33: 1.7493 | I33: =G33 -> 1.7493
B35: Both Line and Transformation Connection Service Rate | C35: kW | E35: =SUM(E33,E31) -> 2.5203 | G35: =SUM(G33,G31) -> 2.5203 | I35: =G35 -> 2.5203
B38: If needed, add extra host here. (I) | C38: Unit | E38: =E12 -> 2018 | G38: =G12 -> 2019 | I38: =I12 -> 2020
B42: Rate Description | E42: Rate | G42: Rate | I42: Rate
B44: Network Service Rate | C44: kW
B46: Line Connection Service Rate | C46: kW
B48: Transformation Connection Service Rate | C48: kW
B50: Both Line and Transformation Connection Service Rate | C50: kW | E50: =E46+E48 -> 0 | G50: =G48+G46 -> 0 | I50: =I48+I46 -> 0
B53: If needed, add extra host here. (II) | C53: Unit | E53: =E12 -> 2018 | G53: =G12 -> 2019 | I53: =I12 -> 2020
B57: Rate Description | E57: Rate | G57: Rate | I57: Rate
B59: Network Service Rate | C59: kW
B61: Line Connection Service Rate | C61: kW
B63: Transformation Connection Service Rate | C63: kW
B65: Both Line and Transformation Connection Service Rate | C65: kW | E65: =E61+E63 -> 0 | G65: =G63+G61 -> 0 | I65: =I63+I61 -> 0
E67: Historical 2018 | G67: Current 2019 | I67: Forecast 2020
B68: Low Voltage Switchgear Credit (if applicable, enter as a negative value) | C68: $

Sheet 13. RTSR-Historic Wholesale
A1: Back to Index
B2: =+'1. Information Sheet'!B2 -> INCENTIVE REGULATION MODEL FOR 2020 FILERS
B13: In the green shaded cells, enter billing detail for wholesale transmission for the same reporting period as the billing determinants on Tab 10. For Hydro One Sub-transmission Rates, if you are charged a combined Line and Transformer connection rate, please ensure that both the Line Connection and Transformation Connection columns are completed. If any of the Hydro One Sub-transmission rates (column E, I and M) are highlighted in orange, please double check the billing data entered in "Units Billed" and "Amount" columns. The highlighted rates do not match the Hydro One Sub-transmission rates approved for that time period. If data has been entered correctly, please provide explanation for the discrepancy in rates.
B16: IESO | D16: Network | H16: Line Connection | L16: Transformation Connection | P16: Total Line
B17: Month | D17: Units Billed | E17: Rate | F17: Amount | H17: Units Billed | I17: Rate | J17: Amount | L17: Units Billed | M17: Rate | N17: Amount | P17: Amount
B19: January | D19: 741129 | E19: =IF(D19<>0,F19/D19,0) -> 3.61 | F19: 2675475.69 | H19: 732484 | I19: =IF(H19<>0,J19/H19,0) -> 0.95 | J19: 695859.8 | L19: 791656 | M19: =IF(L19<>0,N19/L19,0) -> 2.34 | N19: 1852475.04 | P19: =J19+N19 -> 2548334.84
B20: February | D20: 717607 | E20: 3.61 | F20: 2590561.27 | H20: 693246 | I20: 0.95 | J20: 658583.7 | L20: 755076 | M20: 2.34 | N20: 1766877.84 | P20: 2425461.54
B21: March | D21: 666192 | E21: 3.61 | F21: 2404953.12 | H21: 655539 | I21: 0.95 | J21: 622762.05 | L21: 709660 | M21: 2.34 | N21: 1660604.4 | P21: 2283366.45
B22: April | D22: 647420 | E22: 3.61 | F22: 2337186.2 | H22: 658647 | I22: 0.95 | J22: 625714.65 | L22: 714645 | M22: 2.34 | N22: 1672269.3 | P22: 2297983.95
B23: May | D23: 815771 | E23: 3.61 | F23: 2944933.31 | H23: 817926 | I23: 0.95 | J23: 777029.7 | L23: 877691 | M23: 2.34 | N23: 2053796.94 | P23: 2830826.64
B24: June | D24: 868526 | E24: 3.61 | F24: 3135378.86 | H24: 877456 | I24: 0.95 | J24: 833583.2 | L24: 939892 | M24: 2.34 | N24: 2199347.28 | P24: 3032930.48
B25: July | D25: 937218 | E25: 3.61 | F25: 3383356.98 | H25: 909168 | I25: 0.95 | J25: 863709.6 | L25: 980556 | M25: 2.34 | N25: 2294501.04 | P25: 3158210.64
B26: August | D26: 923498 | E26: 3.61 | F26: 3333827.78 | H26: 889752 | I26: 0.95 | J26: 845264.4 | L26: 958921 | M26: 2.34 | N26: 2243875.14 | P26: 3089139.54
B27: September | D27: 943351 | E27: 3.61 | F27: 3405497.11 | H27: 910112 | I27: 0.95 | J27: 864606.4 | L27: 977403 | M27: 2.34 | N27: 2287123.02 | P27: 3151729.42
B28: October | D28: 709745 | E28: 3.61 | F28: 2562179.45 | H28: 708311 | I28: 0.95 | J28: 672895.45 | L28: 767613 | M28: 2.34 | N28: 1796214.42 | P28: 2469109.87
B29: November | D29: 697182 | E29: 3.61 | F29: 2516827.02 | H29: 671000 | I29: 0.95 | J29: 637450 | L29: 727528 | M29: 2.34 | N29: 1702415.52 | P29: 2339865.52
B30: December | D30: 681043 | E30: 3.61 | F30: 2458565.23 | H30: 674327 | I30: 0.95 | J30: 640610.65 | L30: 729866 | M30: 2.34 | N30: 1707886.44 | P30: 2348497.09
B32: Total | D32: =SUM(D19:D30) -> 9348682 | E32: =IF(D32<>0,F32/D32,0) -> 3.61 | F32: =SUM(F19:F30) -> 33748742.02 | H32: =SUM(H19:H30) -> 9197968 | I32: =IF(H32<>0,J32/H32,0) -> 0.95 | J32: =SUM(J19:J30) -> 8738069.6 | L32: =SUM(L19:L30) -> 9930507 | M32: =IF(L32<>0,N32/L32,0) -> 2.34 | N32: =SUM(N19:N30) -> 23237386.38 | P32: =SUM(P19:P30) -> 31975455.98
B34: Hydro One | D34: Network | H34: Line Connection | L34: Transformation Connection | P34: Total Line
B36: Month | D36: Units Billed | E36: Rate | F36: Amount | H36: Units Billed | I36: Rate | J36: Amount | L36: Units Billed | M36: Rate | N36: Amount | P36: Amount
B38: January | D38: 64190.8 | E38: =IF(D38<>0,F38/D38,0) -> 3.194199948 | F38: 205038.25 | H38: 64351.06 | I38: =IF(H38<>0,J38/H38,0) -> 0.771 | J38: 49614.66726 | L38: 64351.06 | M38: =IF(L38<>0,N38/L38,0) -> 1.7493 | N38: 112569.3093 | P38: =J38+N38 -> 162183.9765
B39: February | D39: 59348.84 | E39: =IF(D39<>0,F39/D39,0) -> 3.194200089 | F39: 189572.07 | H39: 59519.03 | I39: 0.771 | J39: 45889.17213 | L39: 59519.03 | M39: 1.7493 | N39: 104116.6392 | P39: =J39+N39 -> 150005.8113
B40: March | D40: 59427.58 | E40: 3.194199898 | F40: 189823.57 | H40: 59955.17 | I40: 0.771 | J40: 46225.43607 | L40: 59955.17 | M40: 1.7493 | N40: 104879.5789 | P40: 151105.015
B41: April | D41: 56065.96 | E41: 3.19420001 | F41: 179085.89 | H41: 58441.58 | I41: 0.771 | J41: 45058.45818 | L41: 58441.58 | M41: 1.7493 | N41: 102231.8559 | P41: 147290.3141
B42: May | D42: 77470.07 | E42: 3.194199902 | F42: 247454.89 | H42: 77852.99 | I42: 0.771 | J42: 60024.65529 | L42: 77852.99 | M42: 1.7493 | N42: 136188.2354 | P42: 196212.8907
B43: June | D43: 77470.07 | E43: 3.194199902 | F43: 247454.89 | H43: 77852.99 | I43: 0.771 | J43: 60024.65529 | L43: 77852.99 | M43: 1.7493 | N43: 136188.2354 | P43: 196212.8907
B44: July | D44: 87411.32 | E44: 3.194200019 | F44: 279209.24 | H44: 88529.02 | I44: 0.771 | J44: 68255.87442 | L44: 88529.02 | M44: 1.7493 | N44: 154863.8147 | P44: 223119.6891
B45: August | D45: 87733.31 | E45: 3.194200014 | F45: 280237.74 | H45: 88426.77 | I45: 0.771 | J45: 68177.03967 | L45: 88426.77 | M45: 1.7493 | N45: 154684.9488 | P45: 222861.9884
B46: September | D46: 89718.08 | E46: 3.194199987 | F46: 286577.49 | H46: 90337.12 | I46: 0.771 | J46: 69649.91952 | L46: 90337.12 | M46: 1.7493 | N46: 158026.724 | P46: 227676.6435
B47: October | D47: 74044.27 | E47: 3.194200037 | F47: 236512.21 | H47: 75988.87 | I47: 0.771 | J47: 58587.41877 | L47: 75988.87 | M47: 1.7493 | N47: 132927.3303 | P47: 191514.7491
B48: November | D48: 68598.68 | E48: 3.194199947 | F48: 219117.9 | H48: 68688.32 | I48: 0.771 | J48: 52958.69472 | L48: 68688.32 | M48: 1.7493 | N48: 120156.4782 | P48: 173115.1729
B49: December | D49: 79346.53 | E49: 3.194200049 | F49: 253448.69 | H49: 80260.34 | I49: 0.771 | J49: 61880.72214 | L49: 80260.34 | M49: 1.7493 | N49: 140399.4128 | P49: 202280.1349
B51: Total | D51: =SUM(D38:D49) -> 880825.51 | E51: =IF(D51<>0,F51/D51,0) -> 3.194199984 | F51: =SUM(F38:F49) -> 2813532.83 | H51: =SUM(H38:H49) -> 890203.26 | I51: =IF(H51<>0,J51/H51,0) -> 0.771 | J51: =SUM(J38:J49) -> 686346.7135 | L51: =SUM(L38:L49) -> 890203.26 | M51: =IF(L51<>0,N51/L51,0) -> 1.7493 | N51: =SUM(N38:N49) -> 1557232.563 | P51: =SUM(P38:P49) -> 2243579.276
B53: Add Extra Host Here (I) | D53: Network | H53: Line Connection | L53: Transformation Connection | P53: Total Line
B54: (if needed)
B55: Month | D55: Units Billed | E55: Rate | F55: Amount | H55: Units Billed | I55: Rate | J55: Amount | L55: Units Billed | M55: Rate | N55: Amount | P55: Amount
B57: January | E57: =IF(D57<>0,F57/D57,0) -> 0 | I57: =IF(H57<>0,J57/H57,0) -> 0 | M57: =IF(L57<>0,N57/L57,0) -> 0 | P57: =J57+N57 -> 0
B58: February | E58: 0 | I58: 0 | M58: 0 | P58: 0
B59: March | E59: 0 | I59: 0 | M59: 0 | P59: 0
B60: April | E60: 0 | I60: 0 | M60: 0 | P60: 0
B61: May | E61: 0 | I61: 0 | M61: 0 | P61: 0
B62: June | E62: 0 | I62: 0 | M62: 0 | P62: 0
B63: July | E63: 0 | I63: 0 | M63: 0 | P63: 0
B64: August | E64: 0 | I64: 0 | M64: 0 | P64: 0
B65: September | E65: 0 | I65: 0 | M65: 0 | P65: 0
B66: October | E66: 0 | I66: 0 | M66: 0 | P66: 0
B67: November | E67: 0 | I67: 0 | M67: 0 | P67: 0
B68: December | E68: 0 | I68: 0 | M68: 0 | P68: 0
B70: Total | D70: =SUM(D57:D68) -> 0 | E70: =IF(D70<>0,F70/D70,0) -> 0 | F70: =SUM(F57:F68) -> 0 | H70: =SUM(H57:H68) -> 0 | I70: =IF(H70<>0,J70/H70,0) -> 0 | J70: =SUM(J57:J68) -> 0 | L70: =SUM(L57:L68) -> 0 | M70: =IF(L70<>0,N70/L70,0) -> 0 | N70: =SUM(N57:N68) -> 0 | P70: =SUM(P57:P68) -> 0
B72: Add Extra Host Here (II) | D72: Network | H72: Line Connection | L72: Transformation Connection | P72: Total Line
B73: (if needed)
B74: Month | D74: Units Billed | E74: Rate | F74: Amount | H74: Units Billed | I74: Rate | J74: Amount | L74: Units Billed | M74: Rate | N74: Amount | P74: Amount
B76: January | E76: =IF(D76<>0,F76/D76,0) -> 0 | I76: =IF(H76<>0,J76/H76,0) -> 0 | M76: =IF(L76<>0,N76/L76,0) -> 0 | P76: =J76+N76 -> 0
B77: February | E77: 0 | I77: 0 | M77: 0 | P77: 0
B78: March | E78: 0 | I78: 0 | M78: 0 | P78: 0
B79: April | E79: 0 | I79: 0 | M79: 0 | P79: 0
B80: May | E80: 0 | I80: 0 | M80: 0 | P80: 0
B81: June | E81: 0 | I81: 0 | M81: 0 | P81: 0
B82: July | E82: 0 | I82: 0 | M82: 0 | P82: 0
B83: August | E83: 0 | I83: 0 | M83: 0 | P83: 0
B84: September | E84: 0 | I84: 0 | M84: 0 | P84: 0
B85: October | E85: 0 | I85: 0 | M85: 0 | P85: 0
B86: November | E86: 0 | I86: 0 | M86: 0 | P86: 0
B87: December | E87: 0 | I87: 0 | M87: 0 | P87: 0
B89: Total | D89: =SUM(D76:D87) -> 0 | E89: =IF(D89<>0,F89/D89,0) -> 0 | F89: =SUM(F76:F87) -> 0 | H89: =SUM(H76:H87) -> 0 | I89: =IF(H89<>0,J89/H89,0) -> 0 | J89: =SUM(J76:J87) -> 0 | L89: =SUM(L76:L87) -> 0 | M89: =IF(L89<>0,N89/L89,0) -> 0 | N89: =SUM(N76:N87) -> 0 | P89: =SUM(P76:P87) -> 0
B91: Total | D91: Network | H91: Line Connection | L91: Transformation Connection | P91: Total Line
B93: Month | D93: Units Billed | E93: Rate | F93: Amount | H93: Units Billed | I93: Rate | J93: Amount | L93: Units Billed | M93: Rate | N93: Amount | P93: Amount
B95: January | D95: =D19+D38+D57+D76 -> 805319.8 | E95: =IF(D95<>0,F95/D95,0) -> 3.576857219 | F95: =F19+F38+F57+F76 -> 2880513.94 | H95: =H19+H38+H57+H76 -> 796835.06 | I95: =IF(H95<>0,J95/H95,0) -> 0.9355442609 | J95: =J19+J38+J57+J76 -> 745474.4673 | L95: =L19+L38+L57+L76 -> 856007.06 | M95: =IF(L95<>0,N95/L95,0) -> 2.295593624 | N95: =N19+N38+N57+N76 -> 1965044.349 | P95: =J95+N95 -> 2710518.817
B96: February | D96: =D20+D39+D58+D77 -> 776955.84 | E96: 3.578238552 | F96: =F20+F39+F58+F77 -> 2780133.34 | H96: =H20+H39+H58+H77 -> 752765.03 | I96: 0.9358469696 | J96: =J20+J39+J58+J77 -> 704472.8721 | L96: =L20+L39+L58+L77 -> 814595.03 | M96: 2.296840037 | N96: =N20+N39+N58+N77 -> 1870994.479 | P96: 2575467.351
B97: March | D97: 725619.58 | E97: 3.575946352 | F97: 2594776.69 | H97: 715494.17 | I97: 0.9350006109 | J97: 668987.4861 | L97: 769615.17 | M97: 2.293982821 | N97: 1765483.979 | P97: 2434471.465
B98: April | D98: 703485.96 | E98: 3.576861847 | F98: 2516272.09 | H98: 717088.58 | I98: 0.9354117844 | J98: 670773.1082 | L98: 773086.58 | M98: 2.295345957 | N98: 1774501.156 | P98: 2445274.264
B99: May | D99: 893241.07 | E99: 3.573937996 | F99: 3192388.2 | H99: 895778.99 | I99: 0.9344429425 | J99: 837054.3553 | L99: 955543.99 | M99: 2.291872691 | N99: 2189985.175 | P99: 3027039.531
B100: June | D100: 945996.07 | E100: 3.575949052 | F100: 3382833.75 | H100: 955308.99 | I100: 0.9354123793 | J100: 893607.8553 | L100: 1017744.99 | M100: 2.294814063 | N100: 2335535.515 | P100: 3229143.371
B101: July | D101: 1024629.32 | E101: 3.574528025 | F101: 3662566.22 | H101: 997697.02 | I101: 0.9341167266 | J101: 931965.4744 | L101: 1069085.02 | M101: 2.291085189 | N101: 2449364.855 | P101: 3381330.329
B102: August | D102: 1011231.31 | E102: 3.573925653 | F102: 3614065.52 | H102: 978178.77 | I102: 0.9338185081 | J102: 913441.4397 | L102: 1047347.77 | M102: 2.290127651 | N102: 2398560.089 | P102: 3312001.528
B103: September | D103: 1033069.08 | E103: 3.573889367 | F103: 3692074.6 | H103: 1000449.12 | I103: 0.9338369147 | J103: 934256.3195 | L103: 1067740.12 | M103: 2.290023291 | N103: 2445149.744 | P103: 3379406.064
B104: October | D104: 783789.27 | E104: 3.570719538 | F104: 2798691.66 | H104: 784299.87 | I104: 0.9326571338 | J104: 731482.8688 | L104: 843601.87 | M104: 2.286791695 | N104: 1929141.75 | P104: 2660624.619
B105: November | D105: 765780.68 | E105: 3.572752606 | F105: 2735944.92 | H105: 739688.32 | I105: 0.9333778513 | J105: 690408.6947 | L105: 796216.32 | M105: 2.289041247 | N105: 1822571.998 | P105: 2512980.693
B106: December | D106: 760389.53 | E106: 3.566611339 | F106: 2712013.92 | H106: 754587.34 | I106: 0.9309609834 | J106: 702491.3721 | L106: 810126.34 | M106: 2.281478532 | N106: 1848285.853 | P106: 2550777.225
B108: Total | D108: =SUM(D95:D106) -> 10229507.51 | E108: =IF(D108<>0,F108/D108,0) -> 3.57419698 | F108: =SUM(F95:F106) -> 36562274.85 | H108: =SUM(H95:H106) -> 10088171.26 | I108: =IF(H108<>0,J108/H108,0) -> 0.9342046314 | J108: =SUM(J95:J106) -> 9424416.313 | L108: =SUM(L95:L106) -> 10820710.26 | M108: =IF(L108<>0,N108/L108,0) -> 2.291404016 | N108: =SUM(N95:N106) -> 24794618.94 | P108: =SUM(P95:P106) -> 34219035.26
N110: Low Voltage Switchgear Credit (if applicable) | P110: ='12. RTSR-UTRs & Sub-Tx'!E68 -> 0
N112: Total including deduction for Low Voltage Switchgear Credit | P112: =P108+P110 -> 34219035.26

Sheet 14. RTSR-Current Wholesale
A1: Back to Index
B2: =+'1. Information Sheet'!B2 -> INCENTIVE REGULATION MODEL FOR 2020 FILERS
B13: The purpose of this sheet is to calculate the expected billing when current 2019 Uniform Transmission Rates are applied against historical 2018 transmission units.
B16: IESO | D16: Network | H16: Line Connection | L16: Transformation Connection | P16: Total Line
B18: Month | D18: Units Billed | E18: Rate | F18: Amount | H18: Units Billed | I18: Rate | J18: Amount | L18: Units Billed | M18: Rate | N18: Amount | P18: Amount
B20: January | D20: ='13. RTSR-Historic Wholesale'!D19 -> 741129 | E20: ='12. RTSR-UTRs & Sub-Tx'!G16 -> 3.71 | F20: =D20*E20 -> 2749588.59 | H20: ='13. RTSR-Historic Wholesale'!H19 -> 732484 | I20: ='12. RTSR-UTRs & Sub-Tx'!G18 -> 0.94 | J20: =H20*I20 -> 688534.96 | L20: ='13. RTSR-Historic Wholesale'!L19 -> 791656 | M20: ='12. RTSR-UTRs & Sub-Tx'!G20 -> 2.25 | N20: =L20*M20 -> 1781226 | P20: =J20+N20 -> 2469760.96
B21: February | D21: ='13. RTSR-Historic Wholesale'!D20 -> 717607 | E21: =E20 -> 3.71 | F21: =D21*E21 -> 2662321.97 | H21: ='13. RTSR-Historic Wholesale'!H20 -> 693246 | I21: =I20 -> 0.94 | J21: =H21*I21 -> 651651.24 | L21: ='13. RTSR-Historic Wholesale'!L20 -> 755076 | M21: =M20 -> 2.25 | N21: =L21*M21 -> 1698921 | P21: 2350572.24
B22: March | D22: ='13. RTSR-Historic Wholesale'!D21 -> 666192 | E22: =E21 -> 3.71 | F22: 2471572.32 | H22: ='13. RTSR-Historic Wholesale'!H21 -> 655539 | I22: =I21 -> 0.94 | J22: 616206.66 | L22: ='13. RTSR-Historic Wholesale'!L21 -> 709660 | M22: =M21 -> 2.25 | N22: 1596735 | P22: 2212941.66
B23: April | D23: ='13. RTSR-Historic Wholesale'!D22 -> 647420 | E23: 3.71 | F23: 2401928.2 | H23: ='13. RTSR-Historic Wholesale'!H22 -> 658647 | I23: 0.94 | J23: 619128.18 | L23: ='13. RTSR-Historic Wholesale'!L22 -> 714645 | M23: 2.25 | N23: 1607951.25 | P23: 2227079.43
B24: May | D24: ='13. RTSR-Historic Wholesale'!D23 -> 815771 | E24: 3.71 | F24: 3026510.41 | H24: ='13. RTSR-Historic Wholesale'!H23 -> 817926 | I24: 0.94 | J24: 768850.44 | L24: ='13. RTSR-Historic Wholesale'!L23 -> 877691 | M24: 2.25 | N24: 1974804.75 | P24: 2743655.19
B25: June | D25: ='13. RTSR-Historic Wholesale'!D24 -> 868526 | E25: 3.71 | F25: 3222231.46 | H25: ='13. RTSR-Historic Wholesale'!H24 -> 877456 | I25: 0.94 | J25: 824808.64 | L25: ='13. RTSR-Historic Wholesale'!L24 -> 939892 | M25: 2.25 | N25: 2114757 | P25: 2939565.64
B26: July | D26: ='13. RTSR-Historic Wholesale'!D25 -> 937218 | E26: 3.71 | F26: 3477078.78 | H26: ='13. RTSR-Historic Wholesale'!H25 -> 909168 | I26: 0.94 | J26: 854617.92 | L26: ='13. RTSR-Historic Wholesale'!L25 -> 980556 | M26: 2.25 | N26: 2206251 | P26: 3060868.92
B27: August | D27: ='13. RTSR-Historic Wholesale'!D26 -> 923498 | E27: 3.71 | F27: 3426177.58 | H27: ='13. RTSR-Historic Wholesale'!H26 -> 889752 | I27: 0.94 | J27: 836366.88 | L27: ='13. RTSR-Historic Wholesale'!L26 -> 958921 | M27: 2.25 | N27: 2157572.25 | P27: 2993939.13
B28: September | D28: ='13. RTSR-Historic Wholesale'!D27 -> 943351 | E28: 3.71 | F28: 3499832.21 | H28: ='13. RTSR-Historic Wholesale'!H27 -> 910112 | I28: 0.94 | J28: 855505.28 | L28: ='13. RTSR-Historic Wholesale'!L27 -> 977403 | M28: 2.25 | N28: 2199156.75 | P28: 3054662.03
B29: October | D29: ='13. RTSR-Historic Wholesale'!D28 -> 709745 | E29: 3.71 | F29: 2633153.95 | H29: ='13. RTSR-Historic Wholesale'!H28 -> 708311 | I29: 0.94 | J29: 665812.34 | L29: ='13. RTSR-Historic Wholesale'!L28 -> 767613 | M29: 2.25 | N29: 1727129.25 | P29: 2392941.59
B30: November | D30: ='13. RTSR-Historic Wholesale'!D29 -> 697182 | E30: 3.71 | F30: 2586545.22 | H30: ='13. RTSR-Historic Wholesale'!H29 -> 671000 | I30: 0.94 | J30: 630740 | L30: ='13. RTSR-Historic Wholesale'!L29 -> 727528 | M30: 2.25 | N30: 1636938 | P30: 2267678
B31: December | D31: ='13. RTSR-Historic Wholesale'!D30 -> 681043 | E31: 3.71 | F31: 2526669.53 | H31: ='13. RTSR-Historic Wholesale'!H30 -> 674327 | I31: 0.94 | J31: 633867.38 | L31: ='13. RTSR-Historic Wholesale'!L30 -> 729866 | M31: 2.25 | N31: 1642198.5 | P31: 2276065.88
B33: Total | D33: =SUM(D20:D31) -> 9348682 | E33: =IF(D33<>0,F33/D33,0) -> 3.71 | F33: =SUM(F20:F31) -> 34683610.22 | H33: =SUM(H20:H31) -> 9197968 | I33: =IF(H33<>0,J33/H33,0) -> 0.94 | J33: =SUM(J20:J31) -> 8646089.92 | L33: =SUM(L20:L31) -> 9930507 | M33: =IF(L33<>0,N33/L33,0) -> 2.25 | N33: =SUM(N20:N31) -> 22343640.75 | P33: =SUM(P20:P31) -> 30989730.67
B35: Hydro One | D35: Network | H35: Line Connection | L35: Transformation Connection | P35: Total Line
B37: Month | D37: Units Billed | E37: Rate | F37: Amount | H37: Units Billed | I37: Rate | J37: Amount | L37: Units Billed | M37: Rate | N37: Amount | P37: Amount
B39: January | D39: ='13. RTSR-Historic Wholesale'!D38 -> 64190.8 | E39: ='12. RTSR-UTRs & Sub-Tx'!G29 -> 3.1942 | F39: =D39*E39 -> 205038.2534 | H39: ='13. RTSR-Historic Wholesale'!H38 -> 64351.06 | I39: ='12. RTSR-UTRs & Sub-Tx'!G31 -> 0.771 | J39: =H39*I39 -> 49614.66726 | L39: ='13. RTSR-Historic Wholesale'!L38 -> 64351.06 | M39: ='12. RTSR-UTRs & Sub-Tx'!G33 -> 1.7493 | N39: =L39*M39 -> 112569.3093 | P39: =J39+N39 -> 162183.9765
B40: February | D40: ='13. RTSR-Historic Wholesale'!D39 -> 59348.84 | E40: =E39 -> 3.1942 | F40: =D40*E40 -> 189572.0647 | H40: ='13. RTSR-Historic Wholesale'!H39 -> 59519.03 | I40: =I39 -> 0.771 | J40: =H40*I40 -> 45889.17213 | L40: ='13. RTSR-Historic Wholesale'!L39 -> 59519.03 | M40: =M39 -> 1.7493 | N40: =L40*M40 -> 104116.6392 | P40: 150005.8113
B41: March | D41: ='13. RTSR-Historic Wholesale'!D40 -> 59427.58 | E41: =E40 -> 3.1942 | F41: 189823.576 | H41: ='13. RTSR-Historic Wholesale'!H40 -> 59955.17 | I41: =I40 -> 0.771 | J41: 46225.43607 | L41: ='13. RTSR-Historic Wholesale'!L40 -> 59955.17 | M41: =M40 -> 1.7493 | N41: 104879.5789 | P41: 151105.015
B42: April | D42: ='13. RTSR-Historic Wholesale'!D41 -> 56065.96 | E42: 3.1942 | F42: 179085.8894 | H42: ='13. RTSR-Historic Wholesale'!H41 -> 58441.58 | I42: 0.771 | J42: 45058.45818 | L42: ='13. RTSR-Historic Wholesale'!L41 -> 58441.58 | M42: =M41 -> 1.7493 | N42: 102231.8559 | P42: 147290.3141
B43: May | D43: ='13. RTSR-Historic Wholesale'!D42 -> 77470.07 | E43: 3.1942 | F43: 247454.8976 | H43: ='13. RTSR-Historic Wholesale'!H42 -> 77852.99 | I43: 0.771 | J43: 60024.65529 | L43: ='13. RTSR-Historic Wholesale'!L42 -> 77852.99 | M43: 1.7493 | N43: 136188.2354 | P43: 196212.8907
B44: June | D44: ='13. RTSR-Historic Wholesale'!D43 -> 77470.07 | E44: 3.1942 | F44: 247454.8976 | H44: ='13. RTSR-Historic Wholesale'!H43 -> 77852.99 | I44: 0.771 | J44: 60024.65529 | L44: ='13. RTSR-Historic Wholesale'!L43 -> 77852.99 | M44: 1.7493 | N44: 136188.2354 | P44: 196212.8907
B45: July | D45: ='13. RTSR-Historic Wholesale'!D44 -> 87411.32 | E45: 3.1942 | F45: 279209.2383 | H45: ='13. RTSR-Historic Wholesale'!H44 -> 88529.02 | I45: 0.771 | J45: 68255.87442 | L45: ='13. RTSR-Historic Wholesale'!L44 -> 88529.02 | M45: 1.7493 | N45: 154863.8147 | P45: 223119.6891
B46: August | D46: ='13. RTSR-Historic Wholesale'!D45 -> 87733.31 | E46: 3.1942 | F46: 280237.7388 | H46: ='13. RTSR-Historic Wholesale'!H45 -> 88426.77 | I46: 0.771 | J46: 68177.03967 | L46: ='13. RTSR-Historic Wholesale'!L45 -> 88426.77 | M46: 1.7493 | N46: 154684.9488 | P46: 222861.9884
B47: September | D47: ='13. RTSR-Historic Wholesale'!D46 -> 89718.08 | E47: 3.1942 | F47: 286577.4911 | H47: ='13. RTSR-Historic Wholesale'!H46 -> 90337.12 | I47: 0.771 | J47: 69649.91952 | L47: ='13. RTSR-Historic Wholesale'!L46 -> 90337.12 | M47: 1.7493 | N47: 158026.724 | P47: 227676.6435
B48: October | D48: ='13. RTSR-Historic Wholesale'!D47 -> 74044.27 | E48: 3.1942 | F48: 236512.2072 | H48: ='13. RTSR-Historic Wholesale'!H47 -> 75988.87 | I48: 0.771 | J48: 58587.41877 | L48: ='13. RTSR-Historic Wholesale'!L47 -> 75988.87 | M48: 1.7493 | N48: 132927.3303 | P48: 191514.7491
B49: November | D49: ='13. RTSR-Historic Wholesale'!D48 -> 68598.68 | E49: 3.1942 | F49: 219117.9037 | H49: ='13. RTSR-Historic Wholesale'!H48 -> 68688.32 | I49: 0.771 | J49: 52958.69472 | L49: ='13. RTSR-Historic Wholesale'!L48 -> 68688.32 | M49: 1.7493 | N49: 120156.4782 | P49: 173115.1729
B50: December | D50: ='13. RTSR-Historic Wholesale'!D49 -> 79346.53 | E50: 3.1942 | F50: 253448.6861 | H50: ='13. RTSR-Historic Wholesale'!H49 -> 80260.34 | I50: 0.771 | J50: 61880.72214 | L50: ='13. RTSR-Historic Wholesale'!L49 -> 80260.34 | M50: 1.7493 | N50: 140399.4128 | P50: 202280.1349
B52: Total | D52: =SUM(D39:D50) -> 880825.51 | E52: =IF(D52<>0,F52/D52,0) -> 3.1942 | F52: =SUM(F39:F50) -> 2813532.844 | H52: =SUM(H39:H50) -> 890203.26 | I52: =IF(H52<>0,J52/H52,0) -> 0.771 | J52: =SUM(J39:J50) -> 686346.7135 | L52: =SUM(L39:L50) -> 890203.26 | M52: =IF(L52<>0,N52/L52,0) -> 1.7493 | N52: =SUM(N39:N50) -> 1557232.563 | P52: =SUM(P39:P50) -> 2243579.276
B54: Add Extra Host Here (I) | D54: Network | H54: Line Connection | L54: Transformation Connection | P54: Total Line
B56: Month | D56: Units Billed | E56: Rate | F56: Amount | H56: Units Billed | I56: Rate | J56: Amount | L56: Units Billed | M56: Rate | N56: Amount | P56: Amount
B58: January | D58: ='13. RTSR-Historic Wholesale'!D57 -> 0 | E58: ='12. RTSR-UTRs & Sub-Tx'!G44 -> 0 | F58: =D58*E58 -> 0 | H58: ='13. RTSR-Historic Wholesale'!H57 -> 0 | I58: ='12. RTSR-UTRs & Sub-Tx'!G46 -> 0 | J58: =H58*I58 -> 0 | L58: ='13. RTSR-Historic Wholesale'!L57 -> 0 | M58: ='12. RTSR-UTRs & Sub-Tx'!G48 -> 0 | N58: =L58*M58 -> 0 | P58: =J58+N58 -> 0
B59: February | D59: ='13. RTSR-Historic Wholesale'!D58 -> 0 | E59: =E58 -> 0 | F59: =D59*E59 -> 0 | H59: ='13. RTSR-Historic Wholesale'!H58 -> 0 | I59: =I58 -> 0 | J59: =H59*I59 -> 0 | L59: ='13. RTSR-Historic Wholesale'!L58 -> 0 | M59: =M58 -> 0 | N59: =L59*M59 -> 0 | P59: 0
B60: March | D60: ='13. RTSR-Historic Wholesale'!D59 -> 0 | E60: =E59 -> 0 | F60: 0 | H60: ='13. RTSR-Historic Wholesale'!H59 -> 0 | I60: =I59 -> 0 | J60: 0 | L60: ='13. RTSR-Historic Wholesale'!L59 -> 0 | M60: =M59 -> 0 | N60: 0 | P60: 0
B61: April | D61: ='13. RTSR-Historic Wholesale'!D60 -> 0 | E61: 0 | F61: 0 | H61: ='13. RTSR-Historic Wholesale'!H60 -> 0 | I61: 0 | J61: 0 | L61: ='13. RTSR-Historic Wholesale'!L60 -> 0 | M61: 0 | N61: 0 | P61: 0
B62: May | D62: ='13. RTSR-Historic Wholesale'!D61 -> 0 | E62: 0 | F62: 0 | H62: ='13. RTSR-Historic Wholesale'!H61 -> 0 | I62: 0 | J62: 0 | L62: ='13. RTSR-Historic Wholesale'!L61 -> 0 | M62: 0 | N62: 0 | P62: 0
B63: June | D63: ='13. RTSR-Historic Wholesale'!D62 -> 0 | E63: 0 | F63: 0 | H63: ='13. RTSR-Historic Wholesale'!H62 -> 0 | I63: 0 | J63: 0 | L63: ='13. RTSR-Historic Wholesale'!L62 -> 0 | M63: 0 | N63: 0 | P63: 0
B64: July | D64: ='13. RTSR-Historic Wholesale'!D63 -> 0 | E64: 0 | F64: 0 | H64: ='13. RTSR-Historic Wholesale'!H63 -> 0 | I64: 0 | J64: 0 | L64: ='13. RTSR-Historic Wholesale'!L63 -> 0 | M64: 0 | N64: 0 | P64: 0
B65: August | D65: ='13. RTSR-Historic Wholesale'!D64 -> 0 | E65: 0 | F65: 0 | H65: ='13. RTSR-Historic Wholesale'!H64 -> 0 | I65: 0 | J65: 0 | L65: ='13. RTSR-Historic Wholesale'!L64 -> 0 | M65: 0 | N65: 0 | P65: 0
B66: September | D66: ='13. RTSR-Historic Wholesale'!D65 -> 0 | E66: 0 | F66: 0 | H66: ='13. RTSR-Historic Wholesale'!H65 -> 0 | I66: 0 | J66: 0 | L66: ='13. RTSR-Historic Wholesale'!L65 -> 0 | M66: 0 | N66: 0 | P66: 0
B67: October | D67: ='13. RTSR-Historic Wholesale'!D66 -> 0 | E67: 0 | F67: 0 | H67: ='13. RTSR-Historic Wholesale'!H66 -> 0 | I67: 0 | J67: 0 | L67: ='13. RTSR-Historic Wholesale'!L66 -> 0 | M67: 0 | N67: 0 | P67: 0
B68: November | D68: ='13. RTSR-Historic Wholesale'!D67 -> 0 | E68: 0 | F68: 0 | H68: ='13. RTSR-Historic Wholesale'!H67 -> 0 | I68: 0 | J68: 0 | L68: ='13. RTSR-Historic Wholesale'!L67 -> 0 | M68: 0 | N68: 0 | P68: 0
B69: December | D69: ='13. RTSR-Historic Wholesale'!D68 -> 0 | E69: 0 | F69: 0 | H69: ='13. RTSR-Historic Wholesale'!H68 -> 0 | I69: 0 | J69: 0 | L69: ='13. RTSR-Historic Wholesale'!L68 -> 0 | M69: 0 | N69: 0 | P69: 0
B71: Total | D71: =SUM(D58:D69) -> 0 | E71: =IF(D71<>0,F71/D71,0) -> 0 | F71: =SUM(F58:F69) -> 0 | H71: =SUM(H58:H69) -> 0 | I71: =IF(H71<>0,J71/H71,0) -> 0 | J71: =SUM(J58:J69) -> 0 | L71: =SUM(L58:L69) -> 0 | M71: =IF(L71<>0,N71/L71,0) -> 0 | N71: =SUM(N58:N69) -> 0 | P71: =SUM(P58:P69) -> 0
B73: Add Extra Host Here (II) | D73: Network | H73: Line Connection | L73: Transformation Connection | P73: Total Line
B75: Month | D75: Units Billed | E75: Rate | F75: Amount | H75: Units Billed | I75: Rate | J75: Amount | L75: Units Billed | M75: Rate | N75: Amount | P75: Amount
B77: January | D77: ='13. RTSR-Historic Wholesale'!D76 -> 0 | E77: ='12. RTSR-UTRs & Sub-Tx'!G59 -> 0 | F77: =D77*E77 -> 0 | H77: ='13. RTSR-Historic Wholesale'!H76 -> 0 | I77: ='12. RTSR-UTRs & Sub-Tx'!G61 -> 0 | J77: =H77*I77 -> 0 | L77: ='13. RTSR-Historic Wholesale'!L76 -> 0 | M77: ='12. RTSR-UTRs & Sub-Tx'!G63 -> 0 | N77: =L77*M77 -> 0 | P77: =J77+N77 -> 0
B78: February | D78: ='13. RTSR-Historic Wholesale'!D77 -> 0 | E78: =E77 -> 0 | F78: =D78*E78 -> 0 | H78: ='13. RTSR-Historic Wholesale'!H77 -> 0 | I78: =I77 -> 0 | J78: =H78*I78 -> 0 | L78: ='13. RTSR-Historic Wholesale'!L77 -> 0 | M78: =M77 -> 0 | N78: =L78*M78 -> 0 | P78: 0
B79: March | D79: ='13. RTSR-Historic Wholesale'!D78 -> 0 | E79: =E78 -> 0 | F79: 0 | H79: ='13. RTSR-Historic Wholesale'!H78 -> 0 | I79: =I78 -> 0 | J79: 0 | L79: ='13. RTSR-Historic Wholesale'!L78 -> 0 | M79: =M78 -> 0 | N79: 0 | P79: 0
B80: April | D80: ='13. RTSR-Historic Wholesale'!D79 -> 0 | E80: 0 | F80: 0 | H80: ='13. RTSR-Historic Wholesale'!H79 -> 0 | I80: 0 | J80: 0 | L80: ='13. RTSR-Historic Wholesale'!L79 -> 0 | M80: =M79 -> 0 | N80: 0 | P80: 0
B81: May | D81: ='13. RTSR-Historic Wholesale'!D80 -> 0 | E81: 0 | F81: 0 | H81: ='13. RTSR-Historic Wholesale'!H80 -> 0 | I81: 0 | J81: 0 | L81: ='13. RTSR-Historic Wholesale'!L80 -> 0 | M81: 0 | N81: 0 | P81: 0
B82: June | D82: ='13. RTSR-Historic Wholesale'!D81 -> 0 | E82: 0 | F82: 0 | H82: ='13. RTSR-Historic Wholesale'!H81 -> 0 | I82: 0 | J82: 0 | L82: ='13. RTSR-Historic Wholesale'!L81 -> 0 | M82: 0 | N82: 0 | P82: 0
B83: July | D83: ='13. RTSR-Historic Wholesale'!D82 -> 0 | E83: 0 | F83: 0 | H83: ='13. RTSR-Historic Wholesale'!H82 -> 0 | I83: 0 | J83: 0 | L83: ='13. RTSR-Historic Wholesale'!L82 -> 0 | M83: 0 | N83: 0 | P83: 0
B84: August | D84: ='13. RTSR-Historic Wholesale'!D83 -> 0 | E84: 0 | F84: 0 | H84: ='13. RTSR-Historic Wholesale'!H83 -> 0 | I84: 0 | J84: 0 | L84: ='13. RTSR-Historic Wholesale'!L83 -> 0 | M84: 0 | N84: 0 | P84: 0
B85: September | D85: ='13. RTSR-Historic Wholesale'!D84 -> 0 | E85: 0 | F85: 0 | H85: ='13. RTSR-Historic Wholesale'!H84 -> 0 | I85: 0 | J85: 0 | L85: ='13. RTSR-Historic Wholesale'!L84 -> 0 | M85: 0 | N85: 0 | P85: 0
B86: October | D86: ='13. RTSR-Historic Wholesale'!D85 -> 0 | E86: 0 | F86: 0 | H86: ='13. RTSR-Historic Wholesale'!H85 -> 0 | I86: 0 | J86: 0 | L86: ='13. RTSR-Historic Wholesale'!L85 -> 0 | M86: 0 | N86: 0 | P86: 0
B87: November | D87: ='13. RTSR-Historic Wholesale'!D86 -> 0 | E87: 0 | F87: 0 | H87: ='13. RTSR-Historic Wholesale'!H86 -> 0 | I87: 0 | J87: 0 | L87: ='13. RTSR-Historic Wholesale'!L86 -> 0 | M87: 0 | N87: 0 | P87: 0
B88: December | D88: ='13. RTSR-Historic Wholesale'!D87 -> 0 | E88: 0 | F88: 0 | H88: ='13. RTSR-Historic Wholesale'!H87 -> 0 | I88: 0 | J88: 0 | L88: ='13. RTSR-Historic Wholesale'!L87 -> 0 | M88: 0 | N88: 0 | P88: 0
B90: Total | D90: =SUM(D77:D88) -> 0 | E90: =IF(D90<>0,F90/D90,0) -> 0 | F90: =SUM(F77:F88) -> 0 | H90: =SUM(H77:H88) -> 0 | I90: =IF(H90<>0,J90/H90,0) -> 0 | J90: =SUM(J77:J88) -> 0 | L90: =SUM(L77:L88) -> 0 | M90: =IF(L90<>0,N90/L90,0) -> 0 | N90: =SUM(N77:N88) -> 0 | P90: =SUM(P77:P88) -> 0
B92: Total | D92: Network | H92: Line Connection | L92: Transformation Connection | P92: Total Line
B94: Month | D94: Units Billed | E94: Rate | F94: Amount | H94: Units Billed | I94: Rate | J94: Amount | L94: Units Billed | M94: Rate | N94: Amount | P94: Amount
B96: January | D96: =D20+D39+D58+D77 -> 805319.8 | E96: =IF(D96<>0,F96/D96,0) -> 3.668886377 | F96: =F20+F39+F58+F77 -> 2954626.843 | H96: =H20+H39+H58+H77 -> 796835.06 | I96: =IF(H96<>0,J96/H96,0) -> 0.9263518441 | J96: =J20+J39+J58+J77 -> 738149.6273 | L96: =L20+L39+L58+L77 -> 856007.06 | M96: =IF(L96<>0,N96/L96,0) -> 2.212359451 | N96: =N20+N39+N58+N77 -> 1893795.309 | P96: =J96+N96 -> 2631944.937
B97: February | D97: =D21+D40+D59+D78 -> 776955.84 | E97: 3.670599908 | F97: =F21+F40+F59+F78 -> 2851894.035 | H97: =H21+H40+H59+H78 -> 752765.03 | I97: 0.9266376417 | J97: =J21+J40+J59+J78 -> 697540.4121 | L97: =L21+L40+L59+L78 -> 814595.03 | M97: 2.213415959 | N97: =N21+N40+N59+N78 -> 1803037.639 | P97: 2500578.051
B98: March | D98: 725619.58 | E98: 3.667756452 | F98: 2661395.896 | H98: 715494.17 | I98: 0.9258385656 | J98: 662432.0961 | L98: 769615.17 | M98: 2.210994072 | N98: 1701614.579 | P98: 2364046.675
B99: April | D99: 703485.96 | E99: 3.668892112 | F99: 2581014.089 | H99: 717088.58 | I99: 0.9262267685 | J99: 664186.6382 | L99: 773086.58 | M99: 2.212149519 | N99: 1710183.106 | P99: 2374369.744
B100: May | D100: 893241.07 | E100: 3.665265086 | F100: 3273965.308 | H100: 895778.99 | I100: 0.9253120519 | J100: 828875.0953 | L100: 955543.99 | M100: 2.209205445 | N100: 2110992.985 | P100: 2939868.081
B101: June | D101: 945996.07 | E101: 3.667759801 | F101: 3469686.358 | H101: 955308.99 | I101: 0.9262273302 | J101: 884833.2953 | L101: 1017744.99 | M101: 2.211698665 | N101: 2250945.235 | P101: 3135778.531
B102: July | D102: 1024629.32 | E102: 3.665997005 | F102: 3756288.018 | H102: 997697.02 | I102: 0.9250040603 | J102: 922873.7944 | L102: 1069085.02 | M102: 2.208537928 | N102: 2361114.815 | P102: 3283988.609
B103: August | D103: 1011231.31 | E103: 3.665249762 | F103: 3706415.319 | H103: 978178.77 | I103: 0.9247225021 | J103: 904543.9197 | L103: 1047347.77 | M103: 2.207726283 | N103: 2312257.199 | P103: 3216801.118
B104: September | D104: 1033069.08 | E104: 3.665204752 | F104: 3786409.701 | H104: 1000449.12 | I104: 0.9247398803 | J104: 925155.1995 | L104: 1067740.12 | M104: 2.207637823 | N104: 2357183.474 | P104: 3282338.674
B105: October | D105: 783789.27 | E105: 3.661272573 | F105: 2869666.157 | H105: 784299.87 | I105: 0.923626009 | J105: 724399.7588 | L105: 843601.87 | M105: 2.204898598 | N105: 1860056.58 | P105: 2584456.339
B106: November | D106: 765780.68 | E106: 3.663794605 | F106: 2805663.124 | H106: 739688.32 | I106: 0.9243064629 | J106: 683698.6947 | L106: 796216.32 | M106: 2.206805405 | N106: 1757094.478 | P106: 2440793.173
B107: December | D107: 760389.53 | E107: 3.65617635 | F107: 2780118.216 | H107: 754587.34 | I107: 0.9220246157 | J107: 695748.1021 | L107: 810126.34 | M107: 2.200394957 | N107: 1782597.913 | P107: 2478346.015
B109: Total | D109: =SUM(D96:D107) -> 10229507.51 | E109: =IF(D109<>0,F109/D109,0) -> 3.665586347 | F109: =SUM(F96:F107) -> 37497143.06 | H109: =SUM(H96:H107) -> 10088171.26 | I109: =IF(H109<>0,J109/H109,0) -> 0.9250870542 | J109: =SUM(J96:J107) -> 9332436.633 | L109: =SUM(L96:L107) -> 10820710.26 | M109: =IF(L109<>0,N109/L109,0) -> 2.208808178 | N109: =SUM(N96:N107) -> 23900873.31 | P109: =SUM(P96:P107) -> 33233309.95
N111: Low Voltage Switchgear Credit (if applicable) | P111: ='12. RTSR-UTRs & Sub-Tx'!G68 -> 0
N113: Total including deduction for Low Voltage Switchgear Credit | P113: =P109+P111 -> 33233309.95

Sheet 15. RTSR-Forecast Wholesale
A1: Back to Index
B2: =+'1. Information Sheet'!B2 -> INCENTIVE REGULATION MODEL FOR 2020 FILERS
B13: The purpose of this sheet is to calculate the expected billing when forecasted 2019 Uniform Transmission Rates are applied against historical 2017 transmission units.
B16: IESO | D16: Network | H16: Line Connection | L16: Transformation Connection | P16: Total Line
B18: Month | D18: Units Billed | E18: Rate | F18: Amount | H18: Units Billed | I18: Rate | J18: Amount | L18: Units Billed | M18: Rate | N18: Amount | P18: Amount
B20: January | D20: ='13. RTSR-Historic Wholesale'!D19 -> 741129 | E20: ='12. RTSR-UTRs & Sub-Tx'!I16 -> 3.71 | F20: =D20*E20 -> 2749588.59 | H20: ='13. RTSR-Historic Wholesale'!H19 -> 732484 | I20: ='12. RTSR-UTRs & Sub-Tx'!I18 -> 0.94 | J20: =H20*I20 -> 688534.96 | L20: ='13. RTSR-Historic Wholesale'!L19 -> 791656 | M20: ='12. RTSR-UTRs & Sub-Tx'!I20 -> 2.25 | N20: =L20*M20 -> 1781226 | P20: =J20+N20 -> 2469760.96
B21: February | D21: ='13. RTSR-Historic Wholesale'!D20 -> 717607 | E21: =E20 -> 3.71 | F21: 2662321.97 | H21: ='13. RTSR-Historic Wholesale'!H20 -> 693246 | I21: =I20 -> 0.94 | J21: 651651.24 | L21: ='13. RTSR-Historic Wholesale'!L20 -> 755076 | M21: =M20 -> 2.25 | N21: 1698921 | P21: 2350572.24
B22: March | D22: ='13. RTSR-Historic Wholesale'!D21 -> 666192 | E22: 3.71 | F22: 2471572.32 | H22: ='13. RTSR-Historic Wholesale'!H21 -> 655539 | I22: 0.94 | J22: 616206.66 | L22: ='13. RTSR-Historic Wholesale'!L21 -> 709660 | M22: 2.25 | N22: 1596735 | P22: 2212941.66
B23: April | D23: ='13. RTSR-Historic Wholesale'!D22 -> 647420 | E23: 3.71 | F23: 2401928.2 | H23: ='13. RTSR-Historic Wholesale'!H22 -> 658647 | I23: 0.94 | J23: 619128.18 | L23: ='13. RTSR-Historic Wholesale'!L22 -> 714645 | M23: 2.25 | N23: 1607951.25 | P23: 2227079.43
B24: May | D24: ='13. RTSR-Historic Wholesale'!D23 -> 815771 | E24: 3.71 | F24: 3026510.41 | H24: ='13. RTSR-Historic Wholesale'!H23 -> 817926 | I24: 0.94 | J24: 768850.44 | L24: ='13. RTSR-Historic Wholesale'!L23 -> 877691 | M24: 2.25 | N24: 1974804.75 | P24: 2743655.19
B25: June | D25: ='13. RTSR-Historic Wholesale'!D24 -> 868526 | E25: 3.71 | F25: 3222231.46 | H25: ='13. RTSR-Historic Wholesale'!H24 -> 877456 | I25: 0.94 | J25: 824808.64 | L25: ='13. RTSR-Historic Wholesale'!L24 -> 939892 | M25: 2.25 | N25: 2114757 | P25: 2939565.64
B26: July | D26: ='13. RTSR-Historic Wholesale'!D25 -> 937218 | E26: 3.71 | F26: 3477078.78 | H26: ='13. RTSR-Historic Wholesale'!H25 -> 909168 | I26: 0.94 | J26: 854617.92 | L26: ='13. RTSR-Historic Wholesale'!L25 -> 980556 | M26: 2.25 | N26: 2206251 | P26: 3060868.92
B27: August | D27: ='13. RTSR-Historic Wholesale'!D26 -> 923498 | E27: 3.71 | F27: 3426177.58 | H27: ='13. RTSR-Historic Wholesale'!H26 -> 889752 | I27: 0.94 | J27: 836366.88 | L27: ='13. RTSR-Historic Wholesale'!L26 -> 958921 | M27: 2.25 | N27: 2157572.25 | P27: 2993939.13
B28: September | D28: ='13. RTSR-Historic Wholesale'!D27 -> 943351 | E28: 3.71 | F28: 3499832.21 | H28: ='13. RTSR-Historic Wholesale'!H27 -> 910112 | I28: 0.94 | J28: 855505.28 | L28: ='13. RTSR-Historic Wholesale'!L27 -> 977403 | M28: 2.25 | N28: 2199156.75 | P28: 3054662.03
B29: October | D29: ='13. RTSR-Historic Wholesale'!D28 -> 709745 | E29: 3.71 | F29: 2633153.95 | H29: ='13. RTSR-Historic Wholesale'!H28 -> 708311 | I29: 0.94 | J29: 665812.34 | L29: ='13. RTSR-Historic Wholesale'!L28 -> 767613 | M29: 2.25 | N29: 1727129.25 | P29: 2392941.59
B30: November | D30: ='13. RTSR-Historic Wholesale'!D29 -> 697182 | E30: 3.71 | F30: 2586545.22 | H30: ='13. RTSR-Historic Wholesale'!H29 -> 671000 | I30: 0.94 | J30: 630740 | L30: ='13. RTSR-Historic Wholesale'!L29 -> 727528 | M30: 2.25 | N30: 1636938 | P30: 2267678
B31: December | D31: ='13. RTSR-Historic Wholesale'!D30 -> 681043 | E31: 3.71 | F31: 2526669.53 | H31: ='13. RTSR-Historic Wholesale'!H30 -> 674327 | I31: 0.94 | J31: 633867.38 | L31: ='13. RTSR-Historic Wholesale'!L30 -> 729866 | M31: 2.25 | N31: 1642198.5 | P31: 2276065.88
B33: Total | D33: =SUM(D20:D31) -> 9348682 | E33: =IF(D33<>0,F33/D33,0) -> 3.71 | F33: =SUM(F20:F31) -> 34683610.22 | H33: =SUM(H20:H31) -> 9197968 | I33: =IF(H33<>0,J33/H33,0) -> 0.94 | J33: =SUM(J20:J31) -> 8646089.92 | L33: =SUM(L20:L31) -> 9930507 | M33: =IF(L33<>0,N33/L33,0) -> 2.25 | N33: =SUM(N20:N31) -> 22343640.75 | P33: =SUM(P20:P31) -> 30989730.67
B35: Hydro One | D35: Network | H35: Line Connection | L35: Transformation Connection | P35: Total Line
B37: Month | D37: Units Billed | E37: Rate | F37: Amount | H37: Units Billed | I37: Rate | J37: Amount | L37: Units Billed | M37: Rate | N37: Amount | P37: Amount
B39: January | D39: ='13. RTSR-Historic Wholesale'!D38 -> 64190.8 | E39: ='12. RTSR-UTRs & Sub-Tx'!I29 -> 3.1942 | F39: =D39*E39 -> 205038.2534 | H39: ='13. RTSR-Historic Wholesale'!H38 -> 64351.06 | I39: ='12. RTSR-UTRs & Sub-Tx'!I31 -> 0.771 | J39: =H39*I39 -> 49614.66726 | L39: ='13. RTSR-Historic Wholesale'!L38 -> 64351.06 | M39: ='12. RTSR-UTRs & Sub-Tx'!I33 -> 1.7493 | N39: =L39*M39 -> 112569.3093 | P39: =J39+N39 -> 162183.9765
B40: February | D40: ='13. RTSR-Historic Wholesale'!D39 -> 59348.84 | E40: =E39 -> 3.1942 | F40: 189572.0647 | H40: ='13. RTSR-Historic Wholesale'!H39 -> 59519.03 | I40: =I39 -> 0.771 | J40: 45889.17213 | L40: ='13. RTSR-Historic Wholesale'!L39 -> 59519.03 | M40: =M39 -> 1.7493 | N40: 104116.6392 | P40: 150005.8113
B41: March | D41: ='13. RTSR-Historic Wholesale'!D40 -> 59427.58 | E41: 3.1942 | F41: 189823.576 | H41: ='13. RTSR-Historic Wholesale'!H40 -> 59955.17 | I41: 0.771 | J41: 46225.43607 | L41: ='13. RTSR-Historic Wholesale'!L40 -> 59955.17 | M41: 1.7493 | N41: 104879.5789 | P41: 151105.015
B42: April | D42: ='13. RTSR-Historic Wholesale'!D41 -> 56065.96 | E42: 3.1942 | F42: 179085.8894 | H42: ='13. RTSR-Historic Wholesale'!H41 -> 58441.58 | I42: 0.771 | J42: 45058.45818 | L42: ='13. RTSR-Historic Wholesale'!L41 -> 58441.58 | M42: 1.7493 | N42: 102231.8559 | P42: 147290.3141
B43: May | D43: ='13. RTSR-Historic Wholesale'!D42 -> 77470.07 | E43: 3.1942 | F43: 247454.8976 | H43: ='13. RTSR-Historic Wholesale'!H42 -> 77852.99 | I43: 0.771 | J43: 60024.65529 | L43: ='13. RTSR-Historic Wholesale'!L42 -> 77852.99 | M43: 1.7493 | N43: 136188.2354 | P43: 196212.8907
B44: June | D44: ='13. RTSR-Historic Wholesale'!D43 -> 77470.07 | E44: 3.1942 | F44: 247454.8976 | H44: ='13. RTSR-Historic Wholesale'!H43 -> 77852.99 | I44: 0.771 | J44: 60024.65529 | L44: ='13. RTSR-Historic Wholesale'!L43 -> 77852.99 | M44: 1.7493 | N44: 136188.2354 | P44: 196212.8907
B45: July | D45: ='13. RTSR-Historic Wholesale'!D44 -> 87411.32 | E45: 3.1942 | F45: 279209.2383 | H45: ='13. RTSR-Historic Wholesale'!H44 -> 88529.02 | I45: 0.771 | J45: 68255.87442 | L45: ='13. RTSR-Historic Wholesale'!L44 -> 88529.02 | M45: 1.7493 | N45: 154863.8147 | P45: 223119.6891
B46: August | D46: ='13. RTSR-Historic Wholesale'!D45 -> 87733.31 | E46: 3.1942 | F46: 280237.7388 | H46: ='13. RTSR-Historic Wholesale'!H45 -> 88426.77 | I46: 0.771 | J46: 68177.03967 | L46: ='13. RTSR-Historic Wholesale'!L45 -> 88426.77 | M46: 1.7493 | N46: 154684.9488 | P46: 222861.9884
B47: September | D47: ='13. RTSR-Historic Wholesale'!D46 -> 89718.08 | E47: 3.1942 | F47: 286577.4911 | H47: ='13. RTSR-Historic Wholesale'!H46 -> 90337.12 | I47: 0.771 | J47: 69649.91952 | L47: ='13. RTSR-Historic Wholesale'!L46 -> 90337.12 | M47: 1.7493 | N47: 158026.724 | P47: 227676.6435
B48: October | D48: ='13. RTSR-Historic Wholesale'!D47 -> 74044.27 | E48: 3.1942 | F48: 236512.2072 | H48: ='13. RTSR-Historic Wholesale'!H47 -> 75988.87 | I48: 0.771 | J48: 58587.41877 | L48: ='13. RTSR-Historic Wholesale'!L47 -> 75988.87 | M48: 1.7493 | N48: 132927.3303 | P48: 191514.7491
B49: November | D49: ='13. RTSR-Historic Wholesale'!D48 -> 68598.68 | E49: 3.1942 | F49: 219117.9037 | H49: ='13. RTSR-Historic Wholesale'!H48 -> 68688.32 | I49: 0.771 | J49: 52958.69472 | L49: ='13. RTSR-Historic Wholesale'!L48 -> 68688.32 | M49: 1.7493 | N49: 120156.4782 | P49: 173115.1729
B50: December | D50: ='13. RTSR-Historic Wholesale'!D49 -> 79346.53 | E50: 3.1942 | F50: 253448.6861 | H50: ='13. RTSR-Historic Wholesale'!H49 -> 80260.34 | I50: 0.771 | J50: 61880.72214 | L50: ='13. RTSR-Historic Wholesale'!L49 -> 80260.34 | M50: 1.7493 | N50: 140399.4128 | P50: 202280.1349
B52: Total | D52: =SUM(D39:D50) -> 880825.51 | E52: =IF(D52<>0,F52/D52,0) -> 3.1942 | F52: =SUM(F39:F50) -> 2813532.844 | H52: =SUM(H39:H50) -> 890203.26 | I52: =IF(H52<>0,J52/H52,0) -> 0.771 | J52: =SUM(J39:J50) -> 686346.7135 | L52: =SUM(L39:L50) -> 890203.26 | M52: =IF(L52<>0,N52/L52,0) -> 1.7493 | N52: =SUM(N39:N50) -> 1557232.563 | P52: =SUM(P39:P50) -> 2243579.276
B54: Add Extra Host Here (I) | D54: Network | H54: Line Connection | L54: Transformation Connection | P54: Total Line
B56: Month | D56: Units Billed | E56: Rate | F56: Amount | H56: Units Billed | I56: Rate | J56: Amount | L56: Units Billed | M56: Rate | N56: Amount | P56: Amount
B58: January | D58: ='13. RTSR-Historic Wholesale'!D57 -> 0 | E58: ='12. RTSR-UTRs & Sub-Tx'!I44 -> 0 | F58: =D58*E58 -> 0 | H58: ='13. RTSR-Historic Wholesale'!H57 -> 0 | I58: ='12. RTSR-UTRs & Sub-Tx'!I46 -> 0 | J58: =H58*I58 -> 0 | L58: ='13. RTSR-Historic Wholesale'!L57 -> 0 | M58: ='12. RTSR-UTRs & Sub-Tx'!I48 -> 0 | N58: =L58*M58 -> 0 | P58: =J58+N58 -> 0
B59: February | D59: ='13. RTSR-Historic Wholesale'!D58 -> 0 | E59: =E58 -> 0 | F59: 0 | H59: ='13. RTSR-Historic Wholesale'!H58 -> 0 | I59: =I58 -> 0 | J59: 0 | L59: ='13. RTSR-Historic Wholesale'!L58 -> 0 | M59: =M58 -> 0 | N59: 0 | P59: 0
B60: March | D60: ='13. RTSR-Historic Wholesale'!D59 -> 0 | E60: 0 | F60: 0 | H60: ='13. RTSR-Historic Wholesale'!H59 -> 0 | I60: 0 | J60: 0 | L60: ='13. RTSR-Historic Wholesale'!L59 -> 0 | M60: 0 | N60: 0 | P60: 0
B61: April | D61: ='13. RTSR-Historic Wholesale'!D60 -> 0 | E61: 0 | F61: 0 | H61: ='13. RTSR-Historic Wholesale'!H60 -> 0 | I61: 0 | J61: 0 | L61: ='13. RTSR-Historic Wholesale'!L60 -> 0 | M61: 0 | N61: 0 | P61: 0
B62: May | D62: ='13. RTSR-Historic Wholesale'!D61 -> 0 | E62: 0 | F62: 0 | H62: ='13. RTSR-Historic Wholesale'!H61 -> 0 | I62: 0 | J62: 0 | L62: ='13. RTSR-Historic Wholesale'!L61 -> 0 | M62: 0 | N62: 0 | P62: 0
B63: June | D63: ='13. RTSR-Historic Wholesale'!D62 -> 0 | E63: 0 | F63: 0 | H63: ='13. RTSR-Historic Wholesale'!H62 -> 0 | I63: 0 | J63: 0 | L63: ='13. RTSR-Historic Wholesale'!L62 -> 0 | M63: 0 | N63: 0 | P63: 0
B64: July | D64: ='13. RTSR-Historic Wholesale'!D63 -> 0 | E64: 0 | F64: 0 | H64: ='13. RTSR-Historic Wholesale'!H63 -> 0 | I64: 0 | J64: 0 | L64: ='13. RTSR-Historic Wholesale'!L63 -> 0 | M64: 0 | N64: 0 | P64: 0
B65: August | D65: ='13. RTSR-Historic Wholesale'!D64 -> 0 | E65: 0 | F65: 0 | H65: ='13. RTSR-Historic Wholesale'!H64 -> 0 | I65: 0 | J65: 0 | L65: ='13. RTSR-Historic Wholesale'!L64 -> 0 | M65: 0 | N65: 0 | P65: 0
B66: September | D66: ='13. RTSR-Historic Wholesale'!D65 -> 0 | E66: 0 | F66: 0 | H66: ='13. RTSR-Historic Wholesale'!H65 -> 0 | I66: 0 | J66: 0 | L66: ='13. RTSR-Historic Wholesale'!L65 -> 0 | M66: 0 | N66: 0 | P66: 0
B67: October | D67: ='13. RTSR-Historic Wholesale'!D66 -> 0 | E67: 0 | F67: 0 | H67: ='13. RTSR-Historic Wholesale'!H66 -> 0 | I67: 0 | J67: 0 | L67: ='13. RTSR-Historic Wholesale'!L66 -> 0 | M67: 0 | N67: 0 | P67: 0
B68: November | D68: ='13. RTSR-Historic Wholesale'!D67 -> 0 | E68: 0 | F68: 0 | H68: ='13. RTSR-Historic Wholesale'!H67 -> 0 | I68: 0 | J68: 0 | L68: ='13. RTSR-Historic Wholesale'!L67 -> 0 | M68: 0 | N68: 0 | P68: 0
B69: December | D69: ='13. RTSR-Historic Wholesale'!D68 -> 0 | E69: 0 | F69: 0 | H69: ='13. RTSR-Historic Wholesale'!H68 -> 0 | I69: 0 | J69: 0 | L69: ='13. RTSR-Historic Wholesale'!L68 -> 0 | M69: 0 | N69: 0 | P69: 0
B71: Total | D71: =SUM(D58:D69) -> 0 | E71: =IF(D71<>0,F71/D71,0) -> 0 | F71: =SUM(F58:F69) -> 0 | H71: =SUM(H58:H69) -> 0 | I71: =IF(H71<>0,J71/H71,0) -> 0 | J71: =SUM(J58:J69) -> 0 | L71: =SUM(L58:L69) -> 0 | M71: =IF(L71<>0,N71/L71,0) -> 0 | N71: =SUM(N58:N69) -> 0 | P71: =SUM(P58:P69) -> 0
B73: Add Extra Host Here (II) | D73: Network | H73: Line Connection | L73: Transformation Connection | P73: Total Line
B75: Month | D75: Units Billed | E75: Rate | F75: Amount | H75: Units Billed | I75: Rate | J75: Amount | L75: Units Billed | M75: Rate | N75: Amount | P75: Amount
B77: January | D77: ='13. RTSR-Historic Wholesale'!D76 -> 0 | E77: ='12. RTSR-UTRs & Sub-Tx'!I59 -> 0 | F77: =D77*E77 -> 0 | H77: ='13. RTSR-Historic Wholesale'!H76 -> 0 | I77: ='12. RTSR-UTRs & Sub-Tx'!I61 -> 0 | J77: =H77*I77 -> 0 | L77: ='13. RTSR-Historic Wholesale'!L76 -> 0 | M77: ='12. RTSR-UTRs & Sub-Tx'!I63 -> 0 | N77: =L77*M77 -> 0 | P77: =J77+N77 -> 0
B78: February | D78: ='13. RTSR-Historic Wholesale'!D77 -> 0 | E78: =E77 -> 0 | F78: 0 | H78: ='13. RTSR-Historic Wholesale'!H77 -> 0 | I78: =I77 -> 0 | J78: 0 | L78: ='13. RTSR-Historic Wholesale'!L77 -> 0 | M78: =M77 -> 0 | N78: 0 | P78: 0
B79: March | D79: ='13. RTSR-Historic Wholesale'!D78 -> 0 | E79: 0 | F79: 0 | H79: ='13. RTSR-Historic Wholesale'!H78 -> 0 | I79: 0 | J79: 0 | L79: ='13. RTSR-Historic Wholesale'!L78 -> 0 | M79: 0 | N79: 0 | P79: 0
B80: April | D80: ='13. RTSR-Historic Wholesale'!D79 -> 0 | E80: 0 | F80: 0 | H80: ='13. RTSR-Historic Wholesale'!H79 -> 0 | I80: 0 | J80: 0 | L80: ='13. RTSR-Historic Wholesale'!L79 -> 0 | M80: 0 | N80: 0 | P80: 0
B81: May | D81: ='13. RTSR-Historic Wholesale'!D80 -> 0 | E81: 0 | F81: 0 | H81: ='13. RTSR-Historic Wholesale'!H80 -> 0 | I81: 0 | J81: 0 | L81: ='13. RTSR-Historic Wholesale'!L80 -> 0 | M81: 0 | N81: 0 | P81: 0
B82: June | D82: ='13. RTSR-Historic Wholesale'!D81 -> 0 | E82: 0 | F82: 0 | H82: ='13. RTSR-Historic Wholesale'!H81 -> 0 | I82: 0 | J82: 0 | L82: ='13. RTSR-Historic Wholesale'!L81 -> 0 | M82: 0 | N82: 0 | P82: 0
B83: July | D83: ='13. RTSR-Historic Wholesale'!D82 -> 0 | E83: 0 | F83: 0 | H83: ='13. RTSR-Historic Wholesale'!H82 -> 0 | I83: 0 | J83: 0 | L83: ='13. RTSR-Historic Wholesale'!L82 -> 0 | M83: 0 | N83: 0 | P83: 0
B84: August | D84: ='13. RTSR-Historic Wholesale'!D83 -> 0 | E84: 0 | F84: 0 | H84: ='13. RTSR-Historic Wholesale'!H83 -> 0 | I84: 0 | J84: 0 | L84: ='13. RTSR-Historic Wholesale'!L83 -> 0 | M84: 0 | N84: 0 | P84: 0
B85: September | D85: ='13. RTSR-Historic Wholesale'!D84 -> 0 | E85: 0 | F85: 0 | H85: ='13. RTSR-Historic Wholesale'!H84 -> 0 | I85: 0 | J85: 0 | L85: ='13. RTSR-Historic Wholesale'!L84 -> 0 | M85: 0 | N85: 0 | P85: 0
B86: October | D86: ='13. RTSR-Historic Wholesale'!D85 -> 0 | E86: 0 | F86: 0 | H86: ='13. RTSR-Historic Wholesale'!H85 -> 0 | I86: 0 | J86: 0 | L86: ='13. RTSR-Historic Wholesale'!L85 -> 0 | M86: 0 | N86: 0 | P86: 0
B87: November | D87: ='13. RTSR-Historic Wholesale'!D86 -> 0 | E87: 0 | F87: 0 | H87: ='13. RTSR-Historic Wholesale'!H86 -> 0 | I87: 0 | J87: 0 | L87: ='13. RTSR-Historic Wholesale'!L86 -> 0 | M87: 0 | N87: 0 | P87: 0
B88: December | D88: ='13. RTSR-Historic Wholesale'!D87 -> 0 | E88: 0 | F88: 0 | H88: ='13. RTSR-Historic Wholesale'!H87 -> 0 | I88: 0 | J88: 0 | L88: ='13. RTSR-Historic Wholesale'!L87 -> 0 | M88: 0 | N88: 0 | P88: 0
L89: ='13. RTSR-Historic Wholesale'!L88 -> 0
B90: Total | D90: =SUM(D77:D88) -> 0 | E90: =IF(D90<>0,F90/D90,0) -> 0 | F90: =SUM(F77:F88) -> 0 | H90: =SUM(H77:H88) -> 0 | I90: =IF(H90<>0,J90/H90,0) -> 0 | J90: =SUM(J77:J88) -> 0 | L90: =SUM(L77:L88) -> 0 | M90: =IF(L90<>0,N90/L90,0) -> 0 | N90: =SUM(N77:N88) -> 0 | P90: =SUM(P77:P88) -> 0
B92: Total | D92: Network | H92: Line Connection | L92: Transformation Connection | P92: Total Line
B94: Month | D94: Units Billed | E94: Rate | F94: Amount | H94: Units Billed | I94: Rate | J94: Amount | L94: Units Billed | M94: Rate | N94: Amount | P94: Amount
B96: January | D96: =D20+D39+D58+D77 -> 805319.8 | E96: =IF(D96<>0,F96/D96,0) -> 3.668886377 | F96: =F20+F39+F58+F77 -> 2954626.843 | H96: =H20+H39+H58+H77 -> 796835.06 | I96: =IF(H96<>0,J96/H96,0) -> 0.9263518441 | J96: =J20+J39+J58+J77 -> 738149.6273 | L96: =L20+L39+L58+L77 -> 856007.06 | M96: =IF(L96<>0,N96/L96,0) -> 2.212359451 | N96: =N20+N39+N58+N77 -> 1893795.309 | P96: =J96+N96 -> 2631944.937
B97: February | D97: =D21+D40+D59+D78 -> 776955.84 | E97: 3.670599908 | F97: =F21+F40+F59+F78 -> 2851894.035 | H97: =H21+H40+H59+H78 -> 752765.03 | I97: 0.9266376417 | J97: =J21+J40+J59+J78 -> 697540.4121 | L97: =L21+L40+L59+L78 -> 814595.03 | M97: 2.213415959 | N97: =N21+N40+N59+N78 -> 1803037.639 | P97: 2500578.051
B98: March | D98: 725619.58 | E98: 3.667756452 | F98: 2661395.896 | H98: 715494.17 | I98: 0.9258385656 | J98: 662432.0961 | L98: 769615.17 | M98: 2.210994072 | N98: 1701614.579 | P98: 2364046.675
B99: April | D99: 703485.96 | E99: 3.668892112 | F99: 2581014.089 | H99: 717088.58 | I99: 0.9262267685 | J99: 664186.6382 | L99: 773086.58 | M99: 2.212149519 | N99: 1710183.106 | P99: 2374369.744
B100: May | D100: 893241.07 | E100: 3.665265086 | F100: 3273965.308 | H100: 895778.99 | I100: 0.9253120519 | J100: 828875.0953 | L100: 955543.99 | M100: 2.209205445 | N100: 2110992.985 | P100: 2939868.081
B101: June | D101: 945996.07 | E101: 3.667759801 | F101: 3469686.358 | H101: 955308.99 | I101: 0.9262273302 | J101: 884833.2953 | L101: 1017744.99 | M101: 2.211698665 | N101: 2250945.235 | P101: 3135778.531
B102: July | D102: 1024629.32 | E102: 3.665997005 | F102: 3756288.018 | H102: 997697.02 | I102: 0.9250040603 | J102: 922873.7944 | L102: 1069085.02 | M102: 2.208537928 | N102: 2361114.815 | P102: 3283988.609
B103: August | D103: 1011231.31 | E103: 3.665249762 | F103: 3706415.319 | H103: 978178.77 | I103: 0.9247225021 | J103: 904543.9197 | L103: 1047347.77 | M103: 2.207726283 | N103: 2312257.199 | P103: 3216801.118
B104: September | D104: 1033069.08 | E104: 3.665204752 | F104: 3786409.701 | H104: 1000449.12 | I104: 0.9247398803 | J104: 925155.1995 | L104: 1067740.12 | M104: 2.207637823 | N104: 2357183.474 | P104: 3282338.674
B105: October | D105: 783789.27 | E105: 3.661272573 | F105: 2869666.157 | H105: 784299.87 | I105: 0.923626009 | J105: 724399.7588 | L105: 843601.87 | M105: 2.204898598 | N105: 1860056.58 | P105: 2584456.339
B106: November | D106: 765780.68 | E106: 3.663794605 | F106: 2805663.124 | H106: 739688.32 | I106: 0.9243064629 | J106: 683698.6947 | L106: 796216.32 | M106: 2.206805405 | N106: 1757094.478 | P106: 2440793.173
B107: December | D107: 760389.53 | E107: 3.65617635 | F107: 2780118.216 | H107: 754587.34 | I107: 0.9220246157 | J107: 695748.1021 | L107: 810126.34 | M107: 2.200394957 | N107: 1782597.913 | P107: 2478346.015
B109: Total | D109: =SUM(D96:D107) -> 10229507.51 | E109: =IF(D109<>0,F109/D109,0) -> 3.665586347 | F109: =SUM(F96:F107) -> 37497143.06 | H109: =SUM(H96:H107) -> 10088171.26 | I109: =IF(H109<>0,J109/H109,0) -> 0.9250870542 | J109: =SUM(J96:J107) -> 9332436.633 | L109: =SUM(L96:L107) -> 10820710.26 | M109: =IF(L109<>0,N109/L109,0) -> 2.208808178 | N109: =SUM(N96:N107) -> 23900873.31 | P109: =SUM(P96:P107) -> 33233309.95
N111: Low Voltage Switchgear Credit (if applicable) | P111: ='12. RTSR-UTRs & Sub-Tx'!I68 -> 0
N113: Total including deduction for Low Voltage Switchgear Credit | P113: =P109+P111 -> 33233309.95

Sheet 16. RTSR-Rates to Forecast
A1: Back to Index
B2: =+'1. Information Sheet'!B2 -> INCENTIVE REGULATION MODEL FOR 2020 FILERS
B13: The purpose of this table is to re-align the current RTS Network Rates to recover current wholesale network costs.
B15: Rate Class | C15: Rate Description | D15: Unit | E15: Current RTSR-Network | F15: Loss Adjusted Billed kWh | G15: Billed kW | H15: Billed Amount | I15: Billed Amount % | J15: Current Wholesale Billing | K15: Adjusted RTSR Network
A17: ='11. RTSR - Current Rates'!A16 -> R_TN | B17: ='11. RTSR - Current Rates'!B16 -> RESIDENTIAL SERVICE CLASSIFICATION | C17: =IFERROR(VLOOKUP(A17,RTSR,3,FALSE),"") -> Retail Transmission Rate – Network Service Rate | D17: =IFERROR(VLOOKUP(A17,RTSR,4,FALSE),"") -> $/kWh | E17: =IFERROR(VLOOKUP(A17,_xlnm.DATABASE,8,FALSE),0) -> 0.0072 | F17: =IFERROR(VLOOKUP(A17,RTSR,9,FALSE),"") -> 1721893550 | G17: =IFERROR(VLOOKUP(A17,RTSR,7,FALSE),"") -> 0 | H17: =IF(G17=0,IF(ISERROR(E17*F17),0,ROUND(E17*F17,2)),IF(ISERROR(E17*G17),0,ROUND(E17*G17,2))) -> 12397633.56 | I17: =IFERROR(H17/SUM(H$17:H$24),"") -> 0.3526839052 | J17: =IFERROR(I17*total_wholesale_TN,"") -> 13224638.85 | K17: =IF(G17=0,IF(ISERROR(J17/F17),0,J17/F17),IF(ISERROR(J17/G17),0,J17/G17)) -> 0.00768028828
A18: ='11. RTSR - Current Rates'!A17 -> GSL_TN | B18: ='11. RTSR - Current Rates'!B17 -> GENERAL SERVICE LESS THAN 50 kW SERVICE CLASSIFICATION | C18: Retail Transmission Rate – Network Service Rate | D18: $/kWh | E18: 0.0063 | F18: 602338050.4 | G18: 0 | H18: =IF(G18=0,IF(ISERROR(E18*F18),0,ROUND(E18*F18,2)),IF(ISERROR(E18*G18),0,ROUND(E18*G18,2))) -> 3794729.72 | I18: =IFERROR(H18/SUM(H$17:H$24),"") -> 0.1079512546 | J18: 4047863.637 | K18: =IF(G18=0,IF(ISERROR(J18/F18),0,J18/F18),IF(ISERROR(J18/G18),0,J18/G18)) -> 0.006720252247
A19: ='11. RTSR - Current Rates'!A18 -> GSG_TN | B19: ='11. RTSR - Current Rates'!B18 -> GENERAL SERVICE 50 to 4,999 kW SERVICE CLASSIFICATION | C19: Retail Transmission Rate – Network Service Rate | D19: $/kW | E19: 2.5204 | G19: 4746295.437 | H19: 11962563.02 | I19: 0.3403071579 | J19: 12760546.19 | K19: 2.68852758
A20: ='11. RTSR - Current Rates'!A19 -> LU_TN | B20: ='11. RTSR - Current Rates'!B19 -> LARGE USE SERVICE CLASSIFICATION | C20: Retail Transmission Rate – Network Service Rate | D20: $/kW | E20: 2.8791 | G20: 360259.695 | H20: 1037223.69 | I20: 0.02950660703 | J20: 1106413.465 | K20: 3.071155282
A21: ='11. RTSR - Current Rates'!A20 -> LUDA_TN | B21: ='11. RTSR - Current Rates'!B20 -> LARGE USE SERVICE WITH DEDICATED ASSETS CLASSIFICATION | C21: Retail Transmission Rate – Network Service Rate | D21: $/kW | E21: 2.8791 | G21: 2002430.496 | H21: 5765197.64 | I21: 0.1640064943 | J21: 6149774.98 | K21: 3.071155274
A22: ='11. RTSR - Current Rates'!A21 -> USL_TN | B22: ='11. RTSR - Current Rates'!B21 -> UNMETERED SCATTERED LOAD SERVICE CLASSIFICATION | C22: Retail Transmission Rate – Network Service Rate | D22: $/kWh | E22: 0.0064 | F22: 11803519.17 | G22: 0 | H22: 75542.52 | I22: 0.002149009392 | J22: 80581.71262 | K22: 0.006826922671
A23: ='11. RTSR - Current Rates'!A22 -> SEN_TN | B23: ='11. RTSR - Current Rates'!B22 -> SENTINEL LIGHTING SERVICE CLASSIFICATION | C23: Retail Transmission Rate – Network Service Rate | D23: $/kW | E23: 2.0943 | G23: 1320.307601 | H23: 2765.12 | I23: 7.866124734e-05 | J23: 2949.572045 | K23: 2.234003684
A24: ='11. RTSR - Current Rates'!A23 -> SL_TN | B24: ='11. RTSR - Current Rates'!B23 -> STREET LIGHTING SERVICE CLASSIFICATION | C24: Retail Transmission Rate – Network Service Rate | D24: $/kW | E24: 1.984 | G24: 58768.585 | H24: 116596.87 | I24: 0.00331691038 | J24: 124374.663 | K24: 2.116346055
A25: ='11. RTSR - Current Rates'!A24 -> 0 | B25: ='11. RTSR - Current Rates'!B24 -> STANDBY POWER SERVICE CLASSIFICATION
B32: The purpose of this table is to re-align the current RTS Connection Rates to recover current wholesale connection costs.
B33: Rate Class | C33: Rate Description | D33: Unit | E33: Current RTSR-Connection | F33: Loss Adjusted Billed kWh | G33: Billed kW | H33: Billed Amount | I33: Billed Amount % | J33: Current Wholesale Billing | K33: Adjusted RTSR-Connection
A35: ='11. RTSR - Current Rates'!A29 -> R_TC | B35: ='11. RTSR - Current Rates'!B29 -> RESIDENTIAL SERVICE CLASSIFICATION | C35: =IFERROR(VLOOKUP(A35,RTSR,3,FALSE),"") -> Retail Transmission Rate – Line and Transformation Connection Service Rate | D35: =IFERROR(VLOOKUP(A35,RTSR,4,FALSE),"") -> $/kWh | E35: =IFERROR(VLOOKUP(A35,_xlnm.DATABASE,8,FALSE),0) -> 0.0066 | F35: =IFERROR(VLOOKUP(A35,RTSR,9,FALSE),0) -> 1721893550 | G35: =IFERROR(VLOOKUP(A35,RTSR,7,FALSE),0) -> 0 | H35: =IF(G35=0,IF(ISERROR(E35*F35),0,ROUND(E35*F35,2)),IF(ISERROR(E35*G35),0,ROUND(E35*G35,2))) -> 11364497.43 | I35: =IFERROR(H35/SUM(H$35:H$42),"") -> 0.3452773098 | J35: =IFERROR(I35*total_wholesale_LinePlus,"") -> 11474707.85 | K35: =IF(G35=0,IF(ISERROR(J35/F35),0,J35/F35),IF(ISERROR(J35/G35),0,J35/G35)) -> 0.006664005366
A36: ='11. RTSR - Current Rates'!A30 -> GSL_TC | B36: ='11. RTSR - Current Rates'!B30 -> GENERAL SERVICE LESS THAN 50 kW SERVICE CLASSIFICATION | C36: Retail Transmission Rate – Line and Transformation Connection Service Rate | D36: $/kWh | E36: 0.0059 | F36: 602338050.4 | G36: 0 | H36: =IF(G36=0,IF(ISERROR(E36*F36),0,ROUND(E36*F36,2)),IF(ISERROR(E36*G36),0,ROUND(E36*G36,2))) -> 3553794.5 | I36: =IFERROR(H36/SUM(H$35:H$42),"") -> 0.1079717438 | J36: 3588258.426 | K36: 0.005957216921
A37: ='11. RTSR - Current Rates'!A31 -> GSG_TC | B37: ='11. RTSR - Current Rates'!B31 -> GENERAL SERVICE 50 to 4,999 kW SERVICE CLASSIFICATION | C37: Retail Transmission Rate – Line and Transformation Connection Service Rate | D37: $/kW | E37: 2.3873 | G37: 4746295.437 | H37: 11330831.1 | I37: 0.3442544559 | J37: 11440715.03 | K37: 2.410451517
A38: ='11. RTSR - Current Rates'!A32 -> LU_TC | B38: ='11. RTSR - Current Rates'!B32 -> LARGE USE SERVICE CLASSIFICATION | C38: Retail Transmission Rate – Line and Transformation Connection Service Rate | D38: $/kW | E38: 2.7433 | G38: 360259.695 | H38: 988300.42 | I38: 0.03002664327 | J38: 997884.7425 | K38: 2.769903923
A39: ='11. RTSR - Current Rates'!A33 -> LUDA_TC | B39: ='11. RTSR - Current Rates'!B33 -> LARGE USE SERVICE WITH DEDICATED ASSETS CLASSIFICATION | C39: Retail Transmission Rate – Line and Transformation Connection Service Rate | D39: $/kW | E39: 2.7433 | G39: 2002430.496 | H39: 5493267.58 | I39: 0.1668970109 | J39: 5546540.094 | K39: 2.769903927
A40: ='11. RTSR - Current Rates'!A34 -> USL_TC | B40: ='11. RTSR - Current Rates'!B34 -> UNMETERED SCATTERED LOAD SERVICE CLASSIFICATION | C40: =IFERROR(VLOOKUP(A40,RTSR,3,FALSE),"") -> Retail Transmission Rate – Line and Transformation Connection Service Rate | D40: =IFERROR(VLOOKUP(A40,RTSR,4,FALSE),"") -> $/kWh | E40: 0.006 | F40: 11803519.17 | G40: 0 | H40: 70821.12 | I40: 0.002151694427 | J40: 71507.92781 | K40: 0.006058187121
A41: ='11. RTSR - Current Rates'!A35 -> SEN_TC | B41: ='11. RTSR - Current Rates'!B35 -> SENTINEL LIGHTING SERVICE CLASSIFICATION | C41: Retail Transmission Rate – Line and Transformation Connection Service Rate | D41: $/kW | E41: 1.9209 | G41: 1320.307601 | H41: 2536.18 | I41: 7.705447715e-05 | J41: 2560.775322 | K41: 1.939529334
A42: ='11. RTSR - Current Rates'!A36 -> SL_TC | B42: ='11. RTSR - Current Rates'!B36 -> STREET LIGHTING SERVICE CLASSIFICATION | C42: Retail Transmission Rate – Line and Transformation Connection Service Rate | D42: $/kW | E42: 1.8729 | G42: 58768.585 | H42: 110067.68 | I42: 0.003344087381 | J42: 111135.0924 | K42: 1.891062928
A43: ='11. RTSR - Current Rates'!A37 -> 0 | B43: ='11. RTSR - Current Rates'!B37 -> STANDBY POWER SERVICE CLASSIFICATION
B49: The purpose of this table is to update the re-aligned RTS Network Rates to recover future wholesale network costs.
B50: Rate Class | C50: Rate Description | D50: Unit | E50: Adjusted RTSR-Network | F50: Loss Adjusted Billed kWh | G50: Billed kW | H50: Billed Amount | I50: Billed Amount % | J50: Current Wholesale Billing | K50: Proposed RTSR-Network
A52: =A17 -> R_TN | B52: =B17 -> RESIDENTIAL SERVICE CLASSIFICATION | C52: =IFERROR(VLOOKUP(A52,RTSR,3,FALSE),"") -> Retail Transmission Rate – Network Service Rate | D52: =IFERROR(VLOOKUP(A52,RTSR,4,FALSE),"") -> $/kWh | E52: =K17 -> 0.00768028828 | F52: =IFERROR(VLOOKUP(A52,RTSR,9,FALSE),0) -> 1721893550 | G52: =IFERROR(VLOOKUP(A52,RTSR,7,FALSE),0) -> 0 | H52: =IF(G52=0,IF(ISERROR(E52*F52),0,ROUND(E52*F52,2)),IF(ISERROR(E52*G52),0,ROUND(E52*G52,2))) -> 13224638.85 | I52: =IFERROR(H52/SUM(H$52:H$59),"") -> 0.3526839052 | J52: =IFERROR(I52*forecast_wholesale_TN,"") -> 13224638.85 | K52: =IF(G52=0,IF(ISERROR(J52/F52),0,J52/F52),IF(ISERROR(J52/G52),0,J52/G52)) -> 0.00768028828
A53: =A18 -> GSL_TN | B53: GENERAL SERVICE LESS THAN 50 kW SERVICE CLASSIFICATION | C53: Retail Transmission Rate – Network Service Rate | D53: $/kWh | E53: =K18 -> 0.006720252247 | F53: 602338050.4 | G53: 0 | H53: =IF(G53=0,IF(ISERROR(E53*F53),0,ROUND(E53*F53,2)),IF(ISERROR(E53*G53),0,ROUND(E53*G53,2))) -> 4047863.64 | I53: =IFERROR(H53/SUM(H$52:H$59),"") -> 0.1079512546 | J53: 4047863.639 | K53: =IF(G53=0,IF(ISERROR(J53/F53),0,J53/F53),IF(ISERROR(J53/G53),0,J53/G53)) -> 0.006720252251
A54: =A19 -> GSG_TN | B54: GENERAL SERVICE 50 to 4,999 kW SERVICE CLASSIFICATION | C54: Retail Transmission Rate – Network Service Rate | D54: $/kW | E54: 2.68852758 | G54: 4746295.437 | H54: 12760546.19 | I54: 0.340307158 | J54: 12760546.19 | K54: 2.688527581
A55: =A20 -> LU_TN | B55: LARGE USE SERVICE CLASSIFICATION | C55: Retail Transmission Rate – Network Service Rate | D55: $/kW | E55: 3.071155282 | G55: 360259.695 | H55: 1106413.47 | I55: 0.02950660715 | J55: 1106413.47 | K55: 3.071155295
A56: =A21 -> LUDA_TN | B56: LARGE USE SERVICE WITH DEDICATED ASSETS CLASSIFICATION | C56: Retail Transmission Rate – Network Service Rate | D56: $/kW | E56: 3.071155274 | G56: 2002430.496 | H56: 6149774.98 | I56: 0.1640064943 | J56: 6149774.979 | K56: 3.071155274
A57: =A22 -> USL_TN | B57: UNMETERED SCATTERED LOAD SERVICE CLASSIFICATION | C57: =IFERROR(VLOOKUP(A57,RTSR,3,FALSE),"") -> Retail Transmission Rate – Network Service Rate | D57: =IFERROR(VLOOKUP(A57,RTSR,4,FALSE),"") -> $/kWh | E57: 0.006826922671 | F57: 11803519.17 | G57: 0 | H57: 80581.71 | I57: 0.002149009322 | J57: 80581.70999 | K57: 0.006826922449
A58: =A23 -> SEN_TN | B58: SENTINEL LIGHTING SERVICE CLASSIFICATION | C58: Retail Transmission Rate – Network Service Rate | D58: $/kW | E58: 2.234003684 | G58: 1320.307601 | H58: 2949.57 | I58: 7.866119279e-05 | J58: 2949.57 | K58: 2.234002135
A59: =A24 -> SL_TN | B59: STREET LIGHTING SERVICE CLASSIFICATION | C59: Retail Transmission Rate – Network Service Rate | D59: $/kW | E59: 2.116346055 | G59: 58768.585 | H59: 124374.66 | I59: 0.003316910298 | J59: 124374.66 | K59: 2.116346003
A60: =A25 -> 0 | B60: STANDBY POWER SERVICE CLASSIFICATION
B65: The purpose of this table is to update the re-aligned RTS Connection Rates to recover future wholesale connection costs.
B66: Rate Class | C66: Rate Description | D66: Unit | E66: Adjusted RTSR-Connection | F66: Loss Adjusted Billed kWh | G66: Billed kW | H66: Billed Amount | I66: Billed Amount % | J66: Current Wholesale Billing | K66: Proposed RTSR-Connection
A68: =A35 -> R_TC | B68: =B35 -> RESIDENTIAL SERVICE CLASSIFICATION | C68: =IFERROR(VLOOKUP(A68,RTSR,3,FALSE),"") -> Retail Transmission Rate – Line and Transformation Connection Service Rate | D68: =IFERROR(VLOOKUP(A68,RTSR,4,FALSE),"") -> $/kWh | E68: =K35 -> 0.006664005366 | F68: =IFERROR(VLOOKUP(A68,RTSR,9,FALSE),0) -> 1721893550 | G68: =IFERROR(VLOOKUP(A68,RTSR,7,FALSE),0) -> 0 | H68: =IF(G68=0,IF(ISERROR(E68*F68),0,ROUND(E68*F68,2)),IF(ISERROR(E68*G68),0,ROUND(E68*G68,2))) -> 11474707.85 | I68: =IFERROR(H68/SUM(H$68:H$75),"") -> 0.3452773097 | J68: =IFERROR(I68*forecast_wholesale_LNPlus,"") -> 11474707.85 | K68: =IF(G68=0,IF(ISERROR(J68/F68),0,J68/F68),IF(ISERROR(J68/G68),0,J68/G68)) -> 0.006664005365
A69: =A36 -> GSL_TC | B69: GENERAL SERVICE LESS THAN 50 kW SERVICE CLASSIFICATION | C69: Retail Transmission Rate – Line and Transformation Connection Service Rate | D69: $/kWh | E69: =K36 -> 0.005957216921 | F69: 602338050.4 | G69: 0 | H69: =IF(G69=0,IF(ISERROR(E69*F69),0,ROUND(E69*F69,2)),IF(ISERROR(E69*G69),0,ROUND(E69*G69,2))) -> 3588258.43 | I69: =IFERROR(H69/SUM(H$68:H$75),"") -> 0.1079717439 | J69: 3588258.431 | K69: 0.005957216928
A70: =A37 -> GSG_TC | B70: GENERAL SERVICE 50 to 4,999 kW SERVICE CLASSIFICATION | C70: Retail Transmission Rate – Line and Transformation Connection Service Rate | D70: $/kW | E70: 2.410451517 | G70: 4746295.437 | H70: 11440715.03 | I70: 0.3442544559 | J70: 11440715.03 | K70: 2.410451516
A71: =A38 -> LU_TC | B71: LARGE USE SERVICE CLASSIFICATION | C71: Retail Transmission Rate – Line and Transformation Connection Service Rate | D71: $/kW | E71: 2.769903923 | G71: 360259.695 | H71: 997884.74 | I71: 0.0300266432 | J71: 997884.7402 | K71: 2.769903917
A72: =A39 -> LUDA_TC | B72: LARGE USE SERVICE WITH DEDICATED ASSETS CLASSIFICATION | C72: Retail Transmission Rate – Line and Transformation Connection Service Rate | D72: $/kW | E72: 2.769903927 | G72: 2002430.496 | H72: 5546540.09 | I72: 0.1668970109 | J72: 5546540.091 | K72: 2.769903925
A73: =A40 -> USL_TC | B73: UNMETERED SCATTERED LOAD SERVICE CLASSIFICATION | C73: =IFERROR(VLOOKUP(A73,RTSR,3,FALSE),"") -> Retail Transmission Rate – Line and Transformation Connection Service Rate | D73: =IFERROR(VLOOKUP(A73,RTSR,4,FALSE),"") -> $/kWh | E73: 0.006058187121 | F73: 11803519.17 | G73: 0 | H73: 71507.93 | I73: 0.002151694494 | J73: 71507.93001 | K73: 0.006058187307
A74: =A41 -> SEN_TC | B74: SENTINEL LIGHTING SERVICE CLASSIFICATION | C74: Retail Transmission Rate – Line and Transformation Connection Service Rate | D74: $/kW | E74: 1.939529334 | G74: 1320.307601 | H74: 2560.78 | I74: 7.705461793e-05 | J74: 2560.78 | K74: 1.939532878
A75: =A42 -> SL_TC | B75: STREET LIGHTING SERVICE CLASSIFICATION | C75: Retail Transmission Rate – Line and Transformation Connection Service Rate | D75: $/kW | E75: 1.891062928 | G75: 58768.585 | H75: 111135.09 | I75: 0.003344087309 | J75: 111135.09 | K75: 1.891062887
A76: =A43 -> 0 | B76: STANDBY POWER SERVICE CLASSIFICATION

Sheet 17. Rev2Cost-GDPIPI
A1: Back to Index | AA1: FALSE | AB1: 0 | AE1: NO
C2: =+'1. Information Sheet'!B2 -> INCENTIVE REGULATION MODEL FOR 2020 FILERS | S2: TRUE
C11: If applicable, please enter any adjustments related to the revenue to cost ratio model into columns C and E. The Price Escalator and Stretch Factor have been set at the 2016 values and will be updated by OEB staff at a later date.
C12: Price Escalator | D12: 0.015 | E12: Productivity Factor | F12: 0 | G12: # of Residential Customers (approved in the last CoS) | H12: =+'10. Shared Tax - RR'!D17 -> 225004 | I12: Effective Year of Residential Rate Design Transition (yyyy) | J12: 2016
C13: Choose Stretch Factor Group | D13: III | E13: Price Cap Index | F13: =D12-F12-D14 -> 0.012 | G13: Billed kWh for Residential Class (approved in the last CoS) | H13: =+'10. Shared Tax - RR'!E17 -> 1537580329 | I13: OEB-approved # of Transition Years | J13: 4
C14: Associated Stretch Factor Value | D14: =IF(D13="I", 0%, IF(D13="II", 0.15%, IF(D13="III", 0.3%, IF(D13="IV", 0.45%, 0.6%)))) -> 0.003 | G14: Rate Design Transition Years Left | H14: 0
C15: Rate Class | D15: Current MFC | E15: MFC Adjustment from R/C Model | F15: Current Volumetric Charge | G15: DVR Adjustment from R/C Model | H15: Price Cap Index to be Applied to MFC and DVR | I15: Proposed MFC | J15: Proposed Volumetric Charge
A17: R_F | B17: R_V | C17: ='4. Billing Det. for Def-Var'!B17 -> RESIDENTIAL SERVICE CLASSIFICATION | D17: =IFERROR(VLOOKUP(A17,_xlnm.DATABASE,8,FALSE),"") -> 26.7 | F17: =IFERROR(VLOOKUP(B17,_xlnm.DATABASE,8,FALSE),"") -> 0 | H17: =F$13 -> 0.012 | I17: =IFERROR(ROUND(D17*(1+F13),2),0) -> 27.02 | J17: =IFERROR(ROUND(J35*(1+F13),4),0) -> 0
A18: GSL_F | B18: GSL_V | C18: ='4. Billing Det. for Def-Var'!B18 -> GENERAL SERVICE LESS THAN 50 kW SERVICE CLASSIFICATION | D18: 42.29 | F18: 0.0109 | H18: =F$13 -> 0.012 | I18: =IFERROR(ROUND((D18+E18)*(1+F$13),2),0) -> 42.8 | J18: =IFERROR((F18+G18)*(1+F$13),0) -> 0.0110308
A19: GSG_F | B19: GSG_V | C19: ='4. Billing Det. for Def-Var'!B19 -> GENERAL SERVICE 50 to 4,999 kW SERVICE CLASSIFICATION | D19: 389.4 | F19: 2.615 | H19: 0.012 | I19: 394.07 | J19: =IFERROR((F19+G19)*(1+F$13),0) -> 2.64638
A20: LU_F | B20: LU_V | C20: ='4. Billing Det. for Def-Var'!B20 -> LARGE USE SERVICE CLASSIFICATION | D20: 24279.37 | F20: 1.4325 | H20: 0.012 | I20: 24570.72 | J20: =IFERROR((F20+G20)*(1+F$13),0) -> 1.44969
A21: LUDA_F | B21: LUDA_V | C21: ='4. Billing Det. for Def-Var'!B21 -> LARGE USE SERVICE WITH DEDICATED ASSETS CLASSIFICATION | D21: 5755.85 | F21: 0.3396 | H21: 0.012 | I21: 5824.92 | J21: =IFERROR((F21+G21)*(1+F$13),0) -> 0.3436752
A22: USL_F | B22: USL_V | C22: ='4. Billing Det. for Def-Var'!B22 -> UNMETERED SCATTERED LOAD SERVICE CLASSIFICATION | D22: 8.63 | F22: 0.0134 | H22: 0.012 | I22: =IFERROR(ROUND((D22+E22)*(1+F$13),2),0) -> 8.73 | J22: =IFERROR((F22+G22)*(1+F$13),0) -> 0.0135608
A23: SEN_F | B23: SEN_V | C23: ='4. Billing Det. for Def-Var'!B23 -> SENTINEL LIGHTING SERVICE CLASSIFICATION | D23: =IFERROR(VLOOKUP(A23,_xlnm.DATABASE,8,FALSE),"") -> 5.63 | F23: 15.4416 | H23: 0.012 | I23: 5.7 | J23: =IFERROR((F23+G23)*(1+F$13),0) -> 15.6268992
A24: SL_F | B24: SL_V | C24: ='4. Billing Det. for Def-Var'!B24 -> STREET LIGHTING SERVICE CLASSIFICATION | D24: 1.95 | F24: 5.1752 | H24: 0.012 | I24: 1.97 | J24: 5.2373024
B25: SB_V | C25: ='4. Billing Det. for Def-Var'!B25 -> STANDBY POWER SERVICE CLASSIFICATION | D25: =IFERROR(VLOOKUP(A25,_xlnm.DATABASE,8,FALSE),"") ->  | F25: 2.615 | H25: =F$13 -> 0.012 | I25: =IFERROR(ROUND((D25+E25)*(1+F$13),2),0) -> 0 | J25: =IFERROR((F25+G25)*(1+F$13),0) -> 2.64638
B26: SB_LU_V | C26: STANDBY POWER SERVICE CLASSIFICATION - LARGE USE | F26: 1.4325 | H26: =F$13 -> 0.012 | I26: =IFERROR(ROUND((D26+E26)*(1+F$13),2),0) -> 0 | J26: =IFERROR((F26+G26)*(1+F$13),0) -> 1.44969
B27: SB_LUDA_V | C27: STANDBY POWER SERVICE CLASSIFICATION - LARGE USE WITH DEDICATED ASSETS | F27: 0.3396 | H27: 0.012 | I27: 0 | J27: 0.3436752
A28: MF | C28: microFIT SERVICE CLASSIFICATION | D28: 5.4 | H28: =F$13 -> 0.012 | I28: =D28 -> 5.4
F29: =IFERROR(VLOOKUP(B30,RATES,4,FALSE),"") -> 
F30: =IFERROR(VLOOKUP(B31,RATES,4,FALSE),"") -> 
C33: Rate Design Transition | E33: Revenue from Rates | F33: Current F/V Split | G33: Decoupling MFC Split | H33: Incremental Fixed Charge ($/month/year) | I33: New F/V Split | J33: Adjusted Rates1 | K33: Revenue at New F/V Split
C34: Current Residential Fixed Rate (inclusive of R/C adj.) | D34: =D17+E17 -> 26.7 | E34: =D34*COS_RES_CUSTOMERS*12 -> 72091281.6 | F34: =IF(ISERROR(E34/E36), 0, E34/E36) -> 1 | G34: =IF(ISERROR((1-F34)/YRS_LEFT), 0, (1-F34)/YRS_LEFT) -> 0 | H34: =IF(ISERROR(ROUND(G34*E36/COS_RES_CUSTOMERS/12, 2)), 0, ROUND(G34*E36/COS_RES_CUSTOMERS/12, 2)) -> 0 | I34: =G34+F34 -> 1 | J34: =IF(ISERROR(ROUND(I34*E36/COS_RES_CUSTOMERS/12, 2)), 0, ROUND(I34*E36/COS_RES_CUSTOMERS/12, 2)) -> 26.7 | K34: =ROUND(J34*COS_RES_CUSTOMERS*12, 2) -> 72091281.6
C35: Current Residential Variable Rate (inclusive of R/C adj.) | D35: =F17+G17 -> 0 | E35: =D35*COS_RES_KWH -> 0 | F35: =IF(ISERROR(E35/E36), 0, E35/E36) -> 0 | I35: =1-I34 -> 0 | J35: =IF(ISERROR(ROUND(I35*E36/COS_RES_KWH, 4)), 0, ROUND(I35*E36/COS_RES_KWH, 4)) -> 0 | K35: =ROUND(J35*COS_RES_KWH, 2) -> 0
E36: =SUM(E34+E35) -> 72091281.6 | K36: =SUM(K34+K35) -> 72091281.6
C39: =IF((J34-D34)>=4, "The Rate Design Transition has calculated a monthly fixed charge greater than or equal to $4. Please refer to Section 3.2.3 of the Chapter 3 Filing Requirements for mitigation instructions.", "") -> 
C41: 1 These are the residential rates to which the Price Cap Index will be applied to.

